Workbook

Sheet Project
A1: Agency: | B1: VCTC
A2: Project: | B2: VCTC Model Update
A3: Scenario: | B3: BaseYear2025
A4: Date: | B4: 2026-05-07 | C4: *This is automatically filled in by the script, and the macros will not run if the cell has data in it. (To prevent overwriting of spreadsheets).
A5: File Path: | B5: D:\VCTM\BaseYear2025\Analysis\

Sheet SB743_VMTSummary
D2: City | E2: Home-based VMT/Capita | F2: Work-based VMT/Employee | G2: Total VMT/Service Population | I2: City | J2: Population | K2: Employee | L2: Service Population
D3: Camarillo | E3: =$E$30 -> 16.37382982 | F3: =$E$31 -> 17.37324976 | G3: =$E$32 -> 27.78402484 | I3: Camarillo | J3: =$E$28 -> 75422.736 | K3: =$E$29 -> 32288 | L3: =SUM(J3:K3) -> 107710.736
D4: Fillmore | E4: =$E$47 -> 23.75935407 | F4: =$E$48 -> 15.55609445 | G4: =$E$49 -> 28.68544755 | I4: Fillmore | J4: =$E$45 -> 17414.317 | K4: =$E$46 -> 2468 | L4: =SUM(J4:K4) -> 19882.317
D5: Moorpark | E5: =$E$64 -> 22.13323754 | F5: =$E$65 -> 16.8847978 | G5: =$E$66 -> 32.1506136 | I5: Moorpark | J5: =$E$62 -> 34687.53 | K5: =$E$63 -> 10811 | L5: 45498.53
D6: Ojai | E6: =$E$81 -> 18.86512037 | F6: =$E$82 -> 9.134554397 | G6: =$E$83 -> 26.35135952 | I6: Ojai | J6: =$E$79 -> 9445 | K6: =$E$80 -> 6525 | L6: 15970
D7: Oxnard | E7: =$E$98 -> 10.29048905 | F7: =$E$99 -> 15.35717711 | G7: =$E$100 -> 20.04645621 | I7: Oxnard | J7: =$E$96 -> 218381 | K7: =$E$97 -> 63617 | L7: 281998
D8: Port Hueneme | E8: =$E$115 -> 12.09678933 | F8: =$E$116 -> 13.28479872 | G8: =$E$117 -> 19.52844144 | I8: Port Hueneme | J8: =$E$113 -> 22643 | K8: =$E$114 -> 4187 | L8: 26830
D9: San Buenaventura | E9: =$E$132 -> 13.46722756 | F9: =$E$133 -> 16.81747133 | G9: =$E$134 -> 26.34054606 | I9: San Buenaventura | J9: =$E$130 -> 105848 | K9: =$E$131 -> 60983 | L9: 166831
D10: Santa Paula | E10: =$E$149 -> 16.86459572 | F10: =$E$150 -> 15.60020898 | G10: =$E$151 -> 22.7771122 | I10: Santa Paula | J10: =$E$147 -> 32266.296 | K10: =$E$148 -> 6356 | L10: 38622.296
D11: Simi Valley | E11: =$E$166 -> 17.34204927 | F11: =$E$167 -> 15.417849 | G11: =$E$168 -> 26.11856009 | I11: Simi Valley | J11: =$E$164 -> 128241 | K11: =$E$165 -> 44350 | L11: 172591
D12: Thousand Oaks | E12: =$E$183 -> 19.39224761 | F12: =$E$184 -> 17.5664935 | G12: =$E$185 -> 31.5919489 | I12: Thousand Oaks | J12: =$E$181 -> 129029.506 | K12: =$E$182 -> 78989 | L12: 208018.506
D13: Unincorporated | E13: =$E$200 -> 24.45669025 | F13: =$E$201 -> 14.76136401 | G13: =$E$202 -> 29.92989917 | I13: Unincorporated | J13: =$E$198 -> 64237.3313 | K13: =$E$199 -> 22932 | L13: 87169.3313
D14: Overall Ventura County | E14: =$E$217 -> 15.97701491 | F14: =$E$218 -> 16.2176068 | G14: =$E$219 -> 26.11705319 | I14: Overall Ventura County | J14: =$E$215 -> 837615.7163 | K14: =$E$216 -> 333506 | L14: 1171121.716
C17: Camarillo | H17: Camarillo TAZ: | J17: 60099201
C18: ID | D18: Purpose | E18: Productions | F18: Attractions | H18: ID | I18: Purpose | J18: Productions | K18: Attractions
C19: 1 | D19: Home-based Work | E19: =(SUMIF('SummaryVMT-PK'!$A:$A,$C$17,'SummaryVMT-PK'!$C:$C))+(SUMIF('SummaryVMT-OP'!$A:$A,$C$17,'SummaryVMT-OP'!$C:$C)) -> 666655.0907 | F19: =(SUMIF('SummaryVMT-PK'!$A:$A,$C$17,'SummaryVMT-PK'!$D:$D))+(SUMIF('SummaryVMT-OP'!$A:$A,$C$17,'SummaryVMT-OP'!$D:$D)) -> 459532.8607 | H19: 1 | I19: Home-based Work | J19: =(SUMIF('SummaryVMT-PK'!$B:$B,$J$17,'SummaryVMT-PK'!$C:$C))+(SUMIF('SummaryVMT-OP'!$B:$B,$J$17,'SummaryVMT-OP'!$C:$C)) -> 0 | K19: =(SUMIF('SummaryVMT-PK'!$B:$B,$J$17,'SummaryVMT-PK'!$D:$D))+(SUMIF('SummaryVMT-OP'!$B:$B,$J$17,'SummaryVMT-OP'!$D:$D)) -> 23618.66654
C20: 2 | D20: Home-based School | E20: =(SUMIF('SummaryVMT-PK'!$A:$A,$C$17,'SummaryVMT-PK'!$E:$E))+(SUMIF('SummaryVMT-OP'!$A:$A,$C$17,'SummaryVMT-OP'!$E:$E)) -> 21284.89673 | F20: =(SUMIF('SummaryVMT-PK'!$A:$A,$C$17,'SummaryVMT-PK'!$F:$F))+(SUMIF('SummaryVMT-OP'!$A:$A,$C$17,'SummaryVMT-OP'!$F:$F)) -> 17839.31459 | H20: 2 | I20: Home-based School | J20: =(SUMIF('SummaryVMT-PK'!$B:$B,$J$17,'SummaryVMT-PK'!$E:$E))+(SUMIF('SummaryVMT-OP'!$B:$B,$J$17,'SummaryVMT-OP'!$E:$E)) -> 0 | K20: =(SUMIF('SummaryVMT-PK'!$B:$B,$J$17,'SummaryVMT-PK'!$F:$F))+(SUMIF('SummaryVMT-OP'!$B:$B,$J$17,'SummaryVMT-OP'!$F:$F)) -> 1645.425159
C21: 3 | D21: Home-based Non-Work | E21: =(SUMIF('SummaryVMT-PK'!$A:$A,$C$17,'SummaryVMT-PK'!$G:$G))+(SUMIF('SummaryVMT-OP'!$A:$A,$C$17,'SummaryVMT-OP'!$G:$G)) -> 535092.4178 | F21: =(SUMIF('SummaryVMT-PK'!$A:$A,$C$17,'SummaryVMT-PK'!$H:$H))+(SUMIF('SummaryVMT-OP'!$A:$A,$C$17,'SummaryVMT-OP'!$H:$H)) -> 504348.0855 | H21: 3 | I21: Home-based Non-Work | J21: =(SUMIF('SummaryVMT-PK'!$B:$B,$J$17,'SummaryVMT-PK'!$G:$G))+(SUMIF('SummaryVMT-OP'!$B:$B,$J$17,'SummaryVMT-OP'!$G:$G)) -> 0 | K21: =(SUMIF('SummaryVMT-PK'!$B:$B,$J$17,'SummaryVMT-PK'!$H:$H))+(SUMIF('SummaryVMT-OP'!$B:$B,$J$17,'SummaryVMT-OP'!$H:$H)) -> 13783.89595
C22: 4 | D22: Home-based University | E22: =(SUMIF('SummaryVMT-PK'!$A:$A,$C$17,'SummaryVMT-PK'!$I:$I))+(SUMIF('SummaryVMT-OP'!$A:$A,$C$17,'SummaryVMT-OP'!$I:$I)) -> 11926.63875 | F22: =(SUMIF('SummaryVMT-PK'!$A:$A,$C$17,'SummaryVMT-PK'!$J:$J))+(SUMIF('SummaryVMT-OP'!$A:$A,$C$17,'SummaryVMT-OP'!$J:$J)) -> 73.61195279 | H22: 4 | I22: Home-based University | J22: =(SUMIF('SummaryVMT-PK'!$B:$B,$J$17,'SummaryVMT-PK'!$I:$I))+(SUMIF('SummaryVMT-OP'!$B:$B,$J$17,'SummaryVMT-OP'!$I:$I)) -> 0 | K22: =(SUMIF('SummaryVMT-PK'!$B:$B,$J$17,'SummaryVMT-PK'!$J:$J))+(SUMIF('SummaryVMT-OP'!$B:$B,$J$17,'SummaryVMT-OP'!$J:$J)) -> 0
C23: 5 | D23: Work-Based Other | E23: =(SUMIF('SummaryVMT-PK'!$A:$A,$C$17,'SummaryVMT-PK'!$M:$M))+(SUMIF('SummaryVMT-OP'!$A:$A,$C$17,'SummaryVMT-OP'!$M:$M)) -> 101414.6275 | F23: =(SUMIF('SummaryVMT-PK'!$A:$A,$C$17,'SummaryVMT-PK'!$N:$N))+(SUMIF('SummaryVMT-OP'!$A:$A,$C$17,'SummaryVMT-OP'!$N:$N)) -> 71563.13716 | H23: 5 | I23: Work-Based Other | J23: =(SUMIF('SummaryVMT-PK'!$B:$B,$J$17,'SummaryVMT-PK'!$M:$M))+(SUMIF('SummaryVMT-OP'!$B:$B,$J$17,'SummaryVMT-OP'!$M:$M)) -> 3170.436407 | K23: =(SUMIF('SummaryVMT-PK'!$B:$B,$J$17,'SummaryVMT-PK'!$N:$N))+(SUMIF('SummaryVMT-OP'!$B:$B,$J$17,'SummaryVMT-OP'!$N:$N)) -> 3968.641405
C24: 6 | D24: Other Based Other | E24: =(SUMIF('SummaryVMT-PK'!$A:$A,$C$17,'SummaryVMT-PK'!$K:$K))+(SUMIF('SummaryVMT-OP'!$A:$A,$C$17,'SummaryVMT-OP'!$K:$K)) -> 330504.9829 | F24: =(SUMIF('SummaryVMT-PK'!$A:$A,$C$17,'SummaryVMT-PK'!$L:$L))+(SUMIF('SummaryVMT-OP'!$A:$A,$C$17,'SummaryVMT-OP'!$L:$L)) -> 272402.1008 | H24: 6 | I24: Other Based Other | J24: =(SUMIF('SummaryVMT-PK'!$B:$B,$J$17,'SummaryVMT-PK'!$K:$K))+(SUMIF('SummaryVMT-OP'!$B:$B,$J$17,'SummaryVMT-OP'!$K:$K)) -> 8502.166326 | K24: =(SUMIF('SummaryVMT-PK'!$B:$B,$J$17,'SummaryVMT-PK'!$L:$L))+(SUMIF('SummaryVMT-OP'!$B:$B,$J$17,'SummaryVMT-OP'!$L:$L)) -> 8526.273938
C25: Total VMT | E25: =SUM(E19:E24) -> 1666878.654 | F25: =SUM(F19:F24) -> 1325759.111 | H25: Total VMT | J25: =SUM(J19:J24) -> 11672.60273 | K25: =SUM(K19:K24) -> 51542.90299
C26: Total Home-based VMT | E26: =SUM(E19:E22) -> 1234959.044 | H26: Total Home-based VMT | J26: =SUM(J19:J22) -> 0
C27: Total Work-based VMT | E27: =SUM(E23,F19) -> 560947.4882 | H27: Total Work-based VMT | J27: =SUM(J23,K19) -> 26789.10295
C28: Total Population | E28: =SUMIF(SED!$C:$C,$C$17,SED!D:D) -> 75422.736 | H28: Total Population | J28: =SUMIF(SED!$A:$A,$J$17,SED!D:D) -> 0
C29: Total Employees | E29: =SUMIF(SED!$C:$C,$C$17,SED!F:F) -> 32288 | H29: Total Employees | J29: =SUMIF(SED!$A:$A,$J$17,SED!F:F) -> 1611
C30: Total Home-based VMT/Capita | E30: =E26/E28 -> 16.37382982 | H30: Total Home-based VMT/Capita | J30: =J26/J28 -> 
C31: Total Work-based VMT/Employee | E31: =E27/E29 -> 17.37324976 | H31: Total Work-based VMT/Employee | J31: =J27/J29 -> 16.62886589
C32: Total VMT/Service Population | E32: =SUM(E25:F25)/SUM(E28:F29) -> 27.78402484 | H32: Total VMT/Service Population | J32: =SUM(J25:K25)/SUM(J28:K29) -> 39.23991665
C34: Fillmore | H34: Fillmore TAZ: | J34: 60206301
C35: ID | D35: Purpose | E35: Productions | F35: Attractions | H35: ID | I35: Purpose | J35: Productions | K35: Attractions
C36: 1 | D36: Home-based Work | E36: =(SUMIF('SummaryVMT-PK'!$A:$A,$C$34,'SummaryVMT-PK'!$C:$C))+(SUMIF('SummaryVMT-OP'!$A:$A,$C$34,'SummaryVMT-OP'!$C:$C)) -> 229740.5115 | F36: =(SUMIF('SummaryVMT-PK'!$A:$A,$C$34,'SummaryVMT-PK'!$D:$D))+(SUMIF('SummaryVMT-OP'!$A:$A,$C$34,'SummaryVMT-OP'!$D:$D)) -> 31058.87901 | H36: 1 | I36: Home-based Work | J36: =(SUMIF('SummaryVMT-PK'!$B:$B,$J$34,'SummaryVMT-PK'!$C:$C))+(SUMIF('SummaryVMT-OP'!$B:$B,$J$34,'SummaryVMT-OP'!$C:$C)) -> 9474.276559 | K36: =(SUMIF('SummaryVMT-PK'!$B:$B,$J$34,'SummaryVMT-PK'!$D:$D))+(SUMIF('SummaryVMT-OP'!$B:$B,$J$34,'SummaryVMT-OP'!$D:$D)) -> 3227.693769
C37: 2 | D37: Home-based School | E37: =(SUMIF('SummaryVMT-PK'!$A:$A,$C$34,'SummaryVMT-PK'!$E:$E))+(SUMIF('SummaryVMT-OP'!$A:$A,$C$34,'SummaryVMT-OP'!$E:$E)) -> 3773.769535 | F37: =(SUMIF('SummaryVMT-PK'!$A:$A,$C$34,'SummaryVMT-PK'!$F:$F))+(SUMIF('SummaryVMT-OP'!$A:$A,$C$34,'SummaryVMT-OP'!$F:$F)) -> 2925.873204 | H37: 2 | I37: Home-based School | J37: =(SUMIF('SummaryVMT-PK'!$B:$B,$J$34,'SummaryVMT-PK'!$E:$E))+(SUMIF('SummaryVMT-OP'!$B:$B,$J$34,'SummaryVMT-OP'!$E:$E)) -> 54.87440737 | K37: =(SUMIF('SummaryVMT-PK'!$B:$B,$J$34,'SummaryVMT-PK'!$F:$F))+(SUMIF('SummaryVMT-OP'!$B:$B,$J$34,'SummaryVMT-OP'!$F:$F)) -> 0
C38: 3 | D38: Home-based Non-Work | E38: =(SUMIF('SummaryVMT-PK'!$A:$A,$C$34,'SummaryVMT-PK'!$G:$G))+(SUMIF('SummaryVMT-OP'!$A:$A,$C$34,'SummaryVMT-OP'!$G:$G)) -> 176239.4022 | F38: =(SUMIF('SummaryVMT-PK'!$A:$A,$C$34,'SummaryVMT-PK'!$H:$H))+(SUMIF('SummaryVMT-OP'!$A:$A,$C$34,'SummaryVMT-OP'!$H:$H)) -> 45694.77156 | H38: 3 | I38: Home-based Non-Work | J38: =(SUMIF('SummaryVMT-PK'!$B:$B,$J$34,'SummaryVMT-PK'!$G:$G))+(SUMIF('SummaryVMT-OP'!$B:$B,$J$34,'SummaryVMT-OP'!$G:$G)) -> 6771.717562 | K38: =(SUMIF('SummaryVMT-PK'!$B:$B,$J$34,'SummaryVMT-PK'!$H:$H))+(SUMIF('SummaryVMT-OP'!$B:$B,$J$34,'SummaryVMT-OP'!$H:$H)) -> 3756.499443
C39: 4 | D39: Home-based University | E39: =(SUMIF('SummaryVMT-PK'!$A:$A,$C$34,'SummaryVMT-PK'!$I:$I))+(SUMIF('SummaryVMT-OP'!$A:$A,$C$34,'SummaryVMT-OP'!$I:$I)) -> 3999.240282 | F39: =(SUMIF('SummaryVMT-PK'!$A:$A,$C$34,'SummaryVMT-PK'!$J:$J))+(SUMIF('SummaryVMT-OP'!$A:$A,$C$34,'SummaryVMT-OP'!$J:$J)) -> 0 | H39: 4 | I39: Home-based University | J39: =(SUMIF('SummaryVMT-PK'!$B:$B,$J$34,'SummaryVMT-PK'!$I:$I))+(SUMIF('SummaryVMT-OP'!$B:$B,$J$34,'SummaryVMT-OP'!$I:$I)) -> 152.6260879 | K39: =(SUMIF('SummaryVMT-PK'!$B:$B,$J$34,'SummaryVMT-PK'!$J:$J))+(SUMIF('SummaryVMT-OP'!$B:$B,$J$34,'SummaryVMT-OP'!$J:$J)) -> 0
C40: 5 | D40: Work-Based Other | E40: =(SUMIF('SummaryVMT-PK'!$A:$A,$C$34,'SummaryVMT-PK'!$M:$M))+(SUMIF('SummaryVMT-OP'!$A:$A,$C$34,'SummaryVMT-OP'!$M:$M)) -> 7333.562089 | F40: =(SUMIF('SummaryVMT-PK'!$A:$A,$C$34,'SummaryVMT-PK'!$N:$N))+(SUMIF('SummaryVMT-OP'!$A:$A,$C$34,'SummaryVMT-OP'!$N:$N)) -> 3075.157064 | H40: 5 | I40: Work-Based Other | J40: =(SUMIF('SummaryVMT-PK'!$B:$B,$J$34,'SummaryVMT-PK'!$M:$M))+(SUMIF('SummaryVMT-OP'!$B:$B,$J$34,'SummaryVMT-OP'!$M:$M)) -> 1050.444153 | K40: =(SUMIF('SummaryVMT-PK'!$B:$B,$J$34,'SummaryVMT-PK'!$N:$N))+(SUMIF('SummaryVMT-OP'!$B:$B,$J$34,'SummaryVMT-OP'!$N:$N)) -> 377.6348231
C41: 6 | D41: Other Based Other | E41: =(SUMIF('SummaryVMT-PK'!$A:$A,$C$34,'SummaryVMT-PK'!$K:$K))+(SUMIF('SummaryVMT-OP'!$A:$A,$C$34,'SummaryVMT-OP'!$K:$K)) -> 53042.14375 | F41: =(SUMIF('SummaryVMT-PK'!$A:$A,$C$34,'SummaryVMT-PK'!$L:$L))+(SUMIF('SummaryVMT-OP'!$A:$A,$C$34,'SummaryVMT-OP'!$L:$L)) -> 13449.85123 | H41: 6 | I41: Other Based Other | J41: =(SUMIF('SummaryVMT-PK'!$B:$B,$J$34,'SummaryVMT-PK'!$K:$K))+(SUMIF('SummaryVMT-OP'!$B:$B,$J$34,'SummaryVMT-OP'!$K:$K)) -> 5658.561883 | K41: =(SUMIF('SummaryVMT-PK'!$B:$B,$J$34,'SummaryVMT-PK'!$L:$L))+(SUMIF('SummaryVMT-OP'!$B:$B,$J$34,'SummaryVMT-OP'!$L:$L)) -> 904.7278923
C42: Total VMT | E42: =SUM(E36:E41) -> 474128.6293 | F42: =SUM(F36:F41) -> 96204.53206 | H42: Total VMT | J42: =SUM(J36:J41) -> 23162.50065 | K42: =SUM(K36:K41) -> 8266.555927
C43: Total Home-based VMT | E43: =SUM(E36:E39) -> 413752.9235 | H43: Total Home-based VMT | J43: =SUM(J36:J39) -> 16453.49462
C44: Total Work-based VMT | E44: =SUM(E40,F36) -> 38392.4411 | H44: Total Work-based VMT | J44: =SUM(J40,K36) -> 4278.137921
C45: Total Population | E45: =SUMIF(SED!$C:$C,$C$34,SED!D:D) -> 17414.317 | H45: Total Population | J45: =SUMIF(SED!$A:$A,$J$34,SED!D:D) -> 820
C46: Total Employees | E46: =SUMIF(SED!$C:$C,$C$34,SED!F:F) -> 2468 | H46: Total Employees | J46: =SUMIF(SED!$A:$A,$J$34,SED!F:F) -> 252
C47: Total Home-based VMT/Capita | E47: =E43/E45 -> 23.75935407 | H47: Total Home-based VMT/Capita | J47: =J43/J45 -> 20.06523734
C48: Total Work-based VMT/Employee | E48: =E44/E46 -> 15.55609445 | H48: Total Work-based VMT/Employee | J48: =J44/J46 -> 16.97673778
C49: Total VMT/Service Population | E49: =SUM(E42:F42)/SUM(E45:F46) -> 28.68544755 | H49: Total VMT/Service Population | J49: =SUM(J42:K42)/SUM(J45:K46) -> 29.31814979
C51: Moorpark | H51: Moorpark TAZ: | J51: 60123101
C52: ID | D52: Purpose | E52: Productions | F52: Attractions | H52: ID | I52: Purpose | J52: Productions | K52: Attractions
C53: 1 | D53: Home-based Work | E53: =(SUMIF('SummaryVMT-PK'!$A:$A,$C$51,'SummaryVMT-PK'!$C:$C))+(SUMIF('SummaryVMT-OP'!$A:$A,$C$51,'SummaryVMT-OP'!$C:$C)) -> 400845.1443 | F53: =(SUMIF('SummaryVMT-PK'!$A:$A,$C$51,'SummaryVMT-PK'!$D:$D))+(SUMIF('SummaryVMT-OP'!$A:$A,$C$51,'SummaryVMT-OP'!$D:$D)) -> 153207.9144 | H53: 1 | I53: Home-based Work | J53: =(SUMIF('SummaryVMT-PK'!$B:$B,$J$51,'SummaryVMT-PK'!$C:$C))+(SUMIF('SummaryVMT-OP'!$B:$B,$J$51,'SummaryVMT-OP'!$C:$C)) -> 9470.320955 | K53: =(SUMIF('SummaryVMT-PK'!$B:$B,$J$51,'SummaryVMT-PK'!$D:$D))+(SUMIF('SummaryVMT-OP'!$B:$B,$J$51,'SummaryVMT-OP'!$D:$D)) -> 55838.18444
C54: 2 | D54: Home-based School | E54: =(SUMIF('SummaryVMT-PK'!$A:$A,$C$51,'SummaryVMT-PK'!$E:$E))+(SUMIF('SummaryVMT-OP'!$A:$A,$C$51,'SummaryVMT-OP'!$E:$E)) -> 13667.07876 | F54: =(SUMIF('SummaryVMT-PK'!$A:$A,$C$51,'SummaryVMT-PK'!$F:$F))+(SUMIF('SummaryVMT-OP'!$A:$A,$C$51,'SummaryVMT-OP'!$F:$F)) -> 8431.16192 | H54: 2 | I54: Home-based School | J54: =(SUMIF('SummaryVMT-PK'!$B:$B,$J$51,'SummaryVMT-PK'!$E:$E))+(SUMIF('SummaryVMT-OP'!$B:$B,$J$51,'SummaryVMT-OP'!$E:$E)) -> 332.4352322 | K54: =(SUMIF('SummaryVMT-PK'!$B:$B,$J$51,'SummaryVMT-PK'!$F:$F))+(SUMIF('SummaryVMT-OP'!$B:$B,$J$51,'SummaryVMT-OP'!$F:$F)) -> 956.9607986
C55: 3 | D55: Home-based Non-Work | E55: =(SUMIF('SummaryVMT-PK'!$A:$A,$C$51,'SummaryVMT-PK'!$G:$G))+(SUMIF('SummaryVMT-OP'!$A:$A,$C$51,'SummaryVMT-OP'!$G:$G)) -> 350413.7535 | F55: =(SUMIF('SummaryVMT-PK'!$A:$A,$C$51,'SummaryVMT-PK'!$H:$H))+(SUMIF('SummaryVMT-OP'!$A:$A,$C$51,'SummaryVMT-OP'!$H:$H)) -> 186303.209 | H55: 3 | I55: Home-based Non-Work | J55: =(SUMIF('SummaryVMT-PK'!$B:$B,$J$51,'SummaryVMT-PK'!$G:$G))+(SUMIF('SummaryVMT-OP'!$B:$B,$J$51,'SummaryVMT-OP'!$G:$G)) -> 7604.030296 | K55: =(SUMIF('SummaryVMT-PK'!$B:$B,$J$51,'SummaryVMT-PK'!$H:$H))+(SUMIF('SummaryVMT-OP'!$B:$B,$J$51,'SummaryVMT-OP'!$H:$H)) -> 42941.132
C56: 4 | D56: Home-based University | E56: =(SUMIF('SummaryVMT-PK'!$A:$A,$C$51,'SummaryVMT-PK'!$I:$I))+(SUMIF('SummaryVMT-OP'!$A:$A,$C$51,'SummaryVMT-OP'!$I:$I)) -> 2821.364486 | F56: =(SUMIF('SummaryVMT-PK'!$A:$A,$C$51,'SummaryVMT-PK'!$J:$J))+(SUMIF('SummaryVMT-OP'!$A:$A,$C$51,'SummaryVMT-OP'!$J:$J)) -> 47931.60224 | H56: 4 | I56: Home-based University | J56: =(SUMIF('SummaryVMT-PK'!$B:$B,$J$51,'SummaryVMT-PK'!$I:$I))+(SUMIF('SummaryVMT-OP'!$B:$B,$J$51,'SummaryVMT-OP'!$I:$I)) -> 77.17474172 | K56: =(SUMIF('SummaryVMT-PK'!$B:$B,$J$51,'SummaryVMT-PK'!$J:$J))+(SUMIF('SummaryVMT-OP'!$B:$B,$J$51,'SummaryVMT-OP'!$J:$J)) -> 0
C57: 5 | D57: Work-Based Other | E57: =(SUMIF('SummaryVMT-PK'!$A:$A,$C$51,'SummaryVMT-PK'!$M:$M))+(SUMIF('SummaryVMT-OP'!$A:$A,$C$51,'SummaryVMT-OP'!$M:$M)) -> 29333.63457 | F57: =(SUMIF('SummaryVMT-PK'!$A:$A,$C$51,'SummaryVMT-PK'!$N:$N))+(SUMIF('SummaryVMT-OP'!$A:$A,$C$51,'SummaryVMT-OP'!$N:$N)) -> 21495.18566 | H57: 5 | I57: Work-Based Other | J57: =(SUMIF('SummaryVMT-PK'!$B:$B,$J$51,'SummaryVMT-PK'!$M:$M))+(SUMIF('SummaryVMT-OP'!$B:$B,$J$51,'SummaryVMT-OP'!$M:$M)) -> 8411.325992 | K57: =(SUMIF('SummaryVMT-PK'!$B:$B,$J$51,'SummaryVMT-PK'!$N:$N))+(SUMIF('SummaryVMT-OP'!$B:$B,$J$51,'SummaryVMT-OP'!$N:$N)) -> 6043.700625
C58: 6 | D58: Other Based Other | E58: =(SUMIF('SummaryVMT-PK'!$A:$A,$C$51,'SummaryVMT-PK'!$K:$K))+(SUMIF('SummaryVMT-OP'!$A:$A,$C$51,'SummaryVMT-OP'!$K:$K)) -> 156697.1875 | F58: =(SUMIF('SummaryVMT-PK'!$A:$A,$C$51,'SummaryVMT-PK'!$L:$L))+(SUMIF('SummaryVMT-OP'!$A:$A,$C$51,'SummaryVMT-OP'!$L:$L)) -> 91658.42106 | H58: 6 | I58: Other Based Other | J58: =(SUMIF('SummaryVMT-PK'!$B:$B,$J$51,'SummaryVMT-PK'!$K:$K))+(SUMIF('SummaryVMT-OP'!$B:$B,$J$51,'SummaryVMT-OP'!$K:$K)) -> 36833.83133 | K58: =(SUMIF('SummaryVMT-PK'!$B:$B,$J$51,'SummaryVMT-PK'!$L:$L))+(SUMIF('SummaryVMT-OP'!$B:$B,$J$51,'SummaryVMT-OP'!$L:$L)) -> 28772.98739
C59: Total VMT | E59: =SUM(E53:E58) -> 953778.1632 | F59: =SUM(F53:F58) -> 509027.4943 | H59: Total VMT | J59: =SUM(J53:J58) -> 62729.11855 | K59: =SUM(K53:K58) -> 134552.9652
C60: Total Home-based VMT | E60: =SUM(E53:E56) -> 767747.3411 | H60: Total Home-based VMT | J60: =SUM(J53:J56) -> 17483.96122
C61: Total Work-based VMT | E61: =SUM(E57,F53) -> 182541.549 | H61: Total Work-based VMT | J61: =SUM(J57,K53) -> 64249.51043
C62: Total Population | E62: =SUMIF(SED!$C:$C,$C$51,SED!D:D) -> 34687.53 | H62: Total Population | J62: =SUMIF(SED!$A:$A,$J$51,SED!D:D) -> 1013
C63: Total Employees | E63: =SUMIF(SED!$C:$C,$C$51,SED!F:F) -> 10811 | H63: Total Employees | J63: =SUMIF(SED!$A:$A,$J$51,SED!F:F) -> 3716
C64: Total Home-based VMT/Capita | E64: =E60/E62 -> 22.13323754 | H64: Total Home-based VMT/Capita | J64: =J60/J62 -> 17.2595866
C65: Total Work-based VMT/Employee | E65: =E61/E63 -> 16.8847978 | H65: Total Work-based VMT/Employee | J65: =J61/J63 -> 17.28996513
C66: Total VMT/Service Population | E66: =SUM(E59:F59)/SUM(E62:F63) -> 32.1506136 | H66: Total VMT/Service Population | J66: =SUM(J59:K59)/SUM(J62:K63) -> 41.71750556
C68: Ojai | H68: Ojai TAZ: | J68: 60009401
C69: ID | D69: Purpose | E69: Productions | F69: Attractions | H69: ID | I69: Purpose | J69: Productions | K69: Attractions
C70: 1 | D70: Home-based Work | E70: =(SUMIF('SummaryVMT-PK'!$A:$A,$C$68,'SummaryVMT-PK'!$C:$C))+(SUMIF('SummaryVMT-OP'!$A:$A,$C$68,'SummaryVMT-OP'!$C:$C)) -> 113628.8686 | F70: =(SUMIF('SummaryVMT-PK'!$A:$A,$C$68,'SummaryVMT-PK'!$D:$D))+(SUMIF('SummaryVMT-OP'!$A:$A,$C$68,'SummaryVMT-OP'!$D:$D)) -> 48303.77659 | H70: 1 | I70: Home-based Work | J70: =(SUMIF('SummaryVMT-PK'!$B:$B,$J$68,'SummaryVMT-PK'!$C:$C))+(SUMIF('SummaryVMT-OP'!$B:$B,$J$68,'SummaryVMT-OP'!$C:$C)) -> 19076.4223 | K70: =(SUMIF('SummaryVMT-PK'!$B:$B,$J$68,'SummaryVMT-PK'!$D:$D))+(SUMIF('SummaryVMT-OP'!$B:$B,$J$68,'SummaryVMT-OP'!$D:$D)) -> 6806.841759
C71: 2 | D71: Home-based School | E71: =(SUMIF('SummaryVMT-PK'!$A:$A,$C$68,'SummaryVMT-PK'!$E:$E))+(SUMIF('SummaryVMT-OP'!$A:$A,$C$68,'SummaryVMT-OP'!$E:$E)) -> 1061.615023 | F71: =(SUMIF('SummaryVMT-PK'!$A:$A,$C$68,'SummaryVMT-PK'!$F:$F))+(SUMIF('SummaryVMT-OP'!$A:$A,$C$68,'SummaryVMT-OP'!$F:$F)) -> 30799.28389 | H71: 2 | I71: Home-based School | J71: =(SUMIF('SummaryVMT-PK'!$B:$B,$J$68,'SummaryVMT-PK'!$E:$E))+(SUMIF('SummaryVMT-OP'!$B:$B,$J$68,'SummaryVMT-OP'!$E:$E)) -> 208.1370031 | K71: =(SUMIF('SummaryVMT-PK'!$B:$B,$J$68,'SummaryVMT-PK'!$F:$F))+(SUMIF('SummaryVMT-OP'!$B:$B,$J$68,'SummaryVMT-OP'!$F:$F)) -> 6121.028765
C72: 3 | D72: Home-based Non-Work | E72: =(SUMIF('SummaryVMT-PK'!$A:$A,$C$68,'SummaryVMT-PK'!$G:$G))+(SUMIF('SummaryVMT-OP'!$A:$A,$C$68,'SummaryVMT-OP'!$G:$G)) -> 60762.85594 | F72: =(SUMIF('SummaryVMT-PK'!$A:$A,$C$68,'SummaryVMT-PK'!$H:$H))+(SUMIF('SummaryVMT-OP'!$A:$A,$C$68,'SummaryVMT-OP'!$H:$H)) -> 70567.56515 | H72: 3 | I72: Home-based Non-Work | J72: =(SUMIF('SummaryVMT-PK'!$B:$B,$J$68,'SummaryVMT-PK'!$G:$G))+(SUMIF('SummaryVMT-OP'!$B:$B,$J$68,'SummaryVMT-OP'!$G:$G)) -> 9466.758953 | K72: =(SUMIF('SummaryVMT-PK'!$B:$B,$J$68,'SummaryVMT-PK'!$H:$H))+(SUMIF('SummaryVMT-OP'!$B:$B,$J$68,'SummaryVMT-OP'!$H:$H)) -> 14093.63013
C73: 4 | D73: Home-based University | E73: =(SUMIF('SummaryVMT-PK'!$A:$A,$C$68,'SummaryVMT-PK'!$I:$I))+(SUMIF('SummaryVMT-OP'!$A:$A,$C$68,'SummaryVMT-OP'!$I:$I)) -> 2727.722305 | F73: =(SUMIF('SummaryVMT-PK'!$A:$A,$C$68,'SummaryVMT-PK'!$J:$J))+(SUMIF('SummaryVMT-OP'!$A:$A,$C$68,'SummaryVMT-OP'!$J:$J)) -> 0 | H73: 4 | I73: Home-based University | J73: =(SUMIF('SummaryVMT-PK'!$B:$B,$J$68,'SummaryVMT-PK'!$I:$I))+(SUMIF('SummaryVMT-OP'!$B:$B,$J$68,'SummaryVMT-OP'!$I:$I)) -> 384.0688898 | K73: =(SUMIF('SummaryVMT-PK'!$B:$B,$J$68,'SummaryVMT-PK'!$J:$J))+(SUMIF('SummaryVMT-OP'!$B:$B,$J$68,'SummaryVMT-OP'!$J:$J)) -> 0
C74: 5 | D74: Work-Based Other | E74: =(SUMIF('SummaryVMT-PK'!$A:$A,$C$68,'SummaryVMT-PK'!$M:$M))+(SUMIF('SummaryVMT-OP'!$A:$A,$C$68,'SummaryVMT-OP'!$M:$M)) -> 11299.19085 | F74: =(SUMIF('SummaryVMT-PK'!$A:$A,$C$68,'SummaryVMT-PK'!$N:$N))+(SUMIF('SummaryVMT-OP'!$A:$A,$C$68,'SummaryVMT-OP'!$N:$N)) -> 6112.169157 | H74: 5 | I74: Work-Based Other | J74: =(SUMIF('SummaryVMT-PK'!$B:$B,$J$68,'SummaryVMT-PK'!$M:$M))+(SUMIF('SummaryVMT-OP'!$B:$B,$J$68,'SummaryVMT-OP'!$M:$M)) -> 2207.05073 | K74: =(SUMIF('SummaryVMT-PK'!$B:$B,$J$68,'SummaryVMT-PK'!$N:$N))+(SUMIF('SummaryVMT-OP'!$B:$B,$J$68,'SummaryVMT-OP'!$N:$N)) -> 776.8095961
C75: 6 | D75: Other Based Other | E75: =(SUMIF('SummaryVMT-PK'!$A:$A,$C$68,'SummaryVMT-PK'!$K:$K))+(SUMIF('SummaryVMT-OP'!$A:$A,$C$68,'SummaryVMT-OP'!$K:$K)) -> 44006.6878 | F75: =(SUMIF('SummaryVMT-PK'!$A:$A,$C$68,'SummaryVMT-PK'!$L:$L))+(SUMIF('SummaryVMT-OP'!$A:$A,$C$68,'SummaryVMT-OP'!$L:$L)) -> 31561.47619 | H75: 6 | I75: Other Based Other | J75: =(SUMIF('SummaryVMT-PK'!$B:$B,$J$68,'SummaryVMT-PK'!$K:$K))+(SUMIF('SummaryVMT-OP'!$B:$B,$J$68,'SummaryVMT-OP'!$K:$K)) -> 6814.905895 | K75: =(SUMIF('SummaryVMT-PK'!$B:$B,$J$68,'SummaryVMT-PK'!$L:$L))+(SUMIF('SummaryVMT-OP'!$B:$B,$J$68,'SummaryVMT-OP'!$L:$L)) -> 6140.115195
C76: Total VMT | E76: =SUM(E70:E75) -> 233486.9405 | F76: =SUM(F70:F75) -> 187344.271 | H76: Total VMT | J76: =SUM(J70:J75) -> 38157.34377 | K76: =SUM(K70:K75) -> 33938.42545
C77: Total Home-based VMT | E77: =SUM(E70:E73) -> 178181.0619 | H77: Total Home-based VMT | J77: =SUM(J70:J73) -> 29135.38714
C78: Total Work-based VMT | E78: =SUM(E74,F70) -> 59602.96744 | H78: Total Work-based VMT | J78: =SUM(J74,K70) -> 9013.892489
C79: Total Population | E79: =SUMIF(SED!$C:$C,$C$68,SED!D:D) -> 9445 | H79: Total Population | J79: =SUMIF(SED!$A:$A,$J$68,SED!D:D) -> 1571
C80: Total Employees | E80: =SUMIF(SED!$C:$C,$C$68,SED!F:F) -> 6525 | H80: Total Employees | J80: =SUMIF(SED!$A:$A,$J$68,SED!F:F) -> 886
C81: Total Home-based VMT/Capita | E81: =E77/E79 -> 18.86512037 | H81: Total Home-based VMT/Capita | J81: =J77/J79 -> 18.54575884
C82: Total Work-based VMT/Employee | E82: =E78/E80 -> 9.134554397 | H82: Total Work-based VMT/Employee | J82: =J78/J80 -> 10.17369355
C83: Total VMT/Service Population | E83: =SUM(E76:F76)/SUM(E79:F80) -> 26.35135952 | H83: Total VMT/Service Population | J83: =SUM(J76:K76)/SUM(J79:K80) -> 29.34300741
C85: Oxnard | H85: Oxnard TAZ: | J85: 60055101
C86: ID | D86: Purpose | E86: Productions | F86: Attractions | H86: ID | I86: Purpose | J86: Productions | K86: Attractions
C87: 1 | D87: Home-based Work | E87: =(SUMIF('SummaryVMT-PK'!$A:$A,$C$85,'SummaryVMT-PK'!$C:$C))+(SUMIF('SummaryVMT-OP'!$A:$A,$C$85,'SummaryVMT-OP'!$C:$C)) -> 1194522.297 | F87: =(SUMIF('SummaryVMT-PK'!$A:$A,$C$85,'SummaryVMT-PK'!$D:$D))+(SUMIF('SummaryVMT-OP'!$A:$A,$C$85,'SummaryVMT-OP'!$D:$D)) -> 847224.9898 | H87: 1 | I87: Home-based Work | J87: =(SUMIF('SummaryVMT-PK'!$B:$B,$J$85,'SummaryVMT-PK'!$C:$C))+(SUMIF('SummaryVMT-OP'!$B:$B,$J$85,'SummaryVMT-OP'!$C:$C)) -> 25959.17744 | K87: =(SUMIF('SummaryVMT-PK'!$B:$B,$J$85,'SummaryVMT-PK'!$D:$D))+(SUMIF('SummaryVMT-OP'!$B:$B,$J$85,'SummaryVMT-OP'!$D:$D)) -> 3889.671206
C88: 2 | D88: Home-based School | E88: =(SUMIF('SummaryVMT-PK'!$A:$A,$C$85,'SummaryVMT-PK'!$E:$E))+(SUMIF('SummaryVMT-OP'!$A:$A,$C$85,'SummaryVMT-OP'!$E:$E)) -> 54636.24023 | F88: =(SUMIF('SummaryVMT-PK'!$A:$A,$C$85,'SummaryVMT-PK'!$F:$F))+(SUMIF('SummaryVMT-OP'!$A:$A,$C$85,'SummaryVMT-OP'!$F:$F)) -> 40293.10172 | H88: 2 | I88: Home-based School | J88: =(SUMIF('SummaryVMT-PK'!$B:$B,$J$85,'SummaryVMT-PK'!$E:$E))+(SUMIF('SummaryVMT-OP'!$B:$B,$J$85,'SummaryVMT-OP'!$E:$E)) -> 1154.549919 | K88: =(SUMIF('SummaryVMT-PK'!$B:$B,$J$85,'SummaryVMT-PK'!$F:$F))+(SUMIF('SummaryVMT-OP'!$B:$B,$J$85,'SummaryVMT-OP'!$F:$F)) -> 0
C89: 3 | D89: Home-based Non-Work | E89: =(SUMIF('SummaryVMT-PK'!$A:$A,$C$85,'SummaryVMT-PK'!$G:$G))+(SUMIF('SummaryVMT-OP'!$A:$A,$C$85,'SummaryVMT-OP'!$G:$G)) -> 978389.8621 | F89: =(SUMIF('SummaryVMT-PK'!$A:$A,$C$85,'SummaryVMT-PK'!$H:$H))+(SUMIF('SummaryVMT-OP'!$A:$A,$C$85,'SummaryVMT-OP'!$H:$H)) -> 1179938.932 | H89: 3 | I89: Home-based Non-Work | J89: =(SUMIF('SummaryVMT-PK'!$B:$B,$J$85,'SummaryVMT-PK'!$G:$G))+(SUMIF('SummaryVMT-OP'!$B:$B,$J$85,'SummaryVMT-OP'!$G:$G)) -> 23177.74846 | K89: =(SUMIF('SummaryVMT-PK'!$B:$B,$J$85,'SummaryVMT-PK'!$H:$H))+(SUMIF('SummaryVMT-OP'!$B:$B,$J$85,'SummaryVMT-OP'!$H:$H)) -> 13513.2039
C90: 4 | D90: Home-based University | E90: =(SUMIF('SummaryVMT-PK'!$A:$A,$C$85,'SummaryVMT-PK'!$I:$I))+(SUMIF('SummaryVMT-OP'!$A:$A,$C$85,'SummaryVMT-OP'!$I:$I)) -> 19698.88958 | F90: =(SUMIF('SummaryVMT-PK'!$A:$A,$C$85,'SummaryVMT-PK'!$J:$J))+(SUMIF('SummaryVMT-OP'!$A:$A,$C$85,'SummaryVMT-OP'!$J:$J)) -> 9715.072664 | H90: 4 | I90: Home-based University | J90: =(SUMIF('SummaryVMT-PK'!$B:$B,$J$85,'SummaryVMT-PK'!$I:$I))+(SUMIF('SummaryVMT-OP'!$B:$B,$J$85,'SummaryVMT-OP'!$I:$I)) -> 874.5591349 | K90: =(SUMIF('SummaryVMT-PK'!$B:$B,$J$85,'SummaryVMT-PK'!$J:$J))+(SUMIF('SummaryVMT-OP'!$B:$B,$J$85,'SummaryVMT-OP'!$J:$J)) -> 0
C91: 5 | D91: Work-Based Other | E91: =(SUMIF('SummaryVMT-PK'!$A:$A,$C$85,'SummaryVMT-PK'!$M:$M))+(SUMIF('SummaryVMT-OP'!$A:$A,$C$85,'SummaryVMT-OP'!$M:$M)) -> 129752.5462 | F91: =(SUMIF('SummaryVMT-PK'!$A:$A,$C$85,'SummaryVMT-PK'!$N:$N))+(SUMIF('SummaryVMT-OP'!$A:$A,$C$85,'SummaryVMT-OP'!$N:$N)) -> 142190.2898 | H91: 5 | I91: Work-Based Other | J91: =(SUMIF('SummaryVMT-PK'!$B:$B,$J$85,'SummaryVMT-PK'!$M:$M))+(SUMIF('SummaryVMT-OP'!$B:$B,$J$85,'SummaryVMT-OP'!$M:$M)) -> 1103.711829 | K91: =(SUMIF('SummaryVMT-PK'!$B:$B,$J$85,'SummaryVMT-PK'!$N:$N))+(SUMIF('SummaryVMT-OP'!$B:$B,$J$85,'SummaryVMT-OP'!$N:$N)) -> 1651.560653
C92: 6 | D92: Other Based Other | E92: =(SUMIF('SummaryVMT-PK'!$A:$A,$C$85,'SummaryVMT-PK'!$K:$K))+(SUMIF('SummaryVMT-OP'!$A:$A,$C$85,'SummaryVMT-OP'!$K:$K)) -> 475892.737 | F92: =(SUMIF('SummaryVMT-PK'!$A:$A,$C$85,'SummaryVMT-PK'!$L:$L))+(SUMIF('SummaryVMT-OP'!$A:$A,$C$85,'SummaryVMT-OP'!$L:$L)) -> 580805.6006 | H92: 6 | I92: Other Based Other | J92: =(SUMIF('SummaryVMT-PK'!$B:$B,$J$85,'SummaryVMT-PK'!$K:$K))+(SUMIF('SummaryVMT-OP'!$B:$B,$J$85,'SummaryVMT-OP'!$K:$K)) -> 9695.254978 | K92: =(SUMIF('SummaryVMT-PK'!$B:$B,$J$85,'SummaryVMT-PK'!$L:$L))+(SUMIF('SummaryVMT-OP'!$B:$B,$J$85,'SummaryVMT-OP'!$L:$L)) -> 4180.62701
C93: Total VMT | E93: =SUM(E87:E92) -> 2852892.572 | F93: =SUM(F87:F92) -> 2800167.986 | H93: Total VMT | J93: =SUM(J87:J92) -> 61965.00176 | K93: =SUM(K87:K92) -> 23235.06277
C94: Total Home-based VMT | E94: =SUM(E87:E90) -> 2247247.289 | H94: Total Home-based VMT | J94: =SUM(J87:J90) -> 51166.03495
C95: Total Work-based VMT | E95: =SUM(E91,F87) -> 976977.536 | H95: Total Work-based VMT | J95: =SUM(J91,K87) -> 4993.383035
C96: Total Population | E96: =SUMIF(SED!$C:$C,$C$85,SED!D:D) -> 218381 | H96: Total Population | J96: =SUMIF(SED!$A:$A,$J$85,SED!D:D) -> 3196
C97: Total Employees | E97: =SUMIF(SED!$C:$C,$C$85,SED!F:F) -> 63617 | H97: Total Employees | J97: =SUMIF(SED!$A:$A,$J$85,SED!F:F) -> 335
C98: Total Home-based VMT/Capita | E98: =E94/E96 -> 10.29048905 | H98: Total Home-based VMT/Capita | J98: =J94/J96 -> 16.00939767
C99: Total Work-based VMT/Employee | E99: =E95/E97 -> 15.35717711 | H99: Total Work-based VMT/Employee | J99: =J95/J97 -> 14.905621
C100: Total VMT/Service Population | E100: =SUM(E93:F93)/SUM(E96:F97) -> 20.04645621 | H100: Total VMT/Service Population | J100: =SUM(J93:K93)/SUM(J96:K97) -> 24.12916016
C102: Port Hueneme | H102: Port Hueneme TAZ: | J102: 60058101
C103: ID | D103: Purpose | E103: Productions | F103: Attractions | H103: ID | I103: Purpose | J103: Productions | K103: Attractions
C104: 1 | D104: Home-based Work | E104: =(SUMIF('SummaryVMT-PK'!$A:$A,$C$102,'SummaryVMT-PK'!$C:$C))+(SUMIF('SummaryVMT-OP'!$A:$A,$C$102,'SummaryVMT-OP'!$C:$C)) -> 146215.924 | F104: =(SUMIF('SummaryVMT-PK'!$A:$A,$C$102,'SummaryVMT-PK'!$D:$D))+(SUMIF('SummaryVMT-OP'!$A:$A,$C$102,'SummaryVMT-OP'!$D:$D)) -> 47048.26242 | H104: 1 | I104: Home-based Work | J104: =(SUMIF('SummaryVMT-PK'!$B:$B,$J$102,'SummaryVMT-PK'!$C:$C))+(SUMIF('SummaryVMT-OP'!$B:$B,$J$102,'SummaryVMT-OP'!$C:$C)) -> 0 | K104: =(SUMIF('SummaryVMT-PK'!$B:$B,$J$102,'SummaryVMT-PK'!$D:$D))+(SUMIF('SummaryVMT-OP'!$B:$B,$J$102,'SummaryVMT-OP'!$D:$D)) -> 12269.60259
C105: 2 | D105: Home-based School | E105: =(SUMIF('SummaryVMT-PK'!$A:$A,$C$102,'SummaryVMT-PK'!$E:$E))+(SUMIF('SummaryVMT-OP'!$A:$A,$C$102,'SummaryVMT-OP'!$E:$E)) -> 6248.006857 | F105: =(SUMIF('SummaryVMT-PK'!$A:$A,$C$102,'SummaryVMT-PK'!$F:$F))+(SUMIF('SummaryVMT-OP'!$A:$A,$C$102,'SummaryVMT-OP'!$F:$F)) -> 2000.708986 | H105: 2 | I105: Home-based School | J105: =(SUMIF('SummaryVMT-PK'!$B:$B,$J$102,'SummaryVMT-PK'!$E:$E))+(SUMIF('SummaryVMT-OP'!$B:$B,$J$102,'SummaryVMT-OP'!$E:$E)) -> 1491.323668 | K105: =(SUMIF('SummaryVMT-PK'!$B:$B,$J$102,'SummaryVMT-PK'!$F:$F))+(SUMIF('SummaryVMT-OP'!$B:$B,$J$102,'SummaryVMT-OP'!$F:$F)) -> 0
C106: 3 | D106: Home-based Non-Work | E106: =(SUMIF('SummaryVMT-PK'!$A:$A,$C$102,'SummaryVMT-PK'!$G:$G))+(SUMIF('SummaryVMT-OP'!$A:$A,$C$102,'SummaryVMT-OP'!$G:$G)) -> 119380.1905 | F106: =(SUMIF('SummaryVMT-PK'!$A:$A,$C$102,'SummaryVMT-PK'!$H:$H))+(SUMIF('SummaryVMT-OP'!$A:$A,$C$102,'SummaryVMT-OP'!$H:$H)) -> 94127.13987 | H106: 3 | I106: Home-based Non-Work | J106: =(SUMIF('SummaryVMT-PK'!$B:$B,$J$102,'SummaryVMT-PK'!$G:$G))+(SUMIF('SummaryVMT-OP'!$B:$B,$J$102,'SummaryVMT-OP'!$G:$G)) -> 0 | K106: =(SUMIF('SummaryVMT-PK'!$B:$B,$J$102,'SummaryVMT-PK'!$H:$H))+(SUMIF('SummaryVMT-OP'!$B:$B,$J$102,'SummaryVMT-OP'!$H:$H)) -> 14673.19205
C107: 4 | D107: Home-based University | E107: =(SUMIF('SummaryVMT-PK'!$A:$A,$C$102,'SummaryVMT-PK'!$I:$I))+(SUMIF('SummaryVMT-OP'!$A:$A,$C$102,'SummaryVMT-OP'!$I:$I)) -> 2063.479339 | F107: =(SUMIF('SummaryVMT-PK'!$A:$A,$C$102,'SummaryVMT-PK'!$J:$J))+(SUMIF('SummaryVMT-OP'!$A:$A,$C$102,'SummaryVMT-OP'!$J:$J)) -> 0 | H107: 4 | I107: Home-based University | J107: =(SUMIF('SummaryVMT-PK'!$B:$B,$J$102,'SummaryVMT-PK'!$I:$I))+(SUMIF('SummaryVMT-OP'!$B:$B,$J$102,'SummaryVMT-OP'!$I:$I)) -> 0 | K107: =(SUMIF('SummaryVMT-PK'!$B:$B,$J$102,'SummaryVMT-PK'!$J:$J))+(SUMIF('SummaryVMT-OP'!$B:$B,$J$102,'SummaryVMT-OP'!$J:$J)) -> 0
C108: 5 | D108: Work-Based Other | E108: =(SUMIF('SummaryVMT-PK'!$A:$A,$C$102,'SummaryVMT-PK'!$M:$M))+(SUMIF('SummaryVMT-OP'!$A:$A,$C$102,'SummaryVMT-OP'!$M:$M)) -> 8575.189823 | F108: =(SUMIF('SummaryVMT-PK'!$A:$A,$C$102,'SummaryVMT-PK'!$N:$N))+(SUMIF('SummaryVMT-OP'!$A:$A,$C$102,'SummaryVMT-OP'!$N:$N)) -> 9943.078108 | H108: 5 | I108: Work-Based Other | J108: =(SUMIF('SummaryVMT-PK'!$B:$B,$J$102,'SummaryVMT-PK'!$M:$M))+(SUMIF('SummaryVMT-OP'!$B:$B,$J$102,'SummaryVMT-OP'!$M:$M)) -> 1215.552186 | K108: =(SUMIF('SummaryVMT-PK'!$B:$B,$J$102,'SummaryVMT-PK'!$N:$N))+(SUMIF('SummaryVMT-OP'!$B:$B,$J$102,'SummaryVMT-OP'!$N:$N)) -> 1589.834129
C109: 6 | D109: Other Based Other | E109: =(SUMIF('SummaryVMT-PK'!$A:$A,$C$102,'SummaryVMT-PK'!$K:$K))+(SUMIF('SummaryVMT-OP'!$A:$A,$C$102,'SummaryVMT-OP'!$K:$K)) -> 50389.4527 | F109: =(SUMIF('SummaryVMT-PK'!$A:$A,$C$102,'SummaryVMT-PK'!$L:$L))+(SUMIF('SummaryVMT-OP'!$A:$A,$C$102,'SummaryVMT-OP'!$L:$L)) -> 37956.65132 | H109: 6 | I109: Other Based Other | J109: =(SUMIF('SummaryVMT-PK'!$B:$B,$J$102,'SummaryVMT-PK'!$K:$K))+(SUMIF('SummaryVMT-OP'!$B:$B,$J$102,'SummaryVMT-OP'!$K:$K)) -> 7641.210087 | K109: =(SUMIF('SummaryVMT-PK'!$B:$B,$J$102,'SummaryVMT-PK'!$L:$L))+(SUMIF('SummaryVMT-OP'!$B:$B,$J$102,'SummaryVMT-OP'!$L:$L)) -> 6892.219925
C110: Total VMT | E110: =SUM(E104:E109) -> 332872.2432 | F110: =SUM(F104:F109) -> 191075.8407 | H110: Total VMT | J110: =SUM(J104:J109) -> 10348.08594 | K110: =SUM(K104:K109) -> 35424.84869
C111: Total Home-based VMT | E111: =SUM(E104:E107) -> 273907.6007 | H111: Total Home-based VMT | J111: =SUM(J104:J107) -> 1491.323668
C112: Total Work-based VMT | E112: =SUM(E108,F104) -> 55623.45225 | H112: Total Work-based VMT | J112: =SUM(J108,K104) -> 13485.15477
C113: Total Population | E113: =SUMIF(SED!$C:$C,$C$102,SED!D:D) -> 22643 | H113: Total Population | J113: =SUMIF(SED!$A:$A,$J$102,SED!D:D) -> 2820
C114: Total Employees | E114: =SUMIF(SED!$C:$C,$C$102,SED!F:F) -> 4187 | H114: Total Employees | J114: =SUMIF(SED!$A:$A,$J$102,SED!F:F) -> 1106
C115: Total Home-based VMT/Capita | E115: =E111/E113 -> 12.09678933 | H115: Total Home-based VMT/Capita | J115: =J111/J113 -> 0.5288381801
C116: Total Work-based VMT/Employee | E116: =E112/E114 -> 13.28479872 | H116: Total Work-based VMT/Employee | J116: =J112/J114 -> 12.19272583
C117: Total VMT/Service Population | E117: =SUM(E110:F110)/SUM(E113:F114) -> 19.52844144 | H117: Total VMT/Service Population | J117: =SUM(J110:K110)/SUM(J113:K114) -> 11.65892375
C119: San Buenaventura | H119: San Buenaventura TAZ: | J119: 60015101
C120: ID | D120: Purpose | E120: Productions | F120: Attractions | H120: ID | I120: Purpose | J120: Productions | K120: Attractions
C121: 1 | D121: Home-based Work | E121: =(SUMIF('SummaryVMT-PK'!$A:$A,$C$119,'SummaryVMT-PK'!$C:$C))+(SUMIF('SummaryVMT-OP'!$A:$A,$C$119,'SummaryVMT-OP'!$C:$C)) -> 754321.8078 | F121: =(SUMIF('SummaryVMT-PK'!$A:$A,$C$119,'SummaryVMT-PK'!$D:$D))+(SUMIF('SummaryVMT-OP'!$A:$A,$C$119,'SummaryVMT-OP'!$D:$D)) -> 905823.702 | H121: 1 | I121: Home-based Work | J121: =(SUMIF('SummaryVMT-PK'!$B:$B,$J$119,'SummaryVMT-PK'!$C:$C))+(SUMIF('SummaryVMT-OP'!$B:$B,$J$119,'SummaryVMT-OP'!$C:$C)) -> 683.4660274 | K121: =(SUMIF('SummaryVMT-PK'!$B:$B,$J$119,'SummaryVMT-PK'!$D:$D))+(SUMIF('SummaryVMT-OP'!$B:$B,$J$119,'SummaryVMT-OP'!$D:$D)) -> 4466.87674
C122: 2 | D122: Home-based School | E122: =(SUMIF('SummaryVMT-PK'!$A:$A,$C$119,'SummaryVMT-PK'!$E:$E))+(SUMIF('SummaryVMT-OP'!$A:$A,$C$119,'SummaryVMT-OP'!$E:$E)) -> 32121.25778 | F122: =(SUMIF('SummaryVMT-PK'!$A:$A,$C$119,'SummaryVMT-PK'!$F:$F))+(SUMIF('SummaryVMT-OP'!$A:$A,$C$119,'SummaryVMT-OP'!$F:$F)) -> 34941.86348 | H122: 2 | I122: Home-based School | J122: =(SUMIF('SummaryVMT-PK'!$B:$B,$J$119,'SummaryVMT-PK'!$E:$E))+(SUMIF('SummaryVMT-OP'!$B:$B,$J$119,'SummaryVMT-OP'!$E:$E)) -> 73.52312702 | K122: =(SUMIF('SummaryVMT-PK'!$B:$B,$J$119,'SummaryVMT-PK'!$F:$F))+(SUMIF('SummaryVMT-OP'!$B:$B,$J$119,'SummaryVMT-OP'!$F:$F)) -> 0
C123: 3 | D123: Home-based Non-Work | E123: =(SUMIF('SummaryVMT-PK'!$A:$A,$C$119,'SummaryVMT-PK'!$G:$G))+(SUMIF('SummaryVMT-OP'!$A:$A,$C$119,'SummaryVMT-OP'!$G:$G)) -> 631112.065 | F123: =(SUMIF('SummaryVMT-PK'!$A:$A,$C$119,'SummaryVMT-PK'!$H:$H))+(SUMIF('SummaryVMT-OP'!$A:$A,$C$119,'SummaryVMT-OP'!$H:$H)) -> 864997.2348 | H123: 3 | I123: Home-based Non-Work | J123: =(SUMIF('SummaryVMT-PK'!$B:$B,$J$119,'SummaryVMT-PK'!$G:$G))+(SUMIF('SummaryVMT-OP'!$B:$B,$J$119,'SummaryVMT-OP'!$G:$G)) -> 1603.638691 | K123: =(SUMIF('SummaryVMT-PK'!$B:$B,$J$119,'SummaryVMT-PK'!$H:$H))+(SUMIF('SummaryVMT-OP'!$B:$B,$J$119,'SummaryVMT-OP'!$H:$H)) -> 1409.919909
C124: 4 | D124: Home-based University | E124: =(SUMIF('SummaryVMT-PK'!$A:$A,$C$119,'SummaryVMT-PK'!$I:$I))+(SUMIF('SummaryVMT-OP'!$A:$A,$C$119,'SummaryVMT-OP'!$I:$I)) -> 7923.972724 | F124: =(SUMIF('SummaryVMT-PK'!$A:$A,$C$119,'SummaryVMT-PK'!$J:$J))+(SUMIF('SummaryVMT-OP'!$A:$A,$C$119,'SummaryVMT-OP'!$J:$J)) -> 29166.13656 | H124: 4 | I124: Home-based University | J124: =(SUMIF('SummaryVMT-PK'!$B:$B,$J$119,'SummaryVMT-PK'!$I:$I))+(SUMIF('SummaryVMT-OP'!$B:$B,$J$119,'SummaryVMT-OP'!$I:$I)) -> 26.68157935 | K124: =(SUMIF('SummaryVMT-PK'!$B:$B,$J$119,'SummaryVMT-PK'!$J:$J))+(SUMIF('SummaryVMT-OP'!$B:$B,$J$119,'SummaryVMT-OP'!$J:$J)) -> 0
C125: 5 | D125: Work-Based Other | E125: =(SUMIF('SummaryVMT-PK'!$A:$A,$C$119,'SummaryVMT-PK'!$M:$M))+(SUMIF('SummaryVMT-OP'!$A:$A,$C$119,'SummaryVMT-OP'!$M:$M)) -> 119756.1518 | F125: =(SUMIF('SummaryVMT-PK'!$A:$A,$C$119,'SummaryVMT-PK'!$N:$N))+(SUMIF('SummaryVMT-OP'!$A:$A,$C$119,'SummaryVMT-OP'!$N:$N)) -> 125089.2497 | H125: 5 | I125: Work-Based Other | J125: =(SUMIF('SummaryVMT-PK'!$B:$B,$J$119,'SummaryVMT-PK'!$M:$M))+(SUMIF('SummaryVMT-OP'!$B:$B,$J$119,'SummaryVMT-OP'!$M:$M)) -> 618.132428 | K125: =(SUMIF('SummaryVMT-PK'!$B:$B,$J$119,'SummaryVMT-PK'!$N:$N))+(SUMIF('SummaryVMT-OP'!$B:$B,$J$119,'SummaryVMT-OP'!$N:$N)) -> 392.1141788
C126: 6 | D126: Other Based Other | E126: =(SUMIF('SummaryVMT-PK'!$A:$A,$C$119,'SummaryVMT-PK'!$K:$K))+(SUMIF('SummaryVMT-OP'!$A:$A,$C$119,'SummaryVMT-OP'!$K:$K)) -> 424180.9691 | F126: =(SUMIF('SummaryVMT-PK'!$A:$A,$C$119,'SummaryVMT-PK'!$L:$L))+(SUMIF('SummaryVMT-OP'!$A:$A,$C$119,'SummaryVMT-OP'!$L:$L)) -> 464985.2288 | H126: 6 | I126: Other Based Other | J126: =(SUMIF('SummaryVMT-PK'!$B:$B,$J$119,'SummaryVMT-PK'!$K:$K))+(SUMIF('SummaryVMT-OP'!$B:$B,$J$119,'SummaryVMT-OP'!$K:$K)) -> 578.3772569 | K126: =(SUMIF('SummaryVMT-PK'!$B:$B,$J$119,'SummaryVMT-PK'!$L:$L))+(SUMIF('SummaryVMT-OP'!$B:$B,$J$119,'SummaryVMT-OP'!$L:$L)) -> 496.6417577
C127: Total VMT | E127: =SUM(E121:E126) -> 1969416.224 | F127: =SUM(F121:F126) -> 2425003.415 | H127: Total VMT | J127: =SUM(J121:J126) -> 3583.819109 | K127: =SUM(K121:K126) -> 6765.552585
C128: Total Home-based VMT | E128: =SUM(E121:E124) -> 1425479.103 | H128: Total Home-based VMT | J128: =SUM(J121:J124) -> 2387.309424
C129: Total Work-based VMT | E129: =SUM(E125,F121) -> 1025579.854 | H129: Total Work-based VMT | J129: =SUM(J125,K121) -> 5085.009168
C130: Total Population | E130: =SUMIF(SED!$C:$C,$C$119,SED!D:D) -> 105848 | H130: Total Population | J130: =SUMIF(SED!$A:$A,$J$119,SED!D:D) -> 346
C131: Total Employees | E131: =SUMIF(SED!$C:$C,$C$119,SED!F:F) -> 60983 | H131: Total Employees | J131: =SUMIF(SED!$A:$A,$J$119,SED!F:F) -> 295
C132: Total Home-based VMT/Capita | E132: =E128/E130 -> 13.46722756 | H132: Total Home-based VMT/Capita | J132: =J128/J130 -> 6.899738221
C133: Total Work-based VMT/Employee | E133: =E129/E131 -> 16.81747133 | H133: Total Work-based VMT/Employee | J133: =J129/J131 -> 17.23731921
C134: Total VMT/Service Population | E134: =SUM(E127:F127)/SUM(E130:F131) -> 26.34054606 | H134: Total VMT/Service Population | J134: =SUM(J127:K127)/SUM(J130:K131) -> 16.14566567
C136: Santa Paula | H136: Santa Paula TAZ: | J136: 60047101
C137: ID | D137: Purpose | E137: Productions | F137: Attractions | H137: ID | I137: Purpose | J137: Productions | K137: Attractions
C138: 1 | D138: Home-based Work | E138: =(SUMIF('SummaryVMT-PK'!$A:$A,$C$136,'SummaryVMT-PK'!$C:$C))+(SUMIF('SummaryVMT-OP'!$A:$A,$C$136,'SummaryVMT-OP'!$C:$C)) -> 320132.0756 | F138: =(SUMIF('SummaryVMT-PK'!$A:$A,$C$136,'SummaryVMT-PK'!$D:$D))+(SUMIF('SummaryVMT-OP'!$A:$A,$C$136,'SummaryVMT-OP'!$D:$D)) -> 78593.99421 | H138: 1 | I138: Home-based Work | J138: =(SUMIF('SummaryVMT-PK'!$B:$B,$J$136,'SummaryVMT-PK'!$C:$C))+(SUMIF('SummaryVMT-OP'!$B:$B,$J$136,'SummaryVMT-OP'!$C:$C)) -> 27405.75132 | K138: =(SUMIF('SummaryVMT-PK'!$B:$B,$J$136,'SummaryVMT-PK'!$D:$D))+(SUMIF('SummaryVMT-OP'!$B:$B,$J$136,'SummaryVMT-OP'!$D:$D)) -> 976.3090212
C139: 2 | D139: Home-based School | E139: =(SUMIF('SummaryVMT-PK'!$A:$A,$C$136,'SummaryVMT-PK'!$E:$E))+(SUMIF('SummaryVMT-OP'!$A:$A,$C$136,'SummaryVMT-OP'!$E:$E)) -> 12044.06026 | F139: =(SUMIF('SummaryVMT-PK'!$A:$A,$C$136,'SummaryVMT-PK'!$F:$F))+(SUMIF('SummaryVMT-OP'!$A:$A,$C$136,'SummaryVMT-OP'!$F:$F)) -> 5770.361485 | H139: 2 | I139: Home-based School | J139: =(SUMIF('SummaryVMT-PK'!$B:$B,$J$136,'SummaryVMT-PK'!$E:$E))+(SUMIF('SummaryVMT-OP'!$B:$B,$J$136,'SummaryVMT-OP'!$E:$E)) -> 1031.539185 | K139: =(SUMIF('SummaryVMT-PK'!$B:$B,$J$136,'SummaryVMT-PK'!$F:$F))+(SUMIF('SummaryVMT-OP'!$B:$B,$J$136,'SummaryVMT-OP'!$F:$F)) -> 187.0178677
C140: 3 | D140: Home-based Non-Work | E140: =(SUMIF('SummaryVMT-PK'!$A:$A,$C$136,'SummaryVMT-PK'!$G:$G))+(SUMIF('SummaryVMT-OP'!$A:$A,$C$136,'SummaryVMT-OP'!$G:$G)) -> 205624.0739 | F140: =(SUMIF('SummaryVMT-PK'!$A:$A,$C$136,'SummaryVMT-PK'!$H:$H))+(SUMIF('SummaryVMT-OP'!$A:$A,$C$136,'SummaryVMT-OP'!$H:$H)) -> 101186.8962 | H140: 3 | I140: Home-based Non-Work | J140: =(SUMIF('SummaryVMT-PK'!$B:$B,$J$136,'SummaryVMT-PK'!$G:$G))+(SUMIF('SummaryVMT-OP'!$B:$B,$J$136,'SummaryVMT-OP'!$G:$G)) -> 17041.6833 | K140: =(SUMIF('SummaryVMT-PK'!$B:$B,$J$136,'SummaryVMT-PK'!$H:$H))+(SUMIF('SummaryVMT-OP'!$B:$B,$J$136,'SummaryVMT-OP'!$H:$H)) -> 5412.938996
C141: 4 | D141: Home-based University | E141: =(SUMIF('SummaryVMT-PK'!$A:$A,$C$136,'SummaryVMT-PK'!$I:$I))+(SUMIF('SummaryVMT-OP'!$A:$A,$C$136,'SummaryVMT-OP'!$I:$I)) -> 6357.827637 | F141: =(SUMIF('SummaryVMT-PK'!$A:$A,$C$136,'SummaryVMT-PK'!$J:$J))+(SUMIF('SummaryVMT-OP'!$A:$A,$C$136,'SummaryVMT-OP'!$J:$J)) -> 0 | H141: 4 | I141: Home-based University | J141: =(SUMIF('SummaryVMT-PK'!$B:$B,$J$136,'SummaryVMT-PK'!$I:$I))+(SUMIF('SummaryVMT-OP'!$B:$B,$J$136,'SummaryVMT-OP'!$I:$I)) -> 444.391465 | K141: =(SUMIF('SummaryVMT-PK'!$B:$B,$J$136,'SummaryVMT-PK'!$J:$J))+(SUMIF('SummaryVMT-OP'!$B:$B,$J$136,'SummaryVMT-OP'!$J:$J)) -> 0
C142: 5 | D142: Work-Based Other | E142: =(SUMIF('SummaryVMT-PK'!$A:$A,$C$136,'SummaryVMT-PK'!$M:$M))+(SUMIF('SummaryVMT-OP'!$A:$A,$C$136,'SummaryVMT-OP'!$M:$M)) -> 20560.93406 | F142: =(SUMIF('SummaryVMT-PK'!$A:$A,$C$136,'SummaryVMT-PK'!$N:$N))+(SUMIF('SummaryVMT-OP'!$A:$A,$C$136,'SummaryVMT-OP'!$N:$N)) -> 8847.636785 | H142: 5 | I142: Work-Based Other | J142: =(SUMIF('SummaryVMT-PK'!$B:$B,$J$136,'SummaryVMT-PK'!$M:$M))+(SUMIF('SummaryVMT-OP'!$B:$B,$J$136,'SummaryVMT-OP'!$M:$M)) -> 381.6512871 | K142: =(SUMIF('SummaryVMT-PK'!$B:$B,$J$136,'SummaryVMT-PK'!$N:$N))+(SUMIF('SummaryVMT-OP'!$B:$B,$J$136,'SummaryVMT-OP'!$N:$N)) -> 272.4663135
C143: 6 | D143: Other Based Other | E143: =(SUMIF('SummaryVMT-PK'!$A:$A,$C$136,'SummaryVMT-PK'!$K:$K))+(SUMIF('SummaryVMT-OP'!$A:$A,$C$136,'SummaryVMT-OP'!$K:$K)) -> 84160.94609 | F143: =(SUMIF('SummaryVMT-PK'!$A:$A,$C$136,'SummaryVMT-PK'!$L:$L))+(SUMIF('SummaryVMT-OP'!$A:$A,$C$136,'SummaryVMT-OP'!$L:$L)) -> 36425.56314 | H143: 6 | I143: Other Based Other | J143: =(SUMIF('SummaryVMT-PK'!$B:$B,$J$136,'SummaryVMT-PK'!$K:$K))+(SUMIF('SummaryVMT-OP'!$B:$B,$J$136,'SummaryVMT-OP'!$K:$K)) -> 4007.252029 | K143: =(SUMIF('SummaryVMT-PK'!$B:$B,$J$136,'SummaryVMT-PK'!$L:$L))+(SUMIF('SummaryVMT-OP'!$B:$B,$J$136,'SummaryVMT-OP'!$L:$L)) -> 1421.746643
C144: Total VMT | E144: =SUM(E138:E143) -> 648879.9176 | F144: =SUM(F138:F143) -> 230824.4518 | H144: Total VMT | J144: =SUM(J138:J143) -> 50312.26859 | K144: =SUM(K138:K143) -> 8270.478842
C145: Total Home-based VMT | E145: =SUM(E138:E141) -> 544158.0374 | H145: Total Home-based VMT | J145: =SUM(J138:J141) -> 45923.36528
C146: Total Work-based VMT | E146: =SUM(E142,F138) -> 99154.92827 | H146: Total Work-based VMT | J146: =SUM(J142,K138) -> 1357.960308
C147: Total Population | E147: =SUMIF(SED!$C:$C,$C$136,SED!D:D) -> 32266.296 | H147: Total Population | J147: =SUMIF(SED!$A:$A,$J$136,SED!D:D) -> 2787
C148: Total Employees | E148: =SUMIF(SED!$C:$C,$C$136,SED!F:F) -> 6356 | H148: Total Employees | J148: =SUMIF(SED!$A:$A,$J$136,SED!F:F) -> 83
C149: Total Home-based VMT/Capita | E149: =E145/E147 -> 16.86459572 | H149: Total Home-based VMT/Capita | J149: =J145/J147 -> 16.47770552
C150: Total Work-based VMT/Employee | E150: =E146/E148 -> 15.60020898 | H150: Total Work-based VMT/Employee | J150: =J146/J148 -> 16.36096757
C151: Total VMT/Service Population | E151: =SUM(E144:F144)/SUM(E147:F148) -> 22.7771122 | H151: Total VMT/Service Population | J151: =SUM(J144:K144)/SUM(J147:K148) -> 20.41210712
C153: Simi Valley | H153: Simi Valley TAZ: | J153: 60132201
C154: ID | D154: Purpose | E154: Productions | F154: Attractions | H154: ID | I154: Purpose | J154: Productions | K154: Attractions
C155: 1 | D155: Home-based Work | E155: =(SUMIF('SummaryVMT-PK'!$A:$A,$C$153,'SummaryVMT-PK'!$C:$C))+(SUMIF('SummaryVMT-OP'!$A:$A,$C$153,'SummaryVMT-OP'!$C:$C)) -> 1209009.679 | F155: =(SUMIF('SummaryVMT-PK'!$A:$A,$C$153,'SummaryVMT-PK'!$D:$D))+(SUMIF('SummaryVMT-OP'!$A:$A,$C$153,'SummaryVMT-OP'!$D:$D)) -> 546709.2613 | H155: 1 | I155: Home-based Work | J155: =(SUMIF('SummaryVMT-PK'!$B:$B,$J$153,'SummaryVMT-PK'!$C:$C))+(SUMIF('SummaryVMT-OP'!$B:$B,$J$153,'SummaryVMT-OP'!$C:$C)) -> 0 | K155: =(SUMIF('SummaryVMT-PK'!$B:$B,$J$153,'SummaryVMT-PK'!$D:$D))+(SUMIF('SummaryVMT-OP'!$B:$B,$J$153,'SummaryVMT-OP'!$D:$D)) -> 7.019441998
C156: 2 | D156: Home-based School | E156: =(SUMIF('SummaryVMT-PK'!$A:$A,$C$153,'SummaryVMT-PK'!$E:$E))+(SUMIF('SummaryVMT-OP'!$A:$A,$C$153,'SummaryVMT-OP'!$E:$E)) -> 39042.95871 | F156: =(SUMIF('SummaryVMT-PK'!$A:$A,$C$153,'SummaryVMT-PK'!$F:$F))+(SUMIF('SummaryVMT-OP'!$A:$A,$C$153,'SummaryVMT-OP'!$F:$F)) -> 29631.58227 | H156: 2 | I156: Home-based School | J156: =(SUMIF('SummaryVMT-PK'!$B:$B,$J$153,'SummaryVMT-PK'!$E:$E))+(SUMIF('SummaryVMT-OP'!$B:$B,$J$153,'SummaryVMT-OP'!$E:$E)) -> 0 | K156: =(SUMIF('SummaryVMT-PK'!$B:$B,$J$153,'SummaryVMT-PK'!$F:$F))+(SUMIF('SummaryVMT-OP'!$B:$B,$J$153,'SummaryVMT-OP'!$F:$F)) -> 0
C157: 3 | D157: Home-based Non-Work | E157: =(SUMIF('SummaryVMT-PK'!$A:$A,$C$153,'SummaryVMT-PK'!$G:$G))+(SUMIF('SummaryVMT-OP'!$A:$A,$C$153,'SummaryVMT-OP'!$G:$G)) -> 954841.0163 | F157: =(SUMIF('SummaryVMT-PK'!$A:$A,$C$153,'SummaryVMT-PK'!$H:$H))+(SUMIF('SummaryVMT-OP'!$A:$A,$C$153,'SummaryVMT-OP'!$H:$H)) -> 698979.3951 | H157: 3 | I157: Home-based Non-Work | J157: =(SUMIF('SummaryVMT-PK'!$B:$B,$J$153,'SummaryVMT-PK'!$G:$G))+(SUMIF('SummaryVMT-OP'!$B:$B,$J$153,'SummaryVMT-OP'!$G:$G)) -> 0 | K157: =(SUMIF('SummaryVMT-PK'!$B:$B,$J$153,'SummaryVMT-PK'!$H:$H))+(SUMIF('SummaryVMT-OP'!$B:$B,$J$153,'SummaryVMT-OP'!$H:$H)) -> 0.6208762384
C158: 4 | D158: Home-based University | E158: =(SUMIF('SummaryVMT-PK'!$A:$A,$C$153,'SummaryVMT-PK'!$I:$I))+(SUMIF('SummaryVMT-OP'!$A:$A,$C$153,'SummaryVMT-OP'!$I:$I)) -> 21068.08655 | F158: =(SUMIF('SummaryVMT-PK'!$A:$A,$C$153,'SummaryVMT-PK'!$J:$J))+(SUMIF('SummaryVMT-OP'!$A:$A,$C$153,'SummaryVMT-OP'!$J:$J)) -> 0 | H158: 4 | I158: Home-based University | J158: =(SUMIF('SummaryVMT-PK'!$B:$B,$J$153,'SummaryVMT-PK'!$I:$I))+(SUMIF('SummaryVMT-OP'!$B:$B,$J$153,'SummaryVMT-OP'!$I:$I)) -> 0 | K158: =(SUMIF('SummaryVMT-PK'!$B:$B,$J$153,'SummaryVMT-PK'!$J:$J))+(SUMIF('SummaryVMT-OP'!$B:$B,$J$153,'SummaryVMT-OP'!$J:$J)) -> 0
C159: 5 | D159: Work-Based Other | E159: =(SUMIF('SummaryVMT-PK'!$A:$A,$C$153,'SummaryVMT-PK'!$M:$M))+(SUMIF('SummaryVMT-OP'!$A:$A,$C$153,'SummaryVMT-OP'!$M:$M)) -> 137072.3419 | F159: =(SUMIF('SummaryVMT-PK'!$A:$A,$C$153,'SummaryVMT-PK'!$N:$N))+(SUMIF('SummaryVMT-OP'!$A:$A,$C$153,'SummaryVMT-OP'!$N:$N)) -> 74058.3848 | H159: 5 | I159: Work-Based Other | J159: =(SUMIF('SummaryVMT-PK'!$B:$B,$J$153,'SummaryVMT-PK'!$M:$M))+(SUMIF('SummaryVMT-OP'!$B:$B,$J$153,'SummaryVMT-OP'!$M:$M)) -> 1.598150833 | K159: =(SUMIF('SummaryVMT-PK'!$B:$B,$J$153,'SummaryVMT-PK'!$N:$N))+(SUMIF('SummaryVMT-OP'!$B:$B,$J$153,'SummaryVMT-OP'!$N:$N)) -> 1.019181372
C160: 6 | D160: Other Based Other | E160: =(SUMIF('SummaryVMT-PK'!$A:$A,$C$153,'SummaryVMT-PK'!$K:$K))+(SUMIF('SummaryVMT-OP'!$A:$A,$C$153,'SummaryVMT-OP'!$K:$K)) -> 484564.5091 | F160: =(SUMIF('SummaryVMT-PK'!$A:$A,$C$153,'SummaryVMT-PK'!$L:$L))+(SUMIF('SummaryVMT-OP'!$A:$A,$C$153,'SummaryVMT-OP'!$L:$L)) -> 312851.1901 | H160: 6 | I160: Other Based Other | J160: =(SUMIF('SummaryVMT-PK'!$B:$B,$J$153,'SummaryVMT-PK'!$K:$K))+(SUMIF('SummaryVMT-OP'!$B:$B,$J$153,'SummaryVMT-OP'!$K:$K)) -> 1.428780764 | K160: =(SUMIF('SummaryVMT-PK'!$B:$B,$J$153,'SummaryVMT-PK'!$L:$L))+(SUMIF('SummaryVMT-OP'!$B:$B,$J$153,'SummaryVMT-OP'!$L:$L)) -> 0.2838195134
C161: Total VMT | E161: =SUM(E155:E160) -> 2845598.591 | F161: =SUM(F155:F160) -> 1662229.814 | H161: Total VMT | J161: =SUM(J155:J160) -> 3.026931597 | K161: =SUM(K155:K160) -> 8.943319123
C162: Total Home-based VMT | E162: =SUM(E155:E158) -> 2223961.74 | H162: Total Home-based VMT | J162: =SUM(J155:J158) -> 0
C163: Total Work-based VMT | E163: =SUM(E159,F155) -> 683781.6032 | H163: Total Work-based VMT | J163: =SUM(J159,K155) -> 8.617592831
C164: Total Population | E164: =SUMIF(SED!$C:$C,$C$153,SED!D:D) -> 128241 | H164: Total Population | J164: =SUMIF(SED!$A:$A,$J$153,SED!D:D) -> 0
C165: Total Employees | E165: =SUMIF(SED!$C:$C,$C$153,SED!F:F) -> 44350 | H165: Total Employees | J165: =SUMIF(SED!$A:$A,$J$153,SED!F:F) -> 1
C166: Total Home-based VMT/Capita | E166: =E162/E164 -> 17.34204927 | H166: Total Home-based VMT/Capita | J166: =J162/J164 -> 
C167: Total Work-based VMT/Employee | E167: =E163/E165 -> 15.417849 | H167: Total Work-based VMT/Employee | J167: =J163/J165 -> 8.617592831
C168: Total VMT/Service Population | E168: =SUM(E161:F161)/SUM(E164:F165) -> 26.11856009 | H168: Total VMT/Service Population | J168: =SUM(J161:K161)/SUM(J164:K165) -> 11.97025072
C170: Thousand Oaks | H170: Thousand Oaks TAZ: | J170: 60131101
C171: ID | D171: Purpose | E171: Productions | F171: Attractions | H171: ID | I171: Purpose | J171: Productions | K171: Attractions
C172: 1 | D172: Home-based Work | E172: =(SUMIF('SummaryVMT-PK'!$A:$A,$C$170,'SummaryVMT-PK'!$C:$C))+(SUMIF('SummaryVMT-OP'!$A:$A,$C$170,'SummaryVMT-OP'!$C:$C)) -> 1287214.873 | F172: =(SUMIF('SummaryVMT-PK'!$A:$A,$C$170,'SummaryVMT-PK'!$D:$D))+(SUMIF('SummaryVMT-OP'!$A:$A,$C$170,'SummaryVMT-OP'!$D:$D)) -> 1164839.975 | H172: 1 | I172: Home-based Work | J172: =(SUMIF('SummaryVMT-PK'!$B:$B,$J$170,'SummaryVMT-PK'!$C:$C))+(SUMIF('SummaryVMT-OP'!$B:$B,$J$170,'SummaryVMT-OP'!$C:$C)) -> 13316.6993 | K172: =(SUMIF('SummaryVMT-PK'!$B:$B,$J$170,'SummaryVMT-PK'!$D:$D))+(SUMIF('SummaryVMT-OP'!$B:$B,$J$170,'SummaryVMT-OP'!$D:$D)) -> 8920.434499
C173: 2 | D173: Home-based School | E173: =(SUMIF('SummaryVMT-PK'!$A:$A,$C$170,'SummaryVMT-PK'!$E:$E))+(SUMIF('SummaryVMT-OP'!$A:$A,$C$170,'SummaryVMT-OP'!$E:$E)) -> 41406.99181 | F173: =(SUMIF('SummaryVMT-PK'!$A:$A,$C$170,'SummaryVMT-PK'!$F:$F))+(SUMIF('SummaryVMT-OP'!$A:$A,$C$170,'SummaryVMT-OP'!$F:$F)) -> 40184.25891 | H173: 2 | I173: Home-based School | J173: =(SUMIF('SummaryVMT-PK'!$B:$B,$J$170,'SummaryVMT-PK'!$E:$E))+(SUMIF('SummaryVMT-OP'!$B:$B,$J$170,'SummaryVMT-OP'!$E:$E)) -> 702.3220629 | K173: =(SUMIF('SummaryVMT-PK'!$B:$B,$J$170,'SummaryVMT-PK'!$F:$F))+(SUMIF('SummaryVMT-OP'!$B:$B,$J$170,'SummaryVMT-OP'!$F:$F)) -> 0
C174: 3 | D174: Home-based Non-Work | E174: =(SUMIF('SummaryVMT-PK'!$A:$A,$C$170,'SummaryVMT-PK'!$G:$G))+(SUMIF('SummaryVMT-OP'!$A:$A,$C$170,'SummaryVMT-OP'!$G:$G)) -> 1154322.518 | F174: =(SUMIF('SummaryVMT-PK'!$A:$A,$C$170,'SummaryVMT-PK'!$H:$H))+(SUMIF('SummaryVMT-OP'!$A:$A,$C$170,'SummaryVMT-OP'!$H:$H)) -> 1110522.986 | H174: 3 | I174: Home-based Non-Work | J174: =(SUMIF('SummaryVMT-PK'!$B:$B,$J$170,'SummaryVMT-PK'!$G:$G))+(SUMIF('SummaryVMT-OP'!$B:$B,$J$170,'SummaryVMT-OP'!$G:$G)) -> 13644.09205 | K174: =(SUMIF('SummaryVMT-PK'!$B:$B,$J$170,'SummaryVMT-PK'!$H:$H))+(SUMIF('SummaryVMT-OP'!$B:$B,$J$170,'SummaryVMT-OP'!$H:$H)) -> 5147.15458
C175: 4 | D175: Home-based University | E175: =(SUMIF('SummaryVMT-PK'!$A:$A,$C$170,'SummaryVMT-PK'!$I:$I))+(SUMIF('SummaryVMT-OP'!$A:$A,$C$170,'SummaryVMT-OP'!$I:$I)) -> 19227.74673 | F175: =(SUMIF('SummaryVMT-PK'!$A:$A,$C$170,'SummaryVMT-PK'!$J:$J))+(SUMIF('SummaryVMT-OP'!$A:$A,$C$170,'SummaryVMT-OP'!$J:$J)) -> 6783.625244 | H175: 4 | I175: Home-based University | J175: =(SUMIF('SummaryVMT-PK'!$B:$B,$J$170,'SummaryVMT-PK'!$I:$I))+(SUMIF('SummaryVMT-OP'!$B:$B,$J$170,'SummaryVMT-OP'!$I:$I)) -> 134.2902901 | K175: =(SUMIF('SummaryVMT-PK'!$B:$B,$J$170,'SummaryVMT-PK'!$J:$J))+(SUMIF('SummaryVMT-OP'!$B:$B,$J$170,'SummaryVMT-OP'!$J:$J)) -> 0
C176: 5 | D176: Work-Based Other | E176: =(SUMIF('SummaryVMT-PK'!$A:$A,$C$170,'SummaryVMT-PK'!$M:$M))+(SUMIF('SummaryVMT-OP'!$A:$A,$C$170,'SummaryVMT-OP'!$M:$M)) -> 222719.7794 | F176: =(SUMIF('SummaryVMT-PK'!$A:$A,$C$170,'SummaryVMT-PK'!$N:$N))+(SUMIF('SummaryVMT-OP'!$A:$A,$C$170,'SummaryVMT-OP'!$N:$N)) -> 172328.7468 | H176: 5 | I176: Work-Based Other | J176: =(SUMIF('SummaryVMT-PK'!$B:$B,$J$170,'SummaryVMT-PK'!$M:$M))+(SUMIF('SummaryVMT-OP'!$B:$B,$J$170,'SummaryVMT-OP'!$M:$M)) -> 904.7396215 | K176: =(SUMIF('SummaryVMT-PK'!$B:$B,$J$170,'SummaryVMT-PK'!$N:$N))+(SUMIF('SummaryVMT-OP'!$B:$B,$J$170,'SummaryVMT-OP'!$N:$N)) -> 989.4290716
C177: 6 | D177: Other Based Other | E177: =(SUMIF('SummaryVMT-PK'!$A:$A,$C$170,'SummaryVMT-PK'!$K:$K))+(SUMIF('SummaryVMT-OP'!$A:$A,$C$170,'SummaryVMT-OP'!$K:$K)) -> 740057.8057 | F177: =(SUMIF('SummaryVMT-PK'!$A:$A,$C$170,'SummaryVMT-PK'!$L:$L))+(SUMIF('SummaryVMT-OP'!$A:$A,$C$170,'SummaryVMT-OP'!$L:$L)) -> 612100.7036 | H177: 6 | I177: Other Based Other | J177: =(SUMIF('SummaryVMT-PK'!$B:$B,$J$170,'SummaryVMT-PK'!$K:$K))+(SUMIF('SummaryVMT-OP'!$B:$B,$J$170,'SummaryVMT-OP'!$K:$K)) -> 3043.350962 | K177: =(SUMIF('SummaryVMT-PK'!$B:$B,$J$170,'SummaryVMT-PK'!$L:$L))+(SUMIF('SummaryVMT-OP'!$B:$B,$J$170,'SummaryVMT-OP'!$L:$L)) -> 1055.034305
C178: Total VMT | E178: =SUM(E172:E177) -> 3464949.715 | F178: =SUM(F172:F177) -> 3106760.296 | H178: Total VMT | J178: =SUM(J172:J177) -> 31745.49428 | K178: =SUM(K172:K177) -> 16112.05246
C179: Total Home-based VMT | E179: =SUM(E172:E175) -> 2502172.13 | H179: Total Home-based VMT | J179: =SUM(J172:J175) -> 27797.4037
C180: Total Work-based VMT | E180: =SUM(E176,F172) -> 1387559.755 | H180: Total Work-based VMT | J180: =SUM(J176,K172) -> 9825.174121
C181: Total Population | E181: =SUMIF(SED!$C:$C,$C$170,SED!D:D) -> 129029.506 | H181: Total Population | J181: =SUMIF(SED!$A:$A,$J$170,SED!D:D) -> 1215
C182: Total Employees | E182: =SUMIF(SED!$C:$C,$C$170,SED!F:F) -> 78989 | H182: Total Employees | J182: =SUMIF(SED!$A:$A,$J$170,SED!F:F) -> 580
C183: Total Home-based VMT/Capita | E183: =E179/E181 -> 19.39224761 | H183: Total Home-based VMT/Capita | J183: =J179/J181 -> 22.87852156
C184: Total Work-based VMT/Employee | E184: =E180/E182 -> 17.5664935 | H184: Total Work-based VMT/Employee | J184: =J180/J182 -> 16.93995538
C185: Total VMT/Service Population | E185: =SUM(E178:F178)/SUM(E181:F182) -> 31.5919489 | H185: Total VMT/Service Population | J185: =SUM(J178:K178)/SUM(J181:K182) -> 26.66158593
C187: Unincorporated | H187: Unincorporated TAZ: | J187: 60001101
C188: ID | D188: Purpose | E188: Productions | F188: Attractions | H188: ID | I188: Purpose | J188: Productions | K188: Attractions
C189: 1 | D189: Home-based Work | E189: =(SUMIF('SummaryVMT-PK'!$A:$A,"",'SummaryVMT-PK'!$C:$C))+(SUMIF('SummaryVMT-OP'!$A:$A,"",'SummaryVMT-OP'!$C:$C)) -> 752805.121 | F189: =(SUMIF('SummaryVMT-PK'!$A:$A,"",'SummaryVMT-PK'!$D:$D))+(SUMIF('SummaryVMT-OP'!$A:$A,"",'SummaryVMT-OP'!$D:$D)) -> 276885.4803 | H189: 1 | I189: Home-based Work | J189: =(SUMIF('SummaryVMT-PK'!$B:$B,$J$187,'SummaryVMT-PK'!$C:$C))+(SUMIF('SummaryVMT-OP'!$B:$B,$J$187,'SummaryVMT-OP'!$C:$C)) -> 3889.181207 | K189: =(SUMIF('SummaryVMT-PK'!$B:$B,$J$187,'SummaryVMT-PK'!$D:$D))+(SUMIF('SummaryVMT-OP'!$B:$B,$J$187,'SummaryVMT-OP'!$D:$D)) -> 261.6719453
C190: 2 | D190: Home-based School | E190: =(SUMIF('SummaryVMT-PK'!$A:$A,"",'SummaryVMT-PK'!$E:$E))+(SUMIF('SummaryVMT-OP'!$A:$A,"",'SummaryVMT-OP'!$E:$E)) -> 31762.37157 | F190: =(SUMIF('SummaryVMT-PK'!$A:$A,"",'SummaryVMT-PK'!$F:$F))+(SUMIF('SummaryVMT-OP'!$A:$A,"",'SummaryVMT-OP'!$F:$F)) -> 37094.46639 | H190: 2 | I190: Home-based School | J190: =(SUMIF('SummaryVMT-PK'!$B:$B,$J$187,'SummaryVMT-PK'!$E:$E))+(SUMIF('SummaryVMT-OP'!$B:$B,$J$187,'SummaryVMT-OP'!$E:$E)) -> 238.5726541 | K190: =(SUMIF('SummaryVMT-PK'!$B:$B,$J$187,'SummaryVMT-PK'!$F:$F))+(SUMIF('SummaryVMT-OP'!$B:$B,$J$187,'SummaryVMT-OP'!$F:$F)) -> 0
C191: 3 | D191: Home-based Non-Work | E191: =(SUMIF('SummaryVMT-PK'!$A:$A,"",'SummaryVMT-PK'!$G:$G))+(SUMIF('SummaryVMT-OP'!$A:$A,"",'SummaryVMT-OP'!$G:$G)) -> 769265.3705 | F191: =(SUMIF('SummaryVMT-PK'!$A:$A,"",'SummaryVMT-PK'!$H:$H))+(SUMIF('SummaryVMT-OP'!$A:$A,"",'SummaryVMT-OP'!$H:$H)) -> 234348.2949 | H191: 3 | I191: Home-based Non-Work | J191: =(SUMIF('SummaryVMT-PK'!$B:$B,$J$187,'SummaryVMT-PK'!$G:$G))+(SUMIF('SummaryVMT-OP'!$B:$B,$J$187,'SummaryVMT-OP'!$G:$G)) -> 6667.823976 | K191: =(SUMIF('SummaryVMT-PK'!$B:$B,$J$187,'SummaryVMT-PK'!$H:$H))+(SUMIF('SummaryVMT-OP'!$B:$B,$J$187,'SummaryVMT-OP'!$H:$H)) -> 523.6957422
C192: 4 | D192: Home-based University | E192: =(SUMIF('SummaryVMT-PK'!$A:$A,"",'SummaryVMT-PK'!$I:$I))+(SUMIF('SummaryVMT-OP'!$A:$A,"",'SummaryVMT-OP'!$I:$I)) -> 17199.6511 | F192: =(SUMIF('SummaryVMT-PK'!$A:$A,"",'SummaryVMT-PK'!$J:$J))+(SUMIF('SummaryVMT-OP'!$A:$A,"",'SummaryVMT-OP'!$J:$J)) -> 20855.95608 | H192: 4 | I192: Home-based University | J192: =(SUMIF('SummaryVMT-PK'!$B:$B,$J$187,'SummaryVMT-PK'!$I:$I))+(SUMIF('SummaryVMT-OP'!$B:$B,$J$187,'SummaryVMT-OP'!$I:$I)) -> 180.7799961 | K192: =(SUMIF('SummaryVMT-PK'!$B:$B,$J$187,'SummaryVMT-PK'!$J:$J))+(SUMIF('SummaryVMT-OP'!$B:$B,$J$187,'SummaryVMT-OP'!$J:$J)) -> 0
C193: 5 | D193: Work-Based Other | E193: =(SUMIF('SummaryVMT-PK'!$A:$A,"",'SummaryVMT-PK'!$M:$M))+(SUMIF('SummaryVMT-OP'!$A:$A,"",'SummaryVMT-OP'!$M:$M)) -> 61622.11925 | F193: =(SUMIF('SummaryVMT-PK'!$A:$A,"",'SummaryVMT-PK'!$N:$N))+(SUMIF('SummaryVMT-OP'!$A:$A,"",'SummaryVMT-OP'!$N:$N)) -> 33301.62629 | H193: 5 | I193: Work-Based Other | J193: =(SUMIF('SummaryVMT-PK'!$B:$B,$J$187,'SummaryVMT-PK'!$M:$M))+(SUMIF('SummaryVMT-OP'!$B:$B,$J$187,'SummaryVMT-OP'!$M:$M)) -> 109.3952471 | K193: =(SUMIF('SummaryVMT-PK'!$B:$B,$J$187,'SummaryVMT-PK'!$N:$N))+(SUMIF('SummaryVMT-OP'!$B:$B,$J$187,'SummaryVMT-OP'!$N:$N)) -> 11.66636274
C194: 6 | D194: Other Based Other | E194: =(SUMIF('SummaryVMT-PK'!$A:$A,"",'SummaryVMT-PK'!$K:$K))+(SUMIF('SummaryVMT-OP'!$A:$A,"",'SummaryVMT-OP'!$K:$K)) -> 274388.1287 | F194: =(SUMIF('SummaryVMT-PK'!$A:$A,"",'SummaryVMT-PK'!$L:$L))+(SUMIF('SummaryVMT-OP'!$A:$A,"",'SummaryVMT-OP'!$L:$L)) -> 99440.7107 | H194: 6 | I194: Other Based Other | J194: =(SUMIF('SummaryVMT-PK'!$B:$B,$J$187,'SummaryVMT-PK'!$K:$K))+(SUMIF('SummaryVMT-OP'!$B:$B,$J$187,'SummaryVMT-OP'!$K:$K)) -> 1344.685712 | K194: =(SUMIF('SummaryVMT-PK'!$B:$B,$J$187,'SummaryVMT-PK'!$L:$L))+(SUMIF('SummaryVMT-OP'!$B:$B,$J$187,'SummaryVMT-OP'!$L:$L)) -> 56.69461197
C195: Total VMT | E195: =SUM(E189:E194) -> 1907042.762 | F195: =SUM(F189:F194) -> 701926.5346 | H195: Total VMT | J195: =SUM(J189:J194) -> 12430.43879 | K195: =SUM(K189:K194) -> 853.7286622
C196: Total Home-based VMT | E196: =SUM(E189:E192) -> 1571032.514 | H196: Total Home-based VMT | J196: =SUM(J189:J192) -> 10976.35783
C197: Total Work-based VMT | E197: =SUM(E193,F189) -> 338507.5995 | H197: Total Work-based VMT | J197: =SUM(J193,K189) -> 371.0671924
C198: Total Population | E198: =SUMIF(SED!$C:$C,"",SED!D:D) -> 64237.3313 | H198: Total Population | J198: =SUMIF(SED!$A:$A,$J$187,SED!D:D) -> 289
C199: Total Employees | E199: =SUMIF(SED!$C:$C,"",SED!F:F) -> 22932 | H199: Total Employees | J199: =SUMIF(SED!$A:$A,$J$187,SED!F:F) -> 38
C200: Total Home-based VMT/Capita | E200: =E196/E198 -> 24.45669025 | H200: Total Home-based VMT/Capita | J200: =J196/J198 -> 37.98047693
C201: Total Work-based VMT/Employee | E201: =E197/E199 -> 14.76136401 | H201: Total Work-based VMT/Employee | J201: =J197/J199 -> 9.764926116
C202: Total VMT/Service Population | E202: =SUM(E195:F195)/SUM(E198:F199) -> 29.92989917 | H202: Total VMT/Service Population | J202: =SUM(J195:K195)/SUM(J198:K199) -> 40.6243653
C204: Ventura County | H204: Ventura County TAZ: | J204: 60210401
C205: ID | D205: Purpose | E205: Productions | F205: Attractions | H205: ID | I205: Purpose | J205: Productions | K205: Attractions
C206: 1 | D206: Home-based Work | E206: =(SUM('SummaryVMT-PK'!$C:$C))+(SUM('SummaryVMT-OP'!$C:$C)) -> 7075091.392 | F206: =(SUM('SummaryVMT-PK'!$D:$D))+(SUM('SummaryVMT-OP'!$D:$D)) -> 4559229.096 | H206: 1 | I206: Home-based Work | J206: =(SUMIF('SummaryVMT-PK'!$B:$B,$J$204,'SummaryVMT-PK'!$C:$C))+(SUMIF('SummaryVMT-OP'!$B:$B,$J$204,'SummaryVMT-OP'!$C:$C)) -> 0 | K206: =(SUMIF('SummaryVMT-PK'!$B:$B,$J$204,'SummaryVMT-PK'!$D:$D))+(SUMIF('SummaryVMT-OP'!$B:$B,$J$204,'SummaryVMT-OP'!$D:$D)) -> 0
C207: 2 | D207: Home-based School | E207: =(SUM('SummaryVMT-PK'!$E:$E))+(SUM('SummaryVMT-OP'!$E:$E)) -> 257049.2473 | F207: =(SUM('SummaryVMT-PK'!$F:$F))+(SUM('SummaryVMT-OP'!$F:$F)) -> 249911.9768 | H207: 2 | I207: Home-based School | J207: =(SUMIF('SummaryVMT-PK'!$B:$B,$J$204,'SummaryVMT-PK'!$E:$E))+(SUMIF('SummaryVMT-OP'!$B:$B,$J$204,'SummaryVMT-OP'!$E:$E)) -> 11.97390932 | K207: =(SUMIF('SummaryVMT-PK'!$B:$B,$J$204,'SummaryVMT-PK'!$F:$F))+(SUMIF('SummaryVMT-OP'!$B:$B,$J$204,'SummaryVMT-OP'!$F:$F)) -> 0
C208: 3 | D208: Home-based Non-Work | E208: =(SUM('SummaryVMT-PK'!$G:$G))+(SUM('SummaryVMT-OP'!$G:$G)) -> 5935443.526 | F208: =(SUM('SummaryVMT-PK'!$H:$H))+(SUM('SummaryVMT-OP'!$H:$H)) -> 5091014.51 | H208: 3 | I208: Home-based Non-Work | J208: =(SUMIF('SummaryVMT-PK'!$B:$B,$J$204,'SummaryVMT-PK'!$G:$G))+(SUMIF('SummaryVMT-OP'!$B:$B,$J$204,'SummaryVMT-OP'!$G:$G)) -> 120.6721174 | K208: =(SUMIF('SummaryVMT-PK'!$B:$B,$J$204,'SummaryVMT-PK'!$H:$H))+(SUMIF('SummaryVMT-OP'!$B:$B,$J$204,'SummaryVMT-OP'!$H:$H)) -> 8.315134237
C209: 4 | D209: Home-based University | E209: =(SUM('SummaryVMT-PK'!$I:$I))+(SUM('SummaryVMT-OP'!$I:$I)) -> 115014.6195 | F209: =(SUM('SummaryVMT-PK'!$J:$J))+(SUM('SummaryVMT-OP'!$J:$J)) -> 114526.0047 | H209: 4 | I209: Home-based University | J209: =(SUMIF('SummaryVMT-PK'!$B:$B,$J$204,'SummaryVMT-PK'!$I:$I))+(SUMIF('SummaryVMT-OP'!$B:$B,$J$204,'SummaryVMT-OP'!$I:$I)) -> 7.708011094 | K209: =(SUMIF('SummaryVMT-PK'!$B:$B,$J$204,'SummaryVMT-PK'!$J:$J))+(SUMIF('SummaryVMT-OP'!$B:$B,$J$204,'SummaryVMT-OP'!$J:$J)) -> 0
C210: 5 | D210: Work-Based Other | E210: =(SUM('SummaryVMT-PK'!$M:$M))+(SUM('SummaryVMT-OP'!$M:$M)) -> 849440.0775 | F210: =(SUM('SummaryVMT-PK'!$N:$N))+(SUM('SummaryVMT-OP'!$N:$N)) -> 668004.6612 | H210: 5 | I210: Work-Based Other | J210: =(SUMIF('SummaryVMT-PK'!$B:$B,$J$204,'SummaryVMT-PK'!$M:$M))+(SUMIF('SummaryVMT-OP'!$B:$B,$J$204,'SummaryVMT-OP'!$M:$M)) -> 0 | K210: =(SUMIF('SummaryVMT-PK'!$B:$B,$J$204,'SummaryVMT-PK'!$N:$N))+(SUMIF('SummaryVMT-OP'!$B:$B,$J$204,'SummaryVMT-OP'!$N:$N)) -> 0.2533792573
C211: 6 | D211: Other Based Other | E211: =(SUM('SummaryVMT-PK'!$K:$K))+(SUM('SummaryVMT-OP'!$K:$K)) -> 3117885.55 | F211: =(SUM('SummaryVMT-PK'!$L:$L))+(SUM('SummaryVMT-OP'!$L:$L)) -> 2553637.498 | H211: 6 | I211: Other Based Other | J211: =(SUMIF('SummaryVMT-PK'!$B:$B,$J$204,'SummaryVMT-PK'!$K:$K))+(SUMIF('SummaryVMT-OP'!$B:$B,$J$204,'SummaryVMT-OP'!$K:$K)) -> 22.68477022 | K211: =(SUMIF('SummaryVMT-PK'!$B:$B,$J$204,'SummaryVMT-PK'!$L:$L))+(SUMIF('SummaryVMT-OP'!$B:$B,$J$204,'SummaryVMT-OP'!$L:$L)) -> 1.111136301
C212: Total VMT | E212: =SUM(E206:E211) -> 17349924.41 | F212: =SUM(F206:F211) -> 13236323.75 | H212: Total VMT | J212: =SUM(J206:J211) -> 163.0388081 | K212: =SUM(K206:K211) -> 9.679649795
C213: Total Home-based VMT | E213: =SUM(E206:E209) -> 13382598.78 | H213: Total Home-based VMT | J213: =SUM(J206:J209) -> 140.3540379
C214: Total Work-based VMT | E214: =SUM(E210,F206) -> 5408669.174 | H214: Total Work-based VMT | J214: =SUM(J210,K206) -> 0
... 5 more rows

Sheet SummaryVMT-PKOP
A1: SED by TAZ | H1: HBW-PK | J1: HBSC-PK | L1: HBNW-PK | N1: HBCU-PK | P1: OBO-PK | R1: WBO-PK | T1: Residential | U1: Non-residential | W1: Home-Based VHT/Capita | X1: Work-Based VHT/Employees | Y1: Total VHT/Service
A2: TAZ | B2: COUNTY | C2: City Name | D2: POP | E2: HH | F2: Tot_emp | G2: Service | H2: O-VMT | I2: D-VMT | J2: O-VMT | K2: D-VMT | L2: O-VMT | M2: D-VMT | N2: O-VMT | O2: D-VMT | P2: O-VMT | Q2: D-VMT | R2: O-VMT | S2: D-VMT | T2: Home-based | U2: Work-based | V2: Other
A3: 60001101 | B3: Ventura | D3: 289 | E3: 108 | F3: 38 | G3: 327 | H3: 3889.181207 | I3: 261.6719453 | J3: 238.5726541 | K3: 0 | L3: 6667.823976 | M3: 523.6957422 | N3: 180.7799961 | O3: 0 | P3: 1344.685712 | Q3: 56.69461197 | R3: 109.3952471 | S3: 11.66636274 | T3: 10976.35783 | U3: 371.0671924 | V3: 1925.076066 | W3: 37.98047693 | X3: 9.764926116 | Y3: 40.58868835
A4: 60001201 | B4: Ventura | D4: 157 | E4: 90 | F4: 12 | G4: 169 | H4: 3244.592206 | I4: 269.9228195 | J4: 164.2478333 | K4: 0 | L4: 6855.485994 | M4: 2342.470851 | N4: 128.6258192 | O4: 0 | P4: 2380.025815 | Q4: 213.3606671 | R4: 115.1982281 | S4: 2.736770652 | T4: 10392.95185 | U4: 385.1210476 | V4: 4935.857333 | W4: 66.19714556 | X4: 32.09342063 | Y4: 92.9818357
A5: 60001301 | B5: Ventura | D5: 171 | E5: 91 | F5: 0 | G5: 171 | H5: 3151.802813 | I5: 0 | J5: 20.49907905 | K5: 0 | L5: 5075.096041 | M5: 446.9187723 | N5: 11.06357134 | O5: 0 | P5: 1204.298788 | Q5: 238.9662502 | R5: 0 | S5: 0.101397251 | T5: 8258.461504 | U5: 0 | V5: 1890.18381 | W5: 48.29509651 | Y5: 59.34880301
A6: 60002101 | B6: Ventura | D6: 627 | E6: 291 | F6: 123 | G6: 750 | H6: 5999.16495 | I6: 1147.320874 | J6: 468.5962289 | K6: 0 | L6: 9467.129007 | M6: 1306.767858 | N6: 267.4690311 | O6: 0 | P6: 3159.201482 | Q6: 327.1789736 | R6: 241.3933193 | S6: 151.7070151 | T6: 16202.35922 | U6: 1388.714193 | V6: 4793.148314 | W6: 25.84108328 | X6: 11.29035929 | Y6: 29.84562896
A7: 60002201 | B7: Ventura | C7: San Buenaventura | D7: 32 | E7: 8 | F7: 90 | G7: 122 | H7: 225.0063679 | I7: 962.8543766 | J7: 16.86779991 | K7: 0 | L7: 167.2311189 | M7: 253.1375795 | N7: 3.817161177 | O7: 0 | P7: 550.1345786 | Q7: 112.188575 | R7: 439.3077893 | S7: 79.13888127 | T7: 412.9224479 | U7: 1402.162166 | V7: 915.4607331 | W7: 12.9038265 | X7: 15.57957962 | Y7: 22.38151924
A8: 60002301 | B8: Ventura | C8: San Buenaventura | D8: 154 | E8: 98 | F8: 13 | G8: 167 | H8: 960.3081082 | I8: 173.48867 | J8: 67.37453871 | K8: 0 | L8: 1212.667565 | M8: 511.2386781 | N8: 24.61789233 | O8: 0 | P8: 339.6426282 | Q8: 140.4704751 | R8: 55.01569197 | S8: 40.23281467 | T8: 2264.968104 | U8: 228.504362 | V8: 991.3517814 | W8: 14.70758509 | X8: 17.57725861 | Y8: 20.86721106
A9: 60003101 | B9: Ventura | D9: 570 | E9: 275 | F9: 65 | G9: 635 | H9: 7497.301425 | I9: 641.863921 | J9: 268.1709069 | K9: 0 | L9: 7815.111984 | M9: 1420.76357 | N9: 213.7013193 | O9: 0 | P9: 1935.897802 | Q9: 290.6514907 | R9: 103.4667381 | S9: 95.90508434 | T9: 15794.28564 | U9: 745.3306592 | V9: 3647.312863 | W9: 27.70927305 | X9: 11.46662553 | Y9: 31.79043962
A10: 60003201 | B10: Ventura | D10: 77 | E10: 18 | F10: 4 | G10: 81 | H10: 559.2062409 | I10: 13.45210941 | J10: 191.9040645 | K10: 0 | L10: 921.3207447 | M10: 37.14813982 | N10: 24.37831941 | O10: 0 | P10: 207.4368665 | Q10: 6.804322925 | R10: 23.15294168 | S10: 2.778527945 | T10: 1696.809369 | U10: 36.60505109 | V10: 251.3893293 | W10: 22.03648532 | X10: 9.151262773 | Y10: 24.50375
A11: 60003301 | B11: Ventura | D11: 1065 | E11: 469 | F11: 224 | G11: 1289 | H11: 20482.4891 | I11: 1889.426362 | J11: 456.8300673 | K11: 278.0258259 | L11: 19668.24627 | M11: 2831.084989 | N11: 753.554581 | O11: 0 | P11: 4223.001007 | Q11: 737.9282148 | R11: 827.9731314 | S11: 205.3636678 | T11: 41361.12002 | U11: 2717.399494 | V11: 8070.040036 | W11: 38.83673241 | X11: 12.13124774 | Y11: 40.45660167
A12: 60003401 | B12: Ventura | D12: 0 | E12: 0 | F12: 0 | G12: 0 | H12: 0 | I12: 0 | J12: 0 | K12: 0 | L12: 0 | M12: 0 | N12: 0 | O12: 0 | P12: 0 | Q12: 0 | R12: 0 | S12: 0 | T12: 0 | U12: 0 | V12: 0
A13: 60003501 | B13: Ventura | C13: San Buenaventura | D13: 316 | E13: 140 | F13: 74 | G13: 390 | H13: 4072.713582 | I13: 672.8279756 | J13: 223.8462601 | K13: 0 | L13: 3635.593098 | M13: 966.5776198 | N13: 59.46060062 | O13: 0 | P13: 1564.941079 | Q13: 234.6433052 | R13: 401.5358741 | S13: 95.1639798 | T13: 7991.613541 | U13: 1074.36385 | V13: 2766.162004 | W13: 25.28991627 | X13: 14.5184304 | Y13: 30.33881896
A14: 60003601 | B14: Ventura | D14: 227 | E14: 97 | F14: 8 | G14: 235 | H14: 3051.944204 | I14: 70.09324727 | J14: 88.68723544 | K14: 0 | L14: 2600.062655 | M14: 393.4276496 | N14: 112.4342239 | O14: 0 | P14: 551.1321709 | Q14: 70.38588262 | R14: 25.01087704 | S14: 17.24556124 | T14: 5853.128318 | U14: 95.1041243 | V14: 1014.945703 | W14: 25.78470625 | X14: 11.88801554 | Y14: 29.6305453
A15: 60004101 | B15: Ventura | C15: San Buenaventura | D15: 2708 | E15: 950 | F15: 753 | G15: 3461 | H15: 18193.84287 | I15: 9065.159981 | J15: 1304.238694 | K15: 333.539029 | L15: 12578.20682 | M15: 12666.55749 | N15: 241.7483096 | O15: 0 | P15: 9103.98129 | Q15: 7020.083666 | R15: 2463.652794 | S15: 1454.465742 | T15: 32318.03669 | U15: 11528.81278 | V15: 29124.16147 | W15: 11.93428238 | X15: 15.31050833 | Y15: 21.08379397
A16: 60004201 | B16: Ventura | C16: San Buenaventura | D16: 3150 | E16: 928 | F16: 631 | G16: 3781 | H16: 21189.5108 | I16: 7595.966577 | J16: 2145.609082 | K16: 800.3114641 | L16: 16006.43738 | M16: 5859.77253 | N16: 262.6357237 | O16: 0 | P16: 3910.904906 | Q16: 2286.851512 | R16: 1278.089768 | S16: 859.2843152 | T16: 39604.19298 | U16: 8874.056345 | V16: 12857.84041 | W16: 12.57275968 | X16: 14.06348074 | Y16: 16.22218718
A17: 60004301 | B17: Ventura | C17: San Buenaventura | D17: 1243 | E17: 382 | F17: 796 | G17: 2039 | H17: 15475.25975 | I17: 8853.145152 | J17: 284.2783799 | K17: 0 | L17: 12140.54095 | M17: 3303.964177 | N17: 336.5621772 | O17: 0 | P17: 4304.770191 | Q17: 1364.190551 | R17: 1680.177401 | S17: 765.2186678 | T17: 28236.64126 | U17: 10533.32255 | V17: 8972.924919 | W17: 22.71652555 | X17: 13.23281728 | Y17: 23.4148547
A18: 60005101 | B18: Ventura | D18: 2651 | E18: 1108 | F18: 91 | G18: 2742 | H18: 32290.64374 | I18: 769.9617597 | J18: 729.7932144 | K18: 0 | L18: 19887.94459 | M18: 5907.21067 | N18: 582.3670359 | O18: 0 | P18: 5214.393948 | Q18: 1173.362525 | R18: 515.0599143 | S18: 252.4855229 | T18: 53490.74859 | U18: 1285.021674 | V18: 12294.96714 | W18: 20.17757397 | X18: 14.1211173 | Y18: 24.46051692
A19: 60005201 | B19: Ventura | D19: 1685 | E19: 631 | F19: 219 | G19: 1904 | H19: 22911.5942 | I19: 2072.870729 | J19: 810.1090465 | K19: 1377.98977 | L19: 18986.32631 | M19: 4686.086238 | N19: 405.2097203 | O19: 0 | P19: 4791.759628 | Q19: 1469.461514 | R19: 700.4362336 | S19: 320.4801145 | T19: 43113.23928 | U19: 2773.306962 | V19: 12325.29715 | W19: 25.58649215 | X19: 12.66350211 | Y19: 30.57344716
A20: 60006101 | B20: Ventura | C20: San Buenaventura | D20: 1316 | E20: 734 | F20: 1233 | G20: 2549 | H20: 10264.20004 | I20: 17907.86179 | J20: 235.8527856 | K20: 371.2617483 | L20: 6102.144765 | M20: 13055.01996 | N20: 144.162955 | O20: 0 | P20: 7612.88136 | Q20: 6817.741644 | R20: 4480.586048 | S20: 2130.668295 | T20: 16746.36055 | U20: 22388.44784 | V20: 27856.90471 | W20: 12.72519799 | X20: 18.15770303 | Y20: 26.28156654
A21: 60006201 | B21: Ventura | C21: San Buenaventura | D21: 831 | E21: 481 | F21: 2153 | G21: 2984 | H21: 3671.209479 | I21: 32108.27441 | J21: 198.3040278 | K21: 0 | L21: 2623.01298 | M21: 35203.82647 | N21: 72.15005272 | O21: 0 | P21: 18026.2943 | Q21: 23725.46897 | R21: 2823.575764 | S21: 4309.03437 | T21: 6564.676539 | U21: 34931.85017 | V21: 76955.58974 | W21: 7.899731094 | X21: 16.22473301 | Y21: 39.69574948
A22: 60006301 | B22: Ventura | C22: San Buenaventura | D22: 206 | E22: 142 | F22: 495 | G22: 701 | H22: 1106.344684 | I22: 7413.72158 | J22: 40.88739202 | K22: 0 | L22: 801.6850839 | M22: 9291.08864 | N22: 21.60899478 | O22: 0 | P22: 5729.445894 | Q22: 4846.575043 | R22: 343.2880609 | S22: 2332.703097 | T22: 1970.526155 | U22: 7757.009641 | V22: 19867.10958 | W22: 9.565660945 | X22: 15.67072655 | Y22: 42.21775374
A23: 60006401 | B23: Ventura | C23: San Buenaventura | D23: 85 | E23: 52 | F23: 403 | G23: 488 | H23: 631.0517276 | I23: 5855.110455 | J23: 7.395622319 | K23: 0 | L23: 396.2367441 | M23: 5787.117415 | N23: 9.223472386 | O23: 0 | P23: 4090.135992 | Q23: 3742.618509 | R23: 1301.076639 | S23: 862.3830085 | T23: 1043.907566 | U23: 7156.187094 | V23: 13619.87191 | W23: 12.28126549 | X23: 17.75728808 | Y23: 44.71304626
A24: 60007101 | B24: Ventura | C24: San Buenaventura | D24: 1530 | E24: 943 | F24: 1706 | G24: 3236 | H24: 12573.7583 | I24: 24474.57947 | J24: 235.8703118 | K24: 144.297698 | L24: 7831.878854 | M24: 16349.229 | N24: 173.7231838 | O24: 0 | P24: 10070.69268 | Q24: 7708.749933 | R24: 4679.926226 | S24: 3304.408828 | T24: 20815.23065 | U24: 29154.50569 | V24: 34272.96931 | W24: 13.60472592 | X24: 17.08939372 | Y24: 26.03297455
A25: 60008101 | B25: Ventura | C25: San Buenaventura | D25: 2534 | E25: 856 | F25: 355 | G25: 2889 | H25: 20487.20713 | I25: 4046.99251 | J25: 1102.228916 | K25: 26.51039074 | L25: 13586.57118 | M25: 4020.236201 | N25: 276.9504999 | O25: 0 | P25: 2614.072666 | Q25: 1084.156335 | R25: 870.2986589 | S25: 524.5295945 | T25: 35452.95773 | U25: 4917.291169 | V25: 7744.975592 | W25: 13.99090676 | X25: 13.85152442 | Y25: 16.65462945
A26: 60008201 | B26: Ventura | C26: San Buenaventura | D26: 1052 | E26: 393 | F26: 149 | G26: 1201 | H26: 6828.617204 | I26: 1792.36117 | J26: 330.0221985 | K26: 0 | L26: 4986.50437 | M26: 3079.582876 | N26: 94.13946207 | O26: 0 | P26: 2337.611181 | Q26: 1261.118126 | R26: 724.3215993 | S26: 300.2843879 | T26: 12239.28323 | U26: 2516.682769 | V26: 6678.312183 | W26: 11.63429965 | X26: 16.89048838 | Y26: 17.84702597
A27: 60008301 | B27: Ventura | C27: San Buenaventura | D27: 2725 | E27: 1017 | F27: 472 | G27: 3197 | H27: 25332.1997 | I27: 5238.179063 | J27: 1141.295139 | K27: 2048.969257 | L27: 18885.53574 | M27: 7169.779187 | N27: 359.3755867 | O27: 0 | P27: 5640.283898 | Q27: 3830.978289 | R27: 773.8361128 | S27: 653.0811762 | T27: 45718.40616 | U27: 6012.015176 | V27: 18690.01063 | W27: 16.77739676 | X27: 12.73732029 | Y27: 22.02703534
A28: 60009101 | B28: Ventura | D28: 1364 | E28: 572 | F28: 114 | G28: 1478 | H28: 17290.06618 | I28: 859.1841904 | J28: 227.5993932 | K28: 0 | L28: 8538.433023 | M28: 3290.426301 | N28: 403.0903826 | O28: 0 | P28: 2315.304755 | Q28: 726.17828 | R28: 129.5476967 | S28: 167.9531557 | T28: 26459.18898 | U28: 988.7318871 | V28: 6331.909336 | W28: 19.39823239 | X28: 8.673086729 | Y28: 22.85509486
A29: 60009201 | B29: Ventura | D29: 1155 | E29: 531 | F29: 95 | G29: 1250 | H29: 12798.51303 | I29: 717.1993892 | J29: 205.8327692 | K29: 0 | L29: 7908.867887 | M29: 3027.9216 | N29: 261.2836793 | O29: 0 | P29: 2353.488287 | Q29: 623.6944866 | R29: 111.557677 | S29: 125.2605981 | T29: 21174.49736 | U29: 828.7570662 | V29: 6005.104373 | W29: 18.33289815 | X29: 8.723758592 | Y29: 22.40668704
A30: 60009301 | B30: Ventura | D30: 1342.992 | E30: 533 | F30: 196 | G30: 1538.992 | H30: 21371.59947 | I30: 1522.736792 | J30: 229.2103131 | K30: 90.65141798 | L30: 11488.09143 | M30: 3247.873513 | N30: 363.0488592 | O30: 0 | P30: 2676.631732 | Q30: 822.0217107 | R30: 353.115654 | S30: 245.8185494 | T30: 33451.95007 | U30: 1875.852446 | V30: 6837.178373 | W30: 24.90852519 | X30: 9.570675747 | Y30: 27.39779082
A31: 60009302 | B31: Ventura | D31: 894.488 | E31: 355 | F31: 130 | G31: 1024.488 | H31: 14031.62308 | I31: 988.5355402 | J31: 115.4174422 | K31: 95.43157576 | L31: 6971.141965 | M31: 2427.438805 | N31: 300.2125814 | O31: 0 | P31: 1869.695834 | Q31: 660.2230041 | R31: 275.6390374 | S31: 174.3345831 | T31: 21418.39507 | U31: 1264.174578 | V31: 5052.789219 | W31: 23.94486574 | X31: 9.724419828 | Y31: 27.0724097
A32: 60009401 | B32: Ventura | C32: Ojai | D32: 1571 | E32: 670 | F32: 886 | G32: 2457 | H32: 19076.4223 | I32: 6806.841759 | J32: 208.1370031 | K32: 6121.028765 | L32: 9466.758953 | M32: 14093.63013 | N32: 384.0688898 | O32: 0 | P32: 6814.905895 | Q32: 6140.115195 | R32: 2207.05073 | S32: 776.8095961 | T32: 29135.38714 | U32: 9013.892489 | V32: 33169.67999 | W32: 18.54575884 | X32: 10.17369355 | Y32: 29.02684559
A33: 60010101 | B33: Ventura | D33: 1931 | E33: 788 | F33: 307 | G33: 2238 | H33: 26327.72293 | I33: 2468.322399 | J33: 419.9542921 | K33: 815.3057024 | L33: 15583.81494 | M33: 7333.729198 | N33: 419.6675546 | O33: 0 | P33: 6150.882287 | Q33: 2478.009233 | R33: 486.5812376 | S33: 629.8890251 | T33: 42751.15971 | U33: 2954.903637 | V33: 16777.92642 | W33: 22.13938877 | X33: 9.62509328 | Y33: 27.91956647
A34: 60010201 | B34: Ventura | D34: 1476 | E34: 571 | F34: 209 | G34: 1685 | H34: 22558.64413 | I34: 1869.909572 | J34: 473.5435672 | K34: 0 | L34: 17594.35714 | M34: 3269.314215 | N34: 395.6079921 | O34: 0 | P34: 3775.443856 | Q34: 732.2977089 | R34: 348.2958149 | S34: 280.1417186 | T34: 41022.15283 | U34: 2218.205387 | V34: 7777.05578 | W34: 27.79278647 | X34: 10.6134229 | Y34: 30.27739703
A35: 60011101 | B35: Ventura | C35: San Buenaventura | D35: 564 | E35: 274 | F35: 448 | G35: 1012 | H35: 4070.508465 | I35: 6541.560906 | J35: 33.8353217 | K35: 0 | L35: 2712.430407 | M35: 4721.480438 | N35: 35.65519019 | O35: 0 | P35: 2881.100856 | Q35: 2191.986695 | R35: 1887.027665 | S35: 1037.685247 | T35: 6852.429384 | U35: 8428.588571 | V35: 9794.567989 | W35: 12.14969749 | X35: 18.81381377 | Y35: 24.77824698
A36: 60011201 | B36: Ventura | C36: San Buenaventura | D36: 718 | E36: 409 | F36: 289 | G36: 1007 | H36: 4687.261321 | I36: 4134.358715 | J36: 72.39989462 | K36: 2036.275831 | L36: 3411.205077 | M36: 5901.53815 | N36: 49.49017997 | O36: 0 | P36: 3038.94272 | Q36: 3809.793267 | R36: 1597.8007 | S36: 743.5354134 | T36: 8220.356473 | U36: 5732.159415 | V36: 14786.54997 | W36: 11.44896445 | X36: 19.83446164 | Y36: 28.53929082
A37: 60011301 | B37: Ventura | C37: San Buenaventura | D37: 1119 | E37: 500 | F37: 164 | G37: 1283 | H37: 7061.274949 | I37: 2413.214951 | J37: 130.3891988 | K37: 0 | L37: 5157.947527 | M37: 4362.166425 | N37: 63.70732519 | O37: 0 | P37: 2569.662077 | Q37: 1746.442723 | R37: 1252.642134 | S37: 463.489118 | T37: 12413.319 | U37: 3665.857085 | V37: 8678.271226 | W37: 11.0932252 | X37: 22.3527871 | Y37: 19.29652947
A38: 60011401 | B38: Ventura | C38: San Buenaventura | D38: 470 | E38: 195 | F38: 504 | G38: 974 | H38: 2730.270787 | I38: 7311.383747 | J38: 33.8775685 | K38: 0 | L38: 1754.770372 | M38: 7054.378517 | N38: 25.22094183 | O38: 0 | P38: 4138.828791 | Q38: 3696.958547 | R38: 862.5067057 | S38: 1604.879631 | T38: 4544.139669 | U38: 8173.890453 | V38: 14890.16585 | W38: 9.668382275 | X38: 16.21803661 | Y38: 28.34517041
A39: 60012101 | B39: Ventura | C39: San Buenaventura | D39: 689 | E39: 291 | F39: 190 | G39: 879 | H39: 6562.877206 | I39: 2688.656012 | J39: 55.79773598 | K39: 4928.651027 | L39: 4104.078518 | M39: 5301.501125 | N39: 43.1331725 | O39: 0 | P39: 1359.425316 | Q39: 4975.41709 | R39: 210.8880267 | S39: 291.6818554 | T39: 10765.88663 | U39: 2899.544039 | V39: 16564.99456 | W39: 15.62537973 | X39: 15.2607581 | Y39: 34.39183758
A40: 60012201 | B40: Ventura | C40: San Buenaventura | D40: 802 | E40: 407 | F40: 241 | G40: 1043 | H40: 5859.148971 | I40: 3445.081707 | J40: 79.34568247 | K40: 57.50187222 | L40: 4078.280729 | M40: 4892.05501 | N40: 45.85000464 | O40: 0 | P40: 2502.781228 | Q40: 2061.581537 | R40: 508.9284874 | S40: 805.4921627 | T40: 10062.62539 | U40: 3954.010194 | V40: 9513.919647 | W40: 12.54691445 | X40: 16.4066813 | Y40: 22.56045564
A41: 60012301 | B41: Ventura | D41: 0 | E41: 0 | F41: 0 | G41: 0 | H41: 0 | I41: 0 | J41: 0 | K41: 0 | L41: 0 | M41: 0 | N41: 0 | O41: 0 | P41: 0 | Q41: 0 | R41: 0 | S41: 0 | T41: 0 | U41: 0 | V41: 0
A42: 60012401 | B42: Ventura | C42: San Buenaventura | D42: 889 | E42: 402 | F42: 66 | G42: 955 | H42: 6246.931209 | I42: 912.7240865 | J42: 102.8963375 | K42: 0 | L42: 4579.718986 | M42: 2321.686433 | N42: 52.46741966 | O42: 0 | P42: 1200.115794 | Q42: 560.0137805 | R42: 471.8461923 | S42: 197.2248826 | T42: 10982.01395 | U42: 1384.570279 | V42: 4081.816007 | W42: 12.35322154 | X42: 20.97833756 | Y42: 17.22345575
A43: 60013101 | B43: Ventura | C43: San Buenaventura | D43: 934 | E43: 499 | F43: 252 | G43: 1186 | H43: 7592.640147 | I43: 3821.199278 | J43: 215.0880448 | K43: 0 | L43: 5570.974457 | M43: 6340.91845 | N43: 99.33827382 | O43: 0 | P43: 3356.752505 | Q43: 2589.764297 | R43: 235.6894095 | S43: 1133.552979 | T43: 13478.04092 | U43: 4056.888688 | V43: 12287.43525 | W43: 14.43045067 | X43: 16.09876463 | Y43: 25.14533294
A44: 60013201 | B44: Ventura | C44: San Buenaventura | D44: 631 | E44: 414 | F44: 1149 | G44: 1780 | H44: 2731.281057 | I44: 17068.1778 | J44: 155.8205494 | K44: 0 | L44: 2921.6749 | M44: 15261.41344 | N44: 62.6529883 | O44: 0 | P44: 11042.03404 | Q44: 8695.354193 | R44: 2940.744537 | S44: 3824.984758 | T44: 5871.429494 | U44: 20008.92234 | V44: 34998.80167 | W44: 9.304959579 | X44: 17.41420569 | Y44: 34.20177163
A45: 60013301 | B45: Ventura | C45: San Buenaventura | D45: 2759 | E45: 1303 | F45: 376 | G45: 3135 | H45: 23484.63384 | I45: 5653.315247 | J45: 812.9590164 | K45: 709.0188676 | L45: 17491.58809 | M45: 10789.99351 | N45: 293.6418029 | O45: 0 | P45: 6216.21345 | Q45: 4568.035092 | R45: 1496.617572 | S45: 1235.239192 | T45: 42082.82275 | U45: 7149.932819 | V45: 22283.26092 | W45: 15.25292597 | X45: 19.01577877 | Y45: 22.81212647
A46: 60013401 | B46: Ventura | C46: San Buenaventura | D46: 147 | E46: 49 | F46: 355 | G46: 502 | H46: 803.216218 | I46: 5487.672112 | J46: 35.0906708 | K46: 0 | L46: 551.3087058 | M46: 6993.969693 | N46: 7.232807851 | O46: 0 | P46: 4245.652853 | Q46: 3959.942709 | R46: 369.7313255 | S46: 1769.053249 | T46: 1396.848402 | U46: 5857.403437 | V46: 15199.56526 | W46: 9.502370084 | X46: 16.49972799 | Y46: 44.72871931
A47: 60014101 | B47: Ventura | C47: Ojai | D47: 520 | E47: 260 | F47: 648 | G47: 1168 | H47: 9681.75565 | I47: 4740.464436 | J47: 59.01369522 | K47: 0 | L47: 4558.359105 | M47: 5668.061015 | N47: 137.0868147 | O47: 0 | P47: 4114.176308 | Q47: 2225.504989 | R47: 946.6414507 | S47: 350.7730761 | T47: 14436.21526 | U47: 5687.105887 | V47: 12007.74231 | W47: 27.76195243 | X47: 8.776397973 | Y47: 27.50947214
A48: 60014201 | B48: Ventura | D48: 184 | E48: 95 | F48: 300 | G48: 484 | H48: 1271.884371 | I48: 2156.384592 | J48: 33.44166555 | K48: 0 | L48: 1094.217448 | M48: 4043.2177 | N48: 81.09171036 | O48: 0 | P48: 4056.011243 | Q48: 1801.786454 | R48: 259.7442897 | S48: 575.514996 | T48: 2480.635195 | U48: 2416.128882 | V48: 9901.015397 | W48: 13.48171302 | X48: 8.05376294 | Y48: 30.57392453
A49: 60014301 | B49: Ventura | C49: Ojai | D49: 445 | E49: 164 | F49: 377 | G49: 822 | H49: 4552.697402 | I49: 2761.838277 | J49: 45.49482596 | K49: 3955.686488 | L49: 2310.568838 | M49: 3565.124775 | N49: 84.02345889 | O49: 0 | P49: 2047.362946 | Q49: 1840.097564 | R49: 859.9174754 | S49: 215.8824943 | T49: 6992.784525 | U49: 3621.755752 | V49: 11408.27177 | W49: 15.71412253 | X49: 9.606779183 | Y49: 26.79174215
A50: 60014401 | B50: Ventura | C50: Ojai | D50: 1179 | E50: 586 | F50: 535 | G50: 1714 | H50: 13857.70976 | I50: 3874.877884 | J50: 115.1684045 | K50: 14759.68845 | L50: 7076.239491 | M50: 8407.636848 | N50: 321.1940003 | O50: 0 | P50: 3554.189081 | Q50: 5202.638056 | R50: 942.2352634 | S50: 359.262089 | T50: 21370.31165 | U50: 4817.113148 | V50: 31924.15243 | W50: 18.12579445 | X50: 9.003949809 | Y50: 33.90407073
A51: 60015101 | B51: Ventura | C51: San Buenaventura | D51: 346 | E51: 156 | F51: 295 | G51: 641 | H51: 683.4660274 | I51: 4466.87674 | J51: 73.52312702 | K51: 0 | L51: 1603.638691 | M51: 1409.919909 | N51: 26.68157935 | O51: 0 | P51: 578.3772569 | Q51: 496.6417577 | R51: 618.132428 | S51: 392.1141788 | T51: 2387.309424 | U51: 5085.009168 | V51: 2484.938923 | W51: 6.899738221 | X51: 17.23731921 | Y51: 15.53394308
A52: 60015201 | B52: Ventura | C52: San Buenaventura | D52: 1153 | E52: 422 | F52: 76 | G52: 1229 | H52: 7724.121147 | I52: 1095.463068 | J52: 189.6794168 | K52: 661.6825223 | L52: 6062.923851 | M52: 3368.075062 | N52: 64.49798711 | O52: 0 | P52: 1165.079295 | Q52: 1427.584999 | R52: 181.6648815 | S52: 241.4922333 | T52: 14041.2224 | U52: 1277.12795 | V52: 6622.421878 | W52: 12.17798994 | X52: 16.80431513 | Y52: 17.85254046
A53: 60015301 | B53: Ventura | C53: San Buenaventura | D53: 1028 | E53: 410 | F53: 25 | G53: 1053 | H53: 6683.881864 | I53: 343.7922593 | J53: 151.1470215 | K53: 0 | L53: 4855.777939 | M53: 2487.649206 | N53: 41.41129556 | O53: 0 | P53: 800.7205868 | Q53: 539.1020006 | R53: 26.29178806 | S53: 180.1057797 | T53: 11732.21812 | U53: 370.0840473 | V53: 3827.471794 | W53: 11.41266354 | X53: 14.80336189 | Y53: 15.12799047
A54: 60015401 | B54: Ventura | C54: San Buenaventura | D54: 1370 | E54: 597 | F54: 61 | G54: 1431 | H54: 9090.331409 | I54: 950.2409764 | J54: 201.4934632 | K54: 0 | L54: 6538.318721 | M54: 3517.341533 | N54: 78.83735843 | O54: 0 | P54: 1437.185981 | Q54: 829.7694405 | R54: 95.53389065 | S54: 273.5983858 | T54: 15908.98095 | U54: 1045.774867 | V54: 5784.296955 | W54: 11.61239486 | X54: 17.14385028 | Y54: 15.89032339
A55: 60015501 | B55: Ventura | C55: San Buenaventura | D55: 543 | E55: 229 | F55: 1050 | G55: 1593 | H55: 3557.255818 | I55: 15378.43841 | J55: 54.80884021 | K55: 1027.132765 | L55: 2288.238366 | M55: 15038.50185 | N55: 25.6367636 | O55: 0 | P55: 7656.632981 | Q55: 10298.96235 | R55: 2833.184353 | S55: 2132.185003 | T55: 5925.939787 | U55: 18211.62276 | V55: 34021.22994 | W55: 10.91333294 | X55: 17.34440263 | Y55: 36.50897206
A56: 60015601 | B56: Ventura | C56: San Buenaventura | D56: 1087 | E56: 569 | F56: 162 | G56: 1249 | H56: 7730.443482 | I56: 2449.449506 | J56: 195.4082212 | K56: 0 | L56: 6063.546754 | M56: 6721.457646 | N56: 73.32590759 | O56: 0 | P56: 2748.540878 | Q56: 2923.1507 | R56: 124.7795917 | S56: 746.2537271 | T56: 14062.72436 | U56: 2574.229098 | V56: 12393.14922 | W56: 12.93718893 | X56: 15.89030307 | Y56: 23.24267629
A57: 60016101 | B57: Ventura | C57: San Buenaventura | D57: 594 | E57: 286 | F57: 4140 | G57: 4734 | H57: 3348.769915 | I57: 60721.18756 | J57: 57.88755732 | K57: 1262.694019 | L57: 2511.508101 | M57: 29418.87679 | N57: 21.43063042 | O57: 0 | P57: 11292.19046 | Q57: 17650.49938 | R57: 6225.97151 | S57: 5394.123831 | T57: 5939.596203 | U57: 66947.15907 | V57: 59624.26066 | W57: 9.999320208 | X57: 16.17081137 | Y57: 27.99134261
A58: 60016201 | B58: Ventura | C58: San Buenaventura | D58: 1144 | E58: 529 | F58: 2558 | G58: 3702 | H58: 8174.345748 | I58: 37131.36683 | J58: 85.52860994 | K58: 0 | L58: 5378.620301 | M58: 28941.46808 | N58: 51.62927563 | O58: 0 | P58: 10884.54076 | Q58: 16235.44203 | R58: 1855.993879 | S58: 3053.781704 | T58: 13690.12393 | U58: 38987.36071 | V58: 56061.45087 | W58: 11.96689155 | X58: 15.24134508 | Y58: 29.37302418
A59: 60016301 | B59: Ventura | C59: San Buenaventura | D59: 803 | E59: 377 | F59: 333 | G59: 1136 | H59: 5335.499739 | I59: 4823.901613 | J59: 112.3880139 | K59: 884.6662357 | L59: 4134.622116 | M59: 5765.63567 | N59: 26.03999657 | O59: 0 | P59: 2238.903984 | Q59: 3054.191846 | R59: 352.6247264 | S59: 507.5977616 | T59: 9608.549866 | U59: 5176.52634 | V59: 11943.39773 | W59: 11.96581552 | X59: 15.54512414 | Y59: 23.52858622
A60: 60016401 | B60: Ventura | C60: San Buenaventura | D60: 505 | E60: 262 | F60: 232 | G60: 737 | H60: 3845.479606 | I60: 3384.857393 | J60: 37.44931441 | K60: 0 | L60: 2641.785097 | M60: 3341.98405 | N60: 18.63311405 | O60: 0 | P60: 1559.272636 | Q60: 1406.678855 | R60: 677.6694823 | S60: 541.3039378 | T60: 6543.347131 | U60: 4062.526875 | V60: 6307.935541 | W60: 12.95712303 | X60: 17.5108917 | Y60: 22.94953806
A61: 60017101 | B61: Ventura | C61: San Buenaventura | D61: 9 | E61: 2 | F61: 1 | G61: 10 | H61: 52.99095503 | I61: 8.506015795 | J61: 0.5775330149 | K61: 0 | L61: 47.22920435 | M61: 12.54130416 | N61: 0.2093580651 | O61: 0 | P61: 5.865330143 | Q61: 2.856770624 | R61: 0.7972110134 | S61: 1.920440414 | T61: 101.0070505 | U61: 9.303226808 | V61: 21.26340493 | W61: 11.22300561 | X61: 9.303226808 | Y61: 13.15736822
A62: 60017201 | B62: Ventura | C62: San Buenaventura | D62: 139 | E62: 61 | F62: 4442 | G62: 4581 | H62: 655.2863639 | I62: 68324.32836 | J62: 28.45050845 | K62: 0 | L62: 571.962425 | M62: 45520.22543 | N62: 9.347813334 | O62: 0 | P62: 22223.31927 | Q62: 33058.75504 | R62: 9177.356763 | S62: 8277.836675 | T62: 1265.047111 | U62: 77501.68512 | V62: 100802.2997 | W62: 9.10105835 | X62: 17.44747526 | Y62: 39.19865356
A63: 60018101 | B63: Ventura | C63: San Buenaventura | D63: 411 | E63: 181 | F63: 2304 | G63: 2715 | H63: 1483.592785 | I63: 34580.53625 | J63: 40.40356195 | K63: 0 | L63: 1007.40772 | M63: 48472.40992 | N63: 9.805653728 | O63: 0 | P63: 20236.96661 | Q63: 35404.6297 | R63: 5070.877968 | S63: 5573.982677 | T63: 2541.209721 | U63: 39651.41422 | V63: 104114.0062 | W63: 6.182992023 | X63: 17.2098152 | Y63: 53.88826157
A64: 60018201 | B64: Ventura | C64: San Buenaventura | D64: 2308 | E64: 1046 | F64: 421 | G64: 2729 | H64: 17249.94568 | I64: 5944.053321 | J64: 353.4634936 | K64: 0 | L64: 14336.40546 | M64: 10906.19815 | N64: 44.35598791 | O64: 0 | P64: 5373.440989 | Q64: 4110.96589 | R64: 730.4759315 | S64: 1271.954926 | T64: 31984.17062 | U64: 6674.529252 | V64: 20390.60503 | W64: 13.85795954 | X64: 15.85398872 | Y64: 21.63770792
A65: 60018301 | B65: Ventura | C65: San Buenaventura | D65: 1123 | E65: 516 | F65: 958 | G65: 2081 | H65: 5657.826865 | I65: 14174.63643 | J65: 173.3359193 | K65: 2315.404414 | L65: 4362.336709 | M65: 13422.53755 | N65: 34.03716295 | O65: 0 | P65: 5339.555978 | Q65: 9138.153726 | R65: 1452.245033 | S65: 1530.274943 | T65: 10227.53666 | U65: 15626.88146 | V65: 30215.65167 | W65: 9.107334511 | X65: 16.31198482 | Y65: 26.94381056
A66: 60019101 | B66: Ventura | C66: San Buenaventura | D66: 367 | E66: 206 | F66: 37 | G66: 404 | H66: 2893.560362 | I66: 467.8230895 | J66: 161.2370703 | K66: 0 | L66: 3205.614108 | M66: 1214.349832 | N66: 33.29678167 | O66: 0 | P66: 971.1845396 | Q66: 351.6002181 | R66: 240.1808188 | S66: 138.5906384 | T66: 6293.708323 | U66: 708.0039083 | V66: 2537.13459 | W66: 17.149069 | X66: 19.13524077 | Y66: 23.61100698
A67: 60020101 | B67: Ventura | D67: 8 | E67: 2 | F67: 57 | G67: 65 | H67: 52.76771635 | I67: 823.552613 | J67: 2.841640098 | K67: 0 | L67: 60.16075213 | M67: 49.26455058 | N67: 0.5164320339 | O67: 0 | P67: 45.57742151 | Q67: 21.30682113 | R67: 43.14798741 | S67: 71.99063812 | T67: 116.2865406 | U67: 866.7006005 | V67: 116.1487932 | W67: 14.53581758 | X67: 15.20527369 | Y67: 16.9097836
A68: 60020102 | B68: Ventura | C68: San Buenaventura | D68: 0 | E68: 0 | F68: 50 | G68: 50 | H68: 0 | I68: 726.1079725 | J68: 0 | K68: 0 | L68: 0 | M68: 1040.84686 | N68: 0 | O68: 0 | P68: 701.8123673 | Q68: 612.3186928 | R68: 41.0195726 | S68: 260.3800892 | T68: 0 | U68: 767.1275451 | V68: 2354.97792 | X68: 15.3425509 | Y68: 62.4421093
A69: 60021101 | B69: Ventura | C69: San Buenaventura | D69: 449 | E69: 175 | F69: 114 | G69: 563 | H69: 3987.554293 | I69: 1603.222967 | J69: 46.28480666 | K69: 0 | L69: 3569.363731 | M69: 1176.658982 | N69: 14.76793864 | O69: 0 | P69: 728.1095668 | Q69: 311.3678649 | R69: 376.9739452 | S69: 196.8566595 | T69: 7617.970769 | U69: 1980.196912 | V69: 2216.136413 | W69: 16.96652733 | X69: 17.37014835 | Y69: 20.98455434
A70: 60022101 | B70: Ventura | C70: San Buenaventura | D70: 1389 | E70: 533 | F70: 61 | G70: 1450 | H70: 12199.1317 | I70: 870.1989987 | J70: 200.2752078 | K70: 0 | L70: 8932.7736 | M70: 3373.869272 | N70: 67.19530177 | O70: 0 | P70: 1406.300545 | Q70: 836.0325124 | R70: 152.894042 | S70: 283.4292413 | T70: 21399.37581 | U70: 1023.093041 | V70: 5616.20233 | W70: 15.40631808 | X70: 16.77201706 | Y70: 19.33701461
A71: 60022201 | B71: Ventura | C71: San Buenaventura | D71: 943 | E71: 339 | F71: 167 | G71: 1110 | H71: 5851.904777 | I71: 2375.24107 | J71: 122.2469773 | K71: 1964.519917 | L71: 5014.658677 | M71: 4774.399576 | N71: 14.05451222 | O71: 0 | P71: 1881.942302 | Q71: 3341.111056 | R71: 500.3762794 | S71: 468.8172442 | T71: 11002.86494 | U71: 2875.61735 | V71: 11961.97285 | W71: 11.66793737 | X71: 17.21926557 | Y71: 23.27968932
A72: 60022301 | B72: Ventura | C72: San Buenaventura | D72: 930 | E72: 352 | F72: 17 | G72: 947 | H72: 6692.766716 | I72: 261.3914023 | J72: 129.084856 | K72: 0 | L72: 5505.509351 | M72: 2292.932924 | N72: 17.67168259 | O72: 0 | P72: 832.8971237 | Q72: 495.3059735 | R72: 35.36324443 | S72: 158.2398298 | T72: 12345.03261 | U72: 296.7546467 | V72: 3621.136021 | W72: 13.27422861 | X72: 17.45615569 | Y72: 17.17309744
A73: 60022401 | B73: Ventura | C73: San Buenaventura | D73: 218 | E73: 156 | F73: 1177 | G73: 1395 | H73: 1937.458138 | I73: 17199.04438 | J73: 44.59146136 | K73: 536.2236828 | L73: 1447.926708 | M73: 15708.97731 | N73: 6.506766968 | O73: 28173.45758 | P73: 7888.380578 | Q73: 9738.752893 | R73: 1931.196976 | S73: 1955.451068 | T73: 3436.483074 | U73: 19130.24136 | V73: 62045.79204 | W73: 15.76368383 | X73: 16.25339113 | Y73: 60.65413367
A74: 60023101 | B74: Ventura | C74: San Buenaventura | D74: 785 | E74: 310 | F74: 85 | G74: 870 | H74: 5325.632759 | I74: 1213.714008 | J74: 124.6514905 | K74: 814.6954329 | L74: 4500.422001 | M74: 2912.378557 | N74: 8.544336338 | O74: 0 | P74: 1002.733294 | Q74: 1569.027522 | R74: 89.77929251 | S74: 212.427723 | T74: 9959.250587 | U74: 1303.4933 | V74: 6298.834806 | W74: 12.68694342 | X74: 15.3352153 | Y74: 20.18572264
A75: 60023201 | B75: Ventura | C75: San Buenaventura | D75: 1274 | E75: 501 | F75: 517 | G75: 1791 | H75: 9952.016653 | I75: 7944.242275 | J75: 208.2233873 | K75: 3517.822609 | L75: 7438.375645 | M75: 8591.84714 | N75: 50.57191169 | O75: 0 | P75: 2605.01633 | Q75: 6416.528888 | R75: 768.2771264 | S75: 860.8773864 | T75: 17649.1876 | U75: 8712.519402 | V75: 21131.21497 | W75: 13.85336546 | X75: 16.85206848 | Y75: 26.51754437
A76: 60023301 | B76: Ventura | C76: San Buenaventura | D76: 226 | E76: 117 | F76: 16 | G76: 242 | H76: 1291.622768 | I76: 256.730687 | J76: 54.66631779 | K76: 0 | L76: 1021.920358 | M76: 712.3861785 | N76: 6.995280602 | O76: 0 | P76: 349.1909853 | Q76: 175.6726088 | R76: 118.9464523 | S76: 65.9469744 | T76: 2375.204725 | U76: 375.6771393 | V76: 1237.249773 | W76: 10.50975542 | X76: 23.47982121 | Y76: 16.4798828
A77: 60024101 | B77: Ventura | D77: 39 | E77: 7 | F77: 4 | G77: 43 | H77: 76.24347217 | I77: 32.94258974 | J77: 50.27604039 | K77: 0 | L77: 284.0481504 | M77: 14.38153623 | N77: 9.549101413 | O77: 0 | P77: 80.02776322 | Q77: 2.722141298 | R77: 10.14556851 | S77: 2.108398542 | T77: 420.1167644 | U77: 43.08815825 | V77: 97.13144074 | W77: 10.77222473 | X77: 10.77203956 | Y77: 13.03107822
A78: 60024201 | B78: Ventura | D78: 1954 | E78: 672 | F78: 392 | G78: 2346 | H78: 24938.97458 | I78: 4176.712837 | J78: 1614.7315 | K78: 0 | L78: 24158.39697 | M78: 3571.176939 | N78: 423.0193495 | O78: 0 | P78: 4926.5163 | Q78: 961.205464 | R78: 1641.444949 | S78: 494.3030098 | T78: 51135.1224 | U78: 5818.157787 | V78: 9458.898703 | W78: 26.16945875 | X78: 14.84223925 | Y78: 28.30868665
A79: 60024301 | B79: Ventura | D79: 79 | E79: 20 | F79: 12 | G79: 91 | H79: 607.340021 | I79: 119.0505212 | J79: 73.83771181 | K79: 0 | L79: 783.8155937 | M79: 108.8469113 | N79: 25.06006604 | O79: 0 | P79: 268.6307516 | Q79: 31.5203422 | R79: 22.86718493 | S79: 9.747091116 | T79: 1490.053393 | U79: 141.9177062 | V79: 408.9980051 | W79: 18.86143535 | X79: 11.82647551 | Y79: 22.42823191
A80: 60024401 | B80: Ventura | C80: San Buenaventura | D80: 51 | E80: 24 | F80: 10 | G80: 61 | H80: 164.6475229 | I80: 96.7828873 | J80: 36.43886934 | K80: 0 | L80: 184.290115 | M80: 91.8464274 | N80: 4.735680176 | O80: 0 | P80: 164.7414443 | Q80: 20.12378936 | R80: 48.40809373 | S80: 10.49155581 | T80: 390.1121874 | U80: 145.190981 | V80: 276.711661 | W80: 7.649258576 | X80: 14.5190981 | Y80: 13.31171852
A81: 60024501 | B81: Ventura | D81: 221 | E81: 65 | F81: 69 | G81: 290 | H81: 1582.696018 | I81: 1145.180476 | J81: 164.1517457 | K81: 0 | L81: 1746.767845 | M81: 417.3266629 | N81: 27.75638785 | O81: 0 | P81: 346.2285717 | Q81: 93.62205946 | R81: 83.26353019 | S81: 102.2434178 | T81: 3521.371996 | U81: 1228.444006 | V81: 857.1772941 | W81: 15.93380994 | X81: 17.80353632 | Y81: 19.33445964
A82: 60024601 | B82: Ventura | D82: 0 | E82: 0 | F82: 0 | G82: 0 | H82: 0 | I82: 0 | J82: 0 | K82: 0 | L82: 0 | M82: 0 | N82: 0 | O82: 0 | P82: 0 | Q82: 0 | R82: 0 | S82: 0 | T82: 0 | U82: 0 | V82: 0
A83: 60025101 | B83: Ventura | C83: San Buenaventura | D83: 2179 | E83: 943 | F83: 102 | G83: 2281 | H83: 19882.26025 | I83: 1578.36894 | J83: 679.9753344 | K83: 0 | L83: 15266.84412 | M83: 6920.969392 | N83: 216.371564 | O83: 0 | P83: 2254.398093 | Q83: 1742.441947 | R83: 181.4905774 | S83: 504.7908962 | T83: 36045.45127 | U83: 1759.859518 | V83: 10917.80943 | W83: 16.54219884 | X83: 17.25352469 | Y83: 21.36042096
A84: 60025201 | B84: Ventura | C84: San Buenaventura | D84: 2453 | E84: 1007 | F84: 972 | G84: 3425 | H84: 15854.81917 | I84: 14878.36126 | J84: 534.7815339 | K84: 0 | L84: 11152.47525 | M84: 10705.41485 | N84: 129.7222983 | O84: 0 | P84: 3756.000691 | Q84: 3640.728444 | R84: 1367.62017 | S84: 1646.880173 | T84: 27671.79825 | U84: 16245.98143 | V84: 18102.14398 | W84: 11.28079831 | X84: 16.71397267 | Y84: 18.10800691
A85: 60026101 | B85: Ventura | C85: San Buenaventura | D85: 23 | E85: 5 | F85: 7417 | G85: 7440 | H85: 18.70980927 | I85: 111208.814 | J85: 7.108676416 | K85: 1339.257876 | L85: 12.61967413 | M85: 45538.60919 | N85: 0.1010429931 | O85: 992.6789871 | P85: 22694.04674 | Q85: 31370.95096 | R85: 10760.44934 | S85: 11687.26046 | T85: 38.5392028 | U85: 121969.2634 | V85: 101935.5438 | W85: 1.675617513 | X85: 16.44455485 | Y85: 30.09991214
A86: 60026201 | B86: Ventura | C86: San Buenaventura | D86: 0 | E86: 0 | F86: 185 | G86: 185 | H86: 0 | I86: 2766.433876 | J86: 0 | K86: 0 | L86: 0 | M86: 412.7654372 | N86: 0 | O86: 0 | P86: 397.8952631 | Q86: 292.750463 | R86: 327.0783382 | S86: 231.6707362 | T86: 0 | U86: 3093.512214 | V86: 1103.411163 | X86: 16.72168764 | Y86: 22.68607231
A87: 60026301 | B87: Ventura | C87: San Buenaventura | D87: 12 | E87: 3 | F87: 1825 | G87: 1837 | H87: 0 | I87: 28281.94628 | J87: 3.168353364 | K87: 0 | L87: 0 | M87: 14498.91838 | N87: 0 | O87: 0 | P87: 7481.620148 | Q87: 8613.42724 | R87: 3093.952559 | S87: 4141.672751 | T87: 3.168353364 | U87: 31375.89883 | V87: 30593.96577 | W87: 0.264029447 | X87: 17.19227333 | Y87: 33.73600052
A88: 60027101 | B88: Ventura | C88: San Buenaventura | D88: 1446 | E88: 613 | F88: 1100 | G88: 2546 | H88: 7155.267793 | I88: 16960.91347 | J88: 480.9198626 | K88: 0 | L88: 5657.452196 | M88: 22152.80211 | N88: 71.56179308 | O88: 0 | P88: 9548.166658 | Q88: 13334.39055 | R88: 1360.355412 | S88: 2572.70867 | T88: 13365.20165 | U88: 18321.26888 | V88: 45035.35931 | W88: 9.24287804 | X88: 16.65569898 | Y88: 30.13426152
A89: 60027201 | B89: Ventura | C89: San Buenaventura | D89: 2215 | E89: 1025 | F89: 685 | G89: 2900 | H89: 12660.99941 | I89: 10647.96525 | J89: 600.6518328 | K89: 0 | L89: 9448.142472 | M89: 19968.21584 | N89: 105.3704476 | O89: 0 | P89: 8342.196884 | Q89: 9716.428522 | R89: 1595.888813 | S89: 2593.980104 | T89: 22815.16416 | U89: 12243.85406 | V89: 38026.84125 | W89: 10.30029985 | X89: 17.87423951 | Y89: 25.20202051
A90: 60027301 | B90: Ventura | C90: San Buenaventura | D90: 420 | E90: 122 | F90: 2433 | G90: 2853 | H90: 3686.096184 | I90: 38019.4366 | J90: 118.056992 | K90: 0 | L90: 2327.247692 | M90: 38626.11343 | N90: 22.4532352 | O90: 0 | P90: 14148.45176 | Q90: 24879.48139 | R90: 2650.762491 | S90: 5176.789671 | T90: 6153.854104 | U90: 40670.19909 | V90: 77654.04658 | W90: 14.65203358 | X90: 16.71607032 | Y90: 43.63059929
A91: 60028101 | B91: Ventura | D91: 0 | E91: 0 | F91: 20 | G91: 20 | H91: 0 | I91: 237.7509073 | J91: 0 | K91: 0 | L91: 0 | M91: 158.0438419 | N91: 0 | O91: 0 | P91: 229.8291679 | Q91: 134.235901 | R91: 24.04622294 | S91: 19.59315012 | T91: 0 | U91: 261.7971303 | V91: 522.1089108 | X91: 13.08985651 | Y91: 39.19530205
A92: 60028102 | B92: Ventura | C92: San Buenaventura | D92: 2100 | E92: 841 | F92: 264 | G92: 2364 | H92: 15182.42549 | I92: 3810.509847 | J92: 383.6715902 | K92: 780.5631342 | L92: 16255.38712 | M92: 6816.326837 | N92: 119.7147076 | O92: 0 | P92: 3889.345562 | Q92: 2571.131984 | R92: 1970.668591 | S92: 640.2339803 | T92: 31941.19891 | U92: 5781.178438 | V92: 14057.36752 | W92: 15.21009472 | X92: 21.89840317 | Y92: 21.90344537
A93: 60029101 | B93: Ventura | C93: San Buenaventura | D93: 921 | E93: 288 | F93: 74 | G93: 995 | H93: 6531.02298 | I93: 1101.682328 | J93: 144.4436084 | K93: 775.1929392 | L93: 5885.069916 | M93: 2939.942833 | N93: 28.26497016 | O93: 0 | P93: 1013.59796 | Q93: 1635.747926 | R93: 94.66054606 | S93: 203.5875044 | T93: 12588.80148 | U93: 1196.342874 | V93: 6364.481658 | W93: 13.66862267 | X93: 16.1667956 | Y93: 20.25088041
A94: 60029201 | B94: Ventura | C94: San Buenaventura | D94: 0 | E94: 0 | F94: 0 | G94: 0 | H94: 0 | I94: 0 | J94: 0 | K94: 0 | L94: 0 | M94: 0 | N94: 0 | O94: 0 | P94: 0 | Q94: 0 | R94: 0 | S94: 0 | T94: 0 | U94: 0 | V94: 0
A95: 60030101 | B95: Ventura | C95: San Buenaventura | D95: 1027 | E95: 505 | F95: 470 | G95: 1497 | H95: 7674.505731 | I95: 6947.763956 | J95: 206.610456 | K95: 3726.43203 | L95: 6959.423396 | M95: 13431.33165 | N95: 58.8892656 | O95: 0 | P95: 6706.153207 | Q95: 9690.970937 | R95: 556.070432 | S95: 1507.911569 | T95: 14899.42885 | U95: 7503.834388 | V95: 33554.88782 | W95: 14.5077204 | X95: 15.96560508 | Y95: 37.38019443
A96: 60030201 | B96: Ventura | C96: San Buenaventura | D96: 34 | E96: 14 | F96: 1 | G96: 35 | H96: 203.788944 | I96: 8.662706444 | J96: 1.963460037 | K96: 0 | L96: 161.4392817 | M96: 88.80575367 | N96: 1.948896705 | O96: 0 | P96: 36.86488046 | Q96: 18.58689582 | R96: 0.8387690957 | S96: 6.643727296 | T96: 369.1405825 | U96: 9.50147554 | V96: 144.2575299 | W96: 10.85707595 | X96: 9.50147554 | Y96: 14.93998823
A97: 60031101 | B97: Ventura | C97: San Buenaventura | D97: 14 | E97: 4 | F97: 2588 | G97: 2602 | H97: 0 | I97: 39454.46253 | J97: 8.986397082 | K97: 0 | L97: 0 | M97: 28329.52764 | N97: 0 | O97: 0 | P97: 17043.6478 | Q97: 21596.25663 | R97: 6071.52279 | S97: 4242.003523 | T97: 8.986397082 | U97: 45525.98532 | V97: 66969.43206 | W97: 0.6418855059 | X97: 17.59118444 | Y97: 43.23766479
A98: 60032101 | B98: Ventura | C98: San Buenaventura | D98: 2289 | E98: 1113 | F98: 839 | G98: 3128 | H98: 12475.08897 | I98: 13045.4701 | J98: 767.0634405 | K98: 0 | L98: 9759.817067 | M98: 20031.86172 | N98: 106.9609618 | O98: 0 | P98: 8825.482791 | Q98: 9213.865629 | R98: 2475.791411 | S98: 2674.86164 | T98: 23108.93044 | U98: 15521.26151 | V98: 38071.21013 | W98: 10.09564458 | X98: 18.49971575 | Y98: 24.5209086
A99: 60032201 | B99: Ventura | C99: San Buenaventura | D99: 875 | E99: 346 | F99: 37 | G99: 912 | H99: 4533.233116 | I99: 567.8039274 | J99: 295.8351789 | K99: 0 | L99: 3706.205979 | M99: 3464.465749 | N99: 45.63420391 | O99: 0 | P99: 1240.374062 | Q99: 1221.886524 | R99: 28.72258653 | S99: 197.8526386 | T99: 8580.908478 | U99: 596.5265139 | V99: 5926.726334 | W99: 9.806752546 | X99: 16.12233821 | Y99: 16.5615804
A100: 60032301 | B100: Ventura | C100: San Buenaventura | D100: 1845 | E100: 748 | F100: 122 | G100: 1967 | H100: 10149.29276 | I100: 1874.601358 | J100: 915.450153 | K100: 0 | L100: 8252.187705 | M100: 6302.025646 | N100: 131.337514 | O100: 0 | P100: 2251.846205 | Q100: 1673.403755 | R100: 244.8811615 | S100: 512.4684139 | T100: 19448.26813 | U100: 2119.482519 | V100: 10227.27561 | W100: 10.54106674 | X100: 17.37280754 | Y100: 16.1642228
A101: 60032401 | B101: Ventura | C101: San Buenaventura | D101: 148 | E101: 44 | F101: 615 | G101: 763 | H101: 782.9757802 | I101: 9640.864707 | J101: 70.97410736 | K101: 0 | L101: 672.924156 | M101: 3754.683348 | N101: 9.872054977 | O101: 0 | P101: 2576.275719 | Q101: 2157.686669 | R101: 2247.948317 | S101: 1153.480175 | T101: 1536.746099 | U101: 11888.81302 | V101: 8488.645736 | W101: 10.38341959 | X101: 19.33140329 | Y101: 28.72110728
A102: 60032501 | B102: Ventura | C102: San Buenaventura | D102: 1034 | E102: 758 | F102: 590 | G102: 1624 | H102: 53.3474951 | I102: 9268.104657 | J102: 255.1834741 | K102: 525.6606759 | L102: 1703.681676 | M102: 9284.576677 | N102: 22.34518099 | O102: 0 | P102: 3209.940064 | Q102: 4110.852426 | R102: 1298.273494 | S102: 1175.098801 | T102: 2034.557826 | U102: 10566.37815 | V102: 17131.02984 | W102: 1.967657472 | X102: 17.90911551 | Y102: 18.30786073
A103: 60033101 | B103: Ventura | C103: San Buenaventura | D103: 1655 | E103: 831 | F103: 1203 | G103: 2858 | H103: 11291.52425 | I103: 18518.39164 | J103: 385.7016299 | K103: 0 | L103: 8945.325739 | M103: 17967.87505 | N103: 151.9610733 | O103: 0 | P103: 7291.618147 | Q103: 7963.681239 | R103: 1063.107384 | S103: 2099.165813 | T103: 20774.51269 | U103: 19581.49903 | V103: 33223.17444 | W103: 12.55257565 | X103: 16.2772228 | Y103: 25.74499166
A104: 60033201 | B104: Ventura | C104: San Buenaventura | D104: 792 | E104: 240 | F104: 589 | G104: 1381 | H104: 5348.11489 | I104: 9147.008497 | J104: 249.8319049 | K104: 128.0987435 | L104: 4176.982238 | M104: 6446.037833 | N104: 42.91463627 | O104: 0 | P104: 2587.849373 | Q104: 3389.640131 | R104: 2149.41297 | S104: 876.4737769 | T104: 9817.843669 | U104: 11296.42147 | V104: 12551.62608 | W104: 12.39626726 | X104: 19.17898381 | Y104: 24.37790819
A105: 60033301 | B105: Ventura | C105: San Buenaventura | D105: 1637 | E105: 540 | F105: 105 | G105: 1742 | H105: 11805.14749 | I105: 1628.670736 | J105: 502.54814 | K105: 664.4594568 | L105: 9161.052311 | M105: 5933.544016 | N105: 101.3537537 | O105: 0 | P105: 1699.503508 | Q105: 2800.405818 | R105: 77.81859281 | S105: 368.6109086 | T105: 21570.1017 | U105: 1706.489329 | V105: 11097.9128 | W105: 13.17660458 | X105: 16.25227932 | Y105: 19.73278061
A106: 60033401 | B106: Ventura | C106: San Buenaventura | D106: 428 | E106: 246 | F106: 20 | G106: 448 | H106: 3530.71699 | I106: 302.9955778 | J106: 118.678877 | K106: 0 | L106: 2800.018788 | M106: 1989.866101 | N106: 63.80713601 | O106: 0 | P106: 719.943863 | Q106: 520.1941413 | R106: 16.41532212 | S106: 153.4627461 | T106: 6513.221791 | U106: 319.4108999 | V106: 3230.004106 | W106: 15.21780792 | X106: 15.970545 | Y106: 22.46124285
A107: 60033501 | B107: Ventura | C107: San Buenaventura | D107: 4 | E107: 1 | F107: 2821 | G107: 2825 | H107: 45.76376584 | I107: 43873.90856 | J107: 0.144753463 | K107: 0 | L107: 24.57651075 | M107: 9829.227329 | N107: 0.578269224 | O107: 0 | P107: 1938.596213 | Q107: 1070.392743 | R107: 1873.187168 | S107: 3723.37527 | T107: 71.06329927 | U107: 45747.09573 | V107: 12838.21629 | W107: 17.76582482 | X107: 16.2166238 | Y107: 20.76331869
A108: 60033601 | B108: Ventura | C108: San Buenaventura | D108: 0 | E108: 0 | F108: 4 | G108: 4 | H108: 0 | I108: 36.22852281 | J108: 0 | K108: 0 | L108: 0 | M108: 137.495802 | N108: 0 | O108: 0 | P108: 85.86984844 | Q108: 105.0549706 | R108: 3.21984526 | S108: 5.240095775 | T108: 0 | U108: 39.44836807 | V108: 328.420621 | X108: 9.862092018 | Y108: 91.96724727
A109: 60034101 | B109: Ventura | C109: Ojai | D109: 2325 | E109: 1092 | F109: 1128 | G109: 3453 | H109: 22635.62094 | I109: 8256.610401 | J109: 202.8152125 | K109: 833.4364436 | L109: 11619.58046 | M109: 12313.61107 | N109: 610.4690365 | O109: 0 | P109: 6713.815445 | Q109: 4242.596942 | R109: 1751.109023 | S109: 984.4438084 | T109: 35068.48565 | U109: 10007.71942 | V109: 24103.4599 | W109: 15.08321964 | X109: 8.872091688 | Y109: 20.03465537
A110: 60034201 | B110: Ventura | C110: Ojai | D110: 754 | E110: 378 | F110: 364 | G110: 1118 | H110: 10518.18098 | I110: 2406.206827 | J110: 135.4245006 | K110: 1401.017212 | L110: 7568.5572 | M110: 2335.457527 | N110: 240.3426961 | O110: 0 | P110: 3400.587279 | Q110: 1041.954863 | R110: 739.8500854 | S110: 278.4330979 | T110: 18462.50538 | U110: 3146.056912 | V110: 8179.01688 | W110: 24.48608141 | X110: 8.643013495 | Y110: 26.64363075
A111: 60034301 | B111: Ventura | C111: Ojai | D111: 102 | E111: 43 | F111: 4 | G111: 106 | H111: 263.3775138 | I111: 30.99824285 | J111: 24.2951203 | K111: 0 | L111: 651.511345 | M111: 138.1457567 | N111: 23.47190295 | O111: 0 | P111: 168.2463694 | Q111: 24.98506206 | R111: 4.80660563 | S111: 6.737768168 | T111: 962.655882 | U111: 35.80484848 | V111: 331.3771882 | W111: 9.437802764 | X111: 8.951212121 | Y111: 12.54564074
A112: 60034401 | B112: Ventura | C112: Ojai | D112: 1281 | E112: 461 | F112: 183 | G112: 1464 | H112: 17320.35465 | I112: 1309.271928 | J112: 136.0690024 | K112: 1235.104983 | L112: 8972.128733 | M112: 2301.823224 | N112: 429.0080815 | O112: 0 | P112: 1637.229636 | Q112: 788.596503 | R112: 192.0743971 | S112: 130.8557963 | T112: 26857.56047 | U112: 1501.346325 | V112: 5962.754346 | W112: 20.96608936 | X112: 8.204078277 | Y112: 23.44375761
A113: 60035101 | B113: Ventura | C113: Ojai | D113: 508 | E113: 263 | F113: 1332 | G113: 1840 | H113: 5960.540707 | I113: 10146.67814 | J113: 49.97259297 | K113: 0 | L113: 3054.667976 | M113: 15325.93336 | N113: 163.4679961 | O113: 0 | P113: 10619.83069 | Q113: 7420.550776 | R113: 1480.864423 | S113: 2394.409819 | T113: 9228.649272 | U113: 11627.54256 | V113: 33366.31483 | W113: 18.16663242 | X113: 8.729386305 | Y113: 29.46875362
A114: 60035102 | B114: Ventura | C114: Ojai | D114: 508 | E114: 263 | F114: 1017 | G114: 1525 | H114: 6129.604288 | I114: 7602.064976 | J114: 49.33010992 | K114: 2493.321554 | L114: 3065.970627 | M114: 4948.47272 | N114: 228.5839484 | O114: 0 | P114: 3603.195006 | Q114: 2202.454251 | R114: 2058.725237 | S114: 572.6990928 | T114: 9473.488973 | U114: 9660.790213 | V114: 13247.44353 | W114: 18.64860034 | X114: 9.499302078 | Y114: 21.23391654
A115: 60035201 | B115: Ventura | D115: 294 | E115: 129 | F115: 105 | G115: 399 | H115: 4373.876184 | I115: 756.6921922 | J115: 166.4856559 | K115: 537.1687566 | L115: 4354.653921 | M115: 660.8287367 | N115: 108.2095041 | O115: 0 | P115: 1420.724131 | Q115: 280.4743778 | R115: 174.6410066 | S115: 63.88101068 | T115: 9003.225265 | U115: 931.3331989 | V115: 2899.196002 | W115: 30.62321519 | X115: 8.869839989 | Y115: 32.16479816
A116: 60035301 | B116: Ventura | C116: Ojai | D116: 252 | E116: 147 | F116: 51 | G116: 303 | H116: 3632.604412 | I116: 367.9237239 | J116: 35.89455544 | K116: 0 | L116: 2418.513206 | M116: 1469.668718 | N116: 106.0054799 | O116: 0 | P116: 1333.149148 | Q116: 431.9819877 | R116: 115.9161622 | S116: 41.8625183 | T116: 6193.017654 | U116: 483.8398861 | V116: 3234.799854 | W116: 24.57546688 | X116: 9.487056591 | Y116: 32.71174057
A117: 60035401 | B117: Ventura | D117: 252 | E117: 84 | F117: 43 | G117: 295 | H117: 2184.96965 | I117: 356.949017 | J117: 160.7138138 | K117: 0 | L117: 2603.871108 | M117: 333.7943425 | N117: 101.8673037 | O117: 0 | P117: 606.5941239 | Q117: 60.79220604 | R117: 141.0331815 | S117: 35.10765497 | T117: 5051.421875 | U117: 497.9821985 | V117: 1001.180672 | W117: 20.0453249 | X117: 11.58098136 | Y117: 22.20537202
A118: 60036101 | B118: Ventura | C118: San Buenaventura | D118: 2059 | E118: 823 | F118: 57 | G118: 2116 | H118: 16422.22322 | I118: 909.350536 | J118: 787.6770814 | K118: 0 | L118: 14046.60074 | M118: 5890.728269 | N118: 161.9954986 | O118: 0 | P118: 2274.348286 | Q118: 1290.545279 | R118: 89.9544318 | S118: 429.6714796 | T118: 31418.49653 | U118: 999.3049678 | V118: 9455.621834 | W118: 15.25910468 | X118: 17.5316661 | Y118: 19.78895243
A119: 60036201 | B119: Ventura | C119: San Buenaventura | D119: 579 | E119: 190 | F119: 54 | G119: 633 | H119: 3308.083264 | I119: 845.8748936 | J119: 222.7175707 | K119: 0 | L119: 3534.878252 | M119: 1326.940157 | N119: 38.59045515 | O119: 0 | P119: 1030.564246 | Q119: 279.263502 | R119: 897.4307647 | S119: 149.1710379 | T119: 7104.269542 | U119: 1743.305658 | V119: 2636.767905 | W119: 12.26989558 | X119: 32.28343812 | Y119: 18.14272213
A120: 60036301 | B120: Ventura | C120: San Buenaventura | D120: 1134 | E120: 391 | F120: 122 | G120: 1256 | H120: 7290.050469 | I120: 1883.068286 | J120: 424.3846018 | K120: 0 | L120: 6357.278717 | M120: 3368.986956 | N120: 65.31237482 | O120: 0 | P120: 2430.220248 | Q120: 920.0595857 | R120: 2366.378481 | S120: 343.1681409 | T120: 14137.02616 | U120: 4249.446766 | V120: 6719.26679 | W120: 12.46651337 | X120: 34.83153087 | Y120: 19.98864627
A121: 60036401 | B121: Ventura | C121: San Buenaventura | D121: 704 | E121: 261 | F121: 101 | G121: 805 | H121: 4809.902478 | I121: 1497.56652 | J121: 427.4632037 | K121: 0 | L121: 4638.455042 | M121: 1783.205721 | N121: 54.68931228 | O121: 0 | P121: 819.5672472 | Q121: 385.3534682 | R121: 90.52159523 | S121: 234.5827429 | T121: 9930.510036 | U121: 1588.088115 | V121: 2988.126436 | W121: 14.10583812 | X121: 15.72364471 | Y121: 18.02077589
A122: 60036501 | B122: Ventura | C122: San Buenaventura | D122: 484 | E122: 185 | F122: 37 | G122: 521 | H122: 2989.024924 | I122: 560.2028953 | J122: 153.5663259 | K122: 0 | L122: 2970.876916 | M122: 1515.218049 | N122: 34.07880495 | O122: 0 | P122: 547.8585372 | Q122: 380.1777458 | R122: 39.70497706 | S122: 126.9742853 | T122: 6147.546971 | U122: 599.9078724 | V122: 2443.254332 | W122: 12.70154333 | X122: 16.21372628 | Y122: 17.64051665
A123: 60037101 | B123: Ventura | C123: San Buenaventura | D123: 2885 | E123: 1194 | F123: 183 | G123: 3068 | H123: 23622.67441 | I123: 2747.889291 | J123: 959.5449373 | K123: 0 | L123: 20393.36704 | M123: 8235.918713 | N123: 153.8156418 | O123: 0 | P123: 4635.639176 | Q123: 1889.847818 | R123: 1694.74366 | S123: 709.3357426 | T123: 45129.40202 | U123: 4442.632951 | V123: 14761.40571 | W123: 15.64277367 | X123: 24.27668279 | Y123: 20.96917884
A124: 60038101 | B124: Ventura | C124: San Buenaventura | D124: 1161 | E124: 412 | F124: 45 | G124: 1206 | H124: 8413.258314 | I124: 683.4474511 | J124: 341.8616386 | K124: 0 | L124: 7876.788594 | M124: 3003.836328 | N124: 63.83822128 | O124: 0 | P124: 1383.684549 | Q124: 708.2693947 | R124: 76.40618077 | S124: 258.3015879 | T124: 16695.74677 | U124: 759.8536319 | V124: 5095.790272 | W124: 14.38048817 | X124: 16.88563626 | Y124: 18.69932892
A125: 60038201 | B125: Ventura | C125: San Buenaventura | D125: 2229 | E125: 796 | F125: 250 | G125: 2479 | H125: 20353.30031 | I125: 3816.648603 | J125: 804.3225729 | K125: 0 | L125: 17991.6522 | M125: 5548.41172 | N125: 155.4259109 | O125: 0 | P125: 3005.214699 | Q125: 1257.672192 | R125: 432.5151457 | S125: 633.5266014 | T125: 39304.70099 | U125: 4249.163749 | V125: 9811.298611 | W125: 17.63333378 | X125: 16.996655 | Y125: 21.52689123
A126: 60038301 | B126: Ventura | C126: San Buenaventura | D126: 875 | E126: 287 | F126: 315 | G126: 1190 | H126: 6420.700959 | I126: 4868.097876 | J126: 259.3488061 | K126: 533.6439087 | L126: 5770.668629 | M126: 6841.758295 | N126: 46.4114408 | O126: 0 | P126: 3691.761922 | Q126: 4139.17891 | R126: 413.3419623 | S126: 970.7175116 | T126: 12497.12983 | U126: 5281.439838 | V126: 15206.34304 | W126: 14.2824341 | X126: 16.76647568 | Y126: 27.71841404
A127: 60039101 | B127: Ventura | C127: San Buenaventura | D127: 2485 | E127: 989 | F127: 245 | G127: 2730 | H127: 19243.4004 | I127: 3687.447522 | J127: 1084.167562 | K127: 569.7080705 | L127: 17949.55376 | M127: 9455.651795 | N127: 238.4538538 | O127: 0 | P127: 5144.496034 | Q127: 3838.234233 | R127: 446.4420873 | S127: 832.4123892 | T127: 38515.57557 | U127: 4133.88961 | V127: 19008.09013 | W127: 15.49922558 | X127: 16.87301882 | Y127: 22.5851851
A128: 60039201 | B128: Ventura | D128: 167 | E128: 62 | F128: 1 | G128: 168 | H128: 1165.441967 | I128: 8.881775422 | J128: 68.60377884 | K128: 0 | L128: 1054.761681 | M128: 436.167297 | N128: 13.64194114 | O128: 0 | P128: 171.0779906 | Q128: 93.19902143 | R128: 0.8318782656 | S128: 26.99529308 | T128: 2302.449368 | U128: 9.713653687 | V128: 700.444309 | W128: 13.78712196 | X128: 9.713653687 | Y128: 17.93218649
A129: 60039301 | B129: Ventura | C129: San Buenaventura | D129: 7 | E129: 2 | F129: 252 | G129: 259 | H129: 0 | I129: 4030.382752 | J129: 0.518510727 | K129: 0 | L129: 0 | M129: 5495.158687 | N129: 0 | O129: 0 | P129: 2673.19829 | Q129: 3381.464245 | R129: 494.8705845 | S129: 1025.610822 | T129: 0.518510727 | U129: 4525.253336 | V129: 11549.82122 | W129: 0.074072961 | X129: 17.95735451 | Y129: 62.06792691
A130: 60039401 | B130: Ventura | C130: San Buenaventura | D130: 999 | E130: 509 | F130: 30 | G130: 1029 | H130: 8066.77222 | I130: 445.6345241 | J130: 304.9092494 | K130: 0 | L130: 7767.910435 | M130: 3487.259758 | N130: 128.7130601 | O130: 0 | P130: 1880.608962 | Q130: 730.6235894 | R130: 313.2082686 | S130: 241.2924487 | T130: 16268.30496 | U130: 758.8427927 | V130: 6098.492309 | W130: 16.28458955 | X130: 25.29475976 | Y130: 22.47389705
A131: 60039501 | B131: Ventura | C131: San Buenaventura | D131: 1876 | E131: 654 | F131: 99 | G131: 1975 | H131: 12207.085 | I131: 1516.30303 | J131: 674.6159287 | K131: 0 | L131: 13196.0241 | M131: 4468.629262 | N131: 159.7453061 | O131: 0 | P131: 2387.003848 | Q131: 964.5683893 | R131: 326.9106455 | S131: 384.775305 | T131: 26237.47033 | U131: 1843.213676 | V131: 7820.201499 | W131: 13.98585838 | X131: 18.61831995 | Y131: 18.17766355
A132: 60040101 | B132: Ventura | C132: San Buenaventura | D132: 1714 | E132: 637 | F132: 102 | G132: 1816 | H132: 11352.00274 | I132: 1600.097167 | J132: 529.7678965 | K132: 0 | L132: 10818.794 | M132: 5156.622531 | N132: 102.5180834 | O132: 0 | P132: 2260.712857 | Q132: 1358.786036 | R132: 276.6430752 | S132: 476.0726644 | T132: 22803.08273 | U132: 1876.740242 | V132: 8776.121425 | W132: 13.30401559 | X132: 18.39941414 | Y132: 18.42287687
A133: 60040201 | B133: Ventura | C133: San Buenaventura | D133: 1288 | E133: 460 | F133: 66 | G133: 1354 | H133: 10606.93627 | I133: 994.0419096 | J133: 395.1347733 | K133: 0 | L133: 9834.646695 | M133: 3282.489106 | N133: 117.6413935 | O133: 0 | P133: 1590.389482 | Q133: 754.1053229 | R133: 135.3870177 | S133: 268.7954933 | T133: 20954.35913 | U133: 1129.428927 | V133: 5626.983911 | W133: 16.26891237 | X133: 17.1125595 | Y133: 20.46585818
A134: 60040301 | B134: Ventura | C134: San Buenaventura | D134: 1128 | E134: 353 | F134: 144 | G134: 1272 | H134: 6947.270979 | I134: 2183.783681 | J134: 462.763589 | K134: 577.7409941 | L134: 7114.566405 | M134: 4380.233941 | N134: 79.3913619 | O134: 0 | P134: 1990.634693 | Q134: 2363.545247 | R134: 196.3193518 | S134: 360.1019114 | T134: 14603.99234 | U134: 2380.103033 | V134: 9312.154875 | W134: 12.94680172 | X134: 16.52849329 | Y134: 20.67315271
A135: 60041101 | B135: Ventura | C135: San Buenaventura | D135: 0 | E135: 0 | F135: 78 | G135: 78 | H135: 0 | I135: 1107.385933 | J135: 0 | K135: 0 | L135: 0 | M135: 45.52309473 | N135: 0 | O135: 0 | P135: 88.19080545 | Q135: 22.82183532 | R135: 88.35248616 | S135: 94.11311244 | T135: 0 | U135: 1195.738419 | V135: 156.5357355 | X135: 15.32997973 | Y135: 17.33684814
A136: 60041102 | B136: Ventura | C136: San Buenaventura | D136: 2048 | E136: 806 | F136: 129 | G136: 2177 | H136: 13485.08996 | I136: 1934.631705 | J136: 643.6354567 | K136: 0 | L136: 15542.66317 | M136: 6933.91816 | N136: 179.8349716 | O136: 0 | P136: 4037.812355 | Q136: 1925.310495 | R136: 145.3954227 | S136: 525.2373847 | T136: 29851.22356 | U136: 2080.027128 | V136: 12897.04101 | W136: 14.57579275 | X136: 16.1242413 | Y136: 20.59177386
A137: 60041201 | B137: Ventura | D137: 0 | E137: 0 | F137: 102 | G137: 102 | H137: 0 | I137: 1519.058987 | J137: 0 | K137: 0 | L137: 0 | M137: 66.64752347 | N137: 0 | O137: 0 | P137: 130.0680044 | Q137: 31.19654697 | R137: 126.1356607 | S137: 127.3285514 | T137: 0 | U137: 1645.194647 | V137: 227.9120748 | X137: 16.12935929 | Y137: 18.36379139
A138: 60041202 | B138: Ventura | C138: San Buenaventura | D138: 2456 | E138: 870 | F138: 229 | G138: 2685 | H138: 11387.36746 | I138: 3555.009813 | J138: 1132.697627 | K138: 235.0599933 | L138: 13454.18356 | M138: 9392.825386 | N138: 187.4992583 | O138: 0 | P138: 5652.103128 | Q138: 3373.722856 | R138: 283.0922279 | S138: 905.9768799 | T138: 26161.7479 | U138: 3838.102041 | V138: 18653.71136 | W138: 10.65217748 | X138: 16.76027092 | Y138: 18.120507
A139: 60041301 | B139: Ventura | C139: San Buenaventura | D139: 0 | E139: 0 | F139: 4 | G139: 4 | H139: 0 | I139: 25.74961623 | J139: 0 | K139: 0 | L139: 0 | M139: 2.362940673 | N139: 0 | O139: 0 | P139: 57.65514398 | Q139: 1.188465354 | R139: 100.3014372 | S139: 4.934910509 | T139: 0 | U139: 126.0510534 | V139: 61.20655001 | X139: 31.51276336 | Y139: 46.81440086
A140: 60041302 | B140: Ventura | C140: San Buenaventura | D140: 1087 | E140: 499 | F140: 21 | G140: 1108 | H140: 2710.233924 | I140: 332.0079396 | J140: 228.2794917 | K140: 0 | L140: 2611.180476 | M140: 3725.442948 | N140: 35.33074654 | O140: 0 | P140: 2174.88602 | Q140: 847.2413454 | R140: 114.6545681 | S140: 305.6854532 | T140: 5585.024638 | U140: 446.6625077 | V140: 6747.570313 | W140: 5.138017146 | X140: 21.26964322 | Y140: 11.53362587
A141: 60041401 | B141: Ventura | D141: 83 | E141: 25 | F141: 15 | G141: 98 | H141: 646.0465371 | I141: 266.5025521 | J141: 65.38161508 | K141: 0 | L141: 649.6294217 | M141: 161.8825841 | N141: 8.45511982 | O141: 0 | P141: 159.6380325 | Q141: 32.87300399 | R141: 73.36294876 | S141: 26.01398673 | T141: 1369.512694 | U141: 339.8655008 | V141: 354.3936206 | W141: 16.50015294 | X141: 22.65770006 | Y141: 21.05889607
A142: 60042101 | B142: Ventura | C142: San Buenaventura | D142: 993 | E142: 302 | F142: 12 | G142: 1005 | H142: 5364.006124 | I142: 179.3355251 | J142: 433.5216496 | K142: 0 | L142: 6013.848481 | M142: 2061.797599 | N142: 76.81797697 | O142: 0 | P142: 1108.772049 | Q142: 403.6557473 | R142: 13.12579467 | S142: 139.975649 | T142: 11888.19423 | U142: 192.4613198 | V142: 3574.225395 | W142: 11.97199822 | X142: 16.03844332 | Y142: 15.57699597
A143: 60042201 | B143: Ventura | C143: San Buenaventura | D143: 1272 | E143: 425 | F143: 64 | G143: 1336 | H143: 12054.42341 | I143: 1001.261709 | J143: 408.0624134 | K143: 0 | L143: 11368.46618 | M143: 2966.199552 | N143: 149.462359 | O143: 0 | P143: 1562.463773 | Q143: 622.0079449 | R143: 128.7910612 | S143: 261.7269268 | T143: 23980.41436 | U143: 1130.05277 | V143: 5150.67127 | W143: 18.85252702 | X143: 17.65707453 | Y143: 22.6505527
A144: 60042301 | B144: Ventura | C144: San Buenaventura | D144: 3582 | E144: 1417 | F144: 295 | G144: 3877 | H144: 32701.3935 | I144: 4433.301162 | J144: 1700.347292 | K144: 0 | L144: 32007.28559 | M144: 10047.92576 | N144: 367.0557156 | O144: 0 | P144: 6187.887705 | Q144: 2349.498477 | R144: 660.9519442 | S144: 978.9214812 | T144: 66776.08209 | U144: 5094.253106 | V144: 18585.31194 | W144: 18.6421223 | X144: 17.2686546 | Y144: 23.33135082
A145: 60042401 | B145: Ventura | C145: San Buenaventura | D145: 246 | E145: 101 | F145: 167 | G145: 413 | H145: 3135.037821 | I145: 2530.969278 | J145: 60.36073177 | K145: 644.8668799 | L145: 2974.317874 | M145: 3252.850841 | N145: 38.71325556 | O145: 0 | P145: 1750.056 | Q145: 2376.279072 | R145: 183.4926525 | S145: 286.306195 | T145: 6208.429682 | U145: 2714.46193 | V145: 8024.052793 | W145: 25.23751903 | X145: 16.25426306 | Y145: 41.03376369
A146: 60042501 | B146: Ventura | C146: San Buenaventura | D146: 1076 | E146: 282 | F146: 29 | G146: 1105 | H146: 7935.637412 | I146: 431.6246869 | J146: 483.0449474 | K146: 0 | L146: 8008.050891 | M146: 1953.168875 | N146: 102.171012 | O146: 0 | P146: 1032.45983 | Q146: 421.0918553 | R146: 37.15130123 | S146: 146.6698049 | T146: 16528.90426 | U146: 468.7759881 | V146: 3406.720561 | W146: 15.36143519 | X146: 16.16468925 | Y146: 18.4655211
A147: 60042601 | B147: Ventura | C147: San Buenaventura | D147: 1131 | E147: 443 | F147: 126 | G147: 1257 | H147: 10220.02393 | I147: 2023.216176 | J147: 521.9779496 | K147: 0 | L147: 10027.73382 | M147: 4109.223526 | N147: 146.5174484 | O147: 0 | P147: 2522.889444 | Q147: 1194.006444 | R147: 323.8011511 | S147: 351.5174167 | T147: 20916.25315 | U147: 2347.017327 | V147: 7826.119414 | W147: 18.49359253 | X147: 18.62712165 | Y147: 24.73300707
A148: 60042701 | B148: Ventura | D148: 0 | E148: 0 | F148: 656 | G148: 656 | H148: 0 | I148: 10496.54713 | J148: 0 | K148: 0 | L148: 0 | M148: 1559.77918 | N148: 0 | O148: 0 | P148: 2043.59512 | Q148: 878.6315359 | R148: 2616.867418 | S148: 958.2498143 | T148: 0 | U148: 13113.41455 | V148: 4482.005836 | X148: 19.9899612 | Y148: 26.82228717
A149: 60043101 | B149: Ventura | D149: 58 | E149: 26 | F149: 0 | G149: 58 | H149: 102.6585713 | I149: 0 | J149: 28.27518122 | K149: 0 | L149: 111.0788533 | M149: 169.562343 | N149: 1.137123921 | O149: 0 | P149: 104.0668993 | Q149: 32.78919063 | R149: 0 | S149: 10.32307937 | T149: 243.1497297 | U149: 0 | V149: 306.4184328 | W149: 4.19223672 | Y149: 9.475313148
A150: 60043201 | B150: Ventura | D150: 2322 | E150: 900 | F150: 329 | G150: 2651 | H150: 12958.58132 | I150: 5246.483159 | J150: 651.7907939 | K150: 0 | L150: 14180.63013 | M150: 9402.735349 | N150: 208.9635774 | O150: 0 | P150: 5989.117889 | Q150: 3147.530623 | R150: 1673.902903 | S150: 1051.077596 | T150: 27999.96582 | U150: 6920.386062 | V150: 18539.38386 | W150: 12.05855548 | X150: 21.03460809 | Y150: 20.16587542
A151: 60044101 | B151: Ventura | C151: Santa Paula | D151: 848 | E151: 262 | F151: 67 | G151: 915 | H151: 6351.936863 | I151: 617.4056666 | J151: 876.3275547 | K151: 1258.045379 | L151: 11905.11113 | M151: 1061.641615 | N151: 158.7959074 | O151: 0 | P151: 2703.707636 | Q151: 460.8589286 | R151: 236.9402624 | S151: 94.20912621 | T151: 19292.17145 | U151: 854.345929 | V151: 5484.253558 | W151: 22.75020218 | X151: 12.75143178 | Y151: 28.01177152
A152: 60045101 | B152: Ventura | D152: 98 | E152: 48 | F152: 71 | G152: 169 | H152: 1351.190302 | I152: 566.6981094 | J152: 54.7430646 | K152: 0 | L152: 1700.113388 | M152: 233.1010877 | N152: 25.20960683 | O152: 0 | P152: 1254.300916 | Q152: 79.23692042 | R152: 503.3757824 | S152: 40.10732971 | T152: 3131.256361 | U152: 1070.073892 | V152: 1566.638924 | W152: 31.95159552 | X152: 15.07146327 | Y152: 34.12999513
A153: 60045201 | B153: Ventura | D153: 392 | E153: 174 | F153: 114 | G153: 506 | H153: 3970.471202 | I153: 904.3672511 | J153: 129.6953397 | K153: 0 | L153: 5753.242563 | M153: 970.502629 | N153: 116.9716874 | O153: 0 | P153: 2283.171411 | Q153: 313.4923752 | R153: 215.4667478 | S153: 80.51648887 | T153: 9970.380792 | U153: 1119.833999 | V153: 3567.166415 | W153: 25.43464488 | X153: 9.823105253 | Y153: 28.96715653
A154: 60045301 | B154: Ventura | D154: 151 | E154: 49 | F154: 12 | G154: 163 | H154: 462.1584369 | I154: 102.3222715 | J154: 112.5816869 | K154: 0 | L154: 1659.334944 | M154: 217.180752 | N154: 16.38339885 | O154: 0 | P154: 614.779142 | Q154: 49.54989889 | R154: 27.7270204 | S154: 20.44395309 | T154: 2250.458466 | U154: 130.0492919 | V154: 881.5097929 | W154: 14.90369845 | X154: 10.83744099 | Y154: 20.01237761
A155: 60046101 | B155: Ventura | D155: 113.204 | E155: 40 | F155: 303 | G155: 416.204 | H155: 1035.455483 | I155: 3881.482073 | J155: 79.620022 | K155: 660.5153085 | L155: 1134.589175 | M155: 1171.460009 | N155: 23.97386012 | O155: 0 | P155: 1251.452615 | Q155: 723.5106852 | R155: 728.9137613 | S155: 273.9875777 | T155: 2273.63854 | U155: 4610.395835 | V155: 3806.938618 | W155: 20.08443641 | X155: 15.21582784 | Y155: 25.68685787
A156: 60046102 | B156: Ventura | C156: Santa Paula | D156: 1635.796 | E156: 578 | F156: 395 | G156: 2030.796 | H156: 15033.40313 | I156: 4845.569025 | J156: 799.8009494 | K156: 0 | L156: 10939.71849 | M156: 6061.323339 | N156: 285.2723943 | O156: 0 | P156: 5760.106906 | Q156: 2056.848586 | R156: 735.2775145 | S156: 495.2904083 | T156: 27058.19497 | U156: 5580.84654 | V156: 13878.27883 | W156: 16.54130159 | X156: 14.12872542 | Y156: 22.90595429
A157: 60046201 | B157: Ventura | D157: 561 | E157: 180 | F157: 417 | G157: 978 | H157: 3105.35229 | I157: 5572.110275 | J157: 382.0638181 | K157: 0 | L157: 3632.107491 | M157: 1479.580272 | N157: 59.17769711 | O157: 0 | P157: 1488.112813 | Q157: 376.6008969 | R157: 906.6955142 | S157: 472.4323859 | T157: 7178.701296 | U157: 6478.805789 | V157: 3344.293981 | W157: 12.79625899 | X157: 15.53670453 | Y157: 17.38425467
A158: 60047101 | B158: Ventura | C158: Santa Paula | D158: 2787 | E158: 915 | F158: 83 | G158: 2870 | H158: 27405.75132 | I158: 976.3090212 | J158: 1031.539185 | K158: 187.0178677 | L158: 17041.6833 | M158: 5412.938996 | N158: 444.391465 | O158: 0 | P158: 4007.252029 | Q158: 1421.746643 | R158: 381.6512871 | S158: 272.4663135 | T158: 45923.36528 | U158: 1357.960308 | V158: 11028.95554 | W158: 16.47770552 | X158: 16.36096757 | Y158: 20.31717112
A159: 60047201 | B159: Ventura | C159: Santa Paula | D159: 2476 | E159: 637 | F159: 636 | G159: 3112 | H159: 28554.08075 | I159: 7961.786581 | J159: 841.2557979 | K159: 249.4854144 | L159: 15499.19628 | M159: 14183.96174 | N159: 586.2226971 | O159: 0 | P159: 10093.55708 | Q159: 6451.251916 | R159: 1739.735388 | S159: 997.1866752 | T159: 45480.75553 | U159: 9701.521969 | V159: 30978.25616 | W159: 18.36864117 | X159: 15.25396536 | Y159: 27.6865468
A160: 60047301 | B160: Ventura | C160: Santa Paula | D160: 3078 | E160: 843 | F160: 557 | G160: 3635 | H160: 20821.75281 | I160: 7016.484813 | J160: 915.6427184 | K160: 0 | L160: 15285.7989 | M160: 8103.528825 | N160: 490.1148661 | O160: 0 | P160: 6574.166381 | Q160: 2419.858632 | R160: 1443.834516 | S160: 1041.816699 | T160: 37513.30929 | U160: 8460.31933 | V160: 17097.55384 | W160: 12.18755987 | X160: 15.18908318 | Y160: 17.35108183
A161: 60047401 | B161: Ventura | C161: Santa Paula | D161: 2166 | E161: 620 | F161: 322 | G161: 2488 | H161: 19754.63615 | I161: 3823.458156 | J161: 748.3357795 | K161: 0 | L161: 10758.23191 | M161: 4194.09144 | N161: 415.243852 | O161: 0 | P161: 3601.640388 | Q161: 1051.755151 | R161: 654.4419898 | S161: 382.3142277 | T161: 31676.44769 | U161: 4477.900146 | V161: 8847.486979 | W161: 14.62439875 | X161: 13.90652219 | Y161: 18.08755419
A162: 60048101 | B162: Ventura | C162: Santa Paula | D162: 1285 | E162: 373 | F162: 48 | G162: 1333 | H162: 12471.79854 | I162: 571.212657 | J162: 338.0303482 | K162: 258.1815423 | L162: 6610.280595 | M162: 2727.938233 | N162: 211.0199528 | O162: 0 | P162: 1904.576197 | Q162: 955.0091464 | R162: 76.65743352 | S162: 111.6489017 | T162: 19631.12944 | U162: 647.8700905 | V162: 5845.705118 | W162: 15.27714353 | X162: 13.49729355 | Y162: 19.59842809
A163: 60048201 | B163: Ventura | C163: Santa Paula | D163: 536 | E163: 148 | F163: 17 | G163: 553 | H163: 4056.722706 | I163: 195.8480734 | J163: 318.4999648 | K163: 8.844455122 | L163: 3883.88217 | M163: 710.422413 | N163: 58.49968015 | O163: 0 | P163: 804.9854425 | Q163: 121.7058228 | R163: 38.3523731 | S163: 39.33920186 | T163: 8317.604521 | U163: 234.2004465 | V163: 1645.958133 | W163: 15.51791888 | X163: 13.77649685 | Y163: 18.44080127
A164: 60048301 | B164: Ventura | C164: Santa Paula | D164: 3433 | E164: 1072 | F164: 348 | G164: 3781 | H164: 47810.60417 | I164: 4103.220916 | J164: 816.1347716 | K164: 1746.591692 | L164: 26592.64457 | M164: 7821.285228 | N164: 910.999622 | O164: 0 | P164: 4457.338546 | Q164: 3360.032562 | R164: 603.567424 | S164: 462.3736346 | T164: 76130.38314 | U164: 4706.78834 | V164: 17385.24803 | W164: 22.17605102 | X164: 13.52525385 | Y164: 25.97789461
A165: 60049101 | B165: Ventura | C165: Santa Paula | D165: 851 | E165: 300 | F165: 279 | G165: 1130 | H165: 9770.849774 | I165: 3368.191605 | J165: 214.94816 | K165: 103.6915705 | L165: 5104.7154 | M165: 3443.72761 | N165: 211.9191171 | O165: 0 | P165: 3496.666075 | Q165: 1234.678607 | R165: 1585.46594 | S165: 270.3173206 | T165: 15302.43245 | U165: 4953.657545 | V165: 8278.763862 | W165: 17.98170676 | X165: 17.75504496 | Y165: 25.25208306
A166: 60049201 | B166: Ventura | C166: Santa Paula | D166: 504 | E166: 142 | F166: 346 | G166: 850 | H166: 2758.427285 | I166: 4328.588838 | J166: 130.2536861 | K166: 0 | L166: 1865.823154 | M166: 1207.35356 | N166: 55.88659283 | O166: 0 | P166: 1415.879674 | Q166: 313.4045678 | R166: 701.8996218 | S166: 272.9713874 | T166: 4810.390718 | U166: 5030.48846 | V166: 2936.637802 | W166: 9.544426027 | X166: 14.53898399 | Y166: 15.03237292
A167: 60049301 | B167: Ventura | C167: Santa Paula | D167: 2563 | E167: 740 | F167: 1208 | G167: 3771 | H167: 22407.65022 | I167: 15247.03534 | J167: 752.5737053 | K167: 963.5372482 | L167: 11769.12528 | M167: 17944.16784 | N167: 502.9301372 | O167: 0 | P167: 12033.49798 | Q167: 8107.462148 | R167: 4419.395273 | S167: 1670.468368 | T167: 35432.27935 | U167: 19666.43061 | V167: 39048.66521 | W167: 13.82453349 | X167: 16.28015779 | Y167: 24.96615624
A168: 60049401 | B168: Ventura | C168: Santa Paula | D168: 1393 | E168: 354 | F168: 270 | G168: 1663 | H168: 15538.44975 | I168: 3397.136486 | J168: 502.8151921 | K168: 380.0489549 | L168: 9099.100011 | M168: 5308.900486 | N168: 279.8580657 | O168: 0 | P168: 4406.8481 | Q168: 2079.228765 | R168: 781.8502151 | S168: 443.2546528 | T168: 25420.22302 | U168: 4178.986701 | V168: 12175.02631 | W168: 18.24854488 | X168: 15.47772852 | Y168: 25.11980519
A169: 60049501 | B169: Ventura | C169: Santa Paula | D169: 767 | E169: 332 | F169: 384 | G169: 1151 | H169: 6755.969762 | I169: 4728.300219 | J169: 175.3290462 | K169: 0 | L169: 3832.577217 | M169: 4951.2868 | N169: 151.5155978 | O169: 0 | P169: 4857.946886 | Q169: 1700.418093 | R169: 1826.35177 | S169: 574.8197384 | T169: 10915.39162 | U169: 6554.651989 | V169: 11509.65178 | W169: 14.23127982 | X169: 17.06940622 | Y169: 25.17784135
A170: 60050101 | B170: Ventura | C170: Santa Paula | D170: 747 | E170: 274 | F170: 55 | G170: 802 | H170: 8585.630438 | I170: 650.4200957 | J170: 348.3998136 | K170: 313.3498294 | L170: 6932.975869 | M170: 1741.730815 | N170: 84.02565178 | O170: 0 | P170: 1558.170341 | Q170: 617.3835735 | R170: 157.3377132 | S170: 89.85617886 | T170: 15951.03177 | U170: 807.7578089 | V170: 4230.634559 | W170: 21.35345619 | X170: 14.68650562 | Y170: 26.1713518
A171: 60050201 | B171: Ventura | C171: Santa Paula | D171: 2537 | E171: 753 | F171: 38 | G171: 2575 | H171: 21773.30042 | I171: 436.3025656 | J171: 1094.619649 | K171: 0 | L171: 17380.30595 | M171: 3863.054536 | N171: 325.9648653 | O171: 0 | P171: 3573.28568 | Q171: 676.870475 | R171: 116.9721618 | S171: 182.1330072 | T171: 40574.19089 | U171: 553.2747274 | V171: 8113.210691 | W171: 15.99298025 | X171: 14.55986125 | Y171: 19.12259274
A172: 60050301 | B172: Ventura | C172: Santa Paula | D172: 2139 | E172: 473 | F172: 117 | G172: 2256 | H172: 28527.49811 | I172: 1405.41297 | J172: 857.1040002 | K172: 301.5675313 | L172: 16060.74096 | M172: 3942.357959 | N172: 579.2477777 | O172: 0 | P172: 3407.300687 | Q172: 1300.178736 | R172: 753.0268524 | S172: 238.8419232 | T172: 46024.59084 | U172: 2158.439822 | V172: 8951.404913 | W172: 21.51687277 | X172: 18.44820361 | Y172: 25.32554769
A173: 60051101 | B173: Ventura | D173: 71 | E173: 24 | F173: 144 | G173: 215 | H173: 77.20065378 | I173: 1634.577093 | J173: 49.78430454 | K173: 0 | L173: 462.9362181 | M173: 181.9211613 | N173: 17.97082195 | O173: 0 | P173: 384.2589811 | Q173: 43.2644829 | R173: 250.1448048 | S173: 95.66120422 | T173: 607.8919984 | U173: 1884.721898 | V173: 609.4446253 | W173: 8.561859132 | X173: 13.08834651 | Y173: 14.42817917
A174: 60051201 | B174: Ventura | D174: 85 | E174: 31 | F174: 258 | G174: 343 | H174: 901.3891782 | I174: 3266.205644 | J174: 77.38851994 | K174: 0 | L174: 822.9109192 | M174: 2719.309741 | N174: 31.71876207 | O174: 0 | P174: 4559.19062 | Q174: 1096.054931 | R174: 606.5704302 | S174: 507.4084623 | T174: 1833.407379 | U174: 3872.776075 | V174: 8374.555291 | W174: 21.56949858 | X174: 15.01075998 | Y174: 41.05171646
A175: 60051202 | B175: Ventura | C175: Santa Paula | D175: 0 | E175: 0 | F175: 657 | G175: 657 | H175: 0 | I175: 8336.097226 | J175: 0 | K175: 0 | L175: 0 | M175: 993.1411156 | N175: 0 | O175: 0 | P175: 1811.805612 | Q175: 423.6303239 | R175: 1140.957432 | S175: 466.2253129 | T175: 0 | U175: 9477.054658 | V175: 3228.577052 | X175: 14.42474073 | Y175: 19.33886105
A176: 60051301 | B176: Ventura | C176: Santa Paula | D176: 1324 | E176: 484 | F176: 202 | G176: 1526 | H176: 9587.016328 | I176: 2496.445312 | J176: 374.7999478 | K176: 0 | L176: 7463.498532 | M176: 3535.3106 | N176: 293.5685228 | O176: 0 | P176: 3557.930754 | Q176: 863.2426001 | R176: 1383.663011 | S176: 361.2544722 | T176: 17718.88333 | U176: 3880.108324 | V176: 7956.483955 | W176: 13.38284239 | X176: 19.20845705 | Y176: 19.36793946
A177: 60051302 | B177: Ventura | C177: Santa Paula | D177: 0 | E177: 0 | F177: 0 | G177: 0 | H177: 0 | I177: 0 | J177: 0 | K177: 0 | L177: 0 | M177: 0 | N177: 0 | O177: 0 | P177: 0 | Q177: 0 | R177: 0 | S177: 0 | T177: 0 | U177: 0 | V177: 0
A178: 60051401 | B178: Ventura | D178: 32 | E178: 9 | F178: 143 | G178: 175 | H178: 173.0743252 | I178: 1895.955073 | J178: 38.73828517 | K178: 0 | L178: 232.491107 | M178: 257.2398978 | N178: 8.04644365 | O178: 0 | P178: 810.1110156 | Q178: 113.9133506 | R178: 1007.199092 | S178: 150.6993177 | T178: 452.350161 | U178: 2903.154165 | V178: 1181.264264 | W178: 14.13594253 | X178: 20.30177738 | Y178: 25.92439194
A179: 60051501 | B179: Ventura | C179: Santa Paula | D179: 33.5 | E179: 9 | F179: 246 | G179: 279.5 | H179: 230.8118819 | I179: 3116.504107 | J179: 21.61010704 | K179: 0 | L179: 192.1550095 | M179: 530.5694286 | N179: 5.297084733 | O179: 0 | P179: 529.9244605 | Q179: 199.1580386 | R179: 998.4969582 | S179: 197.1151134 | T179: 449.8740832 | U179: 4115.001065 | V179: 1259.651928 | W179: 13.42907711 | X179: 16.72764661 | Y179: 20.83909509
A180: 60051502 | B180: Ventura | D180: 33.5 | E180: 9 | F180: 45 | G180: 78.5 | H180: 258.1350387 | I180: 559.9136348 | J180: 24.17449426 | K180: 0 | L180: 216.6904696 | M180: 72.97618761 | N180: 8.540807667 | O180: 0 | P180: 197.8223114 | Q180: 18.73551476 | R180: 217.2939817 | S180: 43.00751255 | T180: 507.5408103 | U180: 777.2076165 | V180: 289.5340138 | W180: 15.15047195 | X180: 17.27128037 | Y180: 20.05455338
A181: 60051601 | B181: Ventura | D181: 125 | E181: 43 | F181: 16 | G181: 141 | H181: 345.5325411 | I181: 211.1543383 | J181: 134.0401917 | K181: 0 | L181: 1645.578413 | M181: 267.2791357 | N181: 36.78797677 | O181: 0 | P181: 486.5262551 | Q181: 54.87879474 | R181: 50.20661095 | S181: 21.49593009 | T181: 2161.939123 | U181: 261.3609492 | V181: 808.6841855 | W181: 17.29551298 | X181: 16.33505932 | Y181: 22.92187417
A182: 60052101 | B182: Ventura | D182: 288 | E182: 109 | F182: 149 | G182: 437 | H182: 1993.420464 | I182: 1403.631537 | J182: 410.4664137 | K182: 535.6118937 | L182: 2096.286379 | M182: 1306.356431 | N182: 38.39460816 | O182: 1166.817955 | P182: 2435.278577 | Q182: 582.4266561 | R182: 304.1861212 | S182: 114.2857183 | T182: 4538.567865 | U182: 1707.817659 | V182: 6026.491514 | W182: 15.7589162 | X182: 11.46186348 | Y182: 28.08438681
A183: 60052201 | B183: Ventura | D183: 0 | E183: 0 | F183: 59 | G183: 59 | H183: 0 | I183: 689.9543365 | J183: 0 | K183: 0 | L183: 0 | M183: 26.41164642 | N183: 0 | O183: 0 | P183: 122.5217331 | Q183: 10.24043733 | R183: 117.6719207 | S183: 35.60183612 | T183: 0 | U183: 807.6262572 | V183: 159.1738168 | X183: 13.68858063 | Y183: 16.38644193
A184: 60052202 | B184: Ventura | C184: Santa Paula | D184: 1163 | E184: 595 | F184: 81 | G184: 1244 | H184: 11935.78523 | I184: 972.2645373 | J184: 886.039881 | K184: 0 | L184: 7406.509161 | M184: 3448.163606 | N184: 307.0537872 | O184: 0 | P184: 3604.359238 | Q184: 610.8398274 | R184: 785.0589215 | S184: 183.7341224 | T184: 20535.38806 | U184: 1757.323459 | V184: 7663.362672 | W184: 17.65725543 | X184: 21.69535134 | Y184: 24.08044549
A185: 60053101 | B185: Ventura | C185: Oxnard | D185: 436 | E185: 137 | F185: 102 | G185: 538 | H185: 19.65296989 | I185: 1299.885495 | J185: 219.7750534 | K185: 0 | L185: 92.34960285 | M185: 1370.149357 | N185: 1.8745182 | O185: 0 | P185: 794.5097152 | Q185: 469.8073216 | R185: 89.2530242 | S185: 246.9360758 | T185: 333.6521443 | U185: 1389.138519 | V185: 2634.466394 | W185: 0.7652572117 | X185: 13.61900509 | Y185: 8.098990813
A186: 60054101 | B186: Ventura | D186: 6 | E186: 3 | F186: 99 | G186: 105 | H186: 139.2264065 | I186: 1274.189945 | J186: 0.7719705495 | K186: 0 | L186: 216.7758694 | M186: 109.988567 | N186: 1.460547561 | O186: 0 | P186: 118.4555772 | Q186: 52.26158953 | R186: 90.53607659 | S186: 120.4567905 | T186: 358.234794 | U186: 1364.726021 | V186: 280.7057337 | W186: 59.70579901 | X186: 13.78511133 | Y186: 19.08253856
A187: 60055101 | B187: Ventura | C187: Oxnard | D187: 3196 | E187: 1702 | F187: 335 | G187: 3531 | H187: 25959.17744 | I187: 3889.671206 | J187: 1154.549919 | K187: 0 | L187: 23177.74846 | M187: 13513.2039 | N187: 874.5591349 | O187: 0 | P187: 9695.254978 | Q187: 4180.62701 | R187: 1103.711829 | S187: 1651.560653 | T187: 51166.03495 | U187: 4993.383035 | V187: 27389.08589 | W187: 16.00939767 | X187: 14.905621 | Y187: 23.66142846
A188: 60055201 | B188: Ventura | C188: Oxnard | D188: 2544 | E188: 1251 | F188: 847 | G188: 3391 | H188: 16660.94894 | I188: 10169.57412 | J188: 644.1909736 | K188: 0 | L188: 14051.48084 | M188: 15711.04832 | N188: 448.0074784 | O188: 0 | P188: 10367.69398 | Q188: 6179.061712 | R188: 3899.273477 | S188: 2378.521745 | T188: 31804.62823 | U188: 14068.8476 | V188: 32257.80402 | W188: 12.50181927 | X188: 16.61020968 | Y188: 23.04077848
A189: 60055301 | B189: Ventura | D189: 489 | E189: 208 | F189: 9 | G189: 498 | H189: 2703.312454 | I189: 121.2377045 | J189: 151.692937 | K189: 0 | L189: 2615.098044 | M189: 1316.45595 | N189: 62.4709389 | O189: 0 | P189: 619.1031555 | Q189: 274.4028608 | R189: 7.852825452 | S189: 84.49220632 | T189: 5532.574374 | U189: 129.09053 | V189: 2209.961966 | W189: 11.31405803 | X189: 14.34339222 | Y189: 15.80647966
A190: 60056101 | B190: Ventura | C190: Oxnard | D190: 1792 | E190: 1003 | F190: 661 | G190: 2453 | H190: 14200.10687 | I190: 7784.034697 | J190: 621.95572 | K190: 474.7600612 | L190: 12706.83357 | M190: 13596.90079 | N190: 476.9337869 | O190: 0 | P190: 10276.51293 | Q190: 5864.454739 | R190: 3184.295237 | S190: 2288.307655 | T190: 28005.82995 | U190: 10968.32993 | V190: 30212.62852 | W190: 15.62825332 | X190: 16.59353999 | Y190: 28.20496878
A191: 60056201 | B191: Ventura | C191: Oxnard | D191: 2070 | E191: 993 | F191: 591 | G191: 2661 | H191: 18808.2919 | I191: 6682.115744 | J191: 905.6655872 | K191: 0 | L191: 18434.48244 | M191: 10519.63425 | N191: 529.2873728 | O191: 0 | P191: 7963.560303 | Q191: 3890.149154 | R191: 1609.076877 | S191: 1027.632654 | T191: 38677.7273 | U191: 8291.192621 | V191: 22373.34371 | W191: 18.68489241 | X191: 14.02909073 | Y191: 26.05872365
A192: 60057101 | B192: Ventura | C192: Oxnard | D192: 3580 | E192: 1145 | F192: 364 | G192: 3944 | H192: 22021.56268 | I192: 4434.550003 | J192: 777.4175568 | K192: 972.9666239 | L192: 20390.43439 | M192: 13857.7624 | N192: 526.2438223 | O192: 0 | P192: 5809.67793 | Q192: 6172.568176 | R192: 901.1990596 | S192: 1416.256082 | T192: 43715.65845 | U192: 5335.749063 | V192: 26812.97513 | W192: 12.21107778 | X192: 14.65865127 | Y192: 19.23539114
A193: 60057201 | B193: Ventura | C193: Oxnard | D193: 2757 | E193: 992 | F193: 178 | G193: 2935 | H193: 23425.51953 | I193: 2160.137449 | J193: 596.4550253 | K193: 602.0882386 | L193: 20436.51638 | M193: 8786.389358 | N193: 583.6505381 | O193: 0 | P193: 3395.105211 | Q193: 3279.177594 | R193: 391.083001 | S193: 563.3518573 | T193: 45042.14148 | U193: 2551.22045 | V193: 16062.7604 | W193: 16.33737449 | X193: 14.33269916 | Y193: 21.68862771
A194: 60057301 | B194: Ventura | C194: Oxnard | D194: 1948 | E194: 772 | F194: 54 | G194: 2002 | H194: 12060.97067 | I194: 657.4990497 | J194: 609.6638191 | K194: 0 | L194: 11405.05888 | M194: 4978.255427 | N194: 301.0227314 | O194: 0 | P194: 2264.30395 | Q194: 1070.409682 | R194: 51.60113663 | S194: 320.766936 | T194: 24376.7161 | U194: 709.1001863 | V194: 8312.969059 | W194: 12.51371463 | X194: 13.13148493 | Y194: 16.68270996
A195: 60058101 | B195: Ventura | C195: Port Hueneme | D195: 2820 | E195: 434 | F195: 1106 | G195: 3926 | H195: 0 | I195: 12269.60259 | J195: 1491.323668 | K195: 0 | L195: 0 | M195: 14673.19205 | N195: 0 | O195: 0 | P195: 7641.210087 | Q195: 6892.219925 | R195: 1215.552186 | S195: 1589.834129 | T195: 1491.323668 | U195: 13485.15477 | V195: 29206.62207 | W195: 0.5288381801 | X195: 12.19272583 | Y195: 11.25397364
A196: 60059101 | B196: Ventura | C196: Port Hueneme | D196: 3156 | E196: 1376 | F196: 268 | G196: 3424 | H196: 18309.61514 | I196: 3054.410151 | J196: 401.9892172 | K196: 0 | L196: 14314.91146 | M196: 13739.7688 | N196: 328.3104204 | O196: 0 | P196: 6448.970335 | Q196: 4631.928636 | R196: 873.3274552 | S196: 1053.464885 | T196: 33354.82624 | U196: 3927.737606 | V196: 24820.66777 | W196: 10.56870286 | X196: 14.65573734 | Y196: 18.13762606
A197: 60059201 | B197: Ventura | C197: Port Hueneme | D197: 3854 | E197: 1475 | F197: 1101 | G197: 4955 | H197: 27496.81667 | I197: 12877.99633 | J197: 1808.30053 | K197: 0 | L197: 25485.1546 | M197: 24800.96338 | N197: 605.521333 | O197: 0 | P197: 14988.90905 | Q197: 11226.68962 | R197: 2201.485413 | S197: 3444.509115 | T197: 55395.79314 | U197: 15079.48175 | V197: 51016.56205 | W197: 14.3735841 | X197: 13.69616871 | Y197: 24.51903874
A198: 60060101 | B198: Ventura | C198: Port Hueneme | D198: 0 | E198: 0 | F198: 0 | G198: 0 | H198: 0 | I198: 0 | J198: 0 | K198: 0 | L198: 0 | M198: 0 | N198: 0 | O198: 0 | P198: 0 | Q198: 0 | R198: 0 | S198: 0 | T198: 0 | U198: 0 | V198: 0
A199: 60061101 | B199: Ventura | C199: Oxnard | D199: 5487 | E199: 1791 | F199: 158 | G199: 5645 | H199: 33937.24002 | I199: 2044.354792 | J199: 1183.083747 | K199: 711.413859 | L199: 29594.19329 | M199: 14458.69168 | N199: 819.6281037 | O199: 0 | P199: 4577.923374 | Q199: 4465.877884 | R199: 255.9972743 | S199: 893.8561798 | T199: 65534.14516 | U199: 2300.352066 | V199: 24213.9068 | W199: 11.94352928 | X199: 14.55919029 | Y199: 16.30618317
A200: 60061201 | B200: Ventura | C200: Oxnard | D200: 250 | E200: 87 | F200: 974 | G200: 1224 | H200: 18.40240182 | I200: 12192.68167 | J200: 69.33287677 | K200: 0 | L200: 348.9463735 | M200: 10088.55646 | N200: 5.886362843 | O200: 0 | P200: 5101.867326 | Q200: 5492.568567 | R200: 1306.21274 | S200: 1836.89213 | T200: 442.5680149 | U200: 13498.89441 | V200: 20682.99235 | W200: 1.77027206 | X200: 13.85923451 | Y200: 28.28795325
... 504 more rows

Sheet SummaryVMT-PK
C1: HBW-PK | E1: HBSC-PK | G1: HBNW-PK | I1: HBCU-PK | K1: OBO-PK | M1: WBO-PK | O1: Residential | P1: Non-residential
A2: CITY | B2: ZONE" | C2: O-VMT | D2: D-VMT | E2: O-VMT | F2: D-VMT | G2: O-VMT | H2: D-VMT | I2: O-VMT | J2: D-VMT | K2: O-VMT | L2: D-VMT | M2: O-VMT | N2: D-VMT | O2: Home-based | P2: Work-based | Q2: Other
B3: 60001101 | C3: 2448.351333 | D3: 173.8946147 | E3: 178.653003 | F3: 0 | G3: 2841.3105 | H3: 205.1633345 | I3: 69.54612572 | J3: 0 | K3: 543.4220871 | L3: 23.25779048 | M3: 34.08615609 | N3: 3.696556378 | O3: 5537.860962 | P3: 207.9807708 | Q3: 771.843212
B4: 60001201 | C4: 2041.986254 | D4: 181.2753145 | E4: 132.5565026 | F4: 0 | G4: 3026.058009 | H4: 881.2679711 | I4: 46.60941724 | J4: 0 | K4: 956.1280982 | L4: 87.46760689 | M4: 37.12126976 | N4: 0.8744054153 | O4: 5247.210183 | P4: 218.3965843 | Q4: 1924.863676
B5: 60001301 | C5: 1955.446553 | D5: 0 | E5: 15.64291931 | F5: 0 | G5: 2919.609583 | H5: 172.7408332 | I5: 6.715784037 | J5: 0 | K5: 478.555345 | L5: 97.95365445 | M5: 0 | N5: 0.03374810659 | O5: 4897.414838 | P5: 0 | Q5: 749.2498326
B6: 60002101 | C6: 3755.912672 | D6: 751.0292234 | E6: 345.852938 | F6: 0 | G6: 4140.451215 | H6: 573.1685328 | I6: 87.87559188 | J6: 0 | K6: 1282.371304 | L6: 132.8665679 | M6: 75.13205576 | N6: 47.43539429 | O6: 8330.092416 | P6: 826.1612792 | Q6: 1988.406405
A7: San Buenaventura | B7: 60002201 | C7: 139.978244 | D7: 629.3541411 | E7: 12.64855837 | F7: 0 | G7: 74.25097242 | H7: 114.0696653 | I7: 0.77469849 | J7: 0 | K7: 223.6630556 | L7: 44.91094941 | M7: 135.2752475 | N7: 24.40156823 | O7: 227.6524733 | P7: 764.6293885 | Q7: 382.6436703
A8: San Buenaventura | B8: 60002301 | C8: 597.5304959 | D8: 113.5232878 | E8: 51.98580924 | F8: 0 | G8: 504.5259581 | H8: 223.0964564 | I8: 5.955835886 | J8: 0 | K8: 137.0404532 | L8: 56.81518913 | M8: 16.96038018 | N8: 12.50121389 | O8: 1159.998099 | P8: 130.483668 | Q8: 416.9520987
B9: 60003101 | C9: 4687.573254 | D9: 420.93483 | E9: 202.7621086 | F9: 0 | G9: 3402.21954 | H9: 636.7902135 | I9: 59.47176732 | J9: 0 | K9: 784.6787385 | L9: 118.28134 | M9: 31.90239902 | N9: 30.06722103 | O9: 8352.02667 | P9: 452.837229 | Q9: 1539.750292
B10: 60003201 | C10: 350.2999784 | D10: 8.814515175 | E10: 143.2434369 | F10: 0 | G10: 398.5098783 | H10: 16.24688836 | I10: 8.507310681 | J10: 0 | K10: 84.42647404 | L10: 2.772695422 | M10: 7.228599902 | N10: 0.8737090184 | O10: 900.5606043 | P10: 16.04311508 | Q10: 103.4460578
B11: 60003301 | C11: 12817.45765 | D11: 1238.198984 | E11: 343.1928085 | F11: 208.7677367 | G11: 8560.282249 | H11: 1269.433265 | I11: 288.814523 | J11: 0 | K11: 1711.276005 | L11: 300.6446609 | M11: 257.7391035 | N11: 64.52264042 | O11: 22009.74723 | P11: 1495.938087 | Q11: 3490.121668
B12: 60003401 | C12: 0 | D12: 0 | E12: 0 | F12: 0 | G12: 0 | H12: 0 | I12: 0 | J12: 0 | K12: 0 | L12: 0 | M12: 0 | N12: 0 | O12: 0 | P12: 0 | Q12: 0
A13: San Buenaventura | B13: 60003501 | C13: 2540.28994 | D13: 441.5216791 | E13: 168.2255151 | F13: 0 | G13: 1545.551791 | H13: 421.1021465 | I13: 10.53828321 | J13: 0 | K13: 633.8226998 | L13: 95.51589223 | M13: 123.3061767 | N13: 29.83495251 | O13: 4264.605529 | P13: 564.8278558 | Q13: 1150.440739
B14: 60003601 | C14: 1901.68054 | D14: 46.03021651 | E14: 66.7460565 | F14: 0 | G14: 1141.402097 | H14: 174.7390135 | I14: 42.18712062 | J14: 0 | K14: 223.2470147 | L14: 28.6772363 | M14: 7.795493182 | N14: 5.425061239 | O14: 3152.015814 | P14: 53.82570969 | Q14: 426.6632645
A15: San Buenaventura | B15: 60004101 | C15: 11405.05728 | D15: 5929.202198 | E15: 1009.476508 | F15: 273.1957753 | G15: 5582.146482 | H15: 5320.263068 | I15: 58.73150195 | J15: 0 | K15: 3668.762648 | L15: 2834.647747 | M15: 761.4331005 | N15: 451.1910801 | O15: 18055.41177 | P15: 6690.635298 | Q15: 12096.86924
A16: San Buenaventura | B16: 60004201 | C16: 13300.02926 | D16: 4963.84915 | E16: 1650.703034 | F16: 609.5897074 | G16: 7104.613895 | H16: 2654.445373 | I16: 63.00531603 | J16: 0 | K16: 1577.504017 | L16: 922.521741 | M16: 394.4650022 | N16: 266.2209835 | O16: 22118.35151 | P16: 5358.314153 | Q16: 5764.060839
A17: San Buenaventura | B17: 60004301 | C17: 9691.473209 | D17: 5784.090631 | E17: 237.060182 | F17: 0 | G17: 5347.400664 | H17: 1495.720659 | I17: 136.0292975 | J17: 0 | K17: 1747.700823 | L17: 549.1130255 | M17: 524.2475281 | N17: 236.8010112 | O17: 15411.96335 | P17: 6308.33816 | Q17: 3792.534507
B18: 60005101 | C18: 20091.8182 | D18: 504.3423048 | E18: 557.0174697 | F18: 0 | G18: 8447.446872 | H18: 2585.93188 | I18: 108.0084709 | J18: 0 | K18: 2096.864992 | L18: 478.1173224 | M18: 158.1218756 | N18: 79.28886074 | O18: 29204.29101 | P18: 662.4641805 | Q18: 5160.914194
B19: 60005201 | C19: 14292.63103 | D19: 1358.898637 | E19: 615.5663174 | F19: 1074.904368 | G19: 8349.956125 | H19: 2112.138284 | I19: 71.31043279 | J19: 0 | K19: 1932.805622 | L19: 598.5691428 | M19: 215.1743993 | N19: 100.5376132 | O19: 23329.4639 | P19: 1574.073037 | Q19: 5718.417417
A20: San Buenaventura | B20: 60006101 | C20: 6453.250176 | D20: 11720.10076 | E20: 192.0118498 | F20: 295.8940001 | G20: 2585.291687 | H20: 5678.21067 | I20: 37.34836317 | J20: 0 | K20: 3065.906286 | L20: 2762.607647 | M20: 1389.793393 | N20: 663.1289021 | O20: 9267.902076 | P20: 13109.89415 | Q20: 11802.6186
A21: San Buenaventura | B21: 60006201 | C21: 2324.492078 | D21: 21012.20819 | E21: 155.6549114 | F21: 0 | G21: 1112.137841 | H21: 14244.80267 | I21: 19.95602895 | J21: 0 | K21: 7274.899299 | L21: 9612.83731 | M21: 877.4417269 | N21: 1341.26029 | O21: 3612.240859 | P21: 21889.64992 | Q21: 31132.53928
A22: San Buenaventura | B22: 60006301 | C22: 697.2939649 | D22: 4852.29457 | E22: 32.28788581 | F22: 0 | G22: 337.1131503 | H22: 3935.256999 | I22: 5.512775078 | J22: 0 | K22: 2308.656996 | L22: 1961.614775 | M22: 106.2331535 | N22: 725.4428181 | O22: 1072.207776 | P22: 4958.527723 | Q22: 8205.52877
A23: San Buenaventura | B23: 60006401 | C23: 396.1584147 | D23: 3832.550622 | E23: 6.365335119 | F23: 0 | G23: 168.1223796 | H23: 2383.542643 | I23: 2.915998274 | J23: 0 | K23: 1648.001569 | L23: 1515.341012 | M23: 404.1535162 | N23: 268.42307 | O23: 573.5621277 | P23: 4236.704138 | Q23: 5546.885224
A24: San Buenaventura | B24: 60007101 | C24: 7895.666509 | D24: 16013.00028 | E24: 190.3852536 | F24: 113.1062151 | G24: 3310.295105 | H24: 7012.962066 | I24: 44.34053894 | J24: 0 | K24: 4056.753824 | L24: 3120.290131 | M24: 1452.834206 | N24: 1027.852874 | O24: 11440.68741 | P24: 17465.83449 | Q24: 14303.11224
A25: San Buenaventura | B25: 60008101 | C25: 12834.96646 | D25: 2645.530542 | E25: 859.8684393 | F25: 21.23942766 | G25: 5972.491109 | H25: 1793.875023 | I25: 67.50558179 | J25: 0 | K25: 1054.266811 | L25: 437.0423284 | M25: 268.6581343 | N25: 162.407218 | O25: 19734.83159 | P25: 2914.188676 | Q25: 3306.423591
A26: San Buenaventura | B26: 60008201 | C26: 4265.615531 | D26: 1172.446646 | E26: 265.2160483 | F26: 0 | G26: 2166.779321 | H26: 1301.246779 | I26: 22.5664383 | J26: 0 | K26: 932.1790459 | L26: 509.1499863 | M26: 221.3397463 | N26: 93.12164609 | O26: 6720.177339 | P26: 1393.786392 | Q26: 2742.575811
A27: San Buenaventura | B27: 60008301 | C27: 15862.93416 | D27: 3421.720149 | E27: 888.8319834 | F27: 1567.131934 | G27: 8244.781116 | H27: 3344.684295 | I27: 75.9900187 | J27: 0 | K27: 2286.311044 | L27: 1541.621852 | M27: 239.2226515 | N27: 201.7369104 | O27: 25072.53728 | P27: 3660.9428 | Q27: 8739.749125
B28: 60009101 | C28: 10833.56129 | D28: 564.2599998 | E28: 174.4899306 | F28: 0 | G28: 3708.755301 | H28: 1428.73107 | I28: 66.38147711 | J28: 0 | K28: 920.2462227 | L28: 296.4962824 | M28: 39.44055015 | N28: 52.91859485 | O28: 14783.188 | P28: 603.70055 | Q28: 2645.473575
B29: 60009201 | C29: 7990.203816 | D29: 470.1869177 | E29: 157.8038047 | F29: 0 | G29: 3443.100992 | H29: 1287.539115 | I29: 43.65624335 | J29: 0 | K29: 950.6507581 | L29: 254.0345326 | M29: 34.47203995 | N29: 39.34363079 | O29: 11634.76486 | P29: 504.6589577 | Q29: 2492.224406
B30: 60009301 | C30: 13422.71827 | D30: 998.9451661 | E30: 177.0539198 | F30: 71.1236853 | G30: 4987.016667 | H30: 1447.317539 | I30: 60.21304688 | J30: 0 | K30: 1059.653704 | L30: 335.1121309 | M30: 106.52994 | N30: 77.26136614 | O30: 18647.0019 | P30: 1105.475106 | Q30: 2913.20706
B31: 60009302 | C31: 8799.117814 | D31: 649.1178026 | E31: 89.96584964 | F31: 73.73987188 | G31: 3023.680317 | H31: 1076.731038 | I31: 49.45945022 | J31: 0 | K31: 738.460892 | L31: 269.4189571 | M31: 83.29387766 | N31: 54.88803295 | O31: 11962.22343 | P31: 732.4116803 | Q31: 2158.350759
A32: Ojai | B32: 60009401 | C32: 12050.59276 | D32: 4464.633434 | E32: 160.2467132 | F32: 4637.233889 | G32: 4097.890097 | H32: 6199.517553 | I32: 64.67433134 | J32: 0 | K32: 2674.056118 | L32: 2503.03351 | M32: 660.6102885 | N32: 244.8701247 | O32: 16373.40391 | P32: 5125.243722 | Q32: 16013.84107
B33: 60010101 | C33: 16368.07355 | D33: 1617.290024 | E33: 319.7647886 | F33: 627.5728088 | G33: 6789.021876 | H33: 3174.414501 | I33: 70.53359779 | J33: 0 | K33: 2470.720687 | L33: 1009.312926 | M33: 149.9438805 | N33: 197.8630348 | O33: 23547.39381 | P33: 1767.233905 | Q33: 7282.020922
B34: 60010201 | C34: 14054.94102 | D34: 1225.907005 | E34: 365.1199175 | F34: 0 | G34: 7655.634404 | H34: 1450.579463 | I34: 67.59234479 | J34: 0 | K34: 1521.7368 | L34: 298.3207562 | M34: 106.9179864 | N34: 87.91850587 | O34: 22143.28768 | P34: 1332.824992 | Q34: 3270.637019
A35: San Buenaventura | B35: 60011101 | C35: 2540.367329 | D35: 4289.216805 | E35: 27.44640439 | F35: 0 | G35: 1157.282429 | H35: 2043.07013 | I35: 9.164646876 | J35: 0 | K35: 1152.897987 | L35: 888.8325624 | M35: 580.4501223 | N35: 323.3503111 | O35: 3734.26081 | P35: 4869.666928 | Q35: 4084.80068
A36: San Buenaventura | B36: 60011201 | C36: 2932.346564 | D36: 2708.88108 | E36: 58.84991897 | F36: 1541.29992 | G36: 1455.572675 | H36: 2723.983556 | I36: 12.70666316 | J36: 0 | K36: 1221.754233 | L36: 1547.543763 | M36: 493.6225265 | N36: 232.1022855 | O36: 4459.475821 | P36: 3202.503607 | Q36: 7034.581472
A37: San Buenaventura | B37: 60011301 | C37: 4405.505659 | D37: 1583.903287 | E37: 104.5415214 | F37: 0 | G37: 2212.880268 | H37: 1888.818934 | I37: 16.62470292 | J37: 0 | K37: 1035.131544 | L37: 713.1987508 | M37: 387.6951668 | N37: 145.3387207 | O37: 6739.552152 | P37: 1971.598454 | Q37: 3637.149228
A38: San Buenaventura | B38: 60011401 | C38: 1705.354132 | D38: 4790.338123 | E38: 29.12412174 | F38: 0 | G38: 740.1689204 | H38: 2990.965475 | I38: 6.47085424 | J38: 0 | K38: 1661.271465 | L38: 1501.959882 | M38: 266.3273126 | N38: 500.9167885 | O38: 2481.118029 | P38: 5056.665435 | Q38: 6154.196822
A39: San Buenaventura | B39: 60012101 | C39: 4074.691944 | D39: 1764.588966 | E39: 44.49312127 | F39: 3629.796513 | G39: 1746.594123 | H39: 2714.247105 | I39: 11.19814535 | J39: 0 | K39: 547.5851027 | L39: 2030.823094 | M39: 65.28404001 | N39: 91.41843878 | O39: 5876.977334 | P39: 1829.873006 | Q39: 8922.451815
A40: San Buenaventura | B40: 60012201 | C40: 3645.386138 | D40: 2260.964514 | E40: 63.1976278 | F40: 42.41316362 | G40: 1741.525647 | H40: 2134.124835 | I40: 11.68108361 | J40: 0 | K40: 1008.390259 | L40: 840.4005212 | M40: 157.5942651 | N40: 252.2689512 | O40: 5461.790497 | P40: 2418.558779 | Q40: 4025.328779
B41: 60012301 | C41: 0 | D41: 0 | E41: 0 | F41: 0 | G41: 0 | H41: 0 | I41: 0 | J41: 0 | K41: 0 | L41: 0 | M41: 0 | N41: 0 | O41: 0 | P41: 0 | Q41: 0
A42: San Buenaventura | B42: 60012401 | C42: 3879.612754 | D42: 598.8424765 | E42: 82.30165463 | F42: 0 | G42: 1959.221737 | H42: 1031.868248 | I42: 13.21221448 | J42: 0 | K42: 483.6828642 | L42: 228.1570497 | M42: 145.9937839 | N42: 61.73141002 | O42: 5934.348359 | P42: 744.8362604 | Q42: 1743.708162
A43: San Buenaventura | B43: 60013101 | C43: 4735.284611 | D43: 2505.147498 | E43: 166.5337054 | F43: 0 | G43: 2369.599029 | H43: 2745.339949 | I43: 34.81522437 | J43: 0 | K43: 1349.226534 | L43: 1053.226526 | M43: 73.11264966 | N43: 355.0305486 | O43: 7306.23257 | P43: 2578.260148 | Q43: 5147.793009
A44: San Buenaventura | B44: 60013201 | C44: 1730.827424 | D44: 11196.85085 | E44: 118.3926653 | F44: 0 | G44: 1199.705372 | H44: 6532.561678 | I44: 26.65572766 | J44: 0 | K44: 4458.399 | L44: 3535.525616 | M44: 916.9333539 | N44: 1199.670797 | O44: 3075.581189 | P44: 12113.78421 | Q44: 14526.48629
A45: San Buenaventura | B45: 60013301 | C45: 14651.9096 | D45: 3706.459995 | E45: 630.8374136 | F45: 543.2669976 | G45: 7485.258183 | H45: 4744.633067 | I45: 122.339143 | J45: 0 | K45: 2506.302063 | L45: 1855.054915 | M45: 465.7325853 | N45: 386.2638735 | O45: 22890.34434 | P45: 4172.192581 | Q45: 9649.257043
A46: San Buenaventura | B46: 60013401 | C46: 500.8982481 | D46: 3597.669567 | E46: 27.51979597 | F46: 0 | G46: 231.3879062 | H46: 2961.805343 | I46: 2.043661301 | J46: 0 | K46: 1709.785979 | L46: 1610.570168 | M46: 114.4754177 | N46: 553.7794512 | O46: 761.8496116 | P46: 3712.144985 | Q46: 6282.16149
A47: Ojai | B47: 60014101 | C47: 6078.082105 | D47: 3112.398564 | E47: 44.81022669 | F47: 0 | G47: 1944.052467 | H47: 2562.912727 | I47: 24.3714473 | J47: 0 | K47: 1617.349168 | L47: 907.2984445 | M47: 283.6383056 | N47: 110.4305229 | O47: 8091.316246 | P47: 3396.03687 | Q47: 5087.560339
B48: 60014201 | C48: 795.6364421 | D48: 1417.210859 | E48: 25.41388512 | F48: 0 | G48: 460.5132718 | H48: 1714.357413 | I48: 30.19788558 | J48: 0 | K48: 1604.07321 | L48: 734.6122879 | M48: 79.14041175 | N48: 181.2777528 | O48: 1311.761485 | P48: 1496.35127 | Q48: 4053.042911
A49: Ojai | B49: 60014301 | C49: 2845.308862 | D49: 1813.533309 | E49: 34.61866847 | F49: 2949.752699 | G49: 980.1776696 | H49: 1690.929151 | I49: 15.4209711 | J49: 0 | K49: 802.5693287 | L49: 749.8577053 | M49: 257.0084673 | N49: 67.92691695 | O49: 3875.526171 | P49: 2070.541777 | Q49: 6193.108885
A50: Ojai | B50: 60014401 | C50: 8682.875039 | D50: 2547.379745 | E50: 87.60610524 | F50: 10981.9127 | G50: 2981.834049 | H50: 4113.47461 | I50: 80.04084323 | J50: 0 | K50: 1403.576414 | L50: 2123.219228 | M50: 284.4925764 | N50: 113.3359382 | O50: 11832.35604 | P50: 2831.872321 | Q50: 18622.18295
A51: San Buenaventura | B51: 60015101 | C51: 428.314205 | D51: 2932.090594 | E51: 57.67144231 | F51: 0 | G51: 663.8942289 | H51: 645.3899337 | I51: 7.109554152 | J51: 0 | K51: 233.1988226 | L51: 202.7558629 | M51: 191.1608734 | N51: 122.963735 | O51: 1156.98943 | P51: 3123.251467 | Q51: 1081.344619
A52: San Buenaventura | B52: 60015201 | C52: 4808.445643 | D52: 717.1891473 | E52: 148.4282689 | F52: 499.016738 | G52: 2660.899893 | H52: 1537.215691 | I52: 22.83479166 | J52: 0 | K52: 469.7867509 | L52: 577.6921526 | M52: 56.54799135 | N52: 75.35050672 | O52: 7640.608597 | P52: 773.7371387 | Q52: 3083.711333
A53: San Buenaventura | B53: 60015301 | C53: 4151.972761 | D53: 225.0969415 | E53: 119.1096239 | F53: 0 | G53: 2110.265224 | H53: 1095.803402 | I53: 10.71528961 | J53: 0 | K53: 322.7465301 | L53: 218.5051064 | M53: 8.147327927 | N53: 56.19075373 | O53: 6392.062899 | P53: 233.2442694 | Q53: 1637.055038
A54: San Buenaventura | B54: 60015401 | C54: 5647.834437 | D54: 623.7327608 | E54: 159.8120489 | F54: 0 | G54: 2778.818471 | H54: 1568.496929 | I54: 24.47200971 | J54: 0 | K54: 574.2135096 | L54: 338.7889249 | M54: 29.41309326 | N54: 85.83818363 | O54: 8610.936967 | P54: 653.1458541 | Q54: 2481.499363
A55: San Buenaventura | B55: 60015501 | C55: 2225.72117 | D55: 10094.9672 | E55: 43.54324798 | F55: 776.7486489 | G55: 988.9177379 | H55: 6423.42813 | I55: 6.662640176 | J55: 0 | K55: 3080.518247 | L55: 4203.301474 | M55: 878.0420294 | N55: 668.5338026 | O55: 3264.844796 | P55: 10973.00923 | Q55: 14483.9965
A56: San Buenaventura | B56: 60015601 | C56: 4841.295349 | D56: 1603.26637 | E56: 156.4617968 | F56: 0 | G56: 2584.745638 | H56: 2850.4828 | I56: 18.385458 | J56: 0 | K56: 1107.877677 | L56: 1182.713935 | M56: 38.6342158 | N56: 232.460636 | O56: 7600.888242 | P56: 1641.900585 | Q56: 5141.074412
A57: San Buenaventura | B57: 60016101 | C57: 2117.864966 | D57: 39754.94171 | E57: 45.77104404 | F57: 949.4885357 | G57: 1073.321294 | H57: 13394.08838 | I57: 5.338494838 | J57: 0 | K57: 4548.537868 | L57: 7157.097175 | M57: 1934.279782 | N57: 1682.801539 | O57: 3242.295798 | P57: 41689.22149 | Q57: 26049.21196
A58: San Buenaventura | B58: 60016201 | C58: 5069.509017 | D58: 24277.64904 | E58: 68.87128356 | F58: 0 | G58: 2356.086525 | H58: 12821.41071 | I58: 13.2939466 | J58: 0 | K58: 4513.416968 | L58: 6531.707557 | M58: 584.5018495 | N58: 947.1187388 | O58: 7507.760772 | P58: 24862.15089 | Q58: 23866.53523
A59: San Buenaventura | B59: 60016301 | C59: 3315.235983 | D59: 3155.504767 | E59: 87.7141993 | F59: 655.3931695 | G59: 1769.277733 | H59: 2618.957677 | I59: 6.447716728 | J59: 0 | K59: 902.5646505 | L59: 1230.883722 | M59: 109.1332711 | N59: 157.5573696 | O59: 5178.675632 | P59: 3264.638038 | Q59: 5407.799219
A60: San Buenaventura | B60: 60016401 | C60: 2394.85551 | D60: 2216.275973 | E60: 29.80097954 | F60: 0 | G60: 1130.640051 | H60: 1457.178913 | I60: 4.641184297 | J60: 0 | K60: 628.4900505 | L60: 569.4663536 | M60: 209.8018899 | N60: 168.7206575 | O60: 3559.937725 | P60: 2426.077863 | Q60: 2655.135317
A61: San Buenaventura | B61: 60017101 | C61: 33.11718647 | D61: 5.559653214 | E61: 0.4332185404 | F61: 0 | G61: 21.15914092 | H61: 5.576007814 | I61: 0.07721718628 | J61: 0 | K61: 2.368216888 | L61: 1.161144495 | M61: 0.2470514177 | N61: 0.6010340155 | O61: 54.78676311 | P61: 5.806704632 | Q61: 9.105369196
A62: San Buenaventura | B62: 60017201 | C62: 414.5784692 | D62: 44721.14096 | E62: 22.06891524 | F62: 0 | G62: 239.0959153 | H62: 18531.11011 | I62: 3.272577304 | J62: 0 | K62: 8959.00354 | L62: 13372.97768 | M62: 2857.251362 | N62: 2581.992754 | O62: 679.015877 | P62: 47578.39232 | Q62: 40863.09133
A63: San Buenaventura | B63: 60018101 | C63: 933.2877057 | D63: 22645.76779 | E63: 32.87851845 | F63: 0 | G63: 430.4489815 | H63: 19384.71273 | I63: 2.447313192 | J63: 0 | K63: 8150.662302 | L63: 14332.05553 | M63: 1575.726903 | N63: 1737.896051 | O63: 1399.062519 | P63: 24221.49469 | Q63: 41867.43055
A64: San Buenaventura | B64: 60018201 | C64: 10718.44332 | D64: 3893.930067 | E64: 272.0661563 | F64: 0 | G64: 6128.776276 | H64: 4811.835489 | I64: 11.18590142 | J64: 0 | K64: 2156.226229 | L64: 1665.128332 | M64: 224.5998012 | N64: 396.8304293 | O64: 17130.47166 | P64: 4118.529868 | Q64: 8633.190051
A65: San Buenaventura | B65: 60018301 | C65: 3548.727905 | D65: 9278.717184 | E65: 138.5543336 | F65: 1744.655762 | G65: 1873.195294 | H65: 5888.093146 | I65: 8.52403517 | J65: 0 | K65: 2151.73984 | L65: 3697.538019 | M65: 449.9108102 | N65: 476.9045023 | O65: 5569.001568 | P65: 9728.627994 | Q65: 13482.02677
A66: San Buenaventura | B66: 60019101 | C66: 1798.189647 | D66: 306.4748655 | E66: 118.3086214 | F66: 0 | G66: 1360.200867 | H66: 529.5881637 | I66: 12.55522955 | J66: 0 | K66: 390.6931655 | L66: 142.1443737 | M66: 74.33599288 | N66: 43.14044316 | O66: 3289.254365 | P66: 380.8108584 | Q66: 1062.425703
B67: 60020101 | C67: 33.14945231 | D67: 539.1470473 | E67: 2.123056431 | F67: 0 | G67: 25.55266823 | H67: 23.93822256 | I67: 0.2954634341 | J67: 0 | K67: 18.39342919 | L67: 8.636012335 | M67: 13.4391083 | N67: 22.50203214 | O67: 61.1206404 | P67: 552.5861556 | Q67: 50.96766408
A68: San Buenaventura | B68: 60020102 | C68: 0 | D68: 475.8881751 | E68: 0 | F68: 0 | G68: 0 | H68: 436.4525994 | I68: 0 | J68: 0 | K68: 283.4516253 | L68: 248.7329711 | M68: 12.77605997 | N68: 81.53035584 | O68: 0 | P68: 488.6642351 | Q68: 968.6371958
A69: San Buenaventura | B69: 60021101 | C69: 2468.818241 | D69: 1050.988359 | E69: 36.38093948 | F69: 0 | G69: 1523.698905 | H69: 519.7341266 | I69: 3.703399379 | J69: 0 | K69: 293.3237994 | L69: 126.2532376 | M69: 116.3100575 | N69: 61.49609551 | O69: 4032.601485 | P69: 1167.298416 | Q69: 939.3111635
A70: San Buenaventura | B70: 60022101 | C70: 7573.941043 | D70: 569.8548564 | E70: 153.3917926 | F70: 0 | G70: 3847.014141 | H70: 1477.27846 | I70: 23.77862153 | J70: 0 | K70: 563.6230202 | L70: 337.7516785 | M70: 47.28862229 | N70: 88.28350679 | O70: 11598.1256 | P70: 617.1434787 | Q70: 2378.653158
A71: San Buenaventura | B71: 60022201 | C71: 3620.694875 | D71: 1554.856504 | E71: 94.45215092 | F71: 1466.407999 | G71: 2154.067817 | H71: 2269.101457 | I71: 3.522192273 | J71: 0 | K71: 755.121789 | L71: 1346.945976 | M71: 153.7858753 | N71: 145.6269052 | O71: 5872.737035 | P71: 1708.642379 | Q71: 5837.577221
A72: San Buenaventura | B72: 60022301 | C72: 4137.514114 | D72: 171.2672302 | E72: 101.9593679 | F72: 0 | G72: 2375.856182 | H72: 1013.166921 | I72: 4.808159572 | J72: 0 | K72: 333.9965471 | L72: 200.6457807 | M72: 10.87061894 | N72: 49.40786756 | O72: 6620.137824 | P72: 182.1378491 | Q72: 1547.809248
A73: San Buenaventura | B73: 60022401 | C73: 1207.130515 | D73: 11271.46487 | E73: 34.59962044 | F73: 399.3481983 | G73: 596.3681441 | H73: 6964.516892 | I73: 2.19893285 | J73: 7804.557615 | K73: 3163.421882 | L73: 3945.924038 | M73: 594.7102048 | N73: 610.3449726 | O73: 1840.297212 | P73: 11866.17508 | Q73: 22277.76863
A74: San Buenaventura | B74: 60023101 | C74: 3296.250026 | D74: 795.2741271 | E74: 96.77751804 | F74: 609.3376142 | G74: 1931.392327 | H74: 1369.114899 | I74: 2.18680974 | J74: 0 | K74: 402.2790083 | L74: 635.5420271 | M74: 27.59266759 | N74: 66.28681984 | O74: 5326.606681 | P74: 822.8667946 | Q74: 3016.273549
A75: San Buenaventura | B75: 60023201 | C75: 6184.134021 | D75: 5207.952341 | E75: 161.7975889 | F75: 2635.198104 | G75: 3209.743223 | H75: 4209.443085 | I75: 16.45250002 | J75: 0 | K75: 1047.110327 | L75: 2599.341936 | M75: 237.5571097 | N75: 268.9896018 | O75: 9572.127332 | P75: 5445.509451 | Q75: 10491.09345
A76: San Buenaventura | B76: 60023301 | C76: 802.6925246 | D76: 167.5655431 | E76: 41.34612028 | F76: 0 | G76: 419.4787522 | H76: 311.6087481 | I76: 1.973685891 | J76: 0 | K76: 140.2985625 | L76: 70.8412864 | M76: 36.69358244 | N76: 20.48357114 | O76: 1265.491083 | P76: 204.2591256 | Q76: 522.7485969
B77: 60024101 | C77: 48.31923081 | D77: 21.57679829 | E77: 37.3622067 | F77: 0 | G77: 119.7294459 | H77: 6.334866476 | I77: 3.650800891 | J77: 0 | K77: 32.59433845 | L77: 1.101974241 | M77: 3.161873758 | N77: 0.655900621 | O77: 209.0616843 | P77: 24.73867205 | Q77: 40.03117916
B78: 60024201 | C78: 15600.52465 | D78: 2725.90912 | E78: 1213.479564 | F78: 0 | G78: 10733.53392 | H78: 1573.294836 | I78: 89.34547505 | J78: 0 | K78: 2001.128331 | L78: 385.7448902 | M78: 506.6044724 | N78: 152.596342 | O78: 27636.88361 | P78: 3232.513593 | Q78: 3960.168058
B79: 60024301 | C79: 381.737102 | D79: 77.81200778 | E79: 54.87808953 | F79: 0 | G79: 341.9750653 | H79: 47.48731902 | I79: 9.909720417 | J79: 0 | K79: 109.3171037 | L79: 12.52305804 | M79: 7.117374197 | N79: 2.994379007 | O79: 788.4999773 | P79: 84.92938198 | Q79: 169.3274807
A80: San Buenaventura | B80: 60024401 | C80: 102.9974558 | D80: 63.22740865 | E80: 27.12270844 | F80: 0 | G80: 82.1111402 | H80: 40.70151904 | I80: 1.90643492 | J80: 0 | K80: 67.01413312 | L80: 8.081299207 | M80: 15.07192463 | N80: 3.238952337 | O80: 214.1377394 | P80: 78.29933328 | Q80: 115.7969514
B81: 60024501 | C81: 989.7638539 | D81: 751.5935567 | E81: 121.1948062 | F81: 0 | G81: 753.7277478 | H81: 185.6829879 | I81: 10.34401899 | J81: 0 | K81: 138.0817236 | L81: 38.03397019 | M81: 25.4242776 | N81: 32.04658508 | O81: 1875.030427 | P81: 777.0178343 | Q81: 361.7986817
B82: 60024601 | C82: 0 | D82: 0 | E82: 0 | F82: 0 | G82: 0 | H82: 0 | I82: 0 | J82: 0 | K82: 0 | L82: 0 | M82: 0 | N82: 0 | O82: 0 | P82: 0 | Q82: 0
A83: San Buenaventura | B83: 60025101 | C83: 12425.41248 | D83: 1033.682809 | E83: 516.6125126 | F83: 0 | G83: 6657.682455 | H83: 3049.296834 | I83: 80.77011518 | J83: 0 | K83: 909.6876807 | L83: 705.1627533 | M83: 56.46554197 | N83: 157.5862115 | O83: 19680.47757 | P83: 1090.148351 | Q83: 4664.147268
A84: San Buenaventura | B84: 60025201 | C84: 9851.026733 | D84: 9750.329367 | E84: 410.2781194 | F84: 0 | G84: 4779.508603 | H84: 4767.739251 | I84: 41.04462279 | J84: 0 | K84: 1502.576444 | L84: 1474.161527 | M84: 421.6891601 | N84: 514.340746 | O84: 15081.85808 | P84: 10172.01853 | Q84: 7744.477223
A85: San Buenaventura | B85: 60026101 | C85: 11.72460532 | D85: 72794.60216 | E85: 5.368328447 | F85: 994.1368051 | G85: 5.227153577 | H85: 19746.86242 | I85: 0.04388424648 | J85: 337.3607262 | K85: 9149.339383 | L85: 12699.07913 | M85: 3349.665635 | N85: 3647.17653 | O85: 22.36397159 | P85: 76144.26779 | Q85: 42926.77846
A86: San Buenaventura | B86: 60026201 | C86: 0 | D86: 1811.015341 | E86: 0 | F86: 0 | G86: 0 | H86: 173.2113172 | I86: 0 | J86: 0 | K86: 160.5299676 | L86: 118.6611976 | M86: 101.4939647 | N86: 72.38724049 | O86: 0 | P86: 1912.509305 | Q86: 452.4024824
A87: San Buenaventura | B87: 60026301 | C87: 0 | D87: 18526.22821 | E87: 2.38340929 | F87: 0 | G87: 0 | H87: 6223.458857 | I87: 0 | J87: 0 | K87: 3017.099344 | L87: 3495.351684 | M87: 963.6558094 | N87: 1295.00715 | O87: 2.38340929 | P87: 19489.88402 | Q87: 12735.90989
A88: San Buenaventura | B88: 60027101 | C88: 4486.665459 | D88: 11111.5606 | E88: 363.4486135 | F88: 0 | G88: 2474.039617 | H88: 9019.625566 | I88: 23.0535266 | J88: 0 | K88: 3848.277374 | L88: 5396.196996 | M88: 422.8296182 | N88: 803.2056894 | O88: 7347.207216 | P88: 11534.39021 | Q88: 18264.09994
A89: San Buenaventura | B89: 60027201 | C89: 7923.048531 | D89: 6978.620685 | E89: 459.5405623 | F89: 0 | G89: 4096.599905 | H89: 8444.396106 | I89: 27.0915022 | J89: 0 | K89: 3361.757648 | L89: 3937.985472 | M89: 494.1460227 | N89: 810.3967197 | O89: 12506.2805 | P89: 7472.766707 | Q89: 15744.13923
A90: San Buenaventura | B90: 60027301 | C90: 2322.758859 | D90: 24907.48008 | E90: 90.05930917 | F90: 0 | G90: 1024.518996 | H90: 16079.66124 | I90: 5.968647297 | J90: 0 | K90: 5699.697727 | L90: 10081.36544 | M90: 822.642247 | N90: 1617.048752 | O90: 3443.305811 | P90: 25730.12233 | Q90: 31860.72441
B91: 60028101 | C91: 0 | D91: 155.8026824 | E91: 0 | F91: 0 | G91: 0 | H91: 62.37581931 | I91: 0 | J91: 0 | K91: 92.28275254 | L91: 54.405436 | M91: 7.413479763 | N91: 6.119572923 | O91: 0 | P91: 163.2161622 | Q91: 209.0640078
A92: San Buenaventura | B92: 60028102 | C92: 9393.172015 | D92: 2498.703562 | E92: 289.7664897 | F92: 577.3617207 | G92: 6906.38433 | H92: 3095.618752 | I92: 44.97288937 | J92: 0 | K92: 1558.858967 | L92: 1042.330361 | M92: 608.285493 | N92: 200.2433335 | O92: 16634.29572 | P92: 3106.989055 | Q92: 6274.1698
A93: San Buenaventura | B93: 60029101 | C93: 4034.383325 | D93: 722.0807218 | E93: 112.0701019 | F93: 582.8190132 | G93: 2546.453989 | H93: 1386.945187 | I93: 7.074730345 | J93: 0 | K93: 406.1698404 | L93: 662.6700038 | M93: 28.93923359 | N93: 63.54510871 | O93: 6699.982146 | P93: 751.0199554 | Q93: 3038.604045
A94: San Buenaventura | B94: 60029201 | C94: 0 | D94: 0 | E94: 0 | F94: 0 | G94: 0 | H94: 0 | I94: 0 | J94: 0 | K94: 0 | L94: 0 | M94: 0 | N94: 0 | O94: 0 | P94: 0 | Q94: 0
A95: San Buenaventura | B95: 60030101 | C95: 4782.161516 | D95: 4555.2126 | E95: 159.2686177 | F95: 2760.594924 | G95: 2992.833018 | H95: 6024.216539 | I95: 16.84231167 | J95: 0 | K95: 2690.942624 | L95: 3929.007172 | M95: 170.9453137 | N95: 471.3185186 | O95: 7951.105464 | P95: 4726.157914 | Q95: 15404.76126
A96: San Buenaventura | B96: 60030201 | C96: 126.8950453 | D96: 5.662353487 | E96: 1.555363469 | F96: 0 | G96: 66.48130753 | H96: 39.22136982 | I96: 0.6247994041 | J96: 0 | K96: 14.79590365 | L96: 7.536325232 | M96: 0.2583740469 | N96: 2.077826281 | O96: 195.5565157 | P96: 5.920727534 | Q96: 61.5535987
A97: San Buenaventura | B97: 60031101 | C97: 0 | D97: 25826.69102 | E97: 6.698323027 | F97: 0 | G97: 0 | H97: 11337.98949 | I97: 0 | J97: 0 | K97: 6870.81059 | L97: 8762.316047 | M97: 1877.10739 | N97: 1324.624986 | O97: 6.698323027 | P97: 27703.79841 | Q97: 26971.11612
A98: San Buenaventura | B98: 60032101 | C98: 7762.410507 | D98: 8545.957547 | E98: 592.7916631 | F98: 0 | G98: 4295.082241 | H98: 8622.338462 | I98: 30.19992851 | J98: 0 | K98: 3557.502684 | L98: 3732.248556 | M98: 767.0312004 | N98: 835.7022036 | O98: 12680.48434 | P98: 9312.988747 | Q98: 15912.0897
A99: San Buenaventura | B99: 60032201 | C99: 2804.868009 | D99: 372.3719997 | E99: 224.5843359 | F99: 0 | G99: 1631.141309 | H99: 1477.120959 | I99: 12.31072702 | J99: 0 | K99: 499.4924519 | L99: 495.0620591 | M99: 8.854569637 | N99: 61.87123825 | O99: 4672.904381 | P99: 381.2265693 | Q99: 2471.67547
A100: San Buenaventura | B100: 60032301 | C100: 6289.048362 | D100: 1229.035595 | E100: 681.8624604 | F100: 0 | G100: 3602.688768 | H100: 2772.017317 | I100: 43.65499547 | J100: 0 | K100: 897.6242658 | L100: 677.7484706 | M100: 75.1163976 | N100: 160.2787119 | O100: 10617.25459 | P100: 1304.151992 | Q100: 4347.390053
A101: San Buenaventura | B101: 60032401 | C101: 488.4927828 | D101: 6318.973643 | E101: 53.31010215 | F101: 0 | G101: 293.4002586 | H101: 1593.975407 | I101: 2.628981874 | J101: 0 | K101: 1037.839036 | L101: 874.97092 | M101: 693.4380023 | N101: 360.8619152 | O101: 837.8321255 | P101: 7012.411646 | Q101: 3506.785362
A102: San Buenaventura | B102: 60032501 | C102: 33.15482702 | D102: 6072.705174 | E102: 194.442177 | F102: 411.3875225 | G102: 731.5823387 | H102: 4154.38615 | I102: 6.662943906 | J102: 0 | K102: 1294.91535 | L102: 1667.648901 | M102: 402.499536 | N102: 367.1195171 | O102: 965.8422866 | P102: 6475.20471 | Q102: 7528.337924
A103: San Buenaventura | B103: 60033101 | C103: 7041.091502 | D103: 12087.33398 | E103: 291.3197351 | F103: 0 | G103: 3787.268778 | H103: 7972.168554 | I103: 51.64148366 | J103: 0 | K103: 2922.39835 | L103: 3209.619854 | M103: 327.888156 | N103: 653.2235507 | O103: 11171.3215 | P103: 12415.22214 | Q103: 14104.18676
A104: San Buenaventura | B104: 60033201 | C104: 3344.450172 | D104: 5996.201336 | E104: 191.1450557 | F104: 100.677633 | G104: 1838.125279 | H104: 2889.042827 | I104: 12.05949825 | J104: 0 | K104: 1042.894274 | L104: 1374.057875 | M104: 665.5624339 | N104: 273.9311474 | O104: 5385.780005 | P104: 6661.76377 | Q104: 5406.672609
A105: San Buenaventura | B105: 60033301 | C105: 7329.596681 | D105: 1068.417146 | E105: 381.9908799 | F105: 518.8131926 | G105: 4000.811539 | H105: 2765.200974 | I105: 25.62642385 | J105: 0 | K105: 684.2595385 | L105: 1135.188217 | M105: 23.98086685 | N105: 115.2532452 | O105: 11738.02552 | P105: 1092.398013 | Q105: 5103.461922
A106: San Buenaventura | B106: 60033401 | C106: 2201.600389 | D106: 197.7834231 | E106: 90.6541406 | F106: 0 | G106: 1173.330955 | H106: 866.2509179 | I106: 21.78025862 | J106: 0 | K106: 288.4589506 | L106: 209.7130792 | M106: 5.059484013 | N106: 47.76378949 | O106: 3487.365744 | P106: 202.8429071 | Q106: 1364.422948
A107: San Buenaventura | B107: 60033501 | C107: 28.78972517 | D107: 28632.59078 | E107: 0.1117804722 | F107: 0 | G107: 10.28802166 | H107: 4268.781133 | I107: 0.1890757442 | J107: 0 | K107: 778.23648 | L107: 431.6182402 | M107: 579.4200758 | N107: 1158.507944 | O107: 39.37860305 | P107: 29212.01085 | Q107: 5478.635854
A108: San Buenaventura | B108: 60033601 | C108: 0 | D108: 23.68894314 | E108: 0 | F108: 0 | G108: 0 | H108: 53.03373927 | I108: 0 | J108: 0 | K108: 34.36280176 | L108: 42.56963986 | M108: 0.9873905588 | N108: 1.637945307 | O108: 0 | P108: 24.6763337 | Q108: 129.9661809
A109: Ojai | B109: 60034101 | C109: 14323.83513 | D109: 5426.119053 | E109: 155.0643126 | F109: 633.8133751 | G109: 4990.286947 | H109: 5170.485472 | I109: 138.007091 | J109: 0 | K109: 2633.649074 | L109: 1732.028171 | M109: 526.1089397 | N109: 310.6212505 | O109: 19607.19348 | P109: 5952.227993 | Q109: 10169.97609
A110: Ojai | B110: 60034201 | C110: 6596.810276 | D110: 1582.467935 | E110: 102.1654642 | F110: 1041.132959 | G110: 3221.815007 | H110: 1049.585676 | I110: 45.16381717 | J110: 0 | K110: 1346.967661 | L110: 425.1236668 | M110: 224.3325004 | N110: 87.91605065 | O110: 9965.954564 | P110: 1806.800435 | Q110: 3862.809963
A111: Ojai | B111: 60034301 | C111: 164.9838421 | D111: 20.42346017 | E111: 18.36321717 | F111: 0 | G111: 268.8878817 | H111: 60.84520466 | I111: 4.335432691 | J111: 0 | K111: 66.65511474 | L111: 10.18645659 | M111: 1.456770677 | N111: 2.124227036 | O111: 456.5703737 | P111: 21.88023085 | Q111: 137.686776
A112: Ojai | B112: 60034401 | C112: 10838.93286 | D112: 860.2723921 | E112: 104.0837351 | F112: 939.2017287 | G112: 3820.271978 | H112: 1056.665517 | I112: 83.22209951 | J112: 0 | K112: 644.2175254 | L112: 321.549363 | M112: 57.93318902 | N112: 41.21654495 | O112: 14846.51067 | P112: 918.2055811 | Q112: 2961.634134
A113: Ojai | B113: 60035101 | C113: 3746.281308 | D113: 6664.016486 | E113: 38.14691014 | F113: 0 | G113: 1303.754577 | H113: 6470.838823 | I113: 40.79810754 | J113: 0 | K113: 4260.345557 | L113: 3020.538282 | M113: 460.8115973 | N113: 752.9515965 | O113: 5128.980903 | P113: 7124.828083 | Q113: 13751.72266
A114: Ojai | B114: 60035102 | C114: 3861.861106 | D114: 4998.140358 | E114: 37.57630615 | F114: 1881.997449 | G114: 1316.049719 | H114: 2253.6919 | I114: 98.54554658 | J114: 0 | K114: 1452.955179 | L114: 897.5502689 | M114: 644.8627381 | N114: 180.4542247 | O114: 5314.032678 | P114: 5643.003096 | Q114: 6486.194798
B115: 60035201 | C115: 2732.594077 | D115: 498.5738263 | E115: 125.4777999 | F115: 398.3470765 | G115: 1912.574376 | H115: 298.3669092 | I115: 46.84593154 | J115: 0 | K115: 571.5423556 | L115: 114.4783921 | M115: 53.99554554 | N115: 20.18602914 | O115: 4817.492184 | P115: 552.5693718 | Q115: 1382.734733
A116: Ojai | B116: 60035301 | C116: 2264.684643 | D116: 242.0525366 | E116: 27.21879343 | F116: 0 | G116: 1047.963207 | H116: 582.7880089 | I116: 20.2761741 | J116: 0 | K116: 537.3381701 | L116: 176.049801 | M116: 35.93742429 | N116: 13.18261656 | O116: 3360.142818 | P116: 277.9899609 | Q116: 1296.17598
B117: 60035401 | C117: 1361.499918 | D117: 234.3114282 | E117: 121.0355081 | F117: 0 | G117: 1115.383552 | H117: 148.218961 | I117: 38.83227706 | J117: 0 | K117: 245.0966577 | L117: 24.78116474 | M117: 43.7467461 | N117: 11.03891238 | O117: 2636.751255 | P117: 278.0581743 | Q117: 418.0967834
A118: San Buenaventura | B118: 60036101 | C118: 10170.58311 | D118: 596.5916208 | E118: 590.277573 | F118: 0 | G118: 6073.382488 | H118: 2598.4068 | I118: 41.15474654 | J118: 0 | K118: 909.9262877 | L118: 522.9295218 | M118: 27.46427392 | N118: 134.2354474 | O118: 16875.39791 | P118: 624.0558947 | Q118: 4031.26261
A119: San Buenaventura | B119: 60036201 | C119: 2053.782041 | D119: 555.0528781 | E119: 166.5482046 | F119: 0 | G119: 1544.790053 | H119: 586.9587954 | I119: 11.12824248 | J119: 0 | K119: 415.0373756 | L119: 113.2222625 | M119: 277.1476382 | N119: 46.66841042 | O119: 3776.248541 | P119: 832.2005163 | Q119: 1115.218434
A120: San Buenaventura | B120: 60036301 | C120: 4508.455381 | D120: 1235.171688 | E120: 319.9000995 | F120: 0 | G120: 2797.828866 | H120: 1491.400007 | I120: 16.90596675 | J120: 0 | K120: 979.206874 | L120: 373.1586307 | M120: 728.483807 | N120: 107.3401458 | O120: 7643.090313 | P120: 1963.655495 | Q120: 2843.765512
A121: San Buenaventura | B121: 60036401 | C121: 2960.014668 | D121: 976.9541814 | E121: 313.9882196 | F121: 0 | G121: 2029.306061 | H121: 783.04582 | I121: 13.65532316 | J121: 0 | K121: 326.0870144 | L121: 155.2419766 | M121: 27.42698477 | N121: 72.91246728 | O121: 5316.964272 | P121: 1004.381166 | Q121: 1264.374811
A122: San Buenaventura | B122: 60036501 | C122: 1844.072629 | D122: 367.3456811 | E122: 113.7813688 | F122: 0 | G122: 1297.048727 | H122: 672.5567499 | I122: 9.023243813 | J122: 0 | K122: 218.5730741 | L122: 154.0688337 | M122: 12.11238343 | N122: 39.70003347 | O122: 3263.925969 | P122: 379.4580645 | Q122: 1045.198658
A123: San Buenaventura | B123: 60037101 | C123: 14666.96507 | D123: 1802.617385 | E123: 730.8064534 | F123: 0 | G123: 8832.474642 | H123: 3638.746855 | I123: 41.87455024 | J123: 0 | K123: 1866.937483 | L123: 766.2577516 | M123: 523.4087353 | N123: 221.8796984 | O123: 24272.12071 | P123: 2326.02612 | Q123: 6271.942089
A124: San Buenaventura | B124: 60038101 | C124: 5234.077457 | D124: 448.480809 | E124: 266.428243 | F124: 0 | G124: 3435.624229 | H124: 1320.240666 | I124: 17.20267602 | J124: 0 | K124: 557.4858417 | L124: 287.2088782 | M124: 23.59003707 | N124: 80.80120458 | O124: 8953.332605 | P124: 472.0708461 | Q124: 2164.935386
A125: San Buenaventura | B125: 60038201 | C125: 12667.62607 | D125: 2503.722469 | E125: 606.3228134 | F125: 0 | G125: 7787.529942 | H125: 2449.871774 | I125: 40.97309661 | J125: 0 | K125: 1210.320608 | L125: 510.0137564 | M125: 133.3446311 | N125: 198.1323572 | O125: 21102.45193 | P125: 2637.0671 | Q125: 4170.206138
A126: San Buenaventura | B126: 60038301 | C126: 3998.103673 | D126: 3194.755099 | E126: 198.0793497 | F126: 419.9156629 | G126: 2520.392747 | H126: 2995.949046 | I126: 12.47972086 | J126: 0 | K126: 1486.803064 | L126: 1678.473143 | M126: 127.6790768 | N126: 303.6611223 | O126: 6729.055491 | P126: 3322.434176 | Q126: 6581.140916
A127: San Buenaventura | B127: 60039101 | C127: 11987.23247 | D127: 2417.730067 | E127: 814.7966021 | F127: 434.1773903 | G127: 7703.22748 | H127: 4208.686932 | I127: 64.83055663 | J127: 0 | K127: 2073.082952 | L127: 1555.44828 | M127: 137.7724614 | N127: 260.2156905 | O127: 20570.0871 | P127: 2555.502528 | Q127: 8271.395554
B128: 60039201 | C128: 716.5163046 | D128: 5.782139377 | E128: 50.72624445 | F128: 0 | G128: 459.165384 | H128: 190.8853096 | I128: 3.463208635 | J128: 0 | K128: 68.02367252 | L128: 37.55044248 | M128: 0.2523562441 | N128: 8.392726815 | O128: 1229.871142 | P128: 6.034495621 | Q128: 296.4594246
A129: San Buenaventura | B129: 60039301 | C129: 0 | D129: 2642.218872 | E129: 0.3922831727 | F129: 0 | G129: 0 | H129: 2251.289872 | I129: 0 | J129: 0 | K129: 1077.175549 | L129: 1371.990642 | M129: 153.0904534 | N129: 321.0106383 | O129: 0.3922831727 | P129: 2795.309325 | Q129: 4700.456063
A130: San Buenaventura | B130: 60039401 | C130: 5047.053359 | D130: 293.2957541 | E130: 232.5462136 | F130: 0 | G130: 3301.828538 | H130: 1548.409411 | I130: 39.26747052 | J130: 0 | K130: 752.1319768 | L130: 301.1538903 | M130: 95.79838969 | N130: 77.42263126 | O130: 8620.695581 | P130: 389.0941437 | Q130: 2601.695279
A131: San Buenaventura | B131: 60039501 | C131: 7592.614104 | D131: 994.338073 | E131: 510.5680548 | F131: 0 | G131: 5728.059993 | H131: 1967.387233 | I131: 43.73700941 | J131: 0 | K131: 962.2715387 | L131: 390.9375414 | M131: 100.8496872 | N131: 120.3032007 | O131: 13874.97916 | P131: 1095.18776 | Q131: 3320.596313
A132: San Buenaventura | B132: 60040101 | C132: 7055.857629 | D132: 1049.900269 | E132: 400.702258 | F132: 0 | G132: 4674.586346 | H132: 2263.93341 | I132: 27.81537036 | J132: 0 | K132: 910.4328547 | L132: 550.855786 | M132: 85.42750821 | N132: 148.907946 | O132: 12158.9616 | P132: 1135.327777 | Q132: 3725.222051
A133: San Buenaventura | B133: 60040201 | C133: 6605.182207 | D133: 651.758117 | E133: 299.5714283 | F133: 0 | G133: 4283.91772 | H133: 1441.303018 | I133: 32.92033952 | J133: 0 | K133: 640.9785856 | L133: 305.5826391 | M133: 41.80076156 | N133: 84.03715674 | O133: 11221.59169 | P133: 693.5588785 | Q133: 2387.864243
A134: San Buenaventura | B134: 60040301 | C134: 4330.92223 | D134: 1432.401512 | E134: 350.7038811 | F134: 442.8234049 | G134: 3095.000657 | H134: 2041.604 | I134: 22.94962038 | J134: 0 | K134: 802.2821882 | L134: 958.2004738 | M134: 60.63927108 | N134: 112.6051545 | O134: 7799.576389 | P134: 1493.040783 | Q134: 4244.910067
A135: San Buenaventura | B135: 60041101 | C135: 0 | D135: 726.5375357 | E135: 0 | F135: 0 | G135: 0 | H135: 22.8628403 | I135: 0 | J135: 0 | K135: 35.08829686 | L135: 9.272476467 | M135: 26.80404131 | N135: 29.49659027 | O135: 0 | P135: 753.341577 | Q135: 67.22361363
A136: San Buenaventura | B136: 60041102 | C136: 8409.688538 | D136: 1269.283492 | E136: 483.027934 | F136: 0 | G136: 6608.763716 | H136: 3063.364823 | I136: 53.75149517 | J136: 0 | K136: 1624.395216 | L136: 782.1857789 | M136: 44.79346215 | N136: 164.5297293 | O136: 15555.23168 | P136: 1314.076955 | Q136: 5469.945818
B137: 60041201 | C137: 0 | D137: 997.051529 | E137: 0 | F137: 0 | G137: 0 | H137: 33.47633519 | I137: 0 | J137: 0 | K137: 52.43618355 | L137: 12.69275534 | M137: 38.7415093 | N137: 39.94407568 | O137: 0 | P137: 1035.793038 | Q137: 98.60527409
A138: San Buenaventura | B138: 60041202 | C138: 7125.838212 | D138: 2332.359111 | E138: 855.4401148 | F138: 181.9403986 | G138: 5697.079414 | H138: 4142.563126 | I138: 44.99517011 | J138: 0 | K138: 2271.105211 | L138: 1371.284475 | M138: 87.0718569 | N138: 284.0164974 | O138: 13723.35291 | P138: 2419.430968 | Q138: 7966.893211
A139: San Buenaventura | B139: 60041301 | C139: 0 | D139: 16.84218443 | E139: 0 | F139: 0 | G139: 0 | H139: 1.185017397 | I139: 0 | J139: 0 | K139: 23.23956037 | L139: 0.4826433012 | M139: 30.84920601 | N139: 1.54501912 | O139: 0 | P139: 47.69139044 | Q139: 24.90722107
A140: San Buenaventura | B140: 60041302 | C140: 1695.981951 | D140: 217.8784194 | E140: 174.7546749 | F140: 0 | G140: 1089.196027 | H140: 1631.342864 | I140: 7.945401456 | J140: 0 | K140: 875.4417771 | L140: 344.3139833 | M140: 35.29550099 | N140: 95.75843526 | O140: 2967.878055 | P140: 253.1739203 | Q140: 2851.098624
B141: 60041401 | C141: 403.0742726 | D141: 175.1567544 | E141: 48.34998794 | F141: 0 | G141: 284.4199888 | H141: 72.08696068 | I141: 2.419844464 | J141: 0 | K141: 64.25904076 | L141: 13.44405251 | M141: 22.52047865 | N141: 8.193944019 | O141: 738.2640938 | P141: 197.6772331 | Q141: 149.790054
A142: San Buenaventura | B142: 60042101 | C142: 3344.467792 | D142: 117.5087455 | E142: 324.9292905 | F142: 0 | G142: 2652.330749 | H142: 904.7242187 | I142: 19.726427 | J142: 0 | K142: 446.406891 | L142: 163.8274564 | M142: 4.035657144 | N142: 43.7974681 | O142: 6341.454259 | P142: 121.5444026 | Q142: 1514.958566
A143: San Buenaventura | B143: 60042201 | C143: 7499.445121 | D143: 656.5266611 | E143: 307.3248405 | F143: 0 | G143: 4921.000651 | H143: 1302.394388 | I143: 39.02272975 | J143: 0 | K143: 626.0983663 | L143: 252.0230467 | M143: 39.40110734 | N143: 81.78681279 | O143: 12766.79334 | P143: 695.9277685 | Q143: 2180.515801
A144: San Buenaventura | B144: 60042301 | C144: 20359.51391 | D144: 2906.492232 | E144: 1278.080888 | F144: 0 | G144: 13845.97026 | H144: 4419.776259 | I144: 99.57832169 | J144: 0 | K144: 2484.094225 | L144: 953.9839649 | M144: 202.765038 | N144: 306.4438581 | O144: 35583.14338 | P144: 3109.25727 | Q144: 7857.854449
A145: San Buenaventura | B145: 60042401 | C145: 1953.336572 | D145: 1659.896794 | E145: 45.35852503 | F145: 493.5274476 | G145: 1284.380769 | H145: 1564.256218 | I145: 9.804716761 | J145: 0 | K145: 704.0482987 | L145: 964.893153 | M145: 56.37390737 | N145: 89.62410668 | O145: 3292.880583 | P145: 1716.270701 | Q145: 3726.725117
A146: San Buenaventura | B146: 60042501 | C146: 4952.368715 | D146: 283.0670654 | E146: 363.158417 | F146: 0 | G146: 3525.578307 | H146: 859.241794 | I146: 26.54529123 | J146: 0 | K146: 416.9875056 | L146: 170.6893933 | M146: 11.46527861 | N146: 45.8625052 | O146: 8867.650731 | P146: 294.532344 | Q146: 1446.918693
A147: San Buenaventura | B147: 60042601 | C147: 6376.146865 | D147: 1326.044809 | E147: 394.4392712 | F147: 0 | G147: 4286.071743 | H147: 1808.713635 | I147: 36.4464674 | J147: 0 | K147: 1015.933573 | L147: 484.6401693 | M147: 99.51474316 | N147: 109.9750034 | O147: 11093.10435 | P147: 1425.559552 | Q147: 3309.287377
B148: 60042701 | C148: 0 | D148: 6874.090587 | E148: 0 | F148: 0 | G148: 0 | H148: 698.8322691 | I148: 0 | J148: 0 | K148: 823.6753223 | L148: 356.1951463 | M148: 805.8040301 | N148: 299.4200594 | O148: 0 | P148: 7679.894617 | Q148: 1878.702738
B149: 60043101 | C149: 64.14971678 | D149: 0 | E149: 21.09961443 | F149: 0 | G149: 47.41649309 | H149: 74.39234738 | I149: 0.2873135126 | J149: 0 | K149: 41.93558282 | L149: 13.31945698 | M149: 0 | N149: 3.232607356 | O149: 132.9531378 | P149: 0 | Q149: 129.6473872
B150: 60043201 | C150: 8123.039923 | D150: 3441.238502 | E150: 493.0786085 | F150: 0 | G150: 6122.678469 | H150: 4058.042387 | I150: 52.80295293 | J150: 0 | K150: 2411.428825 | L150: 1278.930383 | M150: 514.1447025 | N150: 329.2314219 | O150: 14791.59995 | P150: 3955.383205 | Q150: 7748.401595
A151: Santa Paula | B151: 60044101 | C151: 3966.477157 | D151: 405.8361995 | E151: 648.7788836 | F151: 916.83781 | G151: 5268.603541 | H151: 479.8892038 | I151: 56.69289261 | J151: 0 | K151: 1092.789472 | L151: 188.091446 | M151: 73.24245088 | N151: 29.65215573 | O151: 9940.552474 | P151: 479.0786504 | Q151: 2677.607932
B152: 60045101 | C152: 848.2817458 | D152: 373.8247447 | E152: 41.03263761 | F152: 0 | G152: 719.7777851 | H152: 103.7482679 | I152: 12.29798407 | J152: 0 | K152: 510.0016301 | L152: 32.38745299 | M152: 156.8496011 | N152: 12.67927012 | O152: 1621.390153 | P152: 530.6743458 | Q152: 646.1373509
B153: 60045201 | C153: 2486.079504 | D153: 596.3228563 | E153: 97.57802604 | F153: 0 | G153: 2448.568019 | H153: 422.8240163 | I153: 54.16989968 | J153: 0 | K153: 923.0850702 | L153: 128.0428384 | M153: 66.92748434 | N153: 25.44577614 | O153: 5086.395448 | P153: 663.2503407 | Q153: 1473.951925
B154: 60045301 | C154: 291.2611929 | D154: 67.50888044 | E154: 84.62683505 | F154: 0 | G154: 705.5365359 | H154: 95.08161687 | I154: 9.256839339 | J154: 0 | K154: 250.0474353 | L154: 20.25219479 | M154: 8.64065166 | N154: 6.460589542 | O154: 1090.681403 | P154: 76.1495321 | Q154: 365.381247
B155: 60046101 | C155: 653.5534894 | D155: 2550.423102 | E155: 58.51287199 | F155: 490.4587564 | G155: 494.8284904 | H155: 582.4947958 | I155: 8.754541498 | J155: 0 | K155: 505.5707572 | L155: 295.0216694 | M155: 226.6477178 | N155: 86.19205944 | O155: 1215.649393 | P155: 2777.07082 | Q155: 1873.545979
A156: Santa Paula | B156: 60046102 | C156: 9448.372784 | D156: 3191.452502 | E156: 585.130292 | F156: 0 | G156: 4752.139875 | H156: 2569.411537 | I156: 70.43585711 | J156: 0 | K156: 2295.633034 | L156: 841.406649 | M156: 225.6310231 | N156: 156.3613119 | O156: 14856.07881 | P156: 3417.083525 | Q156: 5706.45122
B157: 60046201 | C157: 1939.491401 | D157: 3662.36144 | E157: 280.7826836 | F157: 0 | G157: 1585.369024 | H157: 673.5446346 | I157: 22.08941197 | J157: 0 | K157: 597.2462811 | L157: 153.5216911 | M157: 278.9475252 | N157: 148.4507055 | O157: 3827.73252 | P157: 3941.308965 | Q157: 1424.312607
A158: Santa Paula | B158: 60047101 | C158: 17159.50772 | D158: 642.9358835 | E158: 772.030759 | F158: 147.3501713 | G158: 7372.333905 | H158: 2466.920832 | I158: 118.1320652 | J158: 0 | K158: 1593.979104 | L158: 581.0399514 | M158: 117.3696807 | N158: 85.85972986 | O158: 25422.00445 | P158: 760.3055642 | Q158: 4789.290059
A159: Santa Paula | B159: 60047201 | C159: 17997.51625 | D159: 5245.603295 | E159: 637.0463206 | F159: 203.0090113 | G159: 6778.962498 | H159: 5992.980518 | I159: 157.9804917 | J159: 0 | K159: 3992.13147 | L159: 2636.67126 | M159: 532.9729364 | N159: 314.2983721 | O159: 25571.50556 | P159: 5778.576232 | Q159: 12824.79226
A160: Santa Paula | B160: 60047301 | C160: 13154.92351 | D160: 4622.356011 | E160: 714.393237 | F160: 0 | G160: 6582.678121 | H160: 3558.674738 | I160: 138.4058752 | J160: 0 | K160: 2611.635237 | L160: 989.2426506 | M160: 442.7431424 | N160: 328.4290107 | O160: 20590.40074 | P160: 5065.099153 | Q160: 7159.552625
A161: Santa Paula | B161: 60047401 | C161: 12437.21402 | D161: 2519.658897 | E161: 561.455312 | F161: 0 | G161: 4686.851359 | H161: 1856.391864 | I161: 118.1868747 | J161: 0 | K161: 1433.899324 | L161: 430.2322805 | M161: 201.2274867 | N161: 120.5948222 | O161: 17803.70757 | P161: 2720.886383 | Q161: 3720.523468
A162: Santa Paula | B162: 60048101 | C162: 7843.610209 | D162: 376.5840444 | E162: 265.9399862 | F162: 201.3490031 | G162: 2891.715166 | H162: 1268.666635 | I162: 58.03930592 | J162: 0 | K162: 765.5244581 | L162: 390.5856217 | M162: 23.74991462 | N162: 35.20812062 | O162: 11059.30467 | P162: 400.333959 | Q162: 2626.125718
A163: Santa Paula | B163: 60048201 | C163: 2541.487145 | D163: 129.1617609 | E163: 244.828504 | F163: 6.748031617 | G163: 1712.144445 | H163: 317.9833711 | I163: 30.36088447 | J163: 0 | K163: 325.9539559 | L163: 49.79303333 | M163: 11.94236396 | N163: 12.42195309 | O163: 4528.820978 | P163: 141.1041248 | Q163: 700.478392
A164: Santa Paula | B164: 60048301 | C164: 30053.99092 | D164: 2703.054514 | E164: 627.1204885 | F164: 1330.777953 | G164: 11636.00223 | H164: 3815.741629 | I164: 269.59449 | J164: 0 | K164: 1790.434829 | L164: 1374.763489 | M164: 187.2981926 | N164: 145.8776679 | O164: 42586.70812 | P164: 2890.352707 | Q164: 8311.717899
A165: Santa Paula | B165: 60049101 | C165: 6153.031793 | D165: 2220.710874 | E165: 168.5749597 | F165: 80.03405413 | G165: 2233.049359 | H165: 1496.91906 | I165: 70.29098132 | J165: 0 | K165: 1405.840262 | L165: 504.9029092 | M165: 492.6114604 | N165: 85.28162256 | O165: 8624.947093 | P165: 2713.322334 | Q165: 3487.696286
A166: Santa Paula | B166: 60049201 | C166: 1744.7577 | D166: 2855.401788 | E166: 102.3488409 | F166: 0 | G166: 813.4576815 | H166: 534.8616574 | I166: 15.0847669 | J166: 0 | K166: 570.5099155 | L166: 128.1852559 | M166: 217.6579226 | N166: 86.09760794 | O166: 2675.648989 | P166: 3073.059711 | Q166: 1233.556829
A167: Santa Paula | B167: 60049301 | C167: 14255.24039 | D167: 10051.39808 | E167: 585.071715 | F167: 753.6644106 | G167: 5197.87283 | H167: 7801.450853 | I167: 142.5216672 | J167: 0 | K167: 4823.495723 | L167: 3315.364315 | M167: 1369.550471 | N167: 526.9631878 | O167: 20180.7066 | P167: 11420.94855 | Q167: 16693.9753
A168: Santa Paula | B168: 60049401 | C168: 9790.307241 | D168: 2240.871337 | E168: 393.4553336 | F168: 299.5118589 | G168: 4031.746183 | H168: 2388.523555 | I168: 76.46903816 | J168: 0 | K168: 1772.781131 | L168: 850.9288276 | M168: 242.4879626 | N168: 139.8399509 | O168: 14291.9778 | P168: 2483.359299 | Q168: 5311.745373
A169: Santa Paula | B169: 60049501 | C169: 4280.232097 | D169: 3118.14863 | E169: 139.8894928 | F169: 0 | G169: 1662.114316 | H169: 2169.030171 | I169: 46.48842112 | J169: 0 | K169: 1951.388449 | L169: 695.8275297 | M169: 566.2422787 | N169: 181.3470037 | O169: 6128.724327 | P169: 3684.390909 | Q169: 4816.246149
A170: Santa Paula | B170: 60050101 | C170: 5377.850037 | D170: 428.9917016 | E170: 268.6737978 | F170: 246.2968707 | G170: 3063.23037 | H170: 828.2080619 | I170: 37.60842691 | J170: 0 | K170: 630.2683658 | L170: 252.5876651 | M170: 48.89843663 | N170: 28.3670453 | O170: 8747.362632 | P170: 477.8901382 | Q170: 1957.360963
A171: Santa Paula | B171: 60050201 | C171: 13662.82236 | D171: 287.6011108 | E171: 852.6501185 | F171: 0 | G171: 7677.147105 | H171: 1724.63571 | I171: 140.1801433 | J171: 0 | K171: 1442.944083 | L171: 276.8493067 | M171: 36.40774891 | N171: 57.48841204 | O171: 22332.79972 | P171: 324.0088597 | Q171: 3444.429099
A172: Santa Paula | B172: 60050301 | C172: 17959.19238 | D172: 926.4965323 | E172: 664.0882346 | F172: 234.4325671 | G172: 7122.403361 | H172: 1808.906088 | I172: 206.7605372 | J172: 0 | K172: 1372.375777 | L172: 531.7617099 | M172: 234.1849338 | N172: 75.36613826 | O172: 25952.44451 | P172: 1160.681466 | Q172: 3947.476143
B173: 60051101 | C173: 49.28120192 | D173: 1078.646845 | E173: 35.67319828 | F173: 0 | G173: 197.0948854 | H173: 85.0371265 | I173: 6.305325075 | J173: 0 | K173: 156.6019055 | L173: 17.70888976 | M173: 78.51003617 | N173: 30.21127146 | O173: 288.3546107 | P173: 1157.156882 | Q173: 259.3479217
B174: 60051201 | C174: 566.2409792 | D174: 2156.084565 | E174: 56.31724746 | F174: 0 | G174: 361.869887 | H174: 1156.37861 | I174: 11.09142403 | J174: 0 | K174: 1837.625087 | L174: 448.4369023 | M174: 188.1164803 | N174: 160.2239201 | O174: 995.5195377 | P174: 2344.201045 | Q174: 3442.4406
A175: Santa Paula | B175: 60051202 | C175: 0 | D175: 5501.16749 | E175: 0 | F175: 0 | G175: 0 | H175: 426.5492805 | I175: 0 | J175: 0 | K175: 725.5244385 | L175: 173.333606 | M175: 350.4506017 | N175: 147.2212713 | O175: 0 | P175: 5851.618092 | Q175: 1325.407325
A176: Santa Paula | B176: 60051301 | C176: 6038.080394 | D176: 1645.153752 | E176: 283.6932404 | F176: 0 | G176: 3200.859084 | H176: 1569.677278 | I176: 100.4883012 | J176: 0 | K176: 1417.807285 | L176: 352.936368 | M176: 426.3924259 | N176: 113.9493212 | O176: 9623.12102 | P176: 2071.546178 | Q176: 3340.420931
A177: Santa Paula | B177: 60051302 | C177: 0 | D177: 0 | E177: 0 | F177: 0 | G177: 0 | H177: 0 | I177: 0 | J177: 0 | K177: 0 | L177: 0 | M177: 0 | N177: 0 | O177: 0 | P177: 0 | Q177: 0
B178: 60051401 | C178: 108.4149059 | D178: 1245.5423 | E178: 28.43318706 | F178: 0 | G178: 97.91448936 | H178: 115.4141807 | I178: 2.98614721 | J178: 0 | K178: 327.131841 | L178: 46.41804949 | M178: 311.3662129 | N178: 47.3704451 | O178: 237.7487295 | P178: 1556.908513 | Q178: 488.9640712
A179: Santa Paula | B179: 60051501 | C179: 144.5975969 | D179: 2053.453382 | E179: 15.85501322 | F179: 0 | G179: 83.15813524 | H179: 249.1538483 | I179: 1.225528671 | J179: 0 | K179: 212.5587895 | L179: 81.43150485 | M179: 307.2269227 | N179: 62.23234435 | O179: 244.8362741 | P179: 2360.680305 | Q179: 543.1441426
B180: 60051502 | C180: 162.0167599 | D180: 368.190249 | E180: 17.62477043 | F180: 0 | G180: 95.32707493 | H180: 33.68696824 | I180: 3.053436 | J180: 0 | K180: 79.60795825 | L180: 7.647313292 | M180: 67.38719338 | N180: 13.54387198 | O180: 278.0220412 | P180: 435.5774424 | Q180: 120.9422398
B181: 60051601 | C181: 217.9734248 | D181: 139.5487219 | E181: 97.247167 | F181: 0 | G181: 720.5200686 | H181: 116.9365645 | I181: 12.73094086 | J181: 0 | K181: 196.8395786 | L181: 22.43828298 | M181: 15.56039792 | N181: 6.776459481 | O181: 1048.471601 | P181: 155.1091198 | Q181: 336.2144261
B182: 60052101 | C182: 1252.517884 | D182: 925.8777392 | E182: 310.6032696 | F182: 389.6192065 | G182: 892.7596149 | H182: 608.7267301 | I182: 21.62458524 | J182: 508.152831 | K182: 988.4156452 | L182: 238.2313667 | M182: 94.759327 | N182: 36.11152383 | O182: 2477.505354 | P182: 1020.637066 | Q182: 2733.145779
B183: 60052201 | C183: 0 | D183: 455.4050079 | E183: 0 | F183: 0 | G183: 0 | H183: 13.14026143 | I183: 0 | J183: 0 | K183: 49.51237823 | L183: 4.188821806 | M183: 36.57146208 | N183: 11.24391869 | O183: 0 | P183: 491.97647 | Q183: 66.84146146
A184: Santa Paula | B184: 60052202 | C184: 7477.055196 | D184: 641.6163873 | E184: 655.4972577 | F184: 0 | G184: 3212.289072 | H184: 1526.9275 | I184: 94.95429201 | J184: 0 | K184: 1442.352633 | L184: 250.1308928 | M184: 241.7616152 | N184: 58.04050051 | O184: 11439.79582 | P184: 883.3780025 | Q184: 3219.411025
A185: Oxnard | B185: 60053101 | C185: 12.13950435 | D185: 852.3397763 | E185: 162.817523 | F185: 0 | G185: 38.03360967 | H185: 596.2815144 | I185: 0.7290820208 | J185: 0 | K185: 320.609878 | L185: 190.686771 | M185: 27.68155833 | N185: 77.30429097 | O185: 213.719719 | P185: 880.0213347 | Q185: 1107.578163
B186: 60054101 | C186: 86.11440428 | D186: 835.0759145 | E186: 0.5735043784 | F186: 0 | G186: 97.23796866 | H186: 52.57506752 | I186: 0.5320160447 | J186: 0 | K186: 47.8407568 | L186: 21.20747058 | M186: 28.06446204 | N186: 37.68772633 | O186: 184.4578934 | P186: 863.1403765 | Q186: 121.6232949
A187: Oxnard | B187: 60055101 | C187: 16201.28244 | D187: 2550.282458 | E187: 848.3146951 | F187: 0 | G187: 9781.623737 | H187: 5895.814226 | I187: 310.5902002 | J187: 0 | K187: 3915.704113 | L187: 1698.128884 | M187: 342.7239782 | N187: 517.0631597 | O187: 27141.81107 | P187: 2893.006436 | Q187: 11509.64722
A188: Oxnard | B188: 60055201 | C188: 10338.66643 | D188: 6672.387036 | E188: 476.9232777 | F188: 0 | G188: 5951.719961 | H188: 6744.48057 | I188: 148.6521438 | J188: 0 | K188: 4185.911152 | L188: 2512.660265 | M188: 1210.744298 | N188: 745.5119496 | O188: 16915.96182 | P188: 7883.131335 | Q188: 13443.05199
B189: 60055301 | C189: 1671.018593 | D189: 79.53708178 | E189: 112.4216446 | F189: 0 | G189: 1125.714672 | H189: 582.7715737 | I189: 21.14665734 | J189: 0 | K189: 250.5184697 | L189: 111.3486289 | M189: 2.43870602 | N189: 26.44452562 | O189: 2930.301567 | P189: 81.9757878 | Q189: 944.6386723
A190: Oxnard | B190: 60056101 | C190: 8863.739387 | D190: 5106.482404 | E190: 458.4389089 | F190: 358.9924171 | G190: 5349.022481 | H190: 5941.551605 | I190: 165.2092597 | J190: 0 | K190: 4151.442767 | L190: 2381.261902 | M190: 990.027049 | N190: 715.8667078 | O190: 14836.41004 | P190: 6096.509453 | Q190: 12833.24869
A191: Oxnard | B191: 60056201 | C191: 11708.86507 | D191: 4380.630702 | E191: 654.8040407 | F191: 0 | G191: 7993.817457 | H191: 4652.759557 | I191: 186.7082082 | J191: 0 | K191: 3218.878549 | L191: 1581.888681 | M191: 500.002828 | N191: 322.1291301 | O191: 20544.19478 | P191: 4880.63353 | Q191: 9453.526787
A192: Oxnard | B192: 60057101 | C192: 13672.51103 | D192: 2908.614335 | E192: 594.2109604 | F192: 751.3509005 | G192: 8948.84093 | H192: 6326.76078 | I192: 179.9252036 | J192: 0 | K192: 2346.229557 | L192: 2510.682265 | M192: 279.9369605 | N192: 444.0802889 | O192: 23395.48813 | P192: 3188.551296 | Q192: 11935.0235
A193: Oxnard | B193: 60057201 | C193: 14557.6694 | D193: 1416.492024 | E193: 459.6674692 | F193: 466.2764992 | G193: 8888.430676 | H193: 4080.004363 | I193: 204.3205387 | J193: 0 | K193: 1369.694351 | L193: 1334.265557 | M193: 121.3920607 | N193: 176.7251789 | O193: 24110.08808 | P193: 1537.884084 | Q193: 7250.24077
A194: Oxnard | B194: 60057301 | C194: 7497.453677 | D194: 431.4724716 | E194: 452.430538 | F194: 0 | G194: 4983.9567 | H194: 2212.888827 | I194: 98.12030516 | J194: 0 | K194: 913.9793219 | L194: 435.4313225 | M194: 15.99067247 | N194: 100.572352 | O194: 13031.96122 | P194: 447.4631441 | Q194: 3562.299472
A195: Port Hueneme | B195: 60058101 | C195: 0 | D195: 8046.997595 | E195: 1083.837012 | F195: 0 | G195: 0 | H195: 6011.353943 | I195: 0 | J195: 0 | K195: 3093.599243 | L195: 2804.84426 | M195: 379.3734836 | N195: 498.8622443 | O195: 1083.837012 | P195: 8426.371078 | Q195: 11909.79745
A196: Port Hueneme | B196: 60059101 | C196: 11451.40826 | D196: 1999.162039 | E196: 296.3441622 | F196: 0 | G196: 6102.625187 | H196: 5897.572502 | I196: 132.4988819 | J196: 0 | K196: 2602.262793 | L196: 1882.782978 | M196: 271.8200118 | N196: 330.1785009 | O196: 17982.87649 | P196: 2270.982051 | Q196: 10382.61827
A197: Port Hueneme | B197: 60059201 | C197: 17287.62748 | D197: 8442.607827 | E197: 1323.127475 | F197: 0 | G197: 11240.26453 | H197: 10400.66551 | I197: 222.9687113 | J197: 0 | K197: 6052.576941 | L197: 4565.920848 | M197: 685.1471886 | N197: 1079.992179 | O197: 30073.9882 | P197: 9127.755016 | Q197: 21019.1633
A198: Port Hueneme | B198: 60060101 | C198: 0 | D198: 0 | E198: 0 | F198: 0 | G198: 0 | H198: 0 | I198: 0 | J198: 0 | K198: 0 | L198: 0 | M198: 0 | N198: 0 | O198: 0 | P198: 0 | Q198: 0
A199: Oxnard | B199: 60061101 | C199: 21029.13031 | D199: 1339.115158 | E199: 897.1624265 | F199: 540.9617406 | G199: 12915.46139 | H199: 6575.810499 | I199: 271.2442776 | J199: 0 | K199: 1844.316243 | L199: 1811.973647 | M199: 79.44331598 | N199: 279.6838962 | O199: 35112.9984 | P199: 1418.558474 | Q199: 10773.06213
A200: Oxnard | B200: 60061201 | C200: 11.38364901 | D200: 7993.782333 | E200: 52.8434101 | F200: 0 | G200: 149.9878465 | H200: 4302.018987 | I200: 1.944041392 | J200: 0 | K200: 2056.315478 | L200: 2232.844253 | M200: 405.929467 | N200: 575.5982359 | O200: 216.158947 | P200: 8399.7118 | Q200: 8591.178719
... 1310 more rows

Sheet SummaryVMT-OP
C1: HBW-OP | E1: HBSC-OP | G1: HBNW-OP | I1: HBCU-OP | K1: OBO-OP | M1: WBO-OP | O1: Residential | P1: Non-residential
A2: CITY | B2: ZONE" | C2: O-VMT | D2: D-VMT | E2: O-VMT | F2: D-VMT | G2: O-VMT | H2: D-VMT | I2: O-VMT | J2: D-VMT | K2: O-VMT | L2: D-VMT | M2: O-VMT | N2: D-VMT | O2: Home-based | P2: Work-based | Q2: Other
B3: 60001101 | C3: 1440.829875 | D3: 87.77733061 | E3: 59.91965107 | F3: 0 | G3: 3826.513476 | H3: 318.5324077 | I3: 111.2338704 | J3: 0 | K3: 801.2636246 | L3: 33.43682149 | M3: 75.30909098 | N3: 7.969806364 | O3: 5438.496872 | P3: 163.0864216 | Q3: 1153.232854
B4: 60001201 | C4: 1202.605952 | D4: 88.64750499 | E4: 31.69133064 | F4: 0 | G4: 3829.427985 | H4: 1461.20288 | I4: 82.01640192 | J4: 0 | K4: 1423.897717 | L4: 125.8930602 | M4: 78.07695829 | N4: 1.862365237 | O4: 5145.74167 | P4: 166.7244633 | Q4: 3010.993657
B5: 60001301 | C5: 1196.35626 | D5: 0 | E5: 4.856159739 | F5: 0 | G5: 2155.486458 | H5: 274.1779391 | I5: 4.347787306 | J5: 0 | K5: 725.7434427 | L5: 141.0125958 | M5: 0 | N5: 0.06764914442 | O5: 3361.046665 | P5: 0 | Q5: 1140.933978
B6: 60002101 | C6: 2243.252278 | D6: 396.2916501 | E6: 122.7432909 | F6: 0 | G6: 5326.677792 | H6: 733.5993253 | I6: 179.5934392 | J6: 0 | K6: 1876.830178 | L6: 194.3124057 | M6: 166.2612635 | N6: 104.2716208 | O6: 7872.2668 | P6: 562.5529137 | Q6: 2804.741909
A7: San Buenaventura | B7: 60002201 | C7: 85.02812388 | D7: 333.5002355 | E7: 4.219241539 | F7: 0 | G7: 92.98014648 | H7: 139.0679142 | I7: 3.042462687 | J7: 0 | K7: 326.471523 | L7: 67.27762561 | M7: 304.0325419 | N7: 54.73731304 | O7: 185.2699746 | P7: 637.5327774 | Q7: 532.8170629
A8: San Buenaventura | B8: 60002301 | C8: 362.7776123 | D8: 59.9653822 | E8: 15.38872947 | F8: 0 | G8: 708.141607 | H8: 288.1422217 | I8: 18.66205645 | J8: 0 | K8: 202.602175 | L8: 83.65528599 | M8: 38.05531178 | N8: 27.73160078 | O8: 1104.970005 | P8: 98.02069399 | Q8: 574.3996827
B9: 60003101 | C9: 2809.728172 | D9: 220.929091 | E9: 65.40879828 | F9: 0 | G9: 4412.892444 | H9: 783.9733568 | I9: 154.229552 | J9: 0 | K9: 1151.219064 | L9: 172.3701507 | M9: 71.56433913 | N9: 65.83786331 | O9: 7442.258966 | P9: 292.4934302 | Q9: 2107.562571
B10: 60003201 | C10: 208.9062624 | D10: 4.637594238 | E10: 48.66062764 | F10: 0 | G10: 522.8108663 | H10: 20.90125146 | I10: 15.87100873 | J10: 0 | K10: 123.0103925 | L10: 4.031627503 | M10: 15.92434178 | N10: 1.904818927 | O10: 796.2487651 | P10: 20.56193601 | Q10: 147.9432714
B11: 60003301 | C11: 7665.031446 | D11: 651.2273782 | E11: 113.6372587 | F11: 69.25808923 | G11: 11107.96402 | H11: 1561.651724 | I11: 464.740058 | J11: 0 | K11: 2511.725002 | L11: 437.2835539 | M11: 570.2340279 | N11: 140.8410274 | O11: 19351.37279 | P11: 1221.461406 | Q11: 4579.918369
B12: 60003401 | C12: 0 | D12: 0 | E12: 0 | F12: 0 | G12: 0 | H12: 0 | I12: 0 | J12: 0 | K12: 0 | L12: 0 | M12: 0 | N12: 0 | O12: 0 | P12: 0 | Q12: 0
A13: San Buenaventura | B13: 60003501 | C13: 1532.423642 | D13: 231.3062965 | E13: 55.62074494 | F13: 0 | G13: 2090.041307 | H13: 545.4754732 | I13: 48.92231741 | J13: 0 | K13: 931.1183795 | L13: 139.127413 | M13: 278.2296973 | N13: 65.32902728 | O13: 3727.008012 | P13: 509.5359939 | Q13: 1615.721266
B14: 60003601 | C14: 1150.263664 | D14: 24.06303076 | E14: 21.94117894 | F14: 0 | G14: 1458.660558 | H14: 218.6886361 | I14: 70.24710331 | J14: 0 | K14: 327.8851561 | L14: 41.70864632 | M14: 17.21538385 | N14: 11.8205 | O14: 2701.112504 | P14: 41.27841461 | Q14: 588.2824386
A15: San Buenaventura | B15: 60004101 | C15: 6788.785587 | D15: 3135.957783 | E15: 294.7621859 | F15: 60.34325368 | G15: 6996.060339 | H15: 7346.294421 | I15: 183.0168076 | J15: 0 | K15: 5435.218642 | L15: 4185.435919 | M15: 1702.219694 | N15: 1003.274662 | O15: 14262.62492 | P15: 4838.177477 | Q15: 17027.29224
A16: San Buenaventura | B16: 60004201 | C16: 7889.481536 | D16: 2632.117426 | E16: 494.9060483 | F16: 190.7217567 | G16: 8901.823485 | H16: 3205.327157 | I16: 199.6304076 | J16: 0 | K16: 2333.400889 | L16: 1364.329771 | M16: 883.624766 | N16: 593.0633317 | O16: 17485.84148 | P16: 3515.742192 | Q16: 7093.779573
A17: San Buenaventura | B17: 60004301 | C17: 5783.786546 | D17: 3069.05452 | E17: 47.21819791 | F17: 0 | G17: 6793.140282 | H17: 1808.243518 | I17: 200.5328797 | J17: 0 | K17: 2557.069368 | L17: 815.0775256 | M17: 1155.929873 | N17: 528.4176566 | O17: 12824.67791 | P17: 4224.984393 | Q17: 5180.390411
B18: 60005101 | C18: 12198.82554 | D18: 265.6194548 | E18: 172.7757447 | F18: 0 | G18: 11440.49772 | H18: 3321.27879 | I18: 474.3585651 | J18: 0 | K18: 3117.528956 | L18: 695.2452028 | M18: 356.9380387 | N18: 173.1966622 | O18: 24286.45757 | P18: 622.5574935 | Q18: 7134.052948
B19: 60005201 | C19: 8618.963176 | D19: 713.9720912 | E19: 194.5427292 | F19: 303.0854023 | G19: 10636.37018 | H19: 2573.947953 | I19: 333.8992875 | J19: 0 | K19: 2858.954006 | L19: 870.892371 | M19: 485.2618343 | N19: 219.9425014 | O19: 19783.77538 | P19: 1199.233926 | Q19: 6606.879732
A20: San Buenaventura | B20: 60006101 | C20: 3810.949868 | D20: 6187.761036 | E20: 43.84093585 | F20: 75.36774819 | G20: 3516.853079 | H20: 7376.809291 | I20: 106.8145918 | J20: 0 | K20: 4546.975075 | L20: 4055.133997 | M20: 3090.792656 | N20: 1467.539393 | O20: 7478.458475 | P20: 9278.553691 | Q20: 16054.28611
A21: San Buenaventura | B21: 60006201 | C21: 1346.717401 | D21: 11096.06622 | E21: 42.64911635 | F21: 0 | G21: 1510.875139 | H21: 20959.0238 | I21: 52.19402377 | J21: 0 | K21: 10751.395 | L21: 14112.63166 | M21: 1946.134037 | N21: 2967.774079 | O21: 2952.43568 | P21: 13042.20026 | Q21: 45823.05046
A22: San Buenaventura | B22: 60006301 | C22: 409.0507192 | D22: 2561.427011 | E22: 8.599506203 | F22: 0 | G22: 464.5719336 | H22: 5355.831641 | I22: 16.0962197 | J22: 0 | K22: 3420.788898 | L22: 2884.960268 | M22: 237.0549075 | N22: 1607.260279 | O22: 898.3183787 | P22: 2798.481918 | Q22: 11661.58081
A23: San Buenaventura | B23: 60006401 | C23: 234.8933129 | D23: 2022.559834 | E23: 1.030287201 | F23: 0 | G23: 228.1143644 | H23: 3403.574772 | I23: 6.307474112 | J23: 0 | K23: 2442.134423 | L23: 2227.277497 | M23: 896.9231226 | N23: 593.9599385 | O23: 470.3454386 | P23: 2919.482956 | Q23: 8072.986691
A24: San Buenaventura | B24: 60007101 | C24: 4678.091792 | D24: 8461.579183 | E24: 45.48505816 | F24: 31.19148288 | G24: 4521.583749 | H24: 9336.266936 | I24: 129.3826449 | J24: 0 | K24: 6013.938859 | L24: 4588.459802 | M24: 3227.09202 | N24: 2276.555954 | O24: 9374.543244 | P24: 11688.6712 | Q24: 19969.85708
A25: San Buenaventura | B25: 60008101 | C25: 7652.240671 | D25: 1401.461969 | E25: 242.3604769 | F25: 5.27096308 | G25: 7614.080074 | H25: 2226.361177 | I25: 209.4449181 | J25: 0 | K25: 1559.805854 | L25: 647.1140062 | M25: 601.6405246 | N25: 362.1223765 | O25: 15718.12614 | P25: 2003.102493 | Q25: 4438.552001
A26: San Buenaventura | B26: 60008201 | C26: 2563.001673 | D26: 619.9145239 | E26: 64.80615012 | F26: 0 | G26: 2819.725049 | H26: 1778.336097 | I26: 71.57302377 | J26: 0 | K26: 1405.432135 | L26: 751.9681399 | M26: 502.9818531 | N26: 207.1627418 | O26: 5519.105896 | P26: 1122.896377 | Q26: 3935.736372
A27: San Buenaventura | B27: 60008301 | C27: 9469.265533 | D27: 1816.458915 | E27: 252.4631558 | F27: 481.8373226 | G27: 10640.75463 | H27: 3825.094892 | I27: 283.385568 | J27: 0 | K27: 3353.972854 | L27: 2289.356437 | M27: 534.6134612 | N27: 451.3442658 | O27: 20645.86888 | P27: 2351.072376 | Q27: 9950.261505
B28: 60009101 | C28: 6456.504893 | D28: 294.9241905 | E28: 53.10946259 | F28: 0 | G28: 4829.677723 | H28: 1861.695231 | I28: 336.7089055 | J28: 0 | K28: 1395.058533 | L28: 429.6819977 | M28: 90.10714655 | N28: 115.0345608 | O28: 11676.00098 | P28: 385.0313371 | Q28: 3686.435761
B29: 60009201 | C29: 4808.30921 | D29: 247.0124715 | E29: 48.0289645 | F29: 0 | G29: 4465.766895 | H29: 1740.382485 | I29: 217.6274359 | J29: 0 | K29: 1402.837529 | L29: 369.659954 | M29: 77.08563706 | N29: 85.91696734 | O29: 9539.732506 | P29: 324.0981086 | Q29: 3512.879968
B30: 60009301 | C30: 7948.881204 | D30: 523.7916264 | E30: 52.15639336 | F30: 19.52773267 | G30: 6501.074758 | H30: 1800.555973 | I30: 302.8358123 | J30: 0 | K30: 1616.978028 | L30: 486.9095798 | M30: 246.5857139 | N30: 168.5571832 | O30: 14804.94817 | P30: 770.3773404 | Q30: 3923.971314
B31: 60009302 | C31: 5232.505266 | D31: 339.4177376 | E31: 25.45159261 | F31: 21.69170388 | G31: 3947.461648 | H31: 1350.707767 | I31: 250.7531311 | J31: 0 | K31: 1131.234942 | L31: 390.804047 | M31: 192.3451597 | N31: 119.4465502 | O31: 9456.171638 | P31: 531.7628973 | Q31: 2894.43846
A32: Ojai | B32: 60009401 | C32: 7025.829533 | D32: 2342.208326 | E32: 47.89028992 | F32: 1483.794876 | G32: 5368.868856 | H32: 7894.112581 | I32: 319.3945584 | J32: 0 | K32: 4140.849777 | L32: 3637.081685 | M32: 1546.440442 | N32: 531.9394714 | O32: 12761.98324 | P32: 3888.648767 | Q32: 17155.83892
B33: 60010101 | C33: 9959.649381 | D33: 851.0323749 | E33: 100.1895035 | F33: 187.7328935 | G33: 8794.793061 | H33: 4159.314697 | I33: 349.1339568 | J33: 0 | K33: 3680.1616 | L33: 1468.696308 | M33: 336.6373571 | N33: 432.0259903 | O33: 19203.7659 | P33: 1187.669732 | Q33: 9495.905498
B34: 60010201 | C34: 8503.703114 | D34: 644.0025669 | E34: 108.4236497 | F34: 0 | G34: 9938.722733 | H34: 1818.734752 | I34: 328.0156473 | J34: 0 | K34: 2253.707056 | L34: 433.9769527 | M34: 241.3778285 | N34: 192.2232128 | O34: 18878.86514 | P34: 885.3803954 | Q34: 4506.418761
A35: San Buenaventura | B35: 60011101 | C35: 1530.141135 | D35: 2252.3441 | E35: 6.388917307 | F35: 0 | G35: 1555.147978 | H35: 2678.410308 | I35: 26.49054331 | J35: 0 | K35: 1728.202869 | L35: 1303.154133 | M35: 1306.577542 | N35: 714.3349355 | O35: 3118.168574 | P35: 3558.921643 | Q35: 5709.76731
A36: San Buenaventura | B36: 60011201 | C36: 1754.914757 | D36: 1425.477635 | E36: 13.54997565 | F36: 494.9759113 | G36: 1955.632402 | H36: 3177.554593 | I36: 36.78351681 | J36: 0 | K36: 1817.188487 | L36: 2262.249504 | M36: 1104.178173 | N36: 511.4331279 | O36: 3760.880651 | P36: 2529.655808 | Q36: 7751.968496
A37: San Buenaventura | B37: 60011301 | C37: 2655.76929 | D37: 829.3116636 | E37: 25.84767738 | F37: 0 | G37: 2945.067258 | H37: 2473.347492 | I37: 47.08262227 | J37: 0 | K37: 1534.530533 | L37: 1033.243973 | M37: 864.946967 | N37: 318.1503973 | O37: 5673.766848 | P37: 1694.258631 | Q37: 5041.121997
A38: San Buenaventura | B38: 60011401 | C38: 1024.916655 | D38: 2521.045624 | E38: 4.75344676 | F38: 0 | G38: 1014.601452 | H38: 4063.413043 | I38: 18.75008759 | J38: 0 | K38: 2477.557326 | L38: 2194.998665 | M38: 596.1793931 | N38: 1103.962842 | O38: 2063.021641 | P38: 3117.225017 | Q38: 8735.969033
A39: San Buenaventura | B39: 60012101 | C39: 2488.185261 | D39: 924.0670464 | E39: 11.30461471 | F39: 1298.854514 | G39: 2357.484396 | H39: 2587.254019 | I39: 31.93502714 | J39: 0 | K39: 811.8402129 | L39: 2944.593997 | M39: 145.6039867 | N39: 200.2634166 | O39: 4888.909299 | P39: 1069.671033 | Q39: 7642.542743
A40: San Buenaventura | B40: 60012201 | C40: 2213.762833 | D40: 1184.117193 | E40: 16.14805467 | F40: 15.0887086 | G40: 2336.755082 | H40: 2757.930175 | I40: 34.16892103 | J40: 0 | K40: 1494.390969 | L40: 1221.181016 | M40: 351.3342223 | N40: 553.2232116 | O40: 4600.834891 | P40: 1535.451415 | Q40: 5488.590868
B41: 60012301 | C41: 0 | D41: 0 | E41: 0 | F41: 0 | G41: 0 | H41: 0 | I41: 0 | J41: 0 | K41: 0 | L41: 0 | M41: 0 | N41: 0 | O41: 0 | P41: 0 | Q41: 0
A42: San Buenaventura | B42: 60012401 | C42: 2367.318455 | D42: 313.88161 | E42: 20.59468288 | F42: 0 | G42: 2620.49725 | H42: 1289.818185 | I42: 39.25520519 | J42: 0 | K42: 716.4329298 | L42: 331.8567309 | M42: 325.8524084 | N42: 135.4934725 | O42: 5047.665593 | P42: 639.7340184 | Q42: 2338.107845
A43: San Buenaventura | B43: 60013101 | C43: 2857.355536 | D43: 1316.05178 | E43: 48.55433937 | F43: 0 | G43: 3201.375427 | H43: 3595.578501 | I43: 64.52304945 | J43: 0 | K43: 2007.525971 | L43: 1536.537771 | M43: 162.5767598 | N43: 778.5224304 | O43: 6171.808352 | P43: 1478.62854 | Q43: 7139.642243
A44: San Buenaventura | B44: 60013201 | C44: 1000.453633 | D44: 5871.32695 | E44: 37.42788406 | F44: 0 | G44: 1721.969527 | H44: 8728.851757 | I44: 35.99726064 | J44: 0 | K44: 6583.635044 | L44: 5159.828577 | M44: 2023.811183 | N44: 2625.313961 | O44: 2795.848305 | P44: 7895.138133 | Q44: 20472.31538
A45: San Buenaventura | B45: 60013301 | C45: 8832.724243 | D45: 1946.855251 | E45: 182.1216028 | F45: 165.75187 | G45: 10006.32991 | H45: 6045.36044 | I45: 171.3026599 | J45: 0 | K45: 3709.911387 | L45: 2712.980177 | M45: 1030.884987 | N45: 848.9753186 | O45: 19192.47841 | P45: 2977.740238 | Q45: 12634.00387
A46: San Buenaventura | B46: 60013401 | C46: 302.3179698 | D46: 1890.002544 | E46: 7.570874838 | F46: 0 | G46: 319.9207996 | H46: 4032.16435 | I46: 5.18914655 | J46: 0 | K46: 2535.866874 | L46: 2349.372542 | M46: 255.2559078 | N46: 1215.273798 | O46: 634.9987908 | P46: 2145.258452 | Q46: 8917.403766
A47: Ojai | B47: 60014101 | C47: 3603.673545 | D47: 1628.065872 | E47: 14.20346853 | F47: 0 | G47: 2614.306638 | H47: 3105.148288 | I47: 112.7153673 | J47: 0 | K47: 2496.82714 | L47: 1318.206544 | M47: 663.003145 | N47: 240.3425533 | O47: 6344.899019 | P47: 2291.069017 | Q47: 6920.181973
B48: 60014201 | C48: 476.2479289 | D48: 739.1737338 | E48: 8.027780436 | F48: 0 | G48: 633.7041761 | H48: 2328.860287 | I48: 50.89382478 | J48: 0 | K48: 2451.938033 | L48: 1067.174166 | M48: 180.603878 | N48: 394.2372432 | O48: 1168.87371 | P48: 919.7776118 | Q48: 5847.972486
A49: Ojai | B49: 60014301 | C49: 1707.38854 | D49: 948.3049674 | E49: 10.8761575 | F49: 1005.933789 | G49: 1330.391169 | H49: 1874.195623 | I49: 68.60248779 | J49: 0 | K49: 1244.793617 | L49: 1090.239859 | M49: 602.9090081 | N49: 147.9555774 | O49: 3117.258354 | P49: 1551.213975 | Q49: 5215.162888
A50: Ojai | B50: 60014401 | C50: 5174.83472 | D50: 1327.498139 | E50: 27.5622993 | F50: 3777.775746 | G50: 4094.405442 | H50: 4294.162238 | I50: 241.1531571 | J50: 0 | K50: 2150.612667 | L50: 3079.418827 | M50: 657.7426871 | N50: 245.9261508 | O50: 9537.955618 | P50: 1985.240826 | Q50: 13301.96948
A51: San Buenaventura | B51: 60015101 | C51: 255.1518224 | D51: 1534.786146 | E51: 15.85168471 | F51: 0 | G51: 939.7444617 | H51: 764.5299752 | I51: 19.57202519 | J51: 0 | K51: 345.1784343 | L51: 293.8858948 | M51: 426.9715546 | N51: 269.1504438 | O51: 1230.319994 | P51: 1961.7577 | Q51: 1403.594304
A52: San Buenaventura | B52: 60015201 | C52: 2915.675503 | D52: 378.2739211 | E52: 41.25114794 | F52: 162.6657844 | G52: 3402.023958 | H52: 1830.85937 | I52: 41.66319545 | J52: 0 | K52: 695.2925442 | L52: 849.8928464 | M52: 125.1168901 | N52: 166.1417266 | O52: 6400.613805 | P52: 503.3908112 | Q52: 3538.710545
A53: San Buenaventura | B53: 60015301 | C53: 2531.909102 | D53: 118.6953178 | E53: 32.03739753 | F53: 0 | G53: 2745.512714 | H53: 1391.845805 | I53: 30.69600595 | J53: 0 | K53: 477.9740567 | L53: 320.5968942 | M53: 18.14446013 | N53: 123.915026 | O53: 5340.15522 | P53: 136.8397779 | Q53: 2190.416755
A54: San Buenaventura | B54: 60015401 | C54: 3442.496972 | D54: 326.5082156 | E54: 41.68141429 | F54: 0 | G54: 3759.50025 | H54: 1948.844604 | I54: 54.36534873 | J54: 0 | K54: 862.9724718 | L54: 490.9805156 | M54: 66.12079739 | N54: 187.7602021 | O54: 7298.043985 | P54: 392.6290129 | Q54: 3302.797591
A55: San Buenaventura | B55: 60015501 | C55: 1331.534647 | D55: 5283.471209 | E55: 11.26559223 | F55: 250.3841161 | G55: 1299.320628 | H55: 8615.073717 | I55: 18.97412343 | J55: 0 | K55: 4576.114735 | L55: 6095.660872 | M55: 1955.142324 | N55: 1463.651201 | O55: 2661.094991 | P55: 7238.613533 | Q55: 19537.23344
A56: San Buenaventura | B56: 60015601 | C56: 2889.148133 | D56: 846.1831369 | E56: 38.94642435 | F56: 0 | G56: 3478.801116 | H56: 3870.974846 | I56: 54.94044959 | J56: 0 | K56: 1640.663201 | L56: 1740.436765 | M56: 86.14537586 | N56: 513.7930911 | O56: 6461.836123 | P56: 932.3285128 | Q56: 7252.074812
A57: San Buenaventura | B57: 60016101 | C57: 1230.904949 | D57: 20966.24586 | E57: 12.11651329 | F57: 313.2054832 | G57: 1438.186807 | H57: 16024.78841 | I57: 16.09213558 | J57: 0 | K57: 6743.652597 | L57: 10493.40221 | M57: 4291.691728 | N57: 3711.322292 | O57: 2697.300405 | P57: 25257.93759 | Q57: 33575.0487
A58: San Buenaventura | B58: 60016201 | C58: 3104.836731 | D58: 12853.7178 | E58: 16.65732638 | F58: 0 | G58: 3022.533776 | H58: 16120.05738 | I58: 38.33532903 | J58: 0 | K58: 6371.123794 | L58: 9703.73447 | M58: 1271.492029 | N58: 2106.662965 | O58: 6182.363162 | P58: 14125.20983 | Q58: 32194.91564
A59: San Buenaventura | B59: 60016301 | C59: 2020.263757 | D59: 1668.396846 | E59: 24.67381462 | F59: 229.2730661 | G59: 2365.344384 | H59: 3146.677993 | I59: 19.59227984 | J59: 0 | K59: 1336.339334 | L59: 1823.308123 | M59: 243.4914553 | N59: 350.0403919 | O59: 4429.874235 | P59: 1911.888302 | Q59: 6535.598516
A60: San Buenaventura | B60: 60016401 | C60: 1450.624096 | D60: 1168.58142 | E60: 7.64833487 | F60: 0 | G60: 1511.145046 | H60: 1884.805137 | I60: 13.99192975 | J60: 0 | K60: 930.7825857 | L60: 837.2125019 | M60: 467.8675924 | N60: 372.5832803 | O60: 2983.409406 | P60: 1636.449012 | Q60: 3652.800225
A61: San Buenaventura | B61: 60017101 | C61: 19.87376857 | D61: 2.946362581 | E61: 0.1443144745 | F61: 0 | G61: 26.07006343 | H61: 6.965296348 | I61: 0.1321408789 | J61: 0 | K61: 3.497113255 | L61: 1.695626129 | M61: 0.5501595957 | N61: 1.319406398 | O61: 46.22028735 | P61: 3.496522176 | Q61: 12.15803573
A62: San Buenaventura | B62: 60017201 | C62: 240.7078948 | D62: 23603.1874 | E62: 6.381593205 | F62: 0 | G62: 332.8665097 | H62: 26989.11531 | I62: 6.07523603 | J62: 0 | K62: 13264.31573 | L62: 19685.77736 | M62: 6320.105401 | N62: 5695.843921 | O62: 586.0312337 | P62: 29923.2928 | Q62: 59939.2084
A63: San Buenaventura | B63: 60018101 | C63: 550.3050796 | D63: 11934.76846 | E63: 7.525043504 | F63: 0 | G63: 576.9587388 | H63: 29087.6972 | I63: 7.358340536 | J63: 0 | K63: 12086.3043 | L63: 21072.57418 | M63: 3495.151065 | N63: 3836.086627 | O63: 1142.147202 | P63: 15429.91953 | Q63: 62246.57568
A64: San Buenaventura | B64: 60018201 | C64: 6531.502359 | D64: 2050.123254 | E64: 81.3973373 | F64: 0 | G64: 8207.629184 | H64: 6094.36266 | I64: 33.17008649 | J64: 0 | K64: 3217.21476 | L64: 2445.837559 | M64: 505.8761303 | N64: 875.124497 | O64: 14853.69897 | P64: 2555.999384 | Q64: 11757.41498
A65: San Buenaventura | B65: 60018301 | C65: 2109.09896 | D65: 4895.919243 | E65: 34.78158565 | F65: 570.7486527 | G65: 2489.141415 | H65: 7534.444401 | I65: 25.51312778 | J65: 0 | K65: 3187.816139 | L65: 5440.615707 | M65: 1002.334223 | N65: 1053.37044 | O65: 4658.535088 | P65: 5898.253466 | Q65: 16733.6249
A66: San Buenaventura | B66: 60019101 | C66: 1095.370715 | D66: 161.348224 | E66: 42.92844888 | F66: 0 | G66: 1845.413242 | H66: 684.7616682 | I66: 20.74155212 | J66: 0 | K66: 580.4913741 | L66: 209.4558444 | M66: 165.844826 | N66: 95.45019528 | O66: 3004.453958 | P66: 327.19305 | Q66: 1474.708887
B67: 60020101 | C67: 19.61826403 | D67: 284.4055658 | E67: 0.7185836665 | F67: 0 | G67: 34.60808391 | H67: 25.32632803 | I67: 0.2209685997 | J67: 0 | K67: 27.18399232 | L67: 12.6708088 | M67: 29.70887911 | N67: 49.48860598 | O67: 55.16590021 | P67: 314.1144449 | Q67: 65.18112914
A68: San Buenaventura | B68: 60020102 | C68: 0 | D68: 250.2197973 | E68: 0 | F68: 0 | G68: 0 | H68: 604.3942607 | I68: 0 | J68: 0 | K68: 418.360742 | L68: 363.5857216 | M68: 28.24351262 | N68: 178.8497333 | O68: 0 | P68: 278.4633099 | Q68: 1386.340724
A69: San Buenaventura | B69: 60021101 | C69: 1518.736052 | D69: 552.2346083 | E69: 9.903867185 | F69: 0 | G69: 2045.664826 | H69: 656.924855 | I69: 11.06453926 | J69: 0 | K69: 434.7857674 | L69: 185.1146273 | M69: 260.6638877 | N69: 135.360564 | O69: 3585.369284 | P69: 812.8984961 | Q69: 1276.82525
A70: San Buenaventura | B70: 60022101 | C70: 4625.190658 | D70: 300.3441423 | E70: 46.88341528 | F70: 0 | G70: 5085.759459 | H70: 1896.590813 | I70: 43.41668024 | J70: 0 | K70: 842.6775248 | L70: 498.2808339 | M70: 105.6054197 | N70: 195.1457345 | O70: 9801.250212 | P70: 405.949562 | Q70: 3237.549171
A71: San Buenaventura | B71: 60022201 | C71: 2231.209901 | D71: 820.3845663 | E71: 27.79482634 | F71: 498.1119179 | G71: 2860.59086 | H71: 2505.298119 | I71: 10.53231995 | J71: 0 | K71: 1126.820513 | L71: 1994.16508 | M71: 346.5904042 | N71: 323.190339 | O71: 5130.127908 | P71: 1166.974971 | Q71: 6124.39563
A72: San Buenaventura | B72: 60022301 | C72: 2555.252602 | D72: 90.12417209 | E72: 27.12548811 | F72: 0 | G72: 3129.653169 | H72: 1279.766003 | I72: 12.86352302 | J72: 0 | K72: 498.9005765 | L72: 294.6601928 | M72: 24.49262549 | N72: 108.8319622 | O72: 5724.894782 | P72: 114.6167976 | Q72: 2073.326773
A73: San Buenaventura | B73: 60022401 | C73: 730.3276234 | D73: 5927.579511 | E73: 9.991840925 | F73: 136.8754845 | G73: 851.5585639 | H73: 8744.460414 | I73: 4.307834118 | J73: 20368.89996 | K73: 4724.958696 | L73: 5792.828854 | M73: 1336.486771 | N73: 1345.106096 | O73: 1596.185862 | P73: 7264.066282 | Q73: 39768.02341
A74: San Buenaventura | B74: 60023101 | C74: 2029.382733 | D74: 418.4398809 | E74: 27.8739725 | F74: 205.3578187 | G74: 2569.029674 | H74: 1543.263658 | I74: 6.357526598 | J74: 0 | K74: 600.4542857 | L74: 933.4854954 | M74: 62.18662492 | N74: 146.1409031 | O74: 4632.643906 | P74: 480.6265058 | Q74: 3282.561257
A75: San Buenaventura | B75: 60023201 | C75: 3767.882632 | D75: 2736.289935 | E75: 46.42579844 | F75: 882.6245042 | G75: 4228.632423 | H75: 4382.404055 | I75: 34.11941167 | J75: 0 | K75: 1557.906004 | L75: 3817.186951 | M75: 530.7200167 | N75: 591.8877846 | O75: 8077.060265 | P75: 3267.009951 | Q75: 10640.12151
A76: San Buenaventura | B76: 60023301 | C76: 488.9302434 | D76: 89.16514387 | E76: 13.32019751 | F76: 0 | G76: 602.4416061 | H76: 400.7774305 | I76: 5.02159471 | J76: 0 | K76: 208.8924229 | L76: 104.8313224 | M76: 82.25286988 | N76: 45.46340326 | O76: 1109.713642 | P76: 171.4180137 | Q76: 714.5011758
B77: 60024101 | C77: 27.92424135 | D77: 11.36579145 | E77: 12.91383369 | F77: 0 | G77: 164.3187045 | H77: 8.046669751 | I77: 5.898300521 | J77: 0 | K77: 47.43342477 | L77: 1.620167058 | M77: 6.983694752 | N77: 1.452497921 | O77: 211.0550801 | P77: 18.3494862 | Q77: 57.10026158
B78: 60024201 | C78: 9338.44993 | D78: 1450.803717 | E78: 401.2519359 | F78: 0 | G78: 13424.86305 | H78: 1997.882103 | I78: 333.6738745 | J78: 0 | K78: 2925.387969 | L78: 575.4605737 | M78: 1134.840477 | N78: 341.7066678 | O78: 23498.23879 | P78: 2585.644194 | Q78: 5498.730645
B79: 60024301 | C79: 225.602919 | D79: 41.23851344 | E79: 18.95962229 | F79: 0 | G79: 441.8405284 | H79: 61.35959224 | I79: 15.15034562 | J79: 0 | K79: 159.3136479 | L79: 18.99728416 | M79: 15.74981074 | N79: 6.752712109 | O79: 701.5534153 | P79: 56.98832418 | Q79: 239.6705243
A80: San Buenaventura | B80: 60024401 | C80: 61.65006706 | D80: 33.55547865 | E80: 9.316160896 | F80: 0 | G80: 102.1789748 | H80: 51.14490836 | I80: 2.829245256 | J80: 0 | K80: 97.72731116 | L80: 12.04249015 | M80: 33.33616909 | N80: 7.252603471 | O80: 175.974448 | P80: 66.89164774 | Q80: 160.9147097
B81: 60024501 | C81: 592.9321638 | D81: 393.5869192 | E81: 42.95693949 | F81: 0 | G81: 993.0400971 | H81: 231.6436749 | I81: 17.41236887 | J81: 0 | K81: 208.1468482 | L81: 55.58808927 | M81: 57.83925259 | N81: 70.19683267 | O81: 1646.341569 | P81: 451.4261718 | Q81: 495.3786124
B82: 60024601 | C82: 0 | D82: 0 | E82: 0 | F82: 0 | G82: 0 | H82: 0 | I82: 0 | J82: 0 | K82: 0 | L82: 0 | M82: 0 | N82: 0 | O82: 0 | P82: 0 | Q82: 0
A83: San Buenaventura | B83: 60025101 | C83: 7456.847764 | D83: 544.686131 | E83: 163.3628218 | F83: 0 | G83: 8609.161666 | H83: 3871.672558 | I83: 135.6014488 | J83: 0 | K83: 1344.710412 | L83: 1037.279194 | M83: 125.0250354 | N83: 347.2046846 | O83: 16364.9737 | P83: 669.7111665 | Q83: 6253.662164
A84: San Buenaventura | B84: 60025201 | C84: 6003.792432 | D84: 5128.031894 | E84: 124.5034145 | F84: 0 | G84: 6372.966648 | H84: 5937.675598 | I84: 88.67767556 | J84: 0 | K84: 2253.424246 | L84: 2166.566916 | M84: 945.9310099 | N84: 1132.539427 | O84: 12589.94017 | P84: 6073.962904 | Q84: 10357.66676
A85: San Buenaventura | B85: 60026101 | C85: 6.985203943 | D85: 38414.21186 | E85: 1.740347969 | F85: 345.1210708 | G85: 7.392520549 | H85: 25791.74677 | I85: 0.0571587466 | J85: 655.3182609 | K85: 13544.70736 | L85: 18671.87183 | M85: 7410.783703 | N85: 8040.083935 | O85: 16.17523121 | P85: 45824.99557 | Q85: 59008.76529
A86: San Buenaventura | B86: 60026201 | C86: 0 | D86: 955.4185352 | E86: 0 | F86: 0 | G86: 0 | H86: 239.55412 | I86: 0 | J86: 0 | K86: 237.3652955 | L86: 174.0892654 | M86: 225.5843735 | N86: 159.2834957 | O86: 0 | P86: 1181.002909 | Q86: 651.008681
A87: San Buenaventura | B87: 60026301 | C87: 0 | D87: 9755.718065 | E87: 0.7849440734 | F87: 0 | G87: 0 | H87: 8275.459521 | I87: 0 | J87: 0 | K87: 4464.520804 | L87: 5118.075556 | M87: 2130.296749 | N87: 2846.665601 | O87: 0.7849440734 | P87: 11886.01481 | Q87: 17858.05588
A88: San Buenaventura | B88: 60027101 | C88: 2668.602334 | D88: 5849.352872 | E88: 117.4712492 | F88: 0 | G88: 3183.412579 | H88: 13133.17654 | I88: 48.50826648 | J88: 0 | K88: 5699.889284 | L88: 7938.193549 | M88: 937.5257935 | N88: 1769.50298 | O88: 6017.994429 | P88: 6786.878665 | Q88: 26771.25937
A89: San Buenaventura | B89: 60027201 | C89: 4737.950878 | D89: 3669.344566 | E89: 141.1112705 | F89: 0 | G89: 5351.542568 | H89: 11523.81973 | I89: 78.27894537 | J89: 0 | K89: 4980.439236 | L89: 5778.44305 | M89: 1101.742791 | N89: 1783.583384 | O89: 10308.88366 | P89: 4771.087357 | Q89: 22282.70202
A90: San Buenaventura | B90: 60027301 | C90: 1363.337325 | D90: 13111.95652 | E90: 27.99768287 | F90: 0 | G90: 1302.728696 | H90: 22546.45219 | I90: 16.4845879 | J90: 0 | K90: 8448.754029 | L90: 14798.11596 | M90: 1828.120244 | N90: 3559.74092 | O90: 2710.548293 | P90: 14940.07676 | Q90: 45793.32217
B91: 60028101 | C91: 0 | D91: 81.94822495 | E91: 0 | F91: 0 | G91: 0 | H91: 95.66802262 | I91: 0 | J91: 0 | K91: 137.5464153 | L91: 79.83046501 | M91: 16.63274318 | N91: 13.4735772 | O91: 0 | P91: 98.58096813 | Q91: 313.044903
A92: San Buenaventura | B92: 60028102 | C92: 5789.253474 | D92: 1311.806285 | E92: 93.90510049 | F92: 203.2014135 | G92: 9349.002789 | H92: 3720.708085 | I92: 74.7418182 | J92: 0 | K92: 2330.486596 | L92: 1528.801623 | M92: 1362.383098 | N92: 439.9906468 | O92: 15306.90318 | P92: 2674.189383 | Q92: 7783.197717
A93: San Buenaventura | B93: 60029101 | C93: 2496.639655 | D93: 379.6016064 | E93: 32.37350655 | F93: 192.373926 | G93: 3338.615928 | H93: 1552.997646 | I93: 21.19023982 | J93: 0 | K93: 607.4281196 | L93: 973.0779222 | M93: 65.72131246 | N93: 140.0423957 | O93: 5888.81933 | P93: 445.3229189 | Q93: 3325.877613
A94: San Buenaventura | B94: 60029201 | C94: 0 | D94: 0 | E94: 0 | F94: 0 | G94: 0 | H94: 0 | I94: 0 | J94: 0 | K94: 0 | L94: 0 | M94: 0 | N94: 0 | O94: 0 | P94: 0 | Q94: 0
A95: San Buenaventura | B95: 60030101 | C95: 2892.344215 | D95: 2392.551356 | E95: 47.34183828 | F95: 965.837106 | G95: 3966.590378 | H95: 7407.115111 | I95: 42.04695393 | J95: 0 | K95: 4015.210583 | L95: 5761.963765 | M95: 385.1251183 | N95: 1036.593051 | O95: 6948.323385 | P95: 2777.676474 | Q95: 18150.12656
A96: San Buenaventura | B96: 60030201 | C96: 76.89389872 | D96: 3.000352958 | E96: 0.4080965685 | F96: 0 | G96: 94.95797417 | H96: 49.58438385 | I96: 1.324097301 | J96: 0 | K96: 22.06897681 | L96: 11.05057058 | M96: 0.5803950488 | N96: 4.565901015 | O96: 173.5840668 | P96: 3.580748006 | Q96: 82.70393124
A97: San Buenaventura | B97: 60031101 | C97: 0 | D97: 13627.77151 | E97: 2.288074055 | F97: 0 | G97: 0 | H97: 16991.53815 | I97: 0 | J97: 0 | K97: 10172.83721 | L97: 12833.94058 | M97: 4194.415399 | N97: 2917.378538 | O97: 2.288074055 | P97: 17822.1869 | Q97: 39998.31594
A98: San Buenaventura | B98: 60032101 | C98: 4712.678466 | D98: 4499.512555 | E98: 174.2717774 | F98: 0 | G98: 5464.734826 | H98: 11409.52325 | I98: 76.76103332 | J98: 0 | K98: 5267.980106 | L98: 5481.617073 | M98: 1708.760211 | N98: 1839.159437 | O98: 10428.4461 | P98: 6208.272765 | Q98: 22159.12043
A99: San Buenaventura | B99: 60032201 | C99: 1728.365107 | D99: 195.4319277 | E99: 71.25084295 | F99: 0 | G99: 2075.06467 | H99: 1987.34479 | I99: 33.3234769 | J99: 0 | K99: 740.8816097 | L99: 726.8244651 | M99: 19.86801689 | N99: 135.9814004 | O99: 3908.004097 | P99: 215.2999446 | Q99: 3455.050864
A100: San Buenaventura | B100: 60032301 | C100: 3860.244395 | D100: 645.5657631 | E100: 233.5876926 | F100: 0 | G100: 4649.498937 | H100: 3530.00833 | I100: 87.68251849 | J100: 0 | K100: 1354.221939 | L100: 995.6552846 | M100: 169.7647639 | N100: 352.189702 | O100: 8831.013543 | P100: 815.330527 | Q100: 5879.885553
A101: San Buenaventura | B101: 60032401 | C101: 294.4829974 | D101: 3321.891063 | E101: 17.66400521 | F101: 0 | G101: 379.5238974 | H101: 2160.707941 | I101: 7.243073103 | J101: 0 | K101: 1538.436683 | L101: 1282.715749 | M101: 1554.510315 | N101: 792.6182594 | O101: 698.9139731 | P101: 4876.401378 | Q101: 4981.860374
A102: San Buenaventura | B102: 60032501 | C102: 20.19266808 | D102: 3195.399483 | E102: 60.74129712 | F102: 114.2731533 | G102: 972.099337 | H102: 5130.190527 | I102: 15.68223708 | J102: 0 | K102: 1915.024714 | L102: 2443.203525 | M102: 895.7739581 | N102: 807.9792834 | O102: 1068.715539 | P102: 4091.173441 | Q102: 9602.691919
A103: San Buenaventura | B103: 60033101 | C103: 4250.43275 | D103: 6431.057662 | E103: 94.38189479 | F103: 0 | G103: 5158.056961 | H103: 9995.7065 | I103: 100.3195896 | J103: 0 | K103: 4369.219798 | L103: 4754.061384 | M103: 735.2192277 | N103: 1445.942262 | O103: 9603.191196 | P103: 7166.27689 | Q103: 19118.98768
A104: San Buenaventura | B104: 60033201 | C104: 2003.664718 | D104: 3150.807161 | E104: 58.68684916 | F104: 27.42111049 | G104: 2338.856959 | H104: 3556.995006 | I104: 30.85513802 | J104: 0 | K104: 1544.9551 | L104: 2015.582256 | M104: 1483.850536 | N104: 602.5426295 | O104: 4432.063664 | P104: 4634.657697 | Q104: 7144.953472
A105: San Buenaventura | B105: 60033301 | C105: 4475.550814 | D105: 560.2535903 | E105: 120.5572601 | F105: 145.6462642 | G105: 5160.240772 | H105: 3168.343041 | I105: 75.72732983 | J105: 0 | K105: 1015.24397 | L105: 1665.217602 | M105: 53.83772596 | N105: 253.3576633 | O105: 9832.076176 | P105: 614.0913163 | Q105: 5994.450877
A106: San Buenaventura | B106: 60033401 | C106: 1329.1166 | D106: 105.2121547 | E106: 28.02473643 | F106: 0 | G106: 1626.687832 | H106: 1123.615183 | I106: 42.02687739 | J106: 0 | K106: 431.4849124 | L106: 310.4810621 | M106: 11.35583811 | N106: 105.6989566 | O106: 3025.856046 | P106: 116.5679928 | Q106: 1865.581158
A107: San Buenaventura | B107: 60033501 | C107: 16.97404066 | D107: 15241.31778 | E107: 0.03297299083 | F107: 0 | G107: 14.28848909 | H107: 5560.446195 | I107: 0.3891934798 | J107: 0 | K107: 1160.359733 | L107: 638.7745033 | M107: 1293.767092 | N107: 2564.867326 | O107: 31.68469623 | P107: 16535.08488 | Q107: 7359.580432
A108: San Buenaventura | B108: 60033601 | C108: 0 | D108: 12.53957967 | E108: 0 | F108: 0 | G108: 0 | H108: 84.46206272 | I108: 0 | J108: 0 | K108: 51.50704668 | L108: 62.4853307 | M108: 2.232454702 | N108: 3.602150468 | O108: 0 | P108: 14.77203437 | Q108: 198.4544401
A109: Ojai | B109: 60034101 | C109: 8311.785813 | D109: 2830.491348 | E109: 47.75089989 | F109: 199.6230685 | G109: 6629.293516 | H109: 7143.125597 | I109: 472.4619455 | J109: 0 | K109: 4080.16637 | L109: 2510.568771 | M109: 1225.000083 | N109: 673.8225578 | O109: 15461.29217 | P109: 4055.491432 | Q109: 13933.48381
A110: Ojai | B110: 60034201 | C110: 3921.370709 | D110: 823.7388917 | E110: 33.25903639 | F110: 359.8842536 | G110: 4346.742193 | H110: 1285.87185 | I110: 195.178879 | J110: 0 | K110: 2053.619618 | L110: 616.8311957 | M110: 515.517585 | N110: 190.5170472 | O110: 8496.550818 | P110: 1339.256477 | Q110: 4316.206918
A111: Ojai | B111: 60034301 | C111: 98.39367163 | D111: 10.57478268 | E111: 5.931903124 | F111: 0 | G111: 382.6234632 | H111: 77.30055203 | I111: 19.13647026 | J111: 0 | K111: 101.5912547 | L111: 14.79860547 | M111: 3.349834952 | N111: 4.613541132 | O111: 506.0855082 | P111: 13.92461764 | Q111: 193.6904122
A112: Ojai | B112: 60034401 | C112: 6481.421789 | D112: 448.9995356 | E112: 31.98526728 | F112: 295.9032548 | G112: 5151.856755 | H112: 1245.157707 | I112: 345.785982 | J112: 0 | K112: 993.0121104 | L112: 467.04714 | M112: 134.1412081 | N112: 89.63925139 | O112: 12011.04979 | P112: 583.1407436 | Q112: 3001.120212
A113: Ojai | B113: 60035101 | C113: 2214.259398 | D113: 3482.661649 | E113: 11.82568283 | F113: 0 | G113: 1750.913399 | H113: 8855.09454 | I113: 122.6698886 | J113: 0 | K113: 6359.485131 | L113: 4400.012495 | M113: 1020.052825 | N113: 1641.458223 | O113: 4099.668369 | P113: 4502.714474 | Q113: 19614.59217
A114: Ojai | B114: 60035102 | C114: 2267.743182 | D114: 2603.924617 | E114: 11.75380377 | F114: 611.3241051 | G114: 1749.920908 | H114: 2694.780819 | I114: 130.0384018 | J114: 0 | K114: 2150.239827 | L114: 1304.903982 | M114: 1413.862499 | N114: 392.2448681 | O114: 4159.456295 | P114: 4017.787117 | Q114: 6761.248733
B115: 60035201 | C115: 1641.282107 | D115: 258.1183659 | E115: 41.007856 | F115: 138.8216801 | G115: 2442.079546 | H115: 362.4618274 | I115: 61.36357253 | J115: 0 | K115: 849.1817754 | L115: 165.9959857 | M115: 120.6454611 | N115: 43.69498154 | O115: 4185.733081 | P115: 378.763827 | Q115: 1516.461269
A116: Ojai | B116: 60035301 | C116: 1367.919769 | D116: 125.8711873 | E116: 8.675762011 | F116: 0 | G116: 1370.549999 | H116: 886.8807087 | I116: 85.72930581 | J116: 0 | K116: 795.8109784 | L116: 255.9321868 | M116: 79.97873793 | N116: 28.67990174 | O116: 2832.874836 | P116: 205.8499253 | Q116: 1938.623874
B117: 60035401 | C117: 823.4697319 | D117: 122.6375888 | E117: 39.67830569 | F117: 0 | G117: 1488.487556 | H117: 185.5753815 | I117: 63.03502666 | J117: 0 | K117: 361.4974662 | L117: 36.01104129 | M117: 97.28643537 | N117: 24.06874259 | O117: 2414.670621 | P117: 219.9240241 | Q117: 583.083889
A118: San Buenaventura | B118: 60036101 | C118: 6251.640114 | D118: 312.7589152 | E118: 197.3995084 | F118: 0 | G118: 7973.218247 | H118: 3292.321468 | I118: 120.8407521 | J118: 0 | K118: 1364.421999 | L118: 767.6157575 | M118: 62.49015788 | N118: 295.4360322 | O118: 14543.09862 | P118: 375.2490731 | Q118: 5424.359224
A119: San Buenaventura | B119: 60036201 | C119: 1254.301223 | D119: 290.8220155 | E119: 56.16936611 | F119: 0 | G119: 1990.088199 | H119: 739.9813617 | I119: 27.46221267 | J119: 0 | K119: 615.5268702 | L119: 166.0412395 | M119: 620.2831265 | N119: 102.5026275 | O119: 3328.021001 | P119: 911.105142 | Q119: 1521.549471
A120: San Buenaventura | B120: 60036301 | C120: 2781.595088 | D120: 647.8965979 | E120: 104.4845023 | F120: 0 | G120: 3559.449851 | H120: 1877.586949 | I120: 48.40640807 | J120: 0 | K120: 1451.013374 | L120: 546.900955 | M120: 1637.894673 | N120: 235.8279951 | O120: 6493.93585 | P120: 2285.791271 | Q120: 3875.501278
A121: San Buenaventura | B121: 60036401 | C121: 1849.88781 | D121: 520.6123388 | E121: 113.4749841 | F121: 0 | G121: 2609.148981 | H121: 1000.159901 | I121: 41.03398912 | J121: 0 | K121: 493.4802328 | L121: 230.1114916 | M121: 63.09461047 | N121: 161.6702757 | O121: 4613.545764 | P121: 583.7069493 | Q121: 1723.751625
A122: San Buenaventura | B122: 60036501 | C122: 1144.952294 | D122: 192.8572143 | E122: 39.78495707 | F122: 0 | G122: 1673.828189 | H122: 842.6612991 | I122: 25.05556114 | J122: 0 | K122: 329.285463 | L122: 226.1089121 | M122: 27.59259363 | N122: 87.27425187 | O122: 2883.621001 | P122: 220.4498079 | Q122: 1398.055674
A123: San Buenaventura | B123: 60037101 | C123: 8955.709342 | D123: 945.2719063 | E123: 228.7384839 | F123: 0 | G123: 11560.89239 | H123: 4597.171859 | I123: 111.9410916 | J123: 0 | K123: 2768.701693 | L123: 1123.590066 | M123: 1171.334925 | N123: 487.4560443 | O123: 20857.28131 | P123: 2116.606831 | Q123: 8489.463618
A124: San Buenaventura | B124: 60038101 | C124: 3179.180857 | D124: 234.9666421 | E124: 75.43339559 | F124: 0 | G124: 4441.164365 | H124: 1683.595662 | I124: 46.63554525 | J124: 0 | K124: 826.1987072 | L124: 421.0605165 | M124: 52.8161437 | N124: 177.5003833 | O124: 7742.414163 | P124: 287.7827858 | Q124: 2930.854885
A125: San Buenaventura | B125: 60038201 | C125: 7685.674231 | D125: 1312.926134 | E125: 197.9997595 | F125: 0 | G125: 10204.12226 | H125: 3098.539947 | I125: 114.4528143 | J125: 0 | K125: 1794.894091 | L125: 747.6584352 | M125: 299.1705146 | N125: 435.3942442 | O125: 18202.24907 | P125: 1612.096649 | Q125: 5641.092473
A126: San Buenaventura | B126: 60038301 | C126: 2422.597285 | D126: 1673.342777 | E126: 61.2694564 | F126: 113.7282458 | G126: 3250.275881 | H126: 3845.809249 | I126: 33.93171994 | J126: 0 | K126: 2204.958859 | L126: 2460.705767 | M126: 285.6628855 | N126: 667.0563892 | O126: 5768.074343 | P126: 1959.005662 | Q126: 8625.20212
A127: San Buenaventura | B127: 60039101 | C127: 7256.167937 | D127: 1269.717456 | E127: 269.3709595 | F127: 135.5306802 | G127: 10246.32628 | H127: 5246.964863 | I127: 173.6232971 | J127: 0 | K127: 3071.413082 | L127: 2282.785953 | M127: 308.6696259 | N127: 572.1966987 | O127: 17945.48847 | P127: 1578.387081 | Q127: 10736.69458
B128: 60039201 | C128: 448.925662 | D128: 3.099636045 | E128: 17.87753439 | F128: 0 | G128: 595.5962972 | H128: 245.2819873 | I128: 10.1787325 | J128: 0 | K128: 103.0543181 | L128: 55.64857895 | M128: 0.5795220215 | N128: 18.60256627 | O128: 1072.578226 | P128: 3.679158066 | Q128: 403.9848844
A129: San Buenaventura | B129: 60039301 | C129: 0 | D129: 1388.16388 | E129: 0.1262275543 | F129: 0 | G129: 0 | H129: 3243.868815 | I129: 0 | J129: 0 | K129: 1596.022741 | L129: 2009.473603 | M129: 341.7801311 | N129: 704.6001837 | O129: 0.1262275543 | P129: 1729.944011 | Q129: 6849.365159
A130: San Buenaventura | B130: 60039401 | C130: 3019.718861 | D130: 152.33877 | E130: 72.36303576 | F130: 0 | G130: 4466.081896 | H130: 1938.850347 | I130: 89.44558954 | J130: 0 | K130: 1128.476985 | L130: 429.4696991 | M130: 217.4098789 | N130: 163.8698174 | O130: 7647.609383 | P130: 369.7486489 | Q130: 3496.797031
A131: San Buenaventura | B131: 60039501 | C131: 4614.470895 | D131: 521.964957 | E131: 164.0478739 | F131: 0 | G131: 7467.964103 | H131: 2501.242029 | I131: 116.0082967 | J131: 0 | K131: 1424.73231 | L131: 573.6308479 | M131: 226.0609583 | N131: 264.4721043 | O131: 12362.49117 | P131: 748.0259154 | Q131: 4499.605186
A132: San Buenaventura | B132: 60040101 | C132: 4296.145115 | D132: 550.1968979 | E132: 129.0656385 | F132: 0 | G132: 6144.207656 | H132: 2892.689121 | I132: 74.70271302 | J132: 0 | K132: 1350.280002 | L132: 807.9302503 | M132: 191.215567 | N132: 327.1647184 | O132: 10644.12112 | P132: 741.4124649 | Q132: 5050.899374
A133: San Buenaventura | B133: 60040201 | C133: 4001.754064 | D133: 342.2837927 | E133: 95.56334499 | F133: 0 | G133: 5550.728976 | H133: 1841.186088 | I133: 84.721054 | J133: 0 | K133: 949.410896 | L133: 448.5226838 | M133: 93.58625611 | N133: 184.7583366 | O133: 9732.767439 | P133: 435.8700488 | Q133: 3239.119668
A134: San Buenaventura | B134: 60040301 | C134: 2616.348749 | D134: 751.3821689 | E134: 112.0597079 | F134: 134.9175892 | G134: 4019.565749 | H134: 2338.629941 | I134: 56.44174151 | J134: 0 | K134: 1188.352505 | L134: 1405.344773 | M134: 135.6800807 | N134: 247.4967569 | O134: 6804.415947 | P134: 887.0622497 | Q134: 5067.244808
A135: San Buenaventura | B135: 60041101 | C135: 0 | D135: 380.8483972 | E135: 0 | F135: 0 | G135: 0 | H135: 22.66025443 | I135: 0 | J135: 0 | K135: 53.10250859 | L135: 13.54935885 | M135: 61.54844486 | N135: 64.61652217 | O135: 0 | P135: 442.3968421 | Q135: 89.31212187
A136: San Buenaventura | B136: 60041102 | C136: 5075.401423 | D136: 665.3482127 | E136: 160.6075227 | F136: 0 | G136: 8933.899451 | H136: 3870.553337 | I136: 126.0834764 | J136: 0 | K136: 2413.417139 | L136: 1143.124716 | M136: 100.6019606 | N136: 360.7076554 | O136: 14295.99187 | P136: 765.9501733 | Q136: 7427.095192
B137: 60041201 | C137: 0 | D137: 522.0074576 | E137: 0 | F137: 0 | G137: 0 | H137: 33.17118828 | I137: 0 | J137: 0 | K137: 77.63182083 | L137: 18.50379164 | M137: 87.39415139 | N137: 87.38447576 | O137: 0 | P137: 609.401609 | Q137: 129.3068007
A138: San Buenaventura | B138: 60041202 | C138: 4261.529245 | D138: 1222.650702 | E138: 277.2575126 | F138: 53.11959479 | G138: 7757.104142 | H138: 5250.26226 | I138: 142.5040882 | J138: 0 | K138: 3380.997917 | L138: 2002.43838 | M138: 196.020371 | N138: 621.9603826 | O138: 12438.39499 | P138: 1418.671073 | Q138: 10686.81815
A139: San Buenaventura | B139: 60041301 | C139: 0 | D139: 8.907431802 | E139: 0 | F139: 0 | G139: 0 | H139: 1.177923275 | I139: 0 | J139: 0 | K139: 34.41558361 | L139: 0.7058220528 | M139: 69.4522312 | N139: 3.389891389 | O139: 0 | P139: 78.35966301 | Q139: 36.29932894
A140: San Buenaventura | B140: 60041302 | C140: 1014.251973 | D140: 114.1295203 | E140: 53.52481684 | F140: 0 | G140: 1521.984448 | H140: 2094.100084 | I140: 27.38534509 | J140: 0 | K140: 1299.444242 | L140: 502.9273621 | M140: 79.3590671 | N140: 209.9270179 | O140: 2617.146583 | P140: 193.4885874 | Q140: 3896.471689
B141: 60041401 | C141: 242.9722645 | D141: 91.34579766 | E141: 17.03162714 | F141: 0 | G141: 365.2094329 | H141: 89.79562341 | I141: 6.035275356 | J141: 0 | K141: 95.37899172 | L141: 19.42895148 | M141: 50.84247011 | N141: 17.82004271 | O141: 631.2485998 | P141: 142.1882678 | Q141: 204.6035666
A142: San Buenaventura | B142: 60042101 | C142: 2019.538332 | D142: 61.82677966 | E142: 108.5923591 | F142: 0 | G142: 3361.517732 | H142: 1157.07338 | I142: 57.09154997 | J142: 0 | K142: 662.365158 | L142: 239.8282909 | M142: 9.090137529 | N142: 96.17818092 | O142: 5546.739973 | P142: 70.91691718 | Q142: 2059.266829
A143: San Buenaventura | B143: 60042201 | C143: 4554.978294 | D143: 344.7350474 | E143: 100.7375729 | F143: 0 | G143: 6447.465526 | H143: 1663.805164 | I143: 110.4396292 | J143: 0 | K143: 936.365407 | L143: 369.9848982 | M143: 89.3899539 | N143: 179.940114 | O143: 11213.62102 | P143: 434.1250013 | Q143: 2970.155469
A144: San Buenaventura | B144: 60042301 | C144: 12341.87959 | D144: 1526.80893 | E144: 422.2664036 | F144: 0 | G144: 18161.31533 | H144: 5628.149501 | I144: 267.4773939 | J144: 0 | K144: 3703.79348 | L144: 1395.514512 | M144: 458.1869062 | N144: 672.4776231 | O144: 31192.93871 | P144: 1984.995836 | Q144: 10727.45749
A145: San Buenaventura | B145: 60042401 | C145: 1181.701249 | D145: 871.0724841 | E145: 15.00220675 | F145: 151.3394323 | G145: 1689.937105 | H145: 1688.594623 | I145: 28.9085388 | J145: 0 | K145: 1046.007701 | L145: 1411.385919 | M145: 127.1187452 | N145: 196.6820883 | O145: 2915.549099 | P145: 998.1912293 | Q145: 4297.327676
A146: San Buenaventura | B146: 60042501 | C146: 2983.268697 | D146: 148.5576215 | E146: 119.8865304 | F146: 0 | G146: 4482.472583 | H146: 1093.927081 | I146: 75.62572076 | J146: 0 | K146: 615.4723245 | L146: 250.4024621 | M146: 25.68602262 | N146: 100.8072997 | O146: 7661.253531 | P146: 174.2436441 | Q146: 1959.801868
A147: San Buenaventura | B147: 60042601 | C147: 3843.877067 | D147: 697.1713673 | E147: 127.5386784 | F147: 0 | G147: 5741.662078 | H147: 2300.509892 | I147: 110.070981 | J147: 0 | K147: 1506.955871 | L147: 709.3662747 | M147: 224.2864079 | N147: 241.5424133 | O147: 9823.148805 | P147: 921.4577752 | Q147: 4516.832037
B148: 60042701 | C148: 0 | D148: 3622.456544 | E148: 0 | F148: 0 | G148: 0 | H148: 860.9469113 | I148: 0 | J148: 0 | K148: 1219.919797 | L148: 522.4363896 | M148: 1811.063388 | N148: 658.8297549 | O148: 0 | P148: 5433.519933 | Q148: 2603.303098
B149: 60043101 | C149: 38.50885454 | D149: 0 | E149: 7.175566785 | F149: 0 | G149: 63.66236019 | H149: 95.16999559 | I149: 0.849810408 | J149: 0 | K149: 62.13131643 | L149: 19.46973364 | M149: 0 | N149: 7.09047201 | O149: 110.1965919 | P149: 0 | Q149: 176.7710457
B150: 60043201 | C150: 4835.541398 | D150: 1805.244657 | E150: 158.7121854 | F150: 0 | G150: 8057.95166 | H150: 5344.692962 | I150: 156.1606245 | J150: 0 | K150: 3577.689064 | L150: 1868.600241 | M150: 1159.7582 | N150: 721.8461738 | O150: 13208.36587 | P150: 2965.002857 | Q150: 10790.98227
A151: Santa Paula | B151: 60044101 | C151: 2385.459706 | D151: 211.569467 | E151: 227.5486711 | F151: 341.207569 | G151: 6636.507587 | H151: 581.7524113 | I151: 102.1030148 | J151: 0 | K151: 1610.918164 | L151: 272.7674826 | M151: 163.6978115 | N151: 64.55697048 | O151: 9351.618978 | P151: 375.2672786 | Q151: 2806.645626
B152: 60045101 | C152: 502.9085564 | D152: 192.8733648 | E152: 13.71042698 | F152: 0 | G152: 980.3356026 | H152: 129.3528198 | I152: 12.91162276 | J152: 0 | K152: 744.299286 | L152: 46.84946743 | M152: 346.5261812 | N152: 27.4280596 | O152: 1509.866209 | P152: 539.399546 | Q152: 920.5015733
B153: 60045201 | C153: 1484.391699 | D153: 308.0443948 | E153: 32.11731367 | F153: 0 | G153: 3304.674544 | H153: 547.6786127 | I153: 62.80178775 | J153: 0 | K153: 1360.086341 | L153: 185.4495368 | M153: 148.5392634 | N153: 55.07071273 | O153: 4883.985344 | P153: 456.5836582 | Q153: 2093.21449
B154: 60045301 | C154: 170.897244 | D154: 34.81339107 | E154: 27.95485188 | F154: 0 | G154: 953.7984076 | H154: 122.0991352 | I154: 7.126559511 | J154: 0 | K154: 364.7317067 | L154: 29.2977041 | M154: 19.08636874 | N154: 13.98336355 | O154: 1159.777063 | P154: 53.89975982 | Q154: 516.128546
B155: 60046101 | C155: 381.9019938 | D155: 1331.058971 | E155: 21.10715001 | F155: 170.0565521 | G155: 639.7606842 | H155: 588.9652129 | I155: 15.21931862 | J155: 0 | K155: 745.881858 | L155: 428.4890158 | M155: 502.2660435 | N155: 187.7955182 | O155: 1057.989147 | P155: 1833.325015 | Q155: 1933.392639
A156: Santa Paula | B156: 60046102 | C156: 5585.03035 | D156: 1654.116523 | E156: 214.6706573 | F156: 0 | G156: 6187.578619 | H156: 3491.911802 | I156: 214.8365372 | J156: 0 | K156: 3464.473872 | L156: 1215.441937 | M156: 509.6464914 | N156: 338.9290964 | O156: 12202.11616 | P156: 2163.763014 | Q156: 8171.827611
B157: 60046201 | C157: 1165.860889 | D157: 1909.748835 | E157: 101.2811345 | F157: 0 | G157: 2046.738467 | H157: 806.0356373 | I157: 37.08828514 | J157: 0 | K157: 890.8665314 | L157: 223.0792058 | M157: 627.7479889 | N157: 323.9816804 | O157: 3350.968776 | P157: 2537.496824 | Q157: 1919.981374
A158: Santa Paula | B158: 60047101 | C158: 10246.2436 | D158: 333.3731378 | E158: 259.5084258 | F158: 39.66769637 | G158: 9669.349399 | H158: 2946.018165 | I158: 326.2593998 | J158: 0 | K158: 2413.272925 | L158: 840.7066921 | M158: 264.2816064 | N158: 186.6065836 | O158: 20501.36082 | P158: 597.6547442 | Q158: 6239.665478
A159: Santa Paula | B159: 60047201 | C159: 10556.5645 | D159: 2716.183285 | E159: 204.2094773 | F159: 46.47640308 | G159: 8720.233783 | H159: 8190.981225 | I159: 428.2422054 | J159: 0 | K159: 6101.425613 | L159: 3814.580655 | M159: 1206.762452 | N159: 682.8883032 | O159: 19909.24997 | P159: 3922.945737 | Q159: 18153.4639
A160: Santa Paula | B160: 60047301 | C160: 7666.829294 | D160: 2394.128803 | E160: 201.2494814 | F160: 0 | G160: 8703.12078 | H160: 4544.854088 | I160: 351.7089909 | J160: 0 | K160: 3962.531144 | L160: 1430.615981 | M160: 1001.091374 | N160: 713.3876878 | O160: 16922.90855 | P160: 3395.220176 | Q160: 9938.001213
A161: Santa Paula | B161: 60047401 | C161: 7317.422127 | D161: 1303.799259 | E161: 186.8804676 | F161: 0 | G161: 6071.380555 | H161: 2337.699576 | I161: 297.0569773 | J161: 0 | K161: 2167.741065 | L161: 621.5228702 | M161: 453.2145031 | N161: 261.7194055 | O161: 13872.74013 | P161: 1757.013762 | Q161: 5126.963511
A162: Santa Paula | B162: 60048101 | C162: 4628.188331 | D162: 194.6286126 | E162: 72.09036199 | F162: 56.83253919 | G162: 3718.565429 | H162: 1459.271598 | I162: 152.9806469 | J162: 0 | K162: 1139.051739 | L162: 564.4235247 | M162: 52.9075189 | N162: 76.44078106 | O162: 8571.824769 | P162: 247.5361315 | Q162: 3219.5794
A163: Santa Paula | B163: 60048201 | C163: 1515.23556 | D163: 66.68631252 | E163: 73.67146084 | F163: 2.096423505 | G163: 2171.737726 | H163: 392.4390419 | I163: 28.13879569 | J163: 0 | K163: 479.0314866 | L163: 71.91278947 | M163: 26.41000914 | N163: 26.91724877 | O163: 3788.783543 | P163: 93.09632166 | Q163: 945.4797415
A164: Santa Paula | B164: 60048301 | C164: 17756.61326 | D164: 1400.166402 | E164: 189.0142831 | F164: 415.8137389 | G164: 14956.64234 | H164: 4005.543599 | I164: 641.405132 | J164: 0 | K164: 2666.903718 | L164: 1985.269073 | M164: 416.2692314 | N164: 316.4959666 | O164: 33543.67501 | P164: 1816.435633 | Q164: 9073.530129
A165: Santa Paula | B165: 60049101 | C165: 3617.817981 | D165: 1147.480731 | E165: 46.3732003 | F165: 23.65751637 | G165: 2871.666041 | H165: 1946.808549 | I165: 141.6281358 | J165: 0 | K165: 2090.825812 | L165: 729.7756981 | M165: 1092.85448 | N165: 185.035698 | O165: 6677.485357 | P165: 2240.335211 | Q165: 4791.067576
A166: Santa Paula | B166: 60049201 | C166: 1013.669585 | D166: 1473.18705 | E166: 27.90484521 | F166: 0 | G166: 1052.365472 | H166: 672.4919028 | I166: 40.80182594 | J166: 0 | K166: 845.3697582 | L166: 185.2193119 | M166: 484.2416992 | N166: 186.8737794 | O166: 2134.741728 | P166: 1957.428749 | Q166: 1703.080973
A167: Santa Paula | B167: 60049301 | C167: 8152.409833 | D167: 5195.63726 | E167: 167.5019903 | F167: 209.8728376 | G167: 6571.252448 | H167: 10142.71699 | I167: 360.40847 | J167: 0 | K167: 7210.002253 | L167: 4792.097833 | M167: 3049.844803 | N167: 1143.50518 | O167: 15251.57274 | P167: 8245.482063 | Q167: 22354.68991
A168: Santa Paula | B168: 60049401 | C168: 5748.142508 | D168: 1156.265149 | E168: 109.3598585 | F168: 80.53709598 | G168: 5067.353829 | H168: 2920.37693 | I168: 203.3890275 | J168: 0 | K168: 2634.066969 | L168: 1228.299938 | M168: 539.3622525 | N168: 303.4147019 | O168: 11128.24522 | P168: 1695.627402 | Q168: 6863.280933
A169: Santa Paula | B169: 60049501 | C169: 2475.737665 | D169: 1610.151589 | E169: 35.43955344 | F169: 0 | G169: 2170.462901 | H169: 2782.256629 | I169: 105.0271767 | J169: 0 | K169: 2906.558437 | L169: 1004.590563 | M169: 1260.109492 | N169: 393.4727347 | O169: 4786.667296 | P169: 2870.26108 | Q169: 6693.405629
A170: Santa Paula | B170: 60050101 | C170: 3207.780402 | D170: 221.4283941 | E170: 79.72601576 | F170: 67.05295871 | G170: 3869.745499 | H170: 913.5227535 | I170: 46.41722487 | J170: 0 | K170: 927.9019753 | L170: 364.7959084 | M170: 108.4392765 | N170: 61.48913356 | O170: 7203.669142 | P170: 329.8676707 | Q170: 2273.273596
A171: Santa Paula | B171: 60050201 | C171: 8110.478068 | D171: 148.7014548 | E171: 241.9695303 | F171: 0 | G171: 9703.158844 | H171: 2138.418826 | I171: 185.784722 | J171: 0 | K171: 2130.341598 | L171: 400.0211683 | M171: 80.56441286 | N171: 124.6445951 | O171: 18241.39116 | P171: 229.2658677 | Q171: 4668.781592
A172: Santa Paula | B172: 60050301 | C172: 10568.30573 | D172: 478.9164375 | E172: 193.0157656 | F172: 67.13496416 | G172: 8938.3376 | H172: 2133.45187 | I172: 372.4872405 | J172: 0 | K172: 2034.92491 | L172: 768.417026 | M172: 518.8419187 | N172: 163.475785 | O172: 20072.14633 | P172: 997.7583562 | Q172: 5003.928771
B173: 60051101 | C173: 27.91945186 | D173: 555.9302477 | E173: 14.11110626 | F173: 0 | G173: 265.8413328 | H173: 96.88403484 | I173: 11.66549687 | J173: 0 | K173: 227.6570756 | L173: 25.55559314 | M173: 171.6347686 | N173: 65.44993277 | O173: 319.5373877 | P173: 727.5650163 | Q173: 350.0967036
B174: 60051201 | C174: 335.148199 | D174: 1110.121079 | E174: 21.07127248 | F174: 0 | G174: 461.0410323 | H174: 1562.931131 | I174: 20.62733804 | J174: 0 | K174: 2721.565532 | L174: 647.6180282 | M174: 418.4539499 | N174: 347.1845422 | O174: 837.8878417 | P174: 1528.575029 | Q174: 4932.114692
A175: Santa Paula | B175: 60051202 | C175: 0 | D175: 2834.929736 | E175: 0 | F175: 0 | G175: 0 | H175: 566.5918351 | I175: 0 | J175: 0 | K175: 1086.281174 | L175: 250.2967179 | M175: 790.5068306 | N175: 319.0040416 | O175: 0 | P175: 3625.436566 | Q175: 1903.169727
A176: Santa Paula | B176: 60051301 | C176: 3548.935934 | D176: 851.2915605 | E176: 91.10670736 | F176: 0 | G176: 4262.639448 | H176: 1965.633322 | I176: 193.0802216 | J176: 0 | K176: 2140.123469 | L176: 510.306232 | M176: 957.2705853 | N176: 247.305151 | O176: 8095.762311 | P176: 1808.562146 | Q176: 4616.063023
A177: Santa Paula | B177: 60051302 | C177: 0 | D177: 0 | E177: 0 | F177: 0 | G177: 0 | H177: 0 | I177: 0 | J177: 0 | K177: 0 | L177: 0 | M177: 0 | N177: 0 | O177: 0 | P177: 0 | Q177: 0
B178: 60051401 | C178: 64.65941935 | D178: 650.4127728 | E178: 10.30509811 | F178: 0 | G178: 134.5766176 | H178: 141.8257171 | I178: 5.06029644 | J178: 0 | K178: 482.9791746 | L178: 67.49530113 | M178: 695.8328795 | N178: 103.3288726 | O178: 214.6014315 | P178: 1346.245652 | Q178: 692.3001928
A179: Santa Paula | B179: 60051501 | C179: 86.21428501 | D179: 1063.050725 | E179: 5.755093825 | F179: 0 | G179: 108.9968743 | H179: 281.4155803 | I179: 4.071556062 | J179: 0 | K179: 317.3656711 | L179: 117.7265338 | M179: 691.2700355 | N179: 134.882769 | O179: 205.0378092 | P179: 1754.320761 | Q179: 716.5077852
B180: 60051502 | C180: 96.11827886 | D180: 191.7233857 | E180: 6.549723833 | F180: 0 | G180: 121.3633947 | H180: 39.28921937 | I180: 5.487371667 | J180: 0 | K180: 118.2143531 | L180: 11.08820147 | M180: 149.9067883 | N180: 29.46364057 | O180: 229.5187691 | P180: 341.6301741 | Q180: 168.591774
B181: 60051601 | C181: 127.5591163 | D181: 71.60561632 | E181: 36.79302466 | F181: 0 | G181: 925.0583448 | H181: 150.3425712 | I181: 24.05703591 | J181: 0 | K181: 289.6866764 | L181: 32.44051176 | M181: 34.64621303 | N181: 14.71947061 | O181: 1113.467522 | P181: 106.2518294 | Q181: 472.4697594
B182: 60052101 | C182: 740.9025801 | D182: 477.7537982 | E182: 99.86314412 | F182: 145.9926872 | G182: 1203.526764 | H182: 697.6297014 | I182: 16.77002291 | J182: 658.6651244 | K182: 1446.862932 | L182: 344.1952894 | M182: 209.4267942 | N182: 78.17419446 | O182: 2061.062511 | P182: 687.1805924 | Q182: 3293.345735
B183: 60052201 | C183: 0 | D183: 234.5493286 | E183: 0 | F183: 0 | G183: 0 | H183: 13.27138499 | I183: 0 | J183: 0 | K183: 73.00935486 | L183: 6.051615525 | M183: 81.10045864 | N183: 24.35791743 | O183: 0 | P183: 315.6497873 | Q183: 92.33235538
A184: Santa Paula | B184: 60052202 | C184: 4458.730035 | D184: 330.6481499 | E184: 230.5426233 | F184: 0 | G184: 4194.220089 | H184: 1921.236107 | I184: 212.0994951 | J184: 0 | K184: 2162.006605 | L184: 360.7089346 | M184: 543.2973063 | N184: 125.6936219 | O184: 9095.592242 | P184: 873.9454562 | Q184: 4443.951646
A185: Oxnard | B185: 60053101 | C185: 7.513465537 | D185: 447.5457185 | E185: 56.9575304 | F185: 0 | G185: 54.31599319 | H185: 773.8678427 | I185: 1.145436179 | J185: 0 | K185: 473.8998372 | L185: 279.1205506 | M185: 61.57146587 | N185: 169.6317848 | O185: 119.9324253 | P185: 509.1171844 | Q185: 1526.888231
B186: 60054101 | C186: 53.11200224 | D186: 439.1140303 | E186: 0.1984661712 | F186: 0 | G186: 119.5379008 | H186: 57.41349947 | I186: 0.9285315164 | J186: 0 | K186: 70.61482037 | L186: 31.05411895 | M186: 62.47161456 | N186: 82.76906422 | O186: 173.7769007 | P186: 501.5856448 | Q186: 159.0824388
A187: Oxnard | B187: 60055101 | C187: 9757.895005 | D187: 1339.388748 | E187: 306.2352239 | F187: 0 | G187: 13396.12472 | H187: 7617.389679 | I187: 563.9689347 | J187: 0 | K187: 5779.550865 | L187: 2482.498125 | M187: 760.9878508 | N187: 1134.497494 | O187: 24024.22388 | P187: 2100.376599 | Q187: 15879.43867
A188: Oxnard | B188: 60055201 | C188: 6322.282509 | D188: 3497.187083 | E188: 167.2676959 | F188: 0 | G188: 8099.760874 | H188: 8966.567752 | I188: 299.3553345 | J188: 0 | K188: 6181.78283 | L188: 3666.401447 | M188: 2688.529179 | N188: 1633.009795 | O188: 14888.66641 | P188: 6185.716262 | Q188: 18814.75203
B189: 60055301 | C189: 1032.293861 | D189: 41.70062275 | E189: 39.2712924 | F189: 0 | G189: 1489.383372 | H189: 733.6843758 | I189: 41.32428157 | J189: 0 | K189: 368.5846858 | L189: 163.0542319 | M189: 5.414119432 | N189: 58.0476807 | O189: 2602.272807 | P189: 47.11474218 | Q189: 1265.323294
A190: Oxnard | B190: 60056101 | C190: 5336.367488 | D190: 2677.552293 | E190: 163.516811 | F190: 115.7676441 | G190: 7357.811092 | H190: 7655.349185 | I190: 311.7245272 | J190: 0 | K190: 6125.070167 | L190: 3483.192837 | M190: 2194.268188 | N190: 1572.440947 | O190: 13169.41992 | P190: 4871.820481 | Q190: 17379.37983
A191: Oxnard | B191: 60056201 | C191: 7099.426825 | D191: 2301.485042 | E191: 250.8615464 | F191: 0 | G191: 10440.66499 | H191: 5866.874698 | I191: 342.5791645 | J191: 0 | K191: 4744.681753 | L191: 2308.260473 | M191: 1109.07405 | N191: 705.5035242 | O191: 18133.53252 | P191: 3410.559091 | Q191: 12919.81692
A192: Oxnard | B192: 60057101 | C192: 8349.051651 | D192: 1525.935668 | E192: 183.2065964 | F192: 221.6157233 | G192: 11441.59346 | H192: 7531.001622 | I192: 346.3186187 | J192: 0 | K192: 3463.448374 | L192: 3661.885912 | M192: 621.2620991 | N192: 972.1757935 | O192: 20320.17033 | P192: 2147.197767 | Q192: 14877.95163
A193: Oxnard | B193: 60057201 | C193: 8867.850133 | D193: 743.645425 | E193: 136.787556 | F193: 135.8117394 | G193: 11548.08571 | H193: 4706.384996 | I193: 379.3299994 | J193: 0 | K193: 2025.41086 | L193: 1944.912037 | M193: 269.6909404 | N193: 386.6266784 | O193: 20932.0534 | P193: 1013.336365 | Q193: 8812.519632
A194: Oxnard | B194: 60057301 | C194: 4563.516994 | D194: 226.0265781 | E194: 157.2332811 | F194: 0 | G194: 6421.102182 | H194: 2765.3666 | I194: 202.9024263 | J194: 0 | K194: 1350.324628 | L194: 634.9783596 | M194: 35.61046416 | N194: 220.194584 | O194: 11344.75488 | P194: 261.6370422 | Q194: 4750.669587
A195: Port Hueneme | B195: 60058101 | C195: 0 | D195: 4222.604991 | E195: 407.4866559 | F195: 0 | G195: 0 | H195: 8661.838111 | I195: 0 | J195: 0 | K195: 4547.610844 | L195: 4087.375665 | M195: 836.1787027 | N195: 1090.971884 | O195: 407.4866559 | P195: 5058.783693 | Q195: 17296.82462
A196: Port Hueneme | B196: 60059101 | C196: 6858.206879 | D196: 1055.248112 | E196: 105.645055 | F196: 0 | G196: 8212.286276 | H196: 7842.196301 | I196: 195.8115384 | J196: 0 | K196: 3846.707542 | L196: 2749.145658 | M196: 601.5074434 | N196: 723.286384 | O196: 15371.94975 | P196: 1656.755556 | Q196: 14438.0495
A197: Port Hueneme | B197: 60059201 | C197: 10209.18919 | D197: 4435.388506 | E197: 485.1730556 | F197: 0 | G197: 14244.89008 | H197: 14400.29787 | I197: 382.5526216 | J197: 0 | K197: 8936.332109 | L197: 6660.768771 | M197: 1516.338224 | N197: 2364.516936 | O197: 25321.80494 | P197: 5951.72673 | Q197: 29997.39875
A198: Port Hueneme | B198: 60060101 | C198: 0 | D198: 0 | E198: 0 | F198: 0 | G198: 0 | H198: 0 | I198: 0 | J198: 0 | K198: 0 | L198: 0 | M198: 0 | N198: 0 | O198: 0 | P198: 0 | Q198: 0
A199: Oxnard | B199: 60061101 | C199: 12908.10971 | D199: 705.2396339 | E199: 285.9213207 | F199: 170.4521184 | G199: 16678.7319 | H199: 7882.88118 | I199: 548.3838261 | J199: 0 | K199: 2733.607131 | L199: 2653.904238 | M199: 176.5539584 | N199: 614.1722836 | O199: 30421.14676 | P199: 881.7935923 | Q199: 13440.84467
A200: Oxnard | B200: 60061201 | C200: 7.018752809 | D200: 4198.899339 | E200: 16.48946667 | F200: 0 | G200: 198.958527 | H200: 5786.537473 | I200: 3.942321451 | J200: 0 | K200: 3045.551848 | L200: 3259.724314 | M200: 900.2832726 | N200: 1261.293894 | O200: 226.4090679 | P200: 5099.182612 | Q200: 12091.81363
... 1310 more rows

Sheet Adjust
A1: Ventura County Adjustment | W1: Check Adjusted
B3: DA Person Trips - By Purpose | G3: DA Person Trip VMT - By Purpose | K3: DA VMT Per Person | P3: From Person Trip Tables | R3: From OD trip Tables | S3: 0 | T3: 0 | U3: 0 | V3: 0 | X3: DA Person Trips - By Purpose | AC3: DA Person Trip VMT - By Purpose | AG3: DA VMT Per Person | AL3: From Person Trip Tables | AN3: From OD trip Tables | AP3: Purpose/OD
B4: Purp | C4: OP | D4: PK | E4: TOTAL | G4: OP | H4: PK | I4: TOTAL | K4: OP | L4: PK | M4: TOTAL | O4: Class | P4: Trips | Q4: VMT | R4: Trips | S4: VMT | T4: Trips | U4: VMT | X4: Purp | Y4: OP | Z4: PK | AA4: TOTAL | AC4: OP | AD4: PK | AE4: TOTAL | AG4: OP | AH4: PK | AI4: TOTAL | AK4: Class | AL4: Trips | AM4: VMT | AN4: Trips | AO4: VMT | AP4: Trips | AQ4: VMT
B5: HBW | C5: =SUM('HBW-OP'!C:D) -> 287043.7904 | D5: =SUM('HBW-PK'!C:D) -> 549662.317 | E5: =+D5+C5 -> 836706.1073 | G5: =SUM('HBW-OP'!I:J) -> 3963750.408 | H5: =SUM('HBW-PK'!I:J) -> 7133984.107 | I5: =+H5+G5 -> 11097734.51 | K5: =+G5/C5 -> 13.80887008 | L5: =+H5/D5 -> 12.97884881 | M5: =+I5/E5 -> 13.26359927 | O5: DA | P5: =+E11 -> 2932870.212 | Q5: =+I11 -> 22433338.97 | R5: =+E12 -> 2915463.137 | S5: =+I12 -> 22340115.8 | T5: =+P5/R5 -> 1.005970604 | U5: =+Q5/S5 -> 1.004172905 | X5: HBW | Y5: =SUM('HBW-OP'!S:T) -> 285340.1375 | Z5: =SUM('HBW-PK'!S:T) -> 526544.4198 | AA5: =+Z5+Y5 -> 811884.5573 | AC5: =G5 -> 3963750.408 | AD5: =H5 -> 7133984.107 | AE5: =+AD5+AC5 -> 11097734.51 | AG5: =+AC5/Y5 -> 13.89131737 | AH5: =+AD5/Z5 -> 13.54868429 | AI5: =+AE5/AA5 -> 13.66910408 | AK5: DA | AL5: =+AA11 -> 2895607.578 | AM5: =+AE11 -> 22433338.97 | AN5: =+AA12 -> 2915463.137 | AO5: =+AE12 -> 22340115.8 | AP5: =+AL5/AN5 -> 0.9931895694 | AQ5: =+AM5/AO5 -> 1.004172905
B6: HBSC | C6: =SUM('HBSC-OP'!C:D) -> 12149.95488 | D6: =SUM('HBSC-PK'!C:D) -> 21688.67302 | E6: =+D6+C6 -> 33838.6279 | G6: =SUM('HBSC-OP'!I:J) -> 42471.00863 | H6: =SUM('HBSC-PK'!I:J) -> 72562.58629 | I6: =+H6+G6 -> 115033.5949 | K6: =+G6/C6 -> 3.495569248 | L6: 3.345644347 | M6: 3.399475749 | O6: SR2 | P6: =+E22 -> 1453055.871 | Q6: =+I22 -> 8348867.22 | R6: =+E23 -> 727001.2138 | S6: =+I23 -> 4252676.353 | T6: =+P6/R6 -> 1.998697998 | U6: 1.963203058 | X6: HBSC | Y6: =SUM('HBSC-OP'!S:T) -> 12077.84286 | Z6: =SUM('HBSC-PK'!S:T) -> 21559.94712 | AA6: =+Z6+Y6 -> 33637.78998 | AC6: =G6 -> 42471.00863 | AD6: 72562.58629 | AE6: =+AD6+AC6 -> 115033.5949 | AG6: =+AC6/Y6 -> 3.516439906 | AH6: =+AD6/Z6 -> 3.365619864 | AI6: =+AE6/AA6 -> 3.419772672 | AK6: SR2 | AL6: =+AA22 -> 725897.1486 | AM6: =+AE22 -> 8348867.22 | AN6: =+AA23 -> 727001.2138 | AO6: =+AE23 -> 4252676.353 | AP6: =+AL6/AN6 -> 0.9984813433 | AQ6: =+AM6/AO6 -> 1.963203058
B7: HBCU | C7: =SUM('HBCU-OP'!C:D) -> 18991.92539 | D7: =SUM('HBCU-PK'!C:D) -> 6019.219019 | E7: 25011.14441 | G7: =SUM('HBCU-OP'!I:J) -> 132599.9356 | H7: =SUM('HBCU-PK'!I:J) -> 49243.64082 | I7: 181843.5764 | K7: 6.981911148 | L7: 8.181068119 | M7: 7.270502039 | O7: SR3 | P7: =+E34 -> 1206778.83 | Q7: =+I34 -> 6427215.238 | R7: =+E35 -> 341569.0079 | S7: =+I35 -> 4252676.353 | T7: 3.533045453 | U7: =+Q7/S7 -> 1.511334206 | X7: HBCU | Y7: =SUM('HBCU-OP'!S:T) -> 18879.20514 | Z7: =SUM('HBCU-PK'!S:T) -> 5983.493948 | AA7: 24862.69909 | AC7: 132599.9356 | AD7: 49243.64082 | AE7: 181843.5764 | AG7: 7.023597373 | AH7: 8.229914035 | AI7: 7.313911326 | AK7: SR3 | AL7: =+AA34 -> 341372.5968 | AM7: =+AE34 -> 6427215.238 | AN7: =+AA35 -> 341569.0079 | AO7: =+AE35 -> 4252676.353 | AP7: 0.9994249739 | AQ7: =+AM7/AO7 -> 1.511334206
B8: HBNW | C8: =SUM('HBNW-OP'!C:D) -> 672107.6617 | D8: =SUM('HBNW-PK'!C:D) -> 500069.12 | E8: 1172176.782 | G8: =SUM('HBNW-OP'!I:J) -> 3666403.685 | H8: =SUM('HBNW-PK'!I:J) -> 2653274.806 | I8: 6319678.491 | K8: 5.455083901 | L8: 5.305816136 | M8: 5.391403916 | O8: Total | P8: =SUM(P5:P7) -> 5592704.914 | Q8: =SUM(Q5:Q7) -> 37209421.43 | R8: 3984033.359 | S8: 30845468.5 | T8: 1.40377964 | U8: 1.206317272 | X8: HBNW | Y8: =SUM('HBNW-OP'!S:T) -> 668118.5903 | Z8: =SUM('HBNW-PK'!S:T) -> 497101.1262 | AA8: 1165219.716 | AC8: 3666403.685 | AD8: 2653274.806 | AE8: 6319678.491 | AG8: 5.487654045 | AH8: 5.337495061 | AI8: 5.423593852 | AK8: Total | AL8: =SUM(AL5:AL7) -> 3962877.323 | AM8: =SUM(AM5:AM7) -> 37209421.43 | AN8: 3984033.359 | AO8: 30845468.5 | AP8: 0.9946897945 | AQ8: =+AM8/AO8 -> 1.206317272
B9: WBO | C9: =SUM('WBO-OP'!C:D) -> 151837.9125 | D9: =SUM('WBO-PK'!C:D) -> 71163.95493 | E9: 223001.8674 | G9: =SUM('WBO-OP'!I:J) -> 906420.4406 | H9: =SUM('WBO-PK'!I:J) -> 416827.1137 | I9: 1323247.554 | K9: 5.969658208 | L9: 5.857278647 | M9: 5.933795844 | X9: WBO | Y9: =SUM('WBO-OP'!S:T) -> 150936.7291 | Z9: =SUM('WBO-PK'!S:T) -> 70741.58497 | AA9: 221678.3141 | AC9: 906420.4406 | AD9: 416827.1137 | AE9: 1323247.554 | AG9: 6.005300671 | AH9: 5.892250137 | AI9: 5.969224188
B10: OBO | C10: =SUM('OBO-OP'!C:D) -> 400409.2269 | D10: =SUM('OBO-PK'!C:D) -> 241726.4567 | E10: 642135.6836 | G10: =SUM('OBO-OP'!I:J) -> 2129748.325 | H10: =SUM('OBO-PK'!I:J) -> 1266052.916 | I10: 3395801.241 | K10: 5.318929191 | L10: 5.237543847 | M10: 5.288292378 | X10: OBO | Y10: =SUM('OBO-OP'!S:T) -> 398032.7312 | Z10: =SUM('OBO-PK'!S:T) -> 240291.7697 | AA10: 638324.5009 | AC10: 2129748.325 | AD10: 1266052.916 | AE10: 3395801.241 | AG10: 5.350686409 | AH10: 5.268815145 | AI10: 5.319866676
B11: Total | C11: =SUM(C5:C10) -> 1542540.472 | D11: =SUM(D5:D10) -> 1390329.741 | E11: =SUM(E5:E10) -> 2932870.212 | G11: =SUM(G5:G10) -> 10841393.8 | H11: =SUM(H5:H10) -> 11591945.17 | I11: =SUM(I5:I10) -> 22433338.97 | K11: 7.028271868 | L11: 8.337551036 | M11: =+I11/E11 -> 7.648936826 | X11: Total | Y11: =SUM(Y5:Y10) -> 1533385.236 | Z11: =SUM(Z5:Z10) -> 1362222.342 | AA11: =SUM(AA5:AA10) -> 2895607.578 | AC11: =SUM(AC5:AC10) -> 10841393.8 | AD11: =SUM(AD5:AD10) -> 11591945.17 | AE11: =SUM(AE5:AE10) -> 22433338.97 | AG11: 7.070234894 | AH11: 8.509583798 | AI11: =+AE11/AA11 -> 7.747368512
B12: Per Hway Assignment OD Calculation | E12: =SUM('AM-OD'!C:D)+SUM('MD-OD'!C:D)+SUM('PM-OD'!C:D)+SUM('EVE-OD'!C:D)+SUM('NT-OD'!C:D) -> 2915463.137 | I12: =SUM('AM-OD'!I:J)+SUM('MD-OD'!I:J)+SUM('PM-OD'!I:J)+SUM('EVE-OD'!I:J)+SUM('NT-OD'!I:J) -> 22340115.8 | X12: Per Hway Assignment OD Calculation | AA12: =E12 -> 2915463.137 | AE12: =I12 -> 22340115.8
B14: SR2 Person Trips - By Purpose | G14: SR2 Person Trip VMT - By Purpose | K14: SR2 VMT Per Person | X14: SR2 Person Trips - By Purpose | AC14: SR2 Person Trip VMT - By Purpose | AG14: SR2 VMT Per Person
B15: Purp | C15: OP | D15: PK | E15: TOTAL | G15: OP | H15: PK | I15: TOTAL | K15: OP | L15: PK | M15: TOTAL | X15: Purp | Y15: OP | Z15: PK | AA15: TOTAL | AC15: OP | AD15: PK | AE15: TOTAL | AG15: OP | AH15: PK | AI15: TOTAL
B16: HBW | C16: =SUM('HBW-OP'!E:F) -> 25213.63799 | D16: =SUM('HBW-PK'!E:F) -> 59915.85419 | E16: =+D16+C16 -> 85129.49218 | G16: =SUM('HBW-OP'!K:L) -> 348888.724 | H16: =SUM('HBW-PK'!K:L) -> 786797.583 | I16: =+H16+G16 -> 1135686.307 | K16: =+G16/C16 -> 13.83730202 | L16: =+H16/D16 -> 13.13170935 | M16: =+I16/E16 -> 13.34069167 | X16: HBW | Y16: =SUM('HBW-OP'!U:V) -> 12615.03139 | Z16: =SUM('HBW-PK'!U:V) -> 28873.37719 | AA16: =+Z16+Y16 -> 41488.40858 | AC16: =G16 -> 348888.724 | AD16: =H16 -> 786797.583 | AE16: =+AD16+AC16 -> 1135686.307 | AG16: =+AC16/Y16 -> 27.65658786 | AH16: =+AD16/Z16 -> 27.24993262 | AI16: =+AE16/AA16 -> 27.37358086
B17: HBSC | C17: =SUM('HBSC-OP'!E:F) -> 19391.46787 | D17: =SUM('HBSC-PK'!E:F) -> 57547.8858 | E17: =+D17+C17 -> 76939.35366 | G17: =SUM('HBSC-OP'!K:L) -> 67785.7036 | H17: =SUM('HBSC-PK'!K:L) -> 192533.9238 | I17: =+H17+G17 -> 260319.6274 | K17: =+G17/C17 -> 3.49564582 | L17: 3.345629838 | M17: 3.383439229 | X17: HBSC | Y17: =SUM('HBSC-OP'!U:V) -> 9702.049975 | Z17: =SUM('HBSC-PK'!U:V) -> 28792.68696 | AA17: =+Z17+Y17 -> 38494.73693 | AC17: =G17 -> 67785.7036 | AD17: 192533.9238 | AE17: =+AD17+AC17 -> 260319.6274 | AG17: =+AC17/Y17 -> 6.986740305 | AH17: =+AD17/Z17 -> 6.686903661 | AI17: =+AE17/AA17 -> 6.762473215
B18: HBCU | C18: =SUM('HBCU-OP'!E:F) -> 4342.729774 | D18: =SUM('HBCU-PK'!E:F) -> 3605.809179 | E18: 7948.538953 | G18: =SUM('HBCU-OP'!K:L) -> 30320.53909 | H18: =SUM('HBCU-PK'!K:L) -> 29503.9715 | I18: 59824.51059 | K18: 6.981907847 | L18: 8.182344112 | M18: 7.526478884 | X18: HBCU | Y18: =SUM('HBCU-OP'!U:V) -> 2172.779368 | Z18: =SUM('HBCU-PK'!U:V) -> 1804.079046 | AA18: 3976.858414 | AC18: 30320.53909 | AD18: 29503.9715 | AE18: 59824.51059 | AG18: 13.95472524 | AH18: 16.3540348 | AI18: 15.04315828
B19: HBNW | C19: =SUM('HBNW-OP'!E:F) -> 437021.6029 | D19: =SUM('HBNW-PK'!E:F) -> 371591.0823 | E19: 808612.6851 | G19: =SUM('HBNW-OP'!K:L) -> 2385547.502 | H19: =SUM('HBNW-PK'!K:L) -> 1973537.686 | I19: 4359085.188 | K19: 5.458648924 | L19: 5.311046954 | M19: 5.390819694 | X19: HBNW | Y19: =SUM('HBNW-OP'!U:V) -> 218653.1448 | Z19: =SUM('HBNW-PK'!U:V) -> 185916.573 | AA19: 404569.7178 | AC19: 2385547.502 | AD19: 1973537.686 | AE19: 4359085.188 | AG19: 10.91019068 | AH19: 10.61517892 | AI19: 10.77462053
B20: WBO | C20: =SUM('WBO-OP'!E:F) -> 29194.18972 | D20: =SUM('WBO-PK'!E:F) -> 11089.79064 | E20: 40283.98036 | G20: =SUM('WBO-OP'!K:L) -> 174325.9169 | H20: =SUM('WBO-PK'!K:L) -> 64964.44174 | I20: 239290.3587 | K20: 5.97125382 | L20: 5.858040415 | M20: 5.940087263 | X20: WBO | Y20: =SUM('WBO-OP'!U:V) -> 14606.60377 | Z20: =SUM('WBO-PK'!U:V) -> 5548.507401 | AA20: 20155.11117 | AC20: 174325.9169 | AD20: 64964.44174 | AE20: 239290.3587 | AG20: 11.93473306 | AH20: 11.70845365 | AI20: 11.87244052
B21: OBO | C21: =SUM('OBO-OP'!E:F) -> 250074.7674 | D21: =SUM('OBO-PK'!E:F) -> 184067.0533 | E21: 434141.8207 | G21: =SUM('OBO-OP'!K:L) -> 1330500.633 | H21: =SUM('OBO-PK'!K:L) -> 964160.5951 | I21: 2294661.228 | K21: 5.320411361 | L21: 5.238094367 | M21: 5.285510677 | X21: OBO | Y21: =SUM('OBO-OP'!U:V) -> 125118.8361 | Z21: =SUM('OBO-PK'!U:V) -> 92093.47958 | AA21: 217212.3157 | AC21: 1330500.633 | AD21: 964160.5951 | AE21: 2294661.228 | AG21: 10.63389554 | AH21: 10.46936873 | AI21: 10.56413961
B22: Total | C22: =SUM(C16:C21) -> 765238.3956 | D22: =SUM(D16:D21) -> 687817.4754 | E22: =SUM(E16:E21) -> 1453055.871 | G22: =SUM(G16:G21) -> 4337369.019 | H22: =SUM(H16:H21) -> 4011498.201 | I22: =SUM(I16:I21) -> 8348867.22 | K22: 5.667997116 | L22: 5.83221326 | M22: 5.745730351 | X22: Total | Y22: =SUM(Y16:Y21) -> 382868.4454 | Z22: =SUM(Z16:Z21) -> 343028.7031 | AA22: =SUM(AA16:AA21) -> 725897.1486 | AC22: =SUM(AC16:AC21) -> 4337369.019 | AD22: =SUM(AD16:AD21) -> 4011498.201 | AE22: =SUM(AE16:AE21) -> 8348867.22 | AG22: 11.32861449 | AH22: 11.69435142 | AI22: 11.5014465
B23: Per Hway Assignment OD Calculation | E23: =SUM('AM-OD'!E:F)+SUM('MD-OD'!E:F)+SUM('PM-OD'!E:F)+SUM('EVE-OD'!E:F)+SUM('NT-OD'!E:F) -> 727001.2138 | I23: =SUM('AM-OD'!K:L)+SUM('MD-OD'!K:L)+SUM('PM-OD'!K:L)+SUM('EVE-OD'!K:L)+SUM('NT-OD'!K:L) -> 4252676.353 | X23: Per Hway Assignment OD Calculation | AA23: =E23 -> 727001.2138 | AE23: =I23 -> 4252676.353
B24: Ave Occupancy | E24: =+E22/E23 -> 1.998697998 | I24: =+I22/I23 -> 1.963203058 | X24: Ave Occupancy | AA24: =+AA22/AA23 -> 0.9984813433 | AE24: =+AE22/AE23 -> 1.963203058
B26: SR3 Person Trips - By Purpose | G26: SR3 Person Trip VMT - By Purpose | K26: SR3 VMT Per Person | X26: SR3 Person Trips - By Purpose | AC26: SR3 Person Trip VMT - By Purpose | AG26: SR3 VMT Per Person
B27: Purp | C27: OP | D27: PK | E27: TOTAL | G27: OP | H27: PK | I27: TOTAL | K27: OP | L27: PK | M27: TOTAL | X27: Purp | Y27: OP | Z27: PK | AA27: TOTAL | AC27: OP | AD27: PK | AE27: TOTAL | AG27: OP | AH27: PK | AI27: TOTAL
B28: HBW | C28: =SUM('HBW-OP'!G:H) -> 12490.7043 | D28: =SUM('HBW-PK'!G:H) -> 17244.7267 | E28: =+D28+C28 -> 29735.431 | G28: =SUM('HBW-OP'!M:N) -> 172662.1737 | H28: =SUM('HBW-PK'!M:N) -> 225479.5447 | I28: =+H28+G28 -> 398141.7185 | K28: =+G28/C28 -> 13.82325364 | L28: =+H28/D28 -> 13.07527505 | M28: =+I28/E28 -> 13.38947192 | X28: HBW | Y28: =SUM('HBW-OP'!W:X) -> 3535.393038 | Z28: =SUM('HBW-PK'!W:X) -> 4684.569599 | AA28: =+Z28+Y28 -> 8219.962638 | AC28: =G28 -> 172662.1737 | AD28: =H28 -> 225479.5447 | AE28: =+AD28+AC28 -> 398141.7185 | AG28: =+AC28/Y28 -> 48.83818344 | AH28: =+AD28/Z28 -> 48.13239294 | AI28: =+AE28/AA28 -> 48.43595233
B29: HBSC | C29: =SUM('HBSC-OP'!G:H) -> 21663.161 | D29: =SUM('HBSC-PK'!G:H) -> 94728.73611 | E29: =+D29+C29 -> 116391.8971 | G29: =SUM('HBSC-OP'!M:N) -> 75726.7382 | H29: =SUM('HBSC-PK'!M:N) -> 316927.2859 | I29: =+H29+G29 -> 392654.0241 | K29: =+G29/C29 -> 3.49564582 | L29: 3.345629837 | M29: 3.373551199 | X29: HBSC | Y29: =SUM('HBSC-OP'!W:X) -> 6131.582876 | Z29: =SUM('HBSC-PK'!W:X) -> 26812.20419 | AA29: =+Z29+Y29 -> 32943.78706 | AC29: =G29 -> 75726.7382 | AD29: 316927.2859 | AE29: =+AD29+AC29 -> 392654.0241 | AG29: =+AC29/Y29 -> 12.35027557 | AH29: =+AD29/Z29 -> 11.82026228 | AI29: =+AE29/AA29 -> 11.91890973
B30: HBCU | C30: =SUM('HBCU-OP'!G:H) -> 1996.772289 | D30: =SUM('HBCU-PK'!G:H) -> 1617.16577 | E30: 3613.938059 | G30: =SUM('HBCU-OP'!M:N) -> 13941.28009 | H30: =SUM('HBCU-PK'!M:N) -> 13232.20687 | I30: 27173.48696 | K30: 6.981907837 | L30: 8.182344144 | M30: 7.51907933 | X30: HBCU | Y30: =SUM('HBCU-OP'!W:X) -> 565.1702802 | Z30: =SUM('HBCU-PK'!W:X) -> 457.7257189 | AA30: 1022.895999 | AC30: 13941.28009 | AD30: 13232.20687 | AE30: 27173.48696 | AG30: 24.66739774 | AH30: 28.90859378 | AI30: 26.56524904
B31: HBNW | C31: =SUM('HBNW-OP'!G:H) -> 386950.3915 | D31: =SUM('HBNW-PK'!G:H) -> 329510.0236 | E31: 716460.415 | G31: =SUM('HBNW-OP'!M:N) -> 2079299.603 | H31: =SUM('HBNW-PK'!M:N) -> 1718149.627 | I31: 3797449.23 | K31: 5.373556014 | L31: 5.21425603 | M31: 5.300291755 | X31: HBNW | Y31: =SUM('HBNW-OP'!W:X) -> 109523.1852 | Z31: =SUM('HBNW-PK'!W:X) -> 93265.15266 | AA31: 202788.3378 | AC31: 2079299.603 | AD31: 1718149.627 | AE31: 3797449.23 | AG31: 18.98501764 | AH31: 18.42220356 | AI31: 18.72617169
B32: WBO | C32: =SUM('WBO-OP'!G:H) -> 14611.34963 | D32: =SUM('WBO-PK'!G:H) -> 5180.275593 | E32: 19791.62522 | G32: =SUM('WBO-OP'!M:N) -> 87248.07715 | H32: =SUM('WBO-PK'!M:N) -> 30346.26375 | I32: 117594.3409 | K32: 5.97125381 | L32: 5.858040408 | M32: 5.941621245 | X32: WBO | Y32: =SUM('WBO-OP'!W:X) -> 4135.624583 | Z32: =SUM('WBO-PK'!W:X) -> 1466.235196 | AA32: 5601.859779 | AC32: 87248.07715 | AD32: 30346.26375 | AE32: 117594.3409 | AG32: 21.09671112 | AH32: 20.69672303 | AI32: 20.99201793
B33: OBO | C33: =SUM('OBO-OP'!G:H) -> 168830.1662 | D33: =SUM('OBO-PK'!G:H) -> 151955.3577 | E33: 320785.5239 | G33: =SUM('OBO-OP'!M:N) -> 898245.9341 | H33: =SUM('OBO-PK'!M:N) -> 795956.503 | I33: 1694202.437 | K33: 5.320411359 | L33: 5.238094366 | M33: 5.281417991 | X33: OBO | Y33: =SUM('OBO-OP'!W:X) -> 47786.0159 | Z33: =SUM('OBO-PK'!W:X) -> 43009.73755 | AA33: 90795.75345 | AC33: 898245.9341 | AD33: 795956.503 | AE33: 1694202.437 | AG33: 18.79725516 | AH33: 18.50642548 | AI33: 18.65948982
B34: Total | C34: =SUM(C28:C33) -> 606542.5449 | D34: =SUM(D28:D33) -> 600236.2854 | E34: =SUM(E28:E33) -> 1206778.83 | G34: =SUM(G28:G33) -> 3327123.806 | H34: =SUM(H28:H33) -> 3100091.432 | I34: =SUM(I28:I33) -> 6427215.238 | K34: 5.485392302 | L34: 5.164785113 | M34: 5.325926405 | X34: Total | Y34: =SUM(Y28:Y33) -> 171676.9719 | Z34: =SUM(Z28:Z33) -> 169695.6249 | AA34: =SUM(AA28:AA33) -> 341372.5968 | AC34: =SUM(AC28:AC33) -> 3327123.806 | AD34: =SUM(AD28:AD33) -> 3100091.432 | AE34: =SUM(AE28:AE33) -> 6427215.238 | AG34: 19.38014033 | AH34: 18.26854071 | AI34: 18.82756641
B35: Per Hway Assignment OD Calculation | E35: =SUM('AM-OD'!G:H)+SUM('MD-OD'!G:H)+SUM('PM-OD'!G:H)+SUM('EVE-OD'!G:H)+SUM('NT-OD'!G:H) -> 341569.0079 | I35: =SUM('AM-OD'!M:N)+SUM('MD-OD'!M:N)+SUM('PM-OD'!M:N)+SUM('EVE-OD'!M:N)+SUM('NT-OD'!M:N) -> 4252676.353 | X35: Per Hway Assignment OD Calculation | AA35: =E35 -> 341569.0079 | AE35: =I35 -> 4252676.353
B36: Ave Occupancy | E36: =+E34/E35 -> 3.533045453 | I36: =+I34/I35 -> 1.511334206 | X36: Ave Occupancy | AA36: =+AA34/AA35 -> 0.9994249739 | AE36: =+AE34/AE35 -> 1.511334206

Sheet SED
A1: SED by TAZ
A2: TAZ | B2: COUNTY | C2: City | D2: POP | E2: HH | F2: Tot_emp | G2: Service
A3: 60001101 | B3: Ventura | D3: 289 | E3: 108 | F3: 38 | G3: 327
A4: 60001201 | B4: Ventura | D4: 157 | E4: 90 | F4: 12 | G4: 169
A5: 60001301 | B5: Ventura | D5: 171 | E5: 91 | F5: 0 | G5: 171
A6: 60002101 | B6: Ventura | D6: 627 | E6: 291 | F6: 123 | G6: 750
A7: 60002201 | B7: Ventura | C7: San Buenaventura | D7: 32 | E7: 8 | F7: 90 | G7: 122
A8: 60002301 | B8: Ventura | C8: San Buenaventura | D8: 154 | E8: 98 | F8: 13 | G8: 167
A9: 60003101 | B9: Ventura | D9: 570 | E9: 275 | F9: 65 | G9: 635
A10: 60003201 | B10: Ventura | D10: 77 | E10: 18 | F10: 4 | G10: 81
A11: 60003301 | B11: Ventura | D11: 1065 | E11: 469 | F11: 224 | G11: 1289
A12: 60003401 | B12: Ventura | D12: 0 | E12: 0 | F12: 0 | G12: 0
A13: 60003501 | B13: Ventura | C13: San Buenaventura | D13: 316 | E13: 140 | F13: 74 | G13: 390
A14: 60003601 | B14: Ventura | D14: 227 | E14: 97 | F14: 8 | G14: 235
A15: 60004101 | B15: Ventura | C15: San Buenaventura | D15: 2708 | E15: 950 | F15: 753 | G15: 3461
A16: 60004201 | B16: Ventura | C16: San Buenaventura | D16: 3150 | E16: 928 | F16: 631 | G16: 3781
A17: 60004301 | B17: Ventura | C17: San Buenaventura | D17: 1243 | E17: 382 | F17: 796 | G17: 2039
A18: 60005101 | B18: Ventura | D18: 2651 | E18: 1108 | F18: 91 | G18: 2742
A19: 60005201 | B19: Ventura | D19: 1685 | E19: 631 | F19: 219 | G19: 1904
A20: 60006101 | B20: Ventura | C20: San Buenaventura | D20: 1316 | E20: 734 | F20: 1233 | G20: 2549
A21: 60006201 | B21: Ventura | C21: San Buenaventura | D21: 831 | E21: 481 | F21: 2153 | G21: 2984
A22: 60006301 | B22: Ventura | C22: San Buenaventura | D22: 206 | E22: 142 | F22: 495 | G22: 701
A23: 60006401 | B23: Ventura | C23: San Buenaventura | D23: 85 | E23: 52 | F23: 403 | G23: 488
A24: 60007101 | B24: Ventura | C24: San Buenaventura | D24: 1530 | E24: 943 | F24: 1706 | G24: 3236
A25: 60008101 | B25: Ventura | C25: San Buenaventura | D25: 2534 | E25: 856 | F25: 355 | G25: 2889
A26: 60008201 | B26: Ventura | C26: San Buenaventura | D26: 1052 | E26: 393 | F26: 149 | G26: 1201
A27: 60008301 | B27: Ventura | C27: San Buenaventura | D27: 2725 | E27: 1017 | F27: 472 | G27: 3197
A28: 60009101 | B28: Ventura | D28: 1364 | E28: 572 | F28: 114 | G28: 1478
A29: 60009201 | B29: Ventura | D29: 1155 | E29: 531 | F29: 95 | G29: 1250
A30: 60009301 | B30: Ventura | D30: 1342.992 | E30: 533 | F30: 196 | G30: 1538.992
A31: 60009302 | B31: Ventura | D31: 894.488 | E31: 355 | F31: 130 | G31: 1024.488
A32: 60009401 | B32: Ventura | C32: Ojai | D32: 1571 | E32: 670 | F32: 886 | G32: 2457
A33: 60010101 | B33: Ventura | D33: 1931 | E33: 788 | F33: 307 | G33: 2238
A34: 60010201 | B34: Ventura | D34: 1476 | E34: 571 | F34: 209 | G34: 1685
A35: 60011101 | B35: Ventura | C35: San Buenaventura | D35: 564 | E35: 274 | F35: 448 | G35: 1012
A36: 60011201 | B36: Ventura | C36: San Buenaventura | D36: 718 | E36: 409 | F36: 289 | G36: 1007
A37: 60011301 | B37: Ventura | C37: San Buenaventura | D37: 1119 | E37: 500 | F37: 164 | G37: 1283
A38: 60011401 | B38: Ventura | C38: San Buenaventura | D38: 470 | E38: 195 | F38: 504 | G38: 974
A39: 60012101 | B39: Ventura | C39: San Buenaventura | D39: 689 | E39: 291 | F39: 190 | G39: 879
A40: 60012201 | B40: Ventura | C40: San Buenaventura | D40: 802 | E40: 407 | F40: 241 | G40: 1043
A41: 60012301 | B41: Ventura | D41: 0 | E41: 0 | F41: 0 | G41: 0
A42: 60012401 | B42: Ventura | C42: San Buenaventura | D42: 889 | E42: 402 | F42: 66 | G42: 955
A43: 60013101 | B43: Ventura | C43: San Buenaventura | D43: 934 | E43: 499 | F43: 252 | G43: 1186
A44: 60013201 | B44: Ventura | C44: San Buenaventura | D44: 631 | E44: 414 | F44: 1149 | G44: 1780
A45: 60013301 | B45: Ventura | C45: San Buenaventura | D45: 2759 | E45: 1303 | F45: 376 | G45: 3135
A46: 60013401 | B46: Ventura | C46: San Buenaventura | D46: 147 | E46: 49 | F46: 355 | G46: 502
A47: 60014101 | B47: Ventura | C47: Ojai | D47: 520 | E47: 260 | F47: 648 | G47: 1168
A48: 60014201 | B48: Ventura | D48: 184 | E48: 95 | F48: 300 | G48: 484
A49: 60014301 | B49: Ventura | C49: Ojai | D49: 445 | E49: 164 | F49: 377 | G49: 822
A50: 60014401 | B50: Ventura | C50: Ojai | D50: 1179 | E50: 586 | F50: 535 | G50: 1714
A51: 60015101 | B51: Ventura | C51: San Buenaventura | D51: 346 | E51: 156 | F51: 295 | G51: 641
A52: 60015201 | B52: Ventura | C52: San Buenaventura | D52: 1153 | E52: 422 | F52: 76 | G52: 1229
A53: 60015301 | B53: Ventura | C53: San Buenaventura | D53: 1028 | E53: 410 | F53: 25 | G53: 1053
A54: 60015401 | B54: Ventura | C54: San Buenaventura | D54: 1370 | E54: 597 | F54: 61 | G54: 1431
A55: 60015501 | B55: Ventura | C55: San Buenaventura | D55: 543 | E55: 229 | F55: 1050 | G55: 1593
A56: 60015601 | B56: Ventura | C56: San Buenaventura | D56: 1087 | E56: 569 | F56: 162 | G56: 1249
A57: 60016101 | B57: Ventura | C57: San Buenaventura | D57: 594 | E57: 286 | F57: 4140 | G57: 4734
A58: 60016201 | B58: Ventura | C58: San Buenaventura | D58: 1144 | E58: 529 | F58: 2558 | G58: 3702
A59: 60016301 | B59: Ventura | C59: San Buenaventura | D59: 803 | E59: 377 | F59: 333 | G59: 1136
A60: 60016401 | B60: Ventura | C60: San Buenaventura | D60: 505 | E60: 262 | F60: 232 | G60: 737
A61: 60017101 | B61: Ventura | C61: San Buenaventura | D61: 9 | E61: 2 | F61: 1 | G61: 10
A62: 60017201 | B62: Ventura | C62: San Buenaventura | D62: 139 | E62: 61 | F62: 4442 | G62: 4581
A63: 60018101 | B63: Ventura | C63: San Buenaventura | D63: 411 | E63: 181 | F63: 2304 | G63: 2715
A64: 60018201 | B64: Ventura | C64: San Buenaventura | D64: 2308 | E64: 1046 | F64: 421 | G64: 2729
A65: 60018301 | B65: Ventura | C65: San Buenaventura | D65: 1123 | E65: 516 | F65: 958 | G65: 2081
A66: 60019101 | B66: Ventura | C66: San Buenaventura | D66: 367 | E66: 206 | F66: 37 | G66: 404
A67: 60020101 | B67: Ventura | D67: 8 | E67: 2 | F67: 57 | G67: 65
A68: 60020102 | B68: Ventura | C68: San Buenaventura | D68: 0 | E68: 0 | F68: 50 | G68: 50
A69: 60021101 | B69: Ventura | C69: San Buenaventura | D69: 449 | E69: 175 | F69: 114 | G69: 563
A70: 60022101 | B70: Ventura | C70: San Buenaventura | D70: 1389 | E70: 533 | F70: 61 | G70: 1450
A71: 60022201 | B71: Ventura | C71: San Buenaventura | D71: 943 | E71: 339 | F71: 167 | G71: 1110
A72: 60022301 | B72: Ventura | C72: San Buenaventura | D72: 930 | E72: 352 | F72: 17 | G72: 947
A73: 60022401 | B73: Ventura | C73: San Buenaventura | D73: 218 | E73: 156 | F73: 1177 | G73: 1395
A74: 60023101 | B74: Ventura | C74: San Buenaventura | D74: 785 | E74: 310 | F74: 85 | G74: 870
A75: 60023201 | B75: Ventura | C75: San Buenaventura | D75: 1274 | E75: 501 | F75: 517 | G75: 1791
A76: 60023301 | B76: Ventura | C76: San Buenaventura | D76: 226 | E76: 117 | F76: 16 | G76: 242
A77: 60024101 | B77: Ventura | D77: 39 | E77: 7 | F77: 4 | G77: 43
A78: 60024201 | B78: Ventura | D78: 1954 | E78: 672 | F78: 392 | G78: 2346
A79: 60024301 | B79: Ventura | D79: 79 | E79: 20 | F79: 12 | G79: 91
A80: 60024401 | B80: Ventura | C80: San Buenaventura | D80: 51 | E80: 24 | F80: 10 | G80: 61
A81: 60024501 | B81: Ventura | D81: 221 | E81: 65 | F81: 69 | G81: 290
A82: 60024601 | B82: Ventura | D82: 0 | E82: 0 | F82: 0 | G82: 0
A83: 60025101 | B83: Ventura | C83: San Buenaventura | D83: 2179 | E83: 943 | F83: 102 | G83: 2281
A84: 60025201 | B84: Ventura | C84: San Buenaventura | D84: 2453 | E84: 1007 | F84: 972 | G84: 3425
A85: 60026101 | B85: Ventura | C85: San Buenaventura | D85: 23 | E85: 5 | F85: 7417 | G85: 7440
A86: 60026201 | B86: Ventura | C86: San Buenaventura | D86: 0 | E86: 0 | F86: 185 | G86: 185
A87: 60026301 | B87: Ventura | C87: San Buenaventura | D87: 12 | E87: 3 | F87: 1825 | G87: 1837
A88: 60027101 | B88: Ventura | C88: San Buenaventura | D88: 1446 | E88: 613 | F88: 1100 | G88: 2546
A89: 60027201 | B89: Ventura | C89: San Buenaventura | D89: 2215 | E89: 1025 | F89: 685 | G89: 2900
A90: 60027301 | B90: Ventura | C90: San Buenaventura | D90: 420 | E90: 122 | F90: 2433 | G90: 2853
A91: 60028101 | B91: Ventura | D91: 0 | E91: 0 | F91: 20 | G91: 20
A92: 60028102 | B92: Ventura | C92: San Buenaventura | D92: 2100 | E92: 841 | F92: 264 | G92: 2364
A93: 60029101 | B93: Ventura | C93: San Buenaventura | D93: 921 | E93: 288 | F93: 74 | G93: 995
A94: 60029201 | B94: Ventura | C94: San Buenaventura | D94: 0 | E94: 0 | F94: 0 | G94: 0
A95: 60030101 | B95: Ventura | C95: San Buenaventura | D95: 1027 | E95: 505 | F95: 470 | G95: 1497
A96: 60030201 | B96: Ventura | C96: San Buenaventura | D96: 34 | E96: 14 | F96: 1 | G96: 35
A97: 60031101 | B97: Ventura | C97: San Buenaventura | D97: 14 | E97: 4 | F97: 2588 | G97: 2602
A98: 60032101 | B98: Ventura | C98: San Buenaventura | D98: 2289 | E98: 1113 | F98: 839 | G98: 3128
A99: 60032201 | B99: Ventura | C99: San Buenaventura | D99: 875 | E99: 346 | F99: 37 | G99: 912
A100: 60032301 | B100: Ventura | C100: San Buenaventura | D100: 1845 | E100: 748 | F100: 122 | G100: 1967
A101: 60032401 | B101: Ventura | C101: San Buenaventura | D101: 148 | E101: 44 | F101: 615 | G101: 763
A102: 60032501 | B102: Ventura | C102: San Buenaventura | D102: 1034 | E102: 758 | F102: 590 | G102: 1624
A103: 60033101 | B103: Ventura | C103: San Buenaventura | D103: 1655 | E103: 831 | F103: 1203 | G103: 2858
A104: 60033201 | B104: Ventura | C104: San Buenaventura | D104: 792 | E104: 240 | F104: 589 | G104: 1381
A105: 60033301 | B105: Ventura | C105: San Buenaventura | D105: 1637 | E105: 540 | F105: 105 | G105: 1742
A106: 60033401 | B106: Ventura | C106: San Buenaventura | D106: 428 | E106: 246 | F106: 20 | G106: 448
A107: 60033501 | B107: Ventura | C107: San Buenaventura | D107: 4 | E107: 1 | F107: 2821 | G107: 2825
A108: 60033601 | B108: Ventura | C108: San Buenaventura | D108: 0 | E108: 0 | F108: 4 | G108: 4
A109: 60034101 | B109: Ventura | C109: Ojai | D109: 2325 | E109: 1092 | F109: 1128 | G109: 3453
A110: 60034201 | B110: Ventura | C110: Ojai | D110: 754 | E110: 378 | F110: 364 | G110: 1118
A111: 60034301 | B111: Ventura | C111: Ojai | D111: 102 | E111: 43 | F111: 4 | G111: 106
A112: 60034401 | B112: Ventura | C112: Ojai | D112: 1281 | E112: 461 | F112: 183 | G112: 1464
A113: 60035101 | B113: Ventura | C113: Ojai | D113: 508 | E113: 263 | F113: 1332 | G113: 1840
A114: 60035102 | B114: Ventura | C114: Ojai | D114: 508 | E114: 263 | F114: 1017 | G114: 1525
A115: 60035201 | B115: Ventura | D115: 294 | E115: 129 | F115: 105 | G115: 399
A116: 60035301 | B116: Ventura | C116: Ojai | D116: 252 | E116: 147 | F116: 51 | G116: 303
A117: 60035401 | B117: Ventura | D117: 252 | E117: 84 | F117: 43 | G117: 295
A118: 60036101 | B118: Ventura | C118: San Buenaventura | D118: 2059 | E118: 823 | F118: 57 | G118: 2116
A119: 60036201 | B119: Ventura | C119: San Buenaventura | D119: 579 | E119: 190 | F119: 54 | G119: 633
A120: 60036301 | B120: Ventura | C120: San Buenaventura | D120: 1134 | E120: 391 | F120: 122 | G120: 1256
A121: 60036401 | B121: Ventura | C121: San Buenaventura | D121: 704 | E121: 261 | F121: 101 | G121: 805
A122: 60036501 | B122: Ventura | C122: San Buenaventura | D122: 484 | E122: 185 | F122: 37 | G122: 521
A123: 60037101 | B123: Ventura | C123: San Buenaventura | D123: 2885 | E123: 1194 | F123: 183 | G123: 3068
A124: 60038101 | B124: Ventura | C124: San Buenaventura | D124: 1161 | E124: 412 | F124: 45 | G124: 1206
A125: 60038201 | B125: Ventura | C125: San Buenaventura | D125: 2229 | E125: 796 | F125: 250 | G125: 2479
A126: 60038301 | B126: Ventura | C126: San Buenaventura | D126: 875 | E126: 287 | F126: 315 | G126: 1190
A127: 60039101 | B127: Ventura | C127: San Buenaventura | D127: 2485 | E127: 989 | F127: 245 | G127: 2730
A128: 60039201 | B128: Ventura | D128: 167 | E128: 62 | F128: 1 | G128: 168
A129: 60039301 | B129: Ventura | C129: San Buenaventura | D129: 7 | E129: 2 | F129: 252 | G129: 259
A130: 60039401 | B130: Ventura | C130: San Buenaventura | D130: 999 | E130: 509 | F130: 30 | G130: 1029
A131: 60039501 | B131: Ventura | C131: San Buenaventura | D131: 1876 | E131: 654 | F131: 99 | G131: 1975
A132: 60040101 | B132: Ventura | C132: San Buenaventura | D132: 1714 | E132: 637 | F132: 102 | G132: 1816
A133: 60040201 | B133: Ventura | C133: San Buenaventura | D133: 1288 | E133: 460 | F133: 66 | G133: 1354
A134: 60040301 | B134: Ventura | C134: San Buenaventura | D134: 1128 | E134: 353 | F134: 144 | G134: 1272
A135: 60041101 | B135: Ventura | C135: San Buenaventura | D135: 0 | E135: 0 | F135: 78 | G135: 78
A136: 60041102 | B136: Ventura | C136: San Buenaventura | D136: 2048 | E136: 806 | F136: 129 | G136: 2177
A137: 60041201 | B137: Ventura | D137: 0 | E137: 0 | F137: 102 | G137: 102
A138: 60041202 | B138: Ventura | C138: San Buenaventura | D138: 2456 | E138: 870 | F138: 229 | G138: 2685
A139: 60041301 | B139: Ventura | C139: San Buenaventura | D139: 0 | E139: 0 | F139: 4 | G139: 4
A140: 60041302 | B140: Ventura | C140: San Buenaventura | D140: 1087 | E140: 499 | F140: 21 | G140: 1108
A141: 60041401 | B141: Ventura | D141: 83 | E141: 25 | F141: 15 | G141: 98
A142: 60042101 | B142: Ventura | C142: San Buenaventura | D142: 993 | E142: 302 | F142: 12 | G142: 1005
A143: 60042201 | B143: Ventura | C143: San Buenaventura | D143: 1272 | E143: 425 | F143: 64 | G143: 1336
A144: 60042301 | B144: Ventura | C144: San Buenaventura | D144: 3582 | E144: 1417 | F144: 295 | G144: 3877
A145: 60042401 | B145: Ventura | C145: San Buenaventura | D145: 246 | E145: 101 | F145: 167 | G145: 413
A146: 60042501 | B146: Ventura | C146: San Buenaventura | D146: 1076 | E146: 282 | F146: 29 | G146: 1105
A147: 60042601 | B147: Ventura | C147: San Buenaventura | D147: 1131 | E147: 443 | F147: 126 | G147: 1257
A148: 60042701 | B148: Ventura | D148: 0 | E148: 0 | F148: 656 | G148: 656
A149: 60043101 | B149: Ventura | D149: 58 | E149: 26 | F149: 0 | G149: 58
A150: 60043201 | B150: Ventura | D150: 2322 | E150: 900 | F150: 329 | G150: 2651
A151: 60044101 | B151: Ventura | C151: Santa Paula | D151: 848 | E151: 262 | F151: 67 | G151: 915
A152: 60045101 | B152: Ventura | D152: 98 | E152: 48 | F152: 71 | G152: 169
A153: 60045201 | B153: Ventura | D153: 392 | E153: 174 | F153: 114 | G153: 506
A154: 60045301 | B154: Ventura | D154: 151 | E154: 49 | F154: 12 | G154: 163
A155: 60046101 | B155: Ventura | D155: 113.204 | E155: 40 | F155: 303 | G155: 416.204
A156: 60046102 | B156: Ventura | C156: Santa Paula | D156: 1635.796 | E156: 578 | F156: 395 | G156: 2030.796
A157: 60046201 | B157: Ventura | D157: 561 | E157: 180 | F157: 417 | G157: 978
A158: 60047101 | B158: Ventura | C158: Santa Paula | D158: 2787 | E158: 915 | F158: 83 | G158: 2870
A159: 60047201 | B159: Ventura | C159: Santa Paula | D159: 2476 | E159: 637 | F159: 636 | G159: 3112
A160: 60047301 | B160: Ventura | C160: Santa Paula | D160: 3078 | E160: 843 | F160: 557 | G160: 3635
A161: 60047401 | B161: Ventura | C161: Santa Paula | D161: 2166 | E161: 620 | F161: 322 | G161: 2488
A162: 60048101 | B162: Ventura | C162: Santa Paula | D162: 1285 | E162: 373 | F162: 48 | G162: 1333
A163: 60048201 | B163: Ventura | C163: Santa Paula | D163: 536 | E163: 148 | F163: 17 | G163: 553
A164: 60048301 | B164: Ventura | C164: Santa Paula | D164: 3433 | E164: 1072 | F164: 348 | G164: 3781
A165: 60049101 | B165: Ventura | C165: Santa Paula | D165: 851 | E165: 300 | F165: 279 | G165: 1130
A166: 60049201 | B166: Ventura | C166: Santa Paula | D166: 504 | E166: 142 | F166: 346 | G166: 850
A167: 60049301 | B167: Ventura | C167: Santa Paula | D167: 2563 | E167: 740 | F167: 1208 | G167: 3771
A168: 60049401 | B168: Ventura | C168: Santa Paula | D168: 1393 | E168: 354 | F168: 270 | G168: 1663
A169: 60049501 | B169: Ventura | C169: Santa Paula | D169: 767 | E169: 332 | F169: 384 | G169: 1151
A170: 60050101 | B170: Ventura | C170: Santa Paula | D170: 747 | E170: 274 | F170: 55 | G170: 802
A171: 60050201 | B171: Ventura | C171: Santa Paula | D171: 2537 | E171: 753 | F171: 38 | G171: 2575
A172: 60050301 | B172: Ventura | C172: Santa Paula | D172: 2139 | E172: 473 | F172: 117 | G172: 2256
A173: 60051101 | B173: Ventura | D173: 71 | E173: 24 | F173: 144 | G173: 215
A174: 60051201 | B174: Ventura | D174: 85 | E174: 31 | F174: 258 | G174: 343
A175: 60051202 | B175: Ventura | C175: Santa Paula | D175: 0 | E175: 0 | F175: 657 | G175: 657
A176: 60051301 | B176: Ventura | C176: Santa Paula | D176: 1324 | E176: 484 | F176: 202 | G176: 1526
A177: 60051302 | B177: Ventura | C177: Santa Paula | D177: 0 | E177: 0 | F177: 0 | G177: 0
A178: 60051401 | B178: Ventura | D178: 32 | E178: 9 | F178: 143 | G178: 175
A179: 60051501 | B179: Ventura | C179: Santa Paula | D179: 33.5 | E179: 9 | F179: 246 | G179: 279.5
A180: 60051502 | B180: Ventura | D180: 33.5 | E180: 9 | F180: 45 | G180: 78.5
A181: 60051601 | B181: Ventura | D181: 125 | E181: 43 | F181: 16 | G181: 141
A182: 60052101 | B182: Ventura | D182: 288 | E182: 109 | F182: 149 | G182: 437
A183: 60052201 | B183: Ventura | D183: 0 | E183: 0 | F183: 59 | G183: 59
A184: 60052202 | B184: Ventura | C184: Santa Paula | D184: 1163 | E184: 595 | F184: 81 | G184: 1244
A185: 60053101 | B185: Ventura | C185: Oxnard | D185: 436 | E185: 137 | F185: 102 | G185: 538
A186: 60054101 | B186: Ventura | D186: 6 | E186: 3 | F186: 99 | G186: 105
A187: 60055101 | B187: Ventura | C187: Oxnard | D187: 3196 | E187: 1702 | F187: 335 | G187: 3531
A188: 60055201 | B188: Ventura | C188: Oxnard | D188: 2544 | E188: 1251 | F188: 847 | G188: 3391
A189: 60055301 | B189: Ventura | D189: 489 | E189: 208 | F189: 9 | G189: 498
A190: 60056101 | B190: Ventura | C190: Oxnard | D190: 1792 | E190: 1003 | F190: 661 | G190: 2453
A191: 60056201 | B191: Ventura | C191: Oxnard | D191: 2070 | E191: 993 | F191: 591 | G191: 2661
A192: 60057101 | B192: Ventura | C192: Oxnard | D192: 3580 | E192: 1145 | F192: 364 | G192: 3944
A193: 60057201 | B193: Ventura | C193: Oxnard | D193: 2757 | E193: 992 | F193: 178 | G193: 2935
A194: 60057301 | B194: Ventura | C194: Oxnard | D194: 1948 | E194: 772 | F194: 54 | G194: 2002
A195: 60058101 | B195: Ventura | C195: Port Hueneme | D195: 2820 | E195: 434 | F195: 1106 | G195: 3926
A196: 60059101 | B196: Ventura | C196: Port Hueneme | D196: 3156 | E196: 1376 | F196: 268 | G196: 3424
A197: 60059201 | B197: Ventura | C197: Port Hueneme | D197: 3854 | E197: 1475 | F197: 1101 | G197: 4955
A198: 60060101 | B198: Ventura | C198: Port Hueneme | D198: 0 | E198: 0 | F198: 0 | G198: 0
A199: 60061101 | B199: Ventura | C199: Oxnard | D199: 5487 | E199: 1791 | F199: 158 | G199: 5645
A200: 60061201 | B200: Ventura | C200: Oxnard | D200: 250 | E200: 87 | F200: 974 | G200: 1224
... 504 more rows

Sheet HBW-PK
C1: RAW Data - Person Trips | S1: ADJUSTED Data - Vehicle Trips
B2: 10000001 | C2: 10226.60488 | D2: 9747.504208 | E2: 1133.128268 | F2: 1073.564721 | G2: 361.04901 | H2: 332.880364 | I2: 119994.3093 | J2: 121156.3948 | K2: 13299.1696 | L2: 13335.56208 | M2: 4198.874939 | N2: 4120.688164 | O2: 137492.3538 | P2: 138612.6451 | Q2: 11720.78216 | R2: 11153.94929 | S2: P-DATrip | T2: A-DATrip | U2: P-SR2Trip | V2: A-SR2Trip | W2: P-SR3Trip | X2: A-SR3Trip | Y2: P-DAVMT | Z2: A-DAVMT | AA2: P-SR2VMT | AB2: A-SR2VMT | AC2: P-SR3VMT | AD2: A-SR3VMT | AE2: P-VMT - VEHICLE | AF2: O-VMT - VEHICLE | AG2: P-Trip - VEHICLE | AH2: A-Trip - VEHICLE | AI2: ZONE"
